Workbook

Sheet Zmeny
B1: Změna
A2: Datum | B2: Rev | C2: Popis
A3: 2018-09-25 | B3: 00 | C3: Surová nepřipomínkovaná verze
A4: 2018-10-28 | B4: 01 | C4: Upravené koeficienty soutěží

Sheet Soutez
A1: Soutěž | B1: Stát | C1: Rok | D1: Místo | E1: Poč. disc. | F1: Poč. pilotů | G1: Ki | H1: Kn | I1: dKi/Kn | J1: Termín | K1: Web | L1: Results | M1: Poznámka
A2: Zařazené soutěže 2016:
A3: AZ Cup 2016 - Klub | B3: CZ | C3: 2016 | D3: Zbraslavice | E3: 4 | F3: 55 | G3: 0.9 | H3: 0.945 | I3: =H3-G3 -> 0.045 | J3: 14.4.-23.4.2016 | L3: http://www.soaringspot.com/cs/az-cup-2016-zbraslavice-2016/results/klubova
A4: AZ Cup 2016 - Kombi | B4: CZ | C4: 2016 | D4: Zbraslavice | E4: 3 | F4: 22 | G4: 0 | H4: 0 | I4: 0 | J4: 14.4.-23.4.2016 | L4: http://www.soaringspot.com/cs/az-cup-2016-zbraslavice-2016/results/kombinovana | M4: Méně než 4 platné disciplíny
A5: 12. JPJ 2016 - Klub | B5: CZ | C5: 2016 | D5: Šumperk | E5: 5 | F5: 25 | G5: 0.6 | H5: 0.605 | I5: 0.005 | J5: 29.4.-7.5.2016 | L5: http://www.soaringspot.com/cs/12-jarni-pohar-jeseniku-2016-sumperk-2016/results/klubova-trida
A6: 12. JPJ 2016 - Kombi | B6: CZ | C6: 2016 | D6: Šumperk | E6: 5 | F6: 17 | G6: 0.6 | H6: 0.6 | I6: 0 | J6: 29.4.-7.5.2016 | L6: http://www.soaringspot.com/cs/12-jarni-pohar-jeseniku-2016-sumperk-2016/results/kombi-trida
A7: Závody Šohajů 2016 - Klub | B7: CZ | C7: 2016 | D7: Raná | E7: 2 | F7: 9 | G7: 0 | H7: 0 | I7: 0 | J7: 21.5.-28.5.2016 | L7: http://www.soaringspot.com/cs/zavody-sohaju-2016-rana-u-loun-2016/results/club | M7: Méně než 4 platné disciplíny, méně než 10 soutěžících ve třídě
A8: PMČR 2016 - Klub | B8: CZ | C8: 2016 | D8: Moravská Třebová | E8: 7 | F8: 46 | G8: 1 | H8: 1.09 | I8: 0.09 | J8: 22.5.-4.6.2016 | L8: http://www.soaringspot.com/cs/plachtarske-mistrovstvi-cr-2016-moravsca-trebova-2016/results/klubova
A9: PMČR 2016 - Kombi 15m | B9: CZ | C9: 2016 | D9: Moravská Třebová | E9: 7 | F9: 23 | G9: 1 | H9: 1.045 | I9: 0.045 | J9: 22.5.-4.6.2016 | L9: http://www.soaringspot.com/cs/plachtarske-mistrovstvi-cr-2016-moravsca-trebova-2016/results/kombi-15m
A10: PMČR 2016 - Kombi Open | B10: CZ | C10: 2016 | D10: Moravská Třebová | E10: 7 | F10: 19 | G10: 1 | H10: 1.06 | I10: 0.06 | J10: 22.5.-4.6.2016 | L10: http://www.soaringspot.com/cs/plachtarske-mistrovstvi-cr-2016-moravsca-trebova-2016/results/kombi-open
A11: FL 2016 - Kombi | B11: CZ | C11: 2016 | D11: Frýdlant n/Ostr. | E11: 6 | F11: 17 | G11: 0.6 | H11: 0.6 | I11: 0 | J11: 1.7.-9.7.2016 | L11: http://www.soaringspot.com/cs/fl-2016-adrenalin-grand-prix-frydlant-2016/results/fl
A12: Adrenalin GP 2016 - Klub GP | B12: CZ | C12: 2016 | D12: Frýdlant n/Ostr. | E12: 6 | F12: 14 | G12: 0.6 | H12: 0.6 | I12: 0 | J12: 1.7.-9.7.2016 | L12: http://www.soaringspot.com/cs/fl-2016-adrenalin-grand-prix-frydlant-2016/results/agp
A13: Safari 2016 - Duo Kombi | B13: CZ | C13: 2016 | D13: Dvůr Králové | E13: 5 | F13: 15 | G13: 0.6 | H13: 0.6 | I13: 0 | J13: 3.7.-15.7.2016 | L13: http://www.soaringspot.com/cs/safari-2016-dvur-kralove-2016/results/duo-kombi
A14: Safari 2016 - Kombi | B14: CZ | C14: 2016 | D14: Dvůr Králové | E14: 6 | F14: 36 | G14: 0.6 | H14: 0.6 | I14: 0 | J14: 3.7.-15.7.2016 | L14: http://www.soaringspot.com/cs/safari-2016-dvur-kralove-2016/results/volna
A15: Toužim Cup 2016 - Klub | B15: CZ | C15: 2016 | D15: Toužim | E15: 3 | F15: 26 | G15: 0 | H15: 0 | I15: 0 | J15: 9.7.-17.7.2016 | L15: http://www.soaringspot.com/cs/tcup-2016-touain-2016/results/klub | M15: Méně než 4 platné disciplíny
A16: Toužim Cup 2016 - Kombi | B16: CZ | C16: 2016 | D16: Toužim | E16: 4 | F16: 16 | G16: 0.6 | H16: 0.605 | I16: =H16-G16 -> 0.005 | J16: 9.7.-17.7.2016 | L16: http://www.soaringspot.com/cs/tcup-2016-touain-2016/results/kombi
A17: PMRg 2016 - Klub | B17: CZ | C17: 2016 | D17: Zbraslavice | E17: 6 | F17: 39 | G17: 0.95 | H17: 0.96 | I17: 0.01 | J17: 10.7.-23.7.2016 | L17: http://www.soaringspot.com/cs/plachtarske-mistrovstvi-regionu-2016-zbraslavice-2016/results/klubova
A18: PMRg 2016 - Kombi | B18: CZ | C18: 2016 | D18: Zbraslavice | E18: 6 | F18: 13 | G18: 0.95 | H18: 0.985 | I18: 0.035 | J18: 10.7.-23.7.2016 | L18: http://www.soaringspot.com/cs/plachtarske-mistrovstvi-regionu-2016-zbraslavice-2016/results/kombinovana
A19: Pohár Vysočiny 2016 - Klub | B19: CZ | C19: 2016 | D19: Havlíčkův Brod | E19: 5 | F19: 46 | G19: 0.6 | H19: 0.6 | I19: 0 | J19: 23.7.-31.7.2016 | L19: http://www.soaringspot.com/cs/plachtarsky-pohar-vysociny-2016-havlickuv-brod-2016/results/klubova
A20: Pohár Vysočiny 2016 - Kombi | B20: CZ | C20: 2016 | D20: Havlíčkův Brod | E20: 5 | F20: 21 | G20: 0.6 | H20: 0.615 | I20: 0.015 | J20: 23.7.-31.7.2016 | L20: http://www.soaringspot.com/cs/plachtarsky-pohar-vysociny-2016-havlickuv-brod-2016/results/kombinovana
A21: Ranský Pohár 2016 - Klub | B21: CZ | C21: 2016 | D21: Raná | E21: 2 | F21: 5 | G21: 0 | H21: 0 | I21: 0 | J21: 23.7.-31.7.2016 | L21: http://www.soaringspot.com/cs/ransky-pohar-2016-rana-u-loun-2016/results/club | M21: Méně než 4 platné disciplíny, méně než 10 soutěžících ve třídě
A22: Ranský Pohár 2016 - Kombi | B22: CZ | C22: 2016 | D22: Raná | E22: 4 | F22: 19 | G22: 0.6 | H22: 0.6 | I22: 0 | J22: 23.7.-31.7.2016 | L22: http://www.soaringspot.com/cs/ransky-pohar-2016-rana-u-loun-2016/results/kombi
A23: Pohár Českého Ráje 2016 - Kombi | B23: CZ | C23: 2016 | D23: Jičín | E23: 5 | F23: 7 | G23: 0 | H23: 0 | I23: 0 | J23: 30.7.-6.8.2016 | L23: http://www.soaringspot.com/cs/pohar-ceskeho-raje-2016-jicin-letiske-2016/ | M23: Méně než 10 soutěžících ve třídě
A24: PMČRj 2016 - Klub | B24: CZ | C24: 2016 | D24: Vysoké Mýto | E24: 7 | F24: 32 | G24: 0.9 | H24: 0.915 | I24: 0.015 | J24: 31.7.-12.8.2016 | L24: http://www.soaringspot.com/cs/plachtarske-mistrovstvi-cr-junioru-2016-vysoke-myto-2016/
A25: Šumava Glide 2016 - Kombi | B25: CZ | C25: 2016 | D25: Frymburk | E25: 3 | F25: 8 | G25: 0 | H25: 0 | I25: 0 | J25: 12.8.-20.8.2016 | L25: http://www.soaringspot.com/cs/sumava-glide-2016-frymburk-2016/ | M25: Méně než 4 platné disciplíny, méně než 10 soutěžících ve třídě
A26: 15. HOP 2016 - Klub | B26: CZ | C26: 2016 | D26: Hronov | E26: 5 | F26: 25 | G26: 0.6 | H26: 0.6 | I26: 0 | J26: 13.8.-20.8.2016 | L26: http://www.soaringspot.com/cs/15-hop-2016-velke-porici-2016/
A27: 15. HOP 2016 - Kombi | B27: CZ | C27: 2016 | D27: Hronov | E27: 6 | F27: 17 | G27: 0.6 | H27: 0.6 | I27: 0 | J27: 13.8.-20.8.2016 | L27: http://www.soaringspot.com/cs/15-hop-2016-velke-porici-2016/
A28: GGP MB 2016 - Klub GP | B28: CZ | C28: 2016 | D28: Mladá Boleslav | E28: 4 | F28: 16 | G28: 0.6 | H28: 0.605 | I28: 0.005 | J28: 20.8.-28.8.2016 | L28: http://www.soaringspot.com/cs/gradient-club-grand-prix-mlada-boleslav-2016/
A29: GGP MB 2016 - Pohár MV - Kombi | B29: CZ | C29: 2016 | D29: Mladá Boleslav | E29: 3 | F29: 13 | G29: 0 | H29: 0 | I29: 0 | J29: 20.8.-28.8.2016 | L29: http://www.soaringspot.com/cs/gradient-club-grand-prix-mlada-boleslav-2016/ | M29: Méně než 4 platné disciplíny
A30: GGP MB 2016 - Gradient GP | B30: CZ | C30: 2016 | D30: Mladá Boleslav | E30: 4 | F30: 9 | G30: 0 | H30: 0 | I30: 0 | J30: 20.8.-28.8.2016 | L30: http://www.soaringspot.com/cs/gradient-club-grand-prix-mlada-boleslav-2016/ | M30: Méně než 10 soutěžících ve třídě
A31: 34. WGC 2016 - Std | B31: LT | C31: 2016 | D31: Pociunai | E31: 7 | F31: 40 | G31: 1 | H31: 1.105 | I31: 0.105 | J31: 31.7.-13.8.2016 | L31: http://www.soaringspot.com/cs/34th-wgc2016/
A32: 34. WGC 2016 - Klub | B32: LT | C32: 2016 | D32: Pociunai | E32: 7 | F32: 49 | G32: 1 | H32: 1.105 | I32: 0.105 | J32: 31.7.-13.8.2016 | L32: http://www.soaringspot.com/cs/34th-wgc2016/
A33: 34. WGC 2016 - Duo 20m | B33: LT | C33: 2016 | D33: Pociunai | E33: 7 | F33: 22 | G33: 1 | H33: 1.005 | I33: 0.005 | J33: 31.7.-13.8.2016 | L33: http://www.soaringspot.com/cs/34th-wgc2016/
A34: Pribina Cup 2016 - Klub | B34: SK | C34: 2016 | D34: Nitra | E34: 4 | F34: 26 | G34: 0.9 | H34: 0.92 | I34: 0.02 | J34: 25.3.-2.4.2016 | L34: http://www.soaringspot.com/cs/pribina-cup-2016-nitra-2016/
A35: Pribina Cup 2016 - Kombi 15m | B35: SK | C35: 2016 | D35: Nitra | E35: 4 | F35: 13 | G35: 0.9 | H35: 0.905 | I35: 0.005 | J35: 25.3.-2.4.2016 | L35: http://www.soaringspot.com/cs/pribina-cup-2016-nitra-2016/
A36: Pribina Cup 2016 - Kombi Open | B36: SK | C36: 2016 | D36: Nitra | E36: 7 | F36: 30 | G36: 0.9 | H36: 0.92 | I36: 0.02 | J36: 25.3.-2.4.2016 | L36: http://www.soaringspot.com/cs/pribina-cup-2016-nitra-2016/
A37: Pribina Cup 2016 - Duo 20m | B37: SK | C37: 2016 | D37: Nitra | E37: 4 | F37: 19 | G37: 0.9 | H37: 0.905 | I37: 0.005 | J37: 25.3.-2.4.2016 | L37: http://www.soaringspot.com/cs/pribina-cup-2016-nitra-2016/
A38: FCC 2016 - Klub | B38: SK | C38: 2016 | D38: Prievidza | E38: 7 | F38: 59 | G38: 0.9 | H38: 0.94 | I38: 0.04 | J38: 10.4.-21.4.2016 | L38: http://www.soaringspot.com/cs/fcc-gliding-2016-prievidza-2016/
A39: FCC 2016 - Kombi 15m | B39: SK | C39: 2016 | D39: Prievidza | E39: 9 | F39: 42 | G39: 0.9 | H39: 0.96 | I39: 0.06 | J39: 10.4.-21.4.2016 | L39: http://www.soaringspot.com/cs/fcc-gliding-2016-prievidza-2016/
A40: FCC 2016 - Kombi Open | B40: SK | C40: 2016 | D40: Prievidza | E40: 8 | F40: 30 | G40: 0.9 | H40: 0.975 | I40: 0.075 | J40: 10.4.-21.4.2016 | L40: http://www.soaringspot.com/cs/fcc-gliding-2016-prievidza-2016/
A41: Fatraglide 2016 - Klub | B41: SK | C41: 2016 | D41: Martin | E41: 5 | F41: 15 | G41: 0.6 | H41: 0.6 | I41: 0 | J41: 23.4.-1.5.2016 | L41: http://www.soaringspot.com/cs/fatraglide16-martin-2016/
A42: Fatraglide 2016 - Kombi | B42: SK | C42: 2016 | D42: Martin | E42: 5 | F42: 9 | G42: 0 | H42: 0 | I42: 0 | J42: 23.4.-1.5.2016 | L42: http://www.soaringspot.com/cs/fatraglide16-martin-2016/ | M42: Méně než 10 soutěžících ve třídě
A43: PMSR 2016 - Klub | B43: SK | C43: 2016 | D43: Partizánske | E43: 9 | F43: 58 | G43: 0.9 | H43: 0.92 | I43: 0.02 | J43: 2.7.-17.7.2016 | L43: http://www.soaringspot.com/cs/pmsr-a-memorial-a-makarenka-2016-partizanske-2016/
A44: PMSR 2016 - Kombi | B44: SK | C44: 2016 | D44: Partizánske | E44: 9 | F44: 20 | G44: 0.9 | H44: 0.92 | I44: 0.02 | J44: 2.7.-17.7.2016 | L44: http://www.soaringspot.com/cs/pmsr-a-memorial-a-makarenka-2016-partizanske-2016/
A45: Oldtimer Pribina Star 2016 - Kombi | B45: SK | C45: 2016 | D45: Nitra | E45: 5 | F45: 15 | G45: 0.6 | H45: 0.6 | I45: 0 | J45: 12.8.-20.8.2016 | L45: http://www.soaringspot.com/cs/oldtimer-pribina-star-2016/
A46: SGP 2016 RU - Klub GP | B46: RU | C46: 2016 | D46: Usman | E46: 6 | F46: 20 | G46: 0.9 | H46: 0.95 | I46: 0.05 | J46: 1.5.-8.5.2016 | K46: http://www.sgp.aero/russia2016.aspx | L46: http://www.sgp.aero/russia2016.aspx
A47: SGP 2016 DE - 18m GP | B47: DE | C47: 2016 | D47: Musbach | E47: 6 | F47: 19 | G47: 0.9 | H47: 0.935 | I47: 0.035 | J47: 7.8.-13.8.2016 | K47: http://www.sgp.aero/germany2016.aspx | L47: http://www.sgp.aero/germany2016.aspx
A48: 7. WSGP Final 2016 - 18m GP | B48: SA | C48: 2016 | D48: Potchefstroom | E48: 6 | F48: 18 | G48: 1 | H48: 1.08 | I48: 0.08 | J48: 5.11.-12.11.2016 | K48: http://www.sgp.aero/finals2016.aspx | L48: http://www.sgp.aero/finals2016.aspx
A49: 34. WGC 2016 - 15m | B49: AU | C49: 2016 | D49: Benalla | E49: 6 | F49: 37 | G49: 1 | H49: 1.095 | I49: 0.095 | J49: 8.1. - 22.1.2017 | K49: http://www.wgc2017.com/ | L49: http://www.wgc2017.com/results(hidden)/daily-race-results.aspx?contestID=25893
A50: 34. WGC 2016 - 18m | B50: AU | C50: 2016 | D50: Benalla | E50: 7 | F50: 43 | G50: 1 | H50: 1.105 | I50: 0.105 | J50: 8.1. - 22.1.2017 | K50: http://www.wgc2017.com/ | L50: http://www.wgc2017.com/results(hidden)/daily-race-results.aspx?contestID=25893
A51: 34. WGC 2016 - Open | B51: AU | C51: 2016 | D51: Benalla | E51: 8 | F51: 35 | G51: 1 | H51: 1.105 | I51: 0.105 | J51: 8.1. - 22.1.2017 | K51: http://www.wgc2017.com/ | L51: http://www.wgc2017.com/results(hidden)/daily-race-results.aspx?contestID=25893
A52: Zařazené soutěže 2017:
A53: AZ Cup 2017 - Klub | B53: CZ | C53: 2017 | D53: Zbraslavice | E53: 3 | F53: 34 | G53: 0 | H53: 0 | I53: 0 | J53: 14.4.-22.4.2017 | K53: http://www.azcup.cz/ | L53: https://www.soaringspot.com/cs/az-cup-2017-zbraslavice-2017/results/klub/task-4-on-2017-04-21/total
A54: AZ Cup 2017 - Kombi | B54: CZ | C54: 2017 | D54: Zbraslavice | E54: 4 | F54: 21 | G54: 0.9 | H54: 0.92 | I54: 0.02 | J54: 14.4.-22.4.2017 | K54: http://www.azcup.cz/ | L54: https://www.soaringspot.com/cs/az-cup-2017-zbraslavice-2017/results/kombi/task-4-on-2017-04-21/total
A55: 13. JPJ 2017 - Klub | B55: CZ | C55: 2017 | D55: Šumperk | E55: 5 | F55: 39 | G55: 0.6 | H55: 0.63 | I55: 0.03 | J55: 29.4.-7.5.2017 | K55: http://www.jpj-sumperk.cz/ | L55: https://www.soaringspot.com/cs/13-jarni-pohar-jeseniku-2017-sumperk-2017/results/klubova-trida/task-7-on-2017-05-07/total
A56: 13. JPJ 2017 - Kombi | B56: CZ | C56: 2017 | D56: Šumperk | E56: 5 | F56: 29 | G56: 0.6 | H56: 0.6 | I56: 0 | J56: 29.4.-7.5.2017 | K56: http://www.jpj-sumperk.cz/ | L56: https://www.soaringspot.com/cs/13-jarni-pohar-jeseniku-2017-sumperk-2017/results/kombi-trida/task-7-on-2017-05-07/total
A57: Závody Šohajů 2017 - Klub | B57: CZ | C57: 2017 | D57: Raná | E57: 5 | F57: 10 | G57: 0.6 | H57: 0.6 | I57: 0 | J57: 20.5.-27.5.2017 | K57: http://sohaje.aeroklubrana.cz/ | L57: https://www.soaringspot.com/cs/zavody-sohaju-a-historickych-kluzaku-2017-rana-loumy-2017/results/club/task-8-on-2017-05-27/total
A58: 9. WGC Women 2017 - Klub | B58: CZ | C58: 2017 | D58: Zbraslavice | E58: 12 | F58: 23 | G58: 1 | H58: 1.01 | I58: 0.01 | J58: 21.5.-4.6.2017 | K58: https://www.wwgc2017.cz/ | L58: https://www.soaringspot.com/cs/9th-fai-womens-world-gliding-championship-2017-zbraslavice-2017/results/club/task-12-on-2017-06-03/total
A59: 9. WGC Women 2017 - Std | B59: CZ | C59: 2017 | D59: Zbraslavice | E59: 12 | F59: 14 | G59: 1 | H59: 1.025 | I59: 0.025 | J59: 21.5.-4.6.2017 | K59: https://www.wwgc2017.cz/ | L59: https://www.soaringspot.com/cs/9th-fai-womens-world-gliding-championship-2017-zbraslavice-2017/results/standard/task-12-on-2017-06-03/total
A60: 9. WGC Women 2017 - 18m | B60: CZ | C60: 2017 | D60: Zbraslavice | E60: 12 | F60: 11 | G60: 1 | H60: 1.01 | I60: 0.01 | J60: 21.5.-4.6.2017 | K60: https://www.wwgc2017.cz/ | L60: https://www.soaringspot.com/cs/9th-fai-womens-world-gliding-championship-2017-zbraslavice-2017/results/18m/task-12-on-2017-06-03/total
A61: PMČR CON 2017 - Klub | B61: CZ | C61: 2017 | D61: Příbram | E61: 6 | F61: 25 | G61: 1 | H61: 1.03 | I61: 0.03 | J61: 25.6.-7.7.2017 | K61: http://www.wgc2018.cz/ | L61: https://www.soaringspot.com/cs/czech-gliding-nationals-pre-worlds-2017-pribram-2017/results/club/task-10-on-2017-07-06/total
A62: PMČR CON 2017 - Kombi 15m | B62: CZ | C62: 2017 | D62: Příbram | E62: 7 | F62: 16 | G62: 1 | H62: 1.035 | I62: 0.035 | J62: 25.6.-7.7.2017 | K62: http://www.wgc2018.cz/ | L62: https://www.soaringspot.com/cs/czech-gliding-nationals-pre-worlds-2017-pribram-2017/results/15m-mixed/task-10-on-2017-07-06/total
A63: PMČR CON 2017 - Kombi Open | B63: CZ | C63: 2017 | D63: Příbram | E63: 7 | F63: 23 | G63: 1 | H63: 1.085 | I63: 0.085 | J63: 25.6.-7.7.2017 | K63: http://www.wgc2018.cz/ | L63: https://www.soaringspot.com/cs/czech-gliding-nationals-pre-worlds-2017-pribram-2017/results/open/task-10-on-2017-07-06/total
A64: FL 2017 - Kombi | B64: CZ | C64: 2017 | D64: Frýdlant n/Ostr. | E64: 5 | F64: 16 | G64: 0.6 | H64: 0.6 | I64: 0 | J64: 30.6.-8.7.2017 | K64: https://fl2017.akfrydlant.cz/ | L64: https://www.soaringspot.com/cs/fl-2017-adrenalin-grand-prix-frydlant-2017/results/fl/task-6-on-2017-07-06/total
A65: Adrenalin GP 2017 - Klub GP | B65: CZ | C65: 2017 | D65: Frýdlant n/Ostr. | E65: 6 | F65: 11 | G65: 0.6 | H65: 0.6 | I65: 0 | J65: 30.6.-8.7.2017 | K65: https://fl2017.akfrydlant.cz/ | L65: https://www.soaringspot.com/cs/fl-2017-adrenalin-grand-prix-frydlant-2017/results/agp/task-6-on-2017-07-06/total
A66: Safari 2017 - Duo Kombi | B66: CZ | C66: 2017 | D66: Dvůr Králové | E66: 4 | F66: 10 | G66: 0.6 | H66: 0.6 | I66: 0 | J66: 2.7.-14.7.2017 | K66: http://www.gliding.cz/souteze/2017/safari/ | L66: https://www.soaringspot.com/cs/20-safari-2017-dvur-kralove-nad-labem-2017/results/duo-blanik/task-8-on-2017-07-14/total
A67: Safari 2017 - Klub | B67: CZ | C67: 2017 | D67: Dvůr Králové | E67: 5 | F67: 28 | G67: 0.6 | H67: 0.6 | I67: 0 | J67: 2.7.-14.7.2017 | K67: http://www.gliding.cz/souteze/2017/safari/ | L67: https://www.soaringspot.com/cs/20-safari-2017-dvur-kralove-nad-labem-2017/results/klub/task-9-on-2017-07-14/total
A68: Safari 2017 - Kombi | B68: CZ | C68: 2017 | D68: Dvůr Králové | E68: 5 | F68: 11 | G68: 0.6 | H68: 0.6 | I68: 0 | J68: 2.7.-14.7.2017 | K68: http://www.gliding.cz/souteze/2017/safari/ | L68: https://www.soaringspot.com/cs/20-safari-2017-dvur-kralove-nad-labem-2017/results/volna
A69: Ranský Pohár 2017 - Klub | B69: CZ | C69: 2017 | D69: Raná | E69: 3 | F69: 14 | G69: 0 | H69: 0 | I69: 0 | J69: 8.7.-15.7.2017 | K69: http://pohar.aeroklubrana.cz/ | L69: https://www.soaringspot.com/cs/ransky-pohar-2017-rana-loumy-2017/results/club/task-3-on-2017-07-13/total
A70: Toužim Cup 2017 - Klub | B70: CZ | C70: 2017 | D70: Toužim | E70: 2 | F70: 26 | G70: 0 | H70: 0 | I70: 0 | J70: 8.7.-15.7.2017 | K70: http://www.gliding.cz/souteze/2017/tcup/ | L70: https://www.soaringspot.com/cs/tcup2017/results/klub/task-3-on-2017-07-13/total
A71: Toužim Cup 2017 - Kombi | B71: CZ | C71: 2017 | D71: Toužim | E71: 2 | F71: 12 | G71: 0 | H71: 0 | I71: 0 | J71: 8.7.-15.7.2017 | K71: http://www.gliding.cz/souteze/2017/tcup/ | L71: https://www.soaringspot.com/cs/tcup2017/results/kombi/task-4-on-2017-07-13/total
A72: PMČRj 2017 - Klub | B72: CZ | C72: 2017 | D72: Jihlava | E72: 7 | F72: 31 | G72: 0.9 | H72: 0.905 | I72: 0.005 | J72: 9.7.-21.7.2017 | K72: http://www.gliding.cz/souteze/2017/pmcr_j/ | L72: https://www.soaringspot.com/cs/plachtarske-mistrovstvi-ceske-republiky-junioru-jihlava-2017/results/club/task-10-on-2017-07-21/total
A73: Pohár Vysočiny 2017 - Klub | B73: CZ | C73: 2017 | D73: Havlíčkův Brod | E73: 3 | F73: 47 | G73: 0 | H73: 0 | I73: 0 | J73: 22.7.-30.7.2017 | K73: http://www.gliding.cz/souteze/2017/ppv/ | L73: https://www.soaringspot.com/cs/plachtarsky-pohar-vysociny-2017-havlickuv-brod-2017/results/klub/task-4-on-2017-07-29/total
A74: Pohár Vysočiny 2017 - Kombi | B74: CZ | C74: 2017 | D74: Havlíčkův Brod | E74: 3 | F74: 17 | G74: 0 | H74: 0 | I74: 0 | J74: 22.7.-30.7.2017 | K74: http://www.gliding.cz/souteze/2017/ppv/ | L74: https://www.soaringspot.com/cs/plachtarsky-pohar-vysociny-2017-havlickuv-brod-2017/results/kombi/task-5-on-2017-07-29/total
A75: 19. EGC 2017 - Klub | B75: CZ | C75: 2017 | D75: Moravská Třebová | E75: 6 | F75: 31 | G75: 1 | H75: 1.075 | I75: 0.075 | J75: 23.7.-4.8.2017 | K75: http://www.egc2017.cz/ | L75: https://www.soaringspot.com/cs/19th-fai-european-gliding-championships-moravska-trebova-2017/results/club/task-10-on-2017-08-03/total
A76: 19. EGC 2017 - Std | B76: CZ | C76: 2017 | D76: Moravská Třebová | E76: 6 | F76: 27 | G76: 1 | H76: 1.09 | I76: 0.09 | J76: 23.7.-4.8.2017 | K76: http://www.egc2017.cz/ | L76: https://www.soaringspot.com/cs/19th-fai-european-gliding-championships-moravska-trebova-2017/results/standard/task-10-on-2017-08-03/total
A77: 19. EGC 2017 - Duo | B77: CZ | C77: 2017 | D77: Moravská Třebová | E77: 6 | F77: 16 | G77: 1 | H77: 1.01 | I77: 0.01 | J77: 23.7.-4.8.2017 | K77: http://www.egc2017.cz/ | L77: https://www.soaringspot.com/cs/19th-fai-european-gliding-championships-moravska-trebova-2017/results/double-seater/task-10-on-2017-08-03/total
A78: Pohár Českého Ráje 2017 - Kombi | B78: CZ | C78: 2017 | D78: Jičín | E78: 4 | F78: 10 | G78: 0.6 | H78: 0.6 | I78: 0 | J78: 29.7.-5.8.2017 | K78: http://aecr.cz/ud%C3%A1lost/pohar-ceskeho-raje-2017/ | L78: https://www.soaringspot.com/cs/pohar-ceskeho-raje-2017-jicin-2017/results/combi/task-5-on-2017-08-05/total
A79: PMRg 2017 - Klub | B79: CZ | C79: 2017 | D79: Křižanov | E79: 7 | F79: 47 | G79: 0.95 | H79: 0.975 | I79: 0.025 | J79: 6.8.-18.8.2017 | K79: http://lkka.cz/pmrg2017/ | L79: https://www.soaringspot.com/cs/plachtarske-mistrovstvi-regionu-krizanov-2017/results/klubova-trida/task-9-on-2017-08-18/total
A80: PMRg 2017 - Kombi | B80: CZ | C80: 2017 | D80: Křižanov | E80: 8 | F80: 19 | G80: 0.95 | H80: 0.965 | I80: =H80-G80 -> 0.015 | J80: 6.8.-18.8.2017 | K80: http://lkka.cz/pmrg2017/ | L80: https://www.soaringspot.com/cs/plachtarske-mistrovstvi-regionu-krizanov-2017/results/kombinovana-trida/task-9-on-2017-08-18/total
A81: 16. HOP 2017 - Klub | B81: CZ | C81: 2017 | D81: Hronov | E81: 4 | F81: 27 | G81: 0.6 | H81: 0.605 | I81: 0.005 | J81: 12.8.-19.8.2017 | K81: http://www.lkvp.cz/HOP-2017.html | L81: https://www.soaringspot.com/cs/16-hop-2017-velke-porici-2017/results/klub-hop/task-5-on-2017-08-18/total
A82: 16. HOP 2017 - Kombi | B82: CZ | C82: 2017 | D82: Hronov | E82: 4 | F82: 13 | G82: 0.6 | H82: 0.6 | I82: 0 | J82: 12.8.-19.8.2017 | K82: http://www.lkvp.cz/HOP-2017.html | L82: https://www.soaringspot.com/cs/16-hop-2017-velke-porici-2017/results/kombi-ppf/task-6-on-2017-08-18/total
A83: GGP MB 2017 - Gradient GP | B83: CZ | C83: 2017 | D83: Mladá Boleslav | E83: 3 | F83: 6 | G83: 0 | H83: 0 | I83: 0 | J83: 26.8.-2.9.2017 | K83: http://ggp.cpska.cz/public/index3.php | L83: https://www.soaringspot.com/cs/gradient-club-grand-prix-2017-mlada-boleslav-2017/results/gradient-gp/task-4-on-2017-08-29/total
A84: GGP MB 2017 - Klub GP | B84: CZ | C84: 2017 | D84: Mladá Boleslav | E84: 2 | F84: 6 | G84: 0 | H84: 0 | I84: 0 | J84: 26.8.-2.9.2017 | K84: http://ggp.cpska.cz/public/index3.php | L84: https://www.soaringspot.com/cs/gradient-club-grand-prix-2017-mlada-boleslav-2017/results/club-gp/task-4-on-2017-08-29/total
A85: GGP MB 2017 - Pohár MV - Kombi | B85: CZ | C85: 2017 | D85: Mladá Boleslav | E85: 4 | F85: 11 | G85: 0.6 | H85: 0.62 | I85: 0.02 | J85: 26.8.-2.9.2017 | K85: http://ggp.cpska.cz/public/index3.php | L85: https://www.soaringspot.com/cs/gradient-club-grand-prix-2017-mlada-boleslav-2017/results/pohar-metodeje-vlach/task-7-on-2017-09-02/total
A86: Pribina Cup 2017 - Klub | B86: SK | C86: 2017 | D86: Nitra | E86: 4 | F86: 45 | G86: 0.9 | H86: 0.94 | I86: 0.04 | J86: 14.4.-22.4.2017 | K86: www.pribinacup.sk/ | L86: https://www.soaringspot.com/cs/pribina-cup-2017-nitra-2017/results/unknown/task-5-on-2017-04-21/total
A87: Pribina Cup 2017 - Kombi 15m | B87: SK | C87: 2017 | D87: Nitra | E87: 5 | F87: 34 | G87: 0.9 | H87: 0.945 | I87: 0.045 | J87: 14.4.-22.4.2017 | K87: www.pribinacup.sk/ | L87: https://www.soaringspot.com/cs/pribina-cup-2017-nitra-2017/results/15-meter/task-5-on-2017-04-21/total
A88: Pribina Cup 2017 - Kombi Open | B88: SK | C88: 2017 | D88: Nitra | E88: 4 | F88: 32 | G88: 0.9 | H88: 0.975 | I88: 0.075 | J88: 14.4.-22.4.2017 | K88: www.pribinacup.sk/ | L88: https://www.soaringspot.com/cs/pribina-cup-2017-nitra-2017/results/open/task-5-on-2017-04-21/total
A89: Pribina Cup 2017 - Duo 20m | B89: SK | C89: 2017 | D89: Nitra | E89: 5 | F89: 25 | G89: 0.9 | H89: 0.905 | I89: 0.005 | J89: 14.4.-22.4.2017 | K89: www.pribinacup.sk/ | L89: https://www.soaringspot.com/cs/pribina-cup-2017-nitra-2017/results/20m-double-seater/task-5-on-2017-04-21/total
A90: FCC 2017 - Klub | B90: SK | C90: 2017 | D90: Prievidza | E90: 4 | F90: 43 | G90: 0.9 | H90: 0.935 | I90: 0.035 | J90: 23.4.-4.5.2017 | K90: http://www.fccgliding.sk/ | L90: https://www.soaringspot.com/cs/fcc-gliding-2017-prievidza-2017/results/club/task-6-on-2017-05-01/total
A91: FCC 2017 - Kombi 15m | B91: SK | C91: 2017 | D91: Prievidza | E91: 4 | F91: 32 | G91: 0.9 | H91: 0.93 | I91: 0.03 | J91: 23.4.-4.5.2017 | K91: http://www.fccgliding.sk/ | L91: https://www.soaringspot.com/cs/fcc-gliding-2017-prievidza-2017/results/15-m/task-6-on-2017-05-01/total
A92: FCC 2017 - Kombi Open | B92: SK | C92: 2017 | D92: Prievidza | E92: 4 | F92: 23 | G92: 0.9 | H92: 0.97 | I92: 0.07 | J92: 23.4.-4.5.2017 | K92: http://www.fccgliding.sk/ | L92: https://www.soaringspot.com/cs/fcc-gliding-2017-prievidza-2017/results/combi/task-6-on-2017-05-01/total
A93: PMSR 2017 - Klub | B93: SK | C93: 2017 | D93: Partizánske | E93: 9 | F93: 33 | G93: 0.9 | H93: 0.915 | I93: 0.015 | J93: 2.7.-16.7.2017 | K93: http://www.pmsr.sk/index.php?str=uvod&detail=86&od=0&language=sk&rocnik=2017 | L93: https://www.soaringspot.com/cs/pmsr-2017-a-memorial-a-makarenka-male-bielice1-2017/results/klub/task-11-on-2017-07-15/total
A94: PMSR 2017 - Kombi | B94: SK | C94: 2017 | D94: Partizánske | E94: 10 | F94: 16 | G94: 0.9 | H94: 0.905 | I94: 0.005 | J94: 2.7.-16.7.2017 | K94: http://www.pmsr.sk/index.php?str=uvod&detail=86&od=0&language=sk&rocnik=2017 | L94: https://www.soaringspot.com/cs/pmsr-2017-a-memorial-a-makarenka-male-bielice1-2017/results/kombi/task-11-on-2017-07-15/total
A95: SGP 2017 SK - 18m GP | B95: SK | C95: 2017 | D95: Partizánske | E95: 7 | F95: 15 | G95: 0.9 | H95: 0.935 | I95: 0.035 | J95: 27.7.-5.8.2017 | K95: http://www.sgp.aero/slovakia2017.aspx | L95: https://www.soaringspot.com/cs/slovakia-sgp-male-bielice-2017/results/18-meter/task-7-on-2017-08-04/total
A96: Oldtimer Pribina Star 2017 - Klub | B96: SK | C96: 2017 | D96: Nitra | E96: 5 | F96: 14 | G96: 0.6 | H96: 0.6 | I96: 0 | J96: 12.8.-19.8.2017 | K96: http://www.airportnitra.sk/sk/oldtimer-pribina-star.html | L96: https://www.soaringspot.com/cs/oldtimerpribina-star-2017-nitra-2017/results/veteran/task-5-on-2017-08-18/total
A97: 25. Alpe Adria Cup - Kombi | B97: AT | C97: 2017 | D97: Feldkirchen | E97: 6 | F97: 29 | G97: 0.6 | H97: 0.615 | I97: 0.015 | J97: 20.5.-27.5.2017 | K97: https://www.soaringspot.com/cs/aac2017/results/offene-klasse/task-6-on-2017-05-27/total | L97: https://www.soaringspot.com/cs/aac2017/results/offene-klasse/task-6-on-2017-05-27/total
A98: TAL 2017 - Kombi | B98: AT | C98: 2017 | D98: Dobersberg | E98: 4 | F98: 13 | G98: 0.6 | H98: 0.6 | I98: 0 | J98: 5.8.-12.8.2017 | K98: https://www.soaringspot.com/cs/dobersberg-tal-2017/results/allgemeine-klasse/task-4-on-2017-08-12/total | L98: https://www.soaringspot.com/cs/dobersberg-tal-2017/results/allgemeine-klasse/task-4-on-2017-08-12/total
A99: 10. WGC Juniors 2017 - Klub | B99: LT | C99: 2017 | D99: Pociunai | E99: 7 | F99: 38 | G99: 1 | H99: 1.01 | I99: 0.01 | J99: 30.7.-12.8.2017 | K99: http://jwgc2017.pociunai.lt/ | L99: https://www.soaringspot.com/en_gb/jwgc2017/results/club/task-8-on-2017-08-12/total
A100: 10. WGC Juniors 2017 - Std | B100: LT | C100: 2017 | D100: Pociunai | E100: 8 | F100: 32 | G100: 1 | H100: 1.02 | I100: 0.02 | J100: 30.7.-12.8.2017 | K100: http://jwgc2017.pociunai.lt/ | L100: https://www.soaringspot.com/en_gb/jwgc2017/results/standard/task-8-on-2017-08-12/total
A101: 19. EGC 2017 - 15m | B101: UK | C101: 2017 | D101: Lasham | E101: 9 | F101: 16 | G101: 1 | H101: 1.065 | I101: 0.065 | J101: 10.8.-26.8.2017 | K101: http://www.egc2017.co.uk/ | L101: http://www.egc2017.co.uk/overall15m
A102: 19. EGC 2017 - 18m | B102: UK | C102: 2017 | D102: Lasham | E102: 10 | F102: 25 | G102: 1 | H102: 1.095 | I102: 0.095 | J102: 10.8.-26.8.2017 | K102: http://www.egc2017.co.uk/ | L102: http://www.egc2017.co.uk/overall18m
A103: 19. EGC 2017 - Open | B103: UK | C103: 2017 | D103: Lasham | E103: 10 | F103: 18 | G103: 1 | H103: 1.09 | I103: 0.09 | J103: 10.8.-26.8.2017 | K103: http://www.egc2017.co.uk/ | L103: http://www.egc2017.co.uk/overallOpen
A104: Zařazené soutěže 2018:
A105: AZ Cup 2018 - Klub | B105: CZ | C105: 2018 | D105: Zbraslavice | E105: 8 | F105: 40 | G105: 0.9 | H105: 0.925 | I105: =G105/H105 -> 0.972972973 | J105: 28.4.-7.5.2018 | K105: http://www.azcup.cz/ | L105: https://www.soaringspot.com/cs/az-cup-2018-zbraslavice-2018/results/klub
A106: AZ Cup 2018 - Kombi | B106: CZ | C106: 2018 | D106: Zbraslavice | E106: 9 | F106: 29 | G106: 0.9 | H106: 0.95 | I106: =G106/H106 -> 0.9473684211 | J106: 28.4.-7.5.2018 | K106: http://www.azcup.cz/ | L106: https://www.soaringspot.com/cs/az-cup-2018-zbraslavice-2018/results/kombi
A107: 14. JPJ 2018 - Klub | B107: CZ | C107: 2018 | D107: Šumperk | E107: 2 | F107: 44 | G107: 0 | H107: =G107 -> 0 | I107: =G107/H107 ->  | J107: 28.4.-7.5.2018 | K107: http://www.jpj-sumperk.cz/ | L107: https://www.soaringspot.com/cs/14-jarni-pohar-jeseniku-2018-sumperk-2018/results/klubova-trida | M107: Méně jak 4 platné disciplíny
A108: 14. JPJ 2018 - Kombi | B108: CZ | C108: 2018 | D108: Šumperk | E108: 2 | F108: 24 | G108: 0 | H108: =G108 -> 0 | I108: =G108/H108 ->  | J108: 28.4.-7.5.2018 | K108: http://www.jpj-sumperk.cz/ | L108: https://www.soaringspot.com/cs/14-jarni-pohar-jeseniku-2018-sumperk-2018/results/kombi-trida | M108: Méně jak 4 platné disciplíny
A109: PMČR 2018 - Klub | B109: CZ | C109: 2018 | D109: Tábor | E109: 10 | F109: 29 | G109: 1 | H109: 1.055 | I109: =G109/H109 -> 0.9478672986 | J109: 27.5.-9.6.2018 | K109: http://www.gliding.cz/souteze/2018/pmcr/ | L109: https://www.soaringspot.com/cs/plachtarske-mistrovstvi-cr-2018-tabor-2018/results/klub
A110: PMČR 2018 - Kombi 15m | B110: CZ | C110: 2018 | D110: Tábor | E110: 9 | F110: 17 | G110: 1 | H110: 1.055 | I110: 0.9478672986 | J110: 27.5.-9.6.2018 | K110: http://www.gliding.cz/souteze/2018/pmcr/ | L110: https://www.soaringspot.com/cs/plachtarske-mistrovstvi-cr-2018-tabor-2018/results/kombi-15
A111: PMČR 2018 - Kombi Open | B111: CZ | C111: 2018 | D111: Tábor | E111: 9 | F111: 14 | G111: 1 | H111: 1.025 | I111: 0.9756097561 | J111: 27.5.-9.6.2018 | K111: http://www.gliding.cz/souteze/2018/pmcr/ | L111: https://www.soaringspot.com/cs/plachtarske-mistrovstvi-cr-2018-tabor-2018/results/kombi-open
A112: FL 2018 - Kombi | B112: CZ | C112: 2018 | D112: Frýdlant n/Ostr. | E112: 6 | F112: 15 | G112: 0.6 | H112: =G112 -> 0.6 | I112: =G112/H112 -> 1 | J112: 29.6.-7.7.2018 | K112: https://fl2018.akfrydlant.cz/ | L112: https://www.soaringspot.com/cs/fl-2018-adrenalin-grand-prix-frydlant-2018/results/fl
A113: Adrenalin GP 2018 - Klub GP | B113: CZ | C113: 2018 | D113: Frýdlant n/Ostr. | E113: 7 | F113: 12 | G113: 0.6 | H113: 0.605 | I113: 0.9917355372 | J113: 29.6.-7.7.2018 | K113: https://fl2018.akfrydlant.cz/ | L113: https://www.soaringspot.com/cs/fl-2018-adrenalin-grand-prix-frydlant-2018/results/agp
A114: Safari 2018 - Duo Kombi | B114: CZ | C114: 2018 | D114: Dvůr Králové | E114: 6 | F114: 11 | G114: 0.6 | H114: 0.6 | I114: =G114/H114 -> 1 | J114: 30.6.-13.7.2018 | K114: http://www.gliding.cz/souteze/2018/safari/ | L114: https://www.soaringspot.com/cs/21-safari-pohar-dvur-kralove-nad-labem-2018/results/duo-blanik
A115: Safari 2018 - Klub | B115: CZ | C115: 2018 | D115: Dvůr Králové | E115: 8 | F115: 29 | G115: 0.6 | H115: 0.6 | I115: 1 | J115: 30.6.-13.7.2018 | K115: http://www.gliding.cz/souteze/2018/safari/ | L115: https://www.soaringspot.com/cs/21-safari-pohar-dvur-kralove-nad-labem-2018/results/klub
A116: Safari 2018 - Kombi | B116: CZ | C116: 2018 | D116: Dvůr Králové | E116: 8 | F116: 11 | G116: 0.6 | H116: 0.6 | I116: 1 | J116: 30.6.-13.7.2018 | K116: http://www.gliding.cz/souteze/2018/safari/ | L116: https://www.soaringspot.com/cs/21-safari-pohar-dvur-kralove-nad-labem-2018/results/volna
A117: Toužim Cup 2018 - Klub | B117: CZ | C117: 2018 | D117: Toužim | E117: 5 | F117: 29 | G117: 0.9 | H117: =G117 -> 0.9 | I117: =G117/H117 -> 1 | J117: 14.7.-21.7.2018 | K117: http://www.gliding.cz/souteze/2018/tcup/ | L117: https://www.soaringspot.com/cs/touzim-cup-2018-touzim-2018/results/klub
A118: Toužim Cup 2018 - Kombi | B118: CZ | C118: 2018 | D118: Toužim | E118: 5 | F118: 19 | G118: 0.9 | H118: 0.905 | I118: 0.9944751381 | J118: 14.7.-21.7.2018 | K118: http://www.gliding.cz/souteze/2018/tcup/ | L118: https://www.soaringspot.com/cs/touzim-cup-2018-touzim-2018/results/kombi
A119: PMČRj 2018 - Klub | B119: CZ | C119: 2018 | D119: Raná | E119: 10 | F119: 30 | G119: 0.9 | H119: 0.905 | I119: =G119/H119 -> 0.9944751381 | J119: 15.7.-27.7.2018 | K119: http://www.gliding.cz/souteze/2018/pmcr_j/ | L119: https://www.soaringspot.com/cs/plachtarske-mistrovstvi-cr-junioru-2018-rana-loumy-2018/results/club
A120: Ranský Pohár 2018 - Kombi | B120: CZ | C120: 2018 | D120: Raná | E120: 6 | F120: 19 | G120: 0.6 | H120: =G120 -> 0.6 | I120: =G120/H120 -> 1 | J120: 21.7.-28.7.2018 | K120: http://pohar.aeroklubrana.cz/ | L120: https://www.soaringspot.com/cs/ransky-pohar-2018-rana-loumy-2018/results/combi
A121: PPV 2018 - Klub | B121: CZ | C121: 2018 | D121: Havlíčkův Brod | E121: 6 | F121: 44 | G121: 0.9 | H121: =G121 -> 0.9 | I121: =G121/H121 -> 1 | J121: 21.7.-28.7.2018 | K121: http://www.gliding.cz/souteze/2018/ppv/ | L121: https://www.soaringspot.com/cs/plachtarsky-pohar-vysociny-2018-havlickuv-brod-2018/results/klubova-trida
A122: PPV 2018 - Kombi | B122: CZ | C122: 2018 | D122: Havlíčkův Brod | E122: 6 | F122: 17 | G122: 0.9 | H122: 0.9 | I122: 1 | J122: 21.7.-28.7.2018 | K122: http://www.gliding.cz/souteze/2018/ppv/ | L122: https://www.soaringspot.com/cs/plachtarsky-pohar-vysociny-2018-havlickuv-brod-2018/results/kombinovana-trida
A123: Pohár Českého Ráje 2018 - Kombi | B123: CZ | C123: 2018 | D123: Jičín | E123: 8 | F123: 10 | G123: 0.6 | H123: =G123 -> 0.6 | I123: =G123/H123 -> 1 | J123: 28.7.-4.8.2018 | L123: https://www.soaringspot.com/cs/pohar-ceskeho-raje-2018-jicin-2018/results/unknown
A124: PMRg 2018 - Klub | B124: CZ | C124: 2018 | D124: Hodkovice | E124: 10 | F124: 36 | G124: 0.95 | H124: 0.965 | I124: =G124/H124 -> 0.9844559585 | J124: 29.7.-11.8.2018 | K124: http://www.gliding.cz/souteze/2018/pmrg/ | L124: https://www.soaringspot.com/cs/mistrovstvi-ceske-republiky-regionu-hodkovice-nad-mohelkou-2018/results/klub
A125: PMRg 2018 - Kombi | B125: CZ | C125: 2018 | D125: Hodkovice | E125: 10 | F125: 17 | G125: 0.95 | H125: 0.97 | I125: =G125/H125 -> 0.9793814433 | J125: 29.7.-11.8.2018 | K125: http://www.gliding.cz/souteze/2018/pmrg/ | L125: https://www.soaringspot.com/cs/mistrovstvi-ceske-republiky-regionu-hodkovice-nad-mohelkou-2018/results/kombi-open
A126: 35. WGC 2018 - Std | B126: PL | C126: 2018 | D126: Ostrow Wielkopolski | E126: 7 | F126: 47 | G126: 1 | H126: 1.105 | I126: =G126/H126 -> 0.9049773756 | J126: 8.7.-21.7.2018 | K126: https://ostrowglide.com/en/ | L126: https://www.soaringspot.com/cs/wgc2018pl/results/standard
A127: 35. WGC 2018 - 15m | B127: PL | C127: 2018 | D127: Ostrow Wielkopolski | E127: 7 | F127: 37 | G127: 1 | H127: 1.085 | I127: 0.9216589862 | J127: 8.7.-21.7.2018 | K127: https://ostrowglide.com/en/ | L127: https://www.soaringspot.com/cs/wgc2018pl/results/15-meter
A128: 35. WGC 2018 - Klub | B128: PL | C128: 2018 | D128: Ostrow Wielkopolski | E128: 7 | F128: 48 | G128: 1 | H128: 1.09 | I128: 0.9174311927 | J128: 8.7.-21.7.2018 | K128: https://ostrowglide.com/en/ | L128: https://www.soaringspot.com/cs/wgc2018pl/results/club
A129: 35. WGC 2018 - 18m | B129: CZ | C129: 2018 | D129: Hosím | E129: 12 | F129: 45 | G129: 1 | H129: 1.105 | I129: =G129/H129 -> 0.9049773756 | J129: 28.7.-11.8.2018 | K129: http://www.wgc2018.cz/ | L129: https://www.soaringspot.com/cs/35th-world-gliding-championships-hosin-2018/results/18-meter
A130: 35. WGC 2018 - Open | B130: CZ | C130: 2018 | D130: Hosím | E130: 12 | F130: 31 | G130: 1 | H130: 1.095 | I130: 0.9132420091 | J130: 28.7.-11.8.2018 | K130: http://www.wgc2018.cz/ | L130: https://www.soaringspot.com/cs/35th-world-gliding-championships-hosin-2018/results/open
A131: 35. WGC 2018 - Duo 20m | B131: CZ | C131: 2018 | D131: Hosím | E131: 12 | F131: 18 | G131: 1 | H131: 1.07 | I131: 0.9345794393 | J131: 28.7.-11.8.2018 | K131: http://www.wgc2018.cz/ | L131: https://www.soaringspot.com/cs/35th-world-gliding-championships-hosin-2018/results/double-seater
A132: 17. HOP 2018 - Klub | B132: CZ | C132: 2018 | D132: Hronov | E132: 6 | F132: 26 | G132: 0.6 | H132: =G132 -> 0.6 | I132: =G132/H132 -> 1 | J132: 11.8.-18.8.2018 | K132: http://www.lkvp.cz/HOP-2018.html | L132: https://www.soaringspot.com/cs/17-hop-2018-velke-porici-2018/results/klub-hop
A133: 17. HOP 2018 - Kombi | B133: CZ | C133: 2018 | D133: Hronov | E133: 6 | F133: 15 | G133: 0.6 | H133: 0.6 | I133: 1 | J133: 11.8.-18.8.2018 | K133: http://www.lkvp.cz/HOP-2018.html | L133: https://www.soaringspot.com/cs/17-hop-2018-velke-porici-2018/results/kombi-ppf
A134: GGP MB 2018 - Gradient GP | B134: CZ | C134: 2018 | D134: Mladá Boleslav | E134: 6 | F134: 11 | G134: 0.6 | H134: =G134 -> 0.6 | I134: =G134/H134 -> 1 | J134: 18.8.-25.8.2018 | K134: http://ggp.cpska.cz/public/index3.php | L134: https://www.soaringspot.com/cs/gradient-club-grand-prix-2018-mlada-boleslav-2018/results/gradient-gp
A135: GGP MB 2018 - Klub GP | B135: CZ | C135: 2018 | D135: Mladá Boleslav | E135: 6 | F135: 10 | G135: 0.6 | H135: 0.61 | I135: 0.9836065574 | J135: 18.8.-25.8.2018 | K135: http://ggp.cpska.cz/public/index3.php | L135: https://www.soaringspot.com/cs/gradient-club-grand-prix-2018-mlada-boleslav-2018/results/club-gp
A136: GGP MB 2018 - Pohár MV - Kombi | B136: CZ | C136: 2018 | D136: Mladá Boleslav | E136: 6 | F136: 11 | G136: 0.6 | H136: 0.61 | I136: 0.9836065574 | J136: 18.8.-25.8.2018 | K136: http://ggp.cpska.cz/public/index3.php | L136: https://www.soaringspot.com/cs/gradient-club-grand-prix-2018-mlada-boleslav-2018/results/pohar-metodeje-vlach
A137: Fatraglide 2018 - Kombi | B137: SK | C137: 2018 | D137: Martin | E137: 9 | F137: 14 | G137: 0.6 | H137: 0.6 | I137: 1 | J137: 28.4.-7.5.2018 | K137: http://www.fatraglide.sk/ | L137: https://www.soaringspot.com/en_gb/fatraglide18-martin-2018/results/combi
A138: Hahnweide 2018 - Duo 20m | B138: DE | C138: 2018 | D138: Kirchheim/Teck | E138: 6 | F138: 32 | G138: 0.6 | H138: 0.65 | I138: =G138/H138 -> 0.9230769231 | J138: 4.5.-12.5.2018 | K138: http://www.wettbewerb.wolf-hirth.de/ | L138: https://www.soaringspot.com/de/52-internationaler-hahnweide-wettbewerb-hahnweide-2018/results/dosi
A139: Flatland Cup 2018 - Klub | B139: HU | C139: 2018 | D139: Szeged | E139: 7 | F139: 35 | G139: 0.9 | H139: 0.905 | I139: =G139/H139 -> 0.9944751381 | J139: 3.8.-11.8.2018 | K139: http://flatlandcup.hu/2018/hu/ | L139: https://www.soaringspot.com/cs/xi-flatland-cup-szeged-2018/results/fai-club
A140: Flatland Cup 2018 - Kombi | B140: HU | C140: 2018 | D140: Szeged | E140: 9 | F140: 25 | G140: 0.9 | H140: 0.905 | I140: =G140/H140 -> 0.9944751381 | J140: 3.8.-11.8.2018 | K140: http://flatlandcup.hu/2018/hu/ | L140: https://www.soaringspot.com/cs/xi-flatland-cup-szeged-2018/results/open
A141: FCC 2018 - Klub | B141: SK | C141: 2018 | D141: Prievidza | E141: 8 | F141: 47 | G141: 0.9 | H141: 0.94 | I141: =G141/H141 -> 0.9574468085 | J141: 8.4.-19.4.2018 | K141: http://www.fccgliding.sk/ | L141: https://www.soaringspot.com/cs/fcc-gliding-2018-prievidza-2018/results/club
A142: FCC 2018 - Kombi 15m | B142: SK | C142: 2018 | D142: Prievidza | E142: 7 | F142: 33 | G142: 0.9 | H142: 0.98 | I142: 0.9183673469 | J142: 8.4.-19.4.2018 | K142: http://www.fccgliding.sk/ | L142: https://www.soaringspot.com/cs/fcc-gliding-2018-prievidza-2018/results/15-m
A143: FCC 2018 - Kombi Open | B143: SK | C143: 2018 | D143: Prievidza | E143: 8 | F143: 25 | G143: 0.9 | H143: 0.96 | I143: 0.9375 | J143: 8.4.-19.4.2018 | K143: http://www.fccgliding.sk/ | L143: https://www.soaringspot.com/cs/fcc-gliding-2018-prievidza-2018/results/combi
A144: Šariš Cup 2018 - Klub | B144: SK | C144: 2018 | D144: Ražňany | E144: 6 | F144: 19 | G144: 0.6 | H144: =G144 -> 0.6 | I144: 1 | J144: 26.5.-3.6.2018 | L144: https://www.soaringspot.com/cs/sariscup-gliding-2018-raznany-2018/results/club
A145: PMSR 2018 - Kombi | B145: SK | C145: 2018 | D145: Prievidza | E145: 9 | F145: 20 | G145: 0.9 | H145: 0.91 | I145: 0.989010989 | J145: 10.6.-22.6.2018 | L145: https://www.soaringspot.com/cs/61-majstrovstva-slovenska-v-bezmotorovom-lietani-prievidza-2018/results/volna-trieda
A146: SGP 2018 RU - Klub GP | B146: RU | C146: 2018 | D146: Usman | E146: 3 | F146: 17 | G146: 0 | H146: 0 | I146: =G146/H146 ->  | J146: 19.5.-26.5.2018 | K146: http://sgp.aero/russia2018/event-information/event-schedule.aspx?contestID=31481 | L146: http://sgp.aero/russia2018/results-sgp/results.aspx?contestID=31527 | M146: Méně jak 4 platné disciplíny
A147: 8. WSGP Final 2018 - 18m GP | B147: CL | C147: 2018 | D147: Vitacura | E147: 6 | F147: 19 | G147: 1 | H147: 1.055 | I147: 0.9478672986 | J147: 11.1.-20.1.2018 | K147: http://sgp.aero/finals2017.aspx | L147: http://sgp.aero/finals2017/results-sgp/results.aspx?contestID=28606
A148: 38. MAM 2018 - Kombi | B148: SK | C148: 2018 | D148: Partizánske | E148: 10 | F148: 9 | G148: 0 | H148: 0 | J148: 1.7.-15.7.2018 | L148: https://www.soaringspot.com/cs/38-memorial-alexandra-makarenka-2018-male-bielice-2018/results/kombi-treida | M148: Méně jak 10 soutšžících pilotů
A149: Pribina Cup 2018 - Klub | B149: SK | C149: 2018 | D149: Nitra | E149: 2 | F149: 34 | G149: 0 | H149: =G149 -> 0 | J149: 30.3.-7.4.2018 | K149: www.pribinacup.sk/ | L149: https://www.soaringspot.com/cs/pribina-cup-2018-nitra-2018/results/club | M149: Méně jak 4 platné disciplíny
A150: Pribina Cup 2018 - Kombi 15m | B150: SK | C150: 2018 | D150: Nitra | E150: 2 | F150: 26 | G150: 0 | H150: =G150 -> 0 | J150: 30.3.-7.4.2018 | K150: www.pribinacup.sk/ | L150: https://www.soaringspot.com/cs/pribina-cup-2018-nitra-2018/results/15-meter | M150: Méně jak 4 platné disciplíny
A151: Pribina Cup 2018 - Kombi Open | B151: SK | C151: 2018 | D151: Nitra | E151: 2 | F151: 18 | G151: 0 | H151: =G151 -> 0 | J151: 30.3.-7.4.2018 | K151: www.pribinacup.sk/ | L151: https://www.soaringspot.com/cs/pribina-cup-2018-nitra-2018/results/open | M151: Méně jak 4 platné disciplíny
A152: Pribina Cup 2018 - Duo 20m | B152: SK | C152: 2018 | D152: Nitra | E152: 2 | F152: 13 | G152: 0 | H152: =G152 -> 0 | J152: 30.3.-7.4.2018 | K152: www.pribinacup.sk/ | L152: https://www.soaringspot.com/cs/pribina-cup-2018-nitra-2018/results/20m-multi-seat | M152: Méně jak 4 platné disciplíny
A155: Schváleno Plachtařskou komisí AeČR dne 4.11.2018 ve Vysokém Mýtě

Sheet Region
A1: Aeroklub | B1: Region | C1: Počet | D1: =C69+C37+C2 -> 88
A2: Benešov | B2: CZ/C1 | C2: =COUNTIF(B2:B35,B2) -> 34
A3: Beroun | B3: CZ/C1
A4: Bystřice u Benešova | B4: CZ/C1
A5: Erpužice | B5: CZ/C1
A6: GAC Benešov | B6: CZ/C1
A7: Hořovice | B7: CZ/C1
A8: Hosín | B8: CZ/C1
A9: Jindřichův Hradec | B9: CZ/C1
A10: Karlovy Vary | B10: CZ/C1
A11: Karlštejn | B11: CZ/C1
A12: Kladno | B12: CZ/C1
A13: Klatovy | B13: CZ/C1
A14: Kolín | B14: CZ/C1
A15: Kralupy | B15: CZ/C1
A16: Letkov | B16: CZ/C1
A17: Letňany | B17: CZ/C1
A18: Mladá Boleslav | B18: CZ/C1
A19: Nesvačily | B19: CZ/C1
A20: Panenský Týnec | B20: CZ/C1
A21: Plasy | B21: CZ/C1
A22: Plzeň Bory | B22: CZ/C1
A23: Prachatice | B23: CZ/C1
A24: Příbram | B24: CZ/C1
A25: Rakovník | B25: CZ/C1
A26: Slaný | B26: CZ/C1
A27: Soběslav | B27: CZ/C1
A28: Staňkov | B28: CZ/C1
A29: Strakonice | B29: CZ/C1
A30: Tábor | B30: CZ/C1
A31: Tachov | B31: CZ/C1
A32: Točná | B32: CZ/C1
A33: Toužim | B33: CZ/C1
A34: Vlašim | B34: CZ/C1
A35: Zbraslavice | B35: CZ/C1
A36: - | B36: -
A37: Broumov | B37: CZ/C2 | C37: =COUNTIF(B37:B67,B37) -> 31
A38: Česká Lípa | B38: CZ/C2
A39: Dvůr Králové | B39: CZ/C2
A40: Havlíčkův Brod | B40: CZ/C2
A41: Hodkovice | B41: CZ/C2
A42: Hořice | B42: CZ/C2
A43: Hradčany | B43: CZ/C2
A44: Hronov | B44: CZ/C2
A45: Chomutov | B45: CZ/C2
A46: Chotěboř | B46: CZ/C2
A47: Chrudim | B47: CZ/C2
A48: Jaroměř | B48: CZ/C2
A49: Jičín | B49: CZ/C2
A50: Letecká společnost na Vysočině | B50: CZ/C2
A51: Liberec | B51: CZ/C2
A52: Mnichovo Hradiště | B52: CZ/C2
A53: Most | B53: CZ/C2
A54: Nové Město nad Metují | B54: CZ/C2
A55: Pardubice | B55: CZ/C2
A56: Podhořany | B56: CZ/C2
A57: Polička | B57: CZ/C2
A58: Přibyslav | B58: CZ/C2
A59: Raná | B59: CZ/C2
A60: Roudnice | B60: CZ/C2
A61: Skuteč | B61: CZ/C2
A62: Turnov | B62: CZ/C2
A63: Ústí nad Labem | B63: CZ/C2
A64: Ústí nad Orlicí | B64: CZ/C2
A65: Vrchlabí | B65: CZ/C2
A66: Vysoké Mýto | B66: CZ/C2
A67: Žamberk | B67: CZ/C2
A69: Bohuňovice | B69: CZ/M | C69: =COUNTIF(B69:B91,B69) -> 23
A70: Břeclav | B70: CZ/M
A71: LK Břeclav | B71: CZ/M
A72: Frýdlant | B72: CZ/M
A73: Hranice | B73: CZ/M
A74: Jeseník | B74: CZ/M
A75: Jihlava | B75: CZ/M
A76: Krnov | B76: CZ/M
A77: Kroměříž | B77: CZ/M
A78: Křižanov | B78: CZ/M
A79: Kunovice | B79: CZ/M
A80: Kyjov | B80: CZ/M
A81: Luhačovice | B81: CZ/M
A82: Medlánky | B82: CZ/M
A83: Moravská Třebová | B83: CZ/M
A84: Olomouc | B84: CZ/M
A85: Prostějov | B85: CZ/M
A86: Slatina | B86: CZ/M
A87: Slavičín | B87: CZ/M
A88: Stichovice | B88: CZ/M
A89: Šumperk | B89: CZ/M
A90: Vyškov | B90: CZ/M
A91: Zábřeh | B91: CZ/M
A93: Aalborg | B93: DK
A94: Air Sympatia | B94: SK
A95: Akaflieg Dresden | B95: DE
A96: Bad Nauheim | B96: DE
A97: Bratislava | B97: SK
A98: Dánsko | B98: DK
A99: Greiz | B99: DE
A100: Japonsko | B100: JP
A101: Jelenia Góra | B101: PL
A102: Martin | B102: SK
A103: Německo | B103: DE
A104: Nitra | B104: SK
A105: Novo Mesto | B105: SI
A106: Poprad | B106: SK
A107: Prešov | B107: SK
A108: Prievidza | B108: SK
A109: Rakousko | B109: AT
A110: Ružomberok | B110: SK
A111: SGC Martin | B111: SK
A112: Slovinsko | B112: SI
A113: Trenčín | B113: SK
A114: Trnava | B114: SK
A115: Žilina | B115: SK

Sheet Pilot
A1: Jmeno | B1: Rok nar. | C1: Aeroklub | D1: Region | E1: M/F | F1: Junior v roce | G1: 2019 | H1: Hranice pro juniory: | I1: =G1-25 -> 1994 | J1: Počet jun: | K1: =COUNTIF(F3:F2042,"Junior v roce "&G1) -> 60 | L1: Počet F: | M1: =COUNTIF(E3:E2042,"F") -> 67 | N1: Počet M: | O1: =COUNTIF(E3:E2042,"M") -> 807 | P1: Počet celk: | Q1: =COUNTIF(A3:A2042,"<>") -> 874
A2: -
A3: Adam Jandora | B3: 1992 | C3: Medlánky | D3: =VLOOKUP(C3,Region,2,0) -> CZ/M | E3: M | F3: =IF(A3="(prázdné)","",IF(($G$1-B3)>25,"","Junior v roce "&$G$1)) -> 
A4: Adam Olejar | B4: 1991 | C4: Medlánky | D4: CZ/M | E4: M | F4: =IF(A4="(prázdné)","",IF(($G$1-B4)>25,"","Junior v roce "&$G$1)) -> 
A5: Adam Sostaric | B5: 1991 | C5: Chrudim | D5: CZ/C2 | E5: M
A6: Albrecht Beat | B6: 1953 | C6: Šumperk | D6: CZ/M | E6: M
A7: Alena Netusilova | B7: 1970 | C7: Zbraslavice | D7: CZ/C1 | E7: F
A8: Ales Cervenka | B8: 1981 | C8: Soběslav | D8: CZ/C1 | E8: M
A9: Ales Hajek | B9: 1958 | C9: Mladá Boleslav | D9: CZ/C1 | E9: M
A10: Ales Hala | B10: 1994 | C10: Tábor | D10: CZ/C1 | E10: M | F10: Junior v roce 2019
A11: Ales Holoubek | B11: 1966 | C11: Jičín | D11: CZ/C2 | E11: M
A12: Ales Tresl | B12: 1958 | C12: Raná | D12: CZ/C2 | E12: M
A13: Ales Vorac | B13: 1985 | C13: Křižanov | D13: CZ/M | E13: M
A14: Ales Vyhnal | B14: 1989 | C14: Kralupy | D14: CZ/C1 | E14: M
A15: Alexander Nerandzic | B15: 1966 | C15: Raná | D15: CZ/C2 | E15: M
A16: Alois Cmajdalka | B16: 1963 | C16: Kunovice | D16: CZ/M | E16: M
A17: Alois Sohr | B17: 1939 | C17: Hranice | D17: CZ/M | E17: M
A18: Andrea Bensova | B18: 1978 | C18: Zbraslavice | D18: CZ/C1 | E18: F
A19: Aneta Prachtova | B19: 1991 | C19: Kralupy | D19: CZ/C1 | E19: F
A20: Anna Hajkova | B20: 1989 | C20: Mladá Boleslav | D20: CZ/C1 | E20: F
A21: Antonin Bordovsky | B21: 1951 | C21: Krnov | D21: CZ/M | E21: M
A22: Antonin Bruna | B22: 1945 | C22: GAC Benešov | D22: CZ/C1 | E22: M
A23: Antonin Burger | B23: 1943 | C23: Panenský Týnec | D23: CZ/C1 | E23: M
A24: Antonin Konicek | B24: 1973 | C24: Kunovice | D24: CZ/M | E24: M
A25: Antonin Kutalek | B25: 1943 | C25: Zábřeh | D25: CZ/M | E25: M
A26: Antonin Novotny | B26: 1972 | C26: Luhačovice | D26: CZ/M | E26: M
A27: Antonin Otrusina | B27: 1948 | C27: Křižanov | D27: CZ/M | E27: M
A28: Antonin Pilat | B28: 1971 | C28: Vyškov | D28: CZ/M | E28: M
A29: Antonin Teichmann | B29: 1965 | C29: Hronov | D29: CZ/C2 | E29: M
A30: Barbora Kubickova | B30: 1993 | C30: Medlánky | D30: CZ/M | E30: F
A31: Barbora Moravcova | B31: 1994 | C31: Zbraslavice | D31: CZ/C1 | E31: F | F31: Junior v roce 2019
A32: Barbora Nahodilova | B32: 1989 | C32: Hosín | D32: CZ/C1 | E32: F
A33: Bedrich Honzicek | B33: 1972 | C33: Letňany | D33: =VLOOKUP(C33,Region,2,0) -> CZ/C1 | E33: M | F33: =IF(A33="(prázdné)","",IF(($G$1-B33)>25,"","Junior v roce "&$G$1)) -> 
A34: Bedrich Prochazka | B34: 1957 | C34: Rakovník | D34: CZ/C1 | E34: M
A35: Bohdan Sebestik | B35: 1957 | C35: Kroměříž | D35: CZ/M | E35: M
A36: Bohumil Kunc | B36: 1983 | C36: Kunovice | D36: CZ/M | E36: M
A37: Bohumil Rikal | B37: 1946 | C37: Hronov | D37: CZ/C2 | E37: M
A38: Bohumil Svec | B38: 1985 | C38: Roudnice | D38: CZ/C2 | E38: M
A39: Bohumir Zajdl | B39: 1950 | C39: Dvůr Králové | D39: CZ/C2 | E39: M
A40: Bohus Marcinik | B40: 1947 | C40: Příbram | D40: CZ/C1 | E40: M
A41: Boris Bachraty | B41: 1974 | C41: Břeclav | D41: CZ/M | E41: M
A42: Bronislav Smatana | B42: 1970 | C42: Zbraslavice | D42: CZ/C1 | E42: M
A43: Carsten Tietz | B43: 1966 | C43: Hronov | D43: =VLOOKUP(C43,Region,2,0) -> CZ/C2 | E43: M | F43: =IF(A43="(prázdné)","",IF(($G$1-B43)>25,"","Junior v roce "&$G$1)) -> 
A44: Dalibor Daricek | B44: 1993 | C44: Kunovice | D44: CZ/M | E44: M
A45: Dalibor Fencl | B45: 1966 | C45: Zbraslavice | D45: CZ/C1 | E45: M
A46: Dalibor Pek | B46: 1968 | C46: Raná | D46: CZ/C2 | E46: M
A47: Dana Novakova | B47: 1965 | C47: Mladá Boleslav | D47: CZ/C1 | E47: F
A48: Danes Grula | B48: 1961 | C48: Medlánky | D48: CZ/M | E48: M
A49: Daniel Adamec | B49: 1977 | C49: Hranice | D49: CZ/M | E49: M
A50: Daniel Brichta | B50: 1962 | C50: GAC Benešov | D50: =VLOOKUP(C50,Region,2,0) -> CZ/C1 | E50: M | F50: =IF(A50="(prázdné)","",IF(($G$1-B50)>25,"","Junior v roce "&$G$1)) -> 
A51: Daniel Dvorak | B51: 1980 | C51: Letkov | D51: CZ/C1 | E51: M
A52: Daniel Krasnicky | B52: 1984 | C52: Příbram | D52: CZ/C1 | E52: M
A53: Daniel Moravek | B53: 1973 | C53: Hodkovice | D53: CZ/C2 | E53: M
A54: Daniel Novak | B54: 1971 | C54: Letkov | D54: CZ/C1 | E54: M
A55: Daniel Ryba | B55: 1994 | C55: Dvůr Králové | D55: CZ/C2 | E55: M | F55: Junior v roce 2019
A56: Daniel Suchy | B56: 1995 | C56: Hranice | D56: CZ/M | E56: M | F56: Junior v roce 2019
A57: Daniela Frankova | B57: 1997 | C57: Hořice | D57: CZ/C2 | E57: M | F57: Junior v roce 2019
A58: Daniela Stepankova | B58: 1988 | C58: Hosín | D58: CZ/C1 | E58: F
A59: David Cisar | B59: 1987 | C59: Křižanov | D59: CZ/M | E59: M
A60: David Londa | B60: 1973 | C60: Mladá Boleslav | D60: CZ/C1 | E60: M
A61: David Mach | B61: 1994 | C61: Hronov | D61: CZ/C2 | E61: M | F61: Junior v roce 2019
A62: David Marek | B62: 1991 | C62: Křižanov | D62: CZ/M | E62: M
A63: David Novotny | B63: 1984 | C63: Polička | D63: CZ/C2 | E63: M
A64: David Popovsky | B64: 1976 | C64: Rakovník | D64: CZ/C1 | E64: M
A65: David Prihoda | B65: 1994 | C65: Hranice | D65: CZ/M | E65: M | F65: Junior v roce 2019
A66: David Rozporka | B66: 1994 | C66: Hronov | D66: CZ/C2 | E66: M | F66: Junior v roce 2019
A67: David Rytina | B67: 1983 | C67: Zbraslavice | D67: CZ/C1 | E67: M
A68: David Riha | B68: 1983 | C68: Vlašim | D68: CZ/C1 | E68: M
A69: David Sachl | B69: 1978 | C69: Kralupy | D69: CZ/C1 | E69: M
A70: David Tejnora | B70: 1982 | C70: Kolín | D70: CZ/C1 | E70: M
A71: David Trnecka | B71: 1979 | C71: Medlánky | D71: CZ/M | E71: M
A72: David Vrchota | B72: 1976 | C72: Jaroměř | D72: =VLOOKUP(C72,Region,2,0) -> CZ/C2 | E72: M | F72: =IF(A72="(prázdné)","",IF(($G$1-B72)>25,"","Junior v roce "&$G$1)) -> 
A73: David Zapletal | B73: 1970 | C73: Mladá Boleslav | D73: CZ/C1 | E73: M | F73: =IF(A73="(prázdné)","",IF(($G$1-B73)>25,"","Junior v roce "&$G$1)) -> 
A74: David Zatecka | B74: 1993 | C74: GAC Benešov | D74: =VLOOKUP(C74,Region,2,0) -> CZ/C1 | E74: M
A75: Dusan Gadas | B75: 1960 | C75: Hranice | D75: CZ/M | E75: M
A76: Dusan Kmet | B76: 1972 | C76: Křižanov | D76: CZ/M | E76: M
A77: Dusan Sys | B77: 1977 | C77: Šumperk | D77: CZ/M | E77: M
A78: Dusan Zerzan | B78: 1970 | C78: Šumperk | D78: CZ/M | E78: M
A79: Eduard Svoboda | B79: 1957 | C79: Raná | D79: CZ/C2 | E79: M
A80: Eva Cerna | B80: 1964 | C80: Příbram | D80: CZ/C1 | E80: F
A81: Evzen Skala | B81: 1954 | C81: Vrchlabí | D81: CZ/C2 | E81: M
A82: Filip Graf | B82: 1981 | C82: Křižanov | D82: CZ/M | E82: M
A83: Filip Neumann | B83: 1977 | C83: GAC Benešov | D83: CZ/C1 | E83: M
A84: Filip Sklenar | B84: 1990 | C84: Žamberk | D84: CZ/C2 | E84: M
A85: Filip sirc | B85: 1993 | C85: Letňany | D85: CZ/C1 | E85: M
A86: Filip Vita | B86: 2001 | C86: Kroměříž | D86: CZ/M | E86: M | F86: Junior v roce 2019
A87: Frantisek Brozman | B87: 1960 | C87: Tachov | D87: CZ/C1 | E87: M
A88: Frantisek Filandr | B88: 1956 | C88: Most | D88: CZ/C2 | E88: M
A89: Frantisek Hubacek | B89: 1978 | C89: Točná | D89: CZ/C1 | E89: M
A90: Frantisek Komarek | B90: 1985 | C90: Zbraslavice | D90: CZ/C1 | E90: M
A91: Frantisek Kriz | B91: 1961 | C91: Toužim | D91: CZ/C1 | E91: M
A92: Frantisek Marek | B92: 1960 | C92: Křižanov | D92: CZ/M | E92: M
A93: Frantisek Matousek | B93: 1937 | C93: Nové Město nad Metují | D93: CZ/C2 | E93: M
A94: Frantisek Myska | B94: 1968 | C94: Most | D94: CZ/C2 | E94: M
A95: Frantisek Pycha | B95: 1972 | C95: Chrudim | D95: CZ/C2 | E95: M
A96: Frantisek Soucek | B96: 1945 | C96: Dvůr Králové | D96: CZ/C2 | E96: M
A97: Frantisek Sindelar | B97: 1954 | C97: Kralupy | D97: CZ/C1 | E97: M
A98: Frantisek Vancura | B98: 1966 | C98: Hranice | D98: CZ/M | E98: M
A99: Gabriela Cervena | B99: 1966 | C99: Jaroměř | D99: CZ/C2 | E99: F
A100: Gustav Vrbacky | B100: 1933 | C100: Medlánky | D100: CZ/M | E100: M
A101: Hana Treslova | B101: 1991 | C101: Raná | D101: CZ/C2 | E101: F
A102: Hana Vokrinkova | B102: 1958 | C102: Hodkovice | D102: CZ/C2 | E102: F
A103: Hynek Pokorny | B103: 1991 | C103: Letňany | D103: CZ/C1 | E103: M
A104: Christof Madory | B104: 1958 | C104: Šumperk | D104: CZ/M | E104: M
A105: Ilja Kopacek | B105: 1943 | C105: Jičín | D105: =VLOOKUP(C105,Region,2,0) -> CZ/C2 | E105: M | F105: =IF(A105="(prázdné)","",IF(($G$1-B105)>25,"","Junior v roce "&$G$1)) -> 
A106: Ivan Filakovsky | B106: 1965 | C106: Medlánky | D106: CZ/M | E106: M
A107: Ivan Harasta 65 | B107: 1965 | C107: Toužim | D107: CZ/C1 | E107: M
A108: Ivan Harasta 98 | B108: 1998 | C108: Toužim | D108: CZ/C1 | E108: M | F108: Junior v roce 2019
A109: Ivan Kuzelka | B109: 1945 | C109: Havlíčkův Brod | D109: CZ/C2 | E109: M
A110: Ivan Ladr | B110: 1940 | C110: Dvůr Králové | D110: CZ/C2 | E110: M
A111: Ivan Novak | B111: 1962 | C111: Mladá Boleslav | D111: CZ/C1 | E111: M
A112: Ivan Tvrdik | B112: 1997 | C112: Letňany | D112: CZ/C1 | E112: M | F112: Junior v roce 2019
A113: Ivo Burda | B113: 1962 | C113: Zbraslavice | D113: CZ/C1 | E113: M
A114: Ivo Nezval | B114: 1964 | C114: Šumperk | D114: CZ/M | E114: M
A115: Ivo Vudarcik | B115: 1994 | C115: Rakovník | D115: CZ/C1 | E115: M | F115: Junior v roce 2019
A116: Jacek Kerum | B116: 1943 | C116: Příbram | D116: CZ/C1 | E116: M
A117: Jakub Brotanek | B117: 1985 | C117: Roudnice | D117: CZ/C2 | E117: M
A118: Jakub Hlavacek | B118: 1991 | C118: Letkov | D118: CZ/C1 | E118: M
A119: Jakub Kmosek | B119: 1978 | C119: Zbraslavice | D119: CZ/C1 | E119: M
A120: Jakub Kohn | B120: 1992 | C120: Prostějov | D120: CZ/M | E120: M
A121: Jakub Malik | B121: 1999 | C121: Letňany | D121: CZ/C1 | E121: M | F121: Junior v roce 2019
A122: Jakub Michalicka | B122: 1993 | C122: Rakovník | D122: CZ/C1 | E122: M
A123: Jakub Tiller | B123: 1987 | C123: Broumov | D123: CZ/C2 | E123: M
A124: Jakub Vimr | B124: 1975 | C124: GAC Benešov | D124: CZ/C1 | E124: M
A125: Jan Belina | B125: 1979 | C125: Hořice | D125: CZ/C2 | E125: M
A126: Jan Beran | B126: 1999 | C126: Kladno | D126: =VLOOKUP(C126,Region,2,0) -> CZ/C1 | E126: M | F126: Junior v roce 2019
A127: Jan Beranek | B127: 1976 | C127: Jihlava | D127: CZ/M | E127: M
A128: Jan Boruvka | B128: 1984 | C128: Jičín | D128: CZ/C2 | E128: M
A129: Jan Cerveny | B129: 1984 | C129: Jaroměř | D129: CZ/C2 | E129: M
A130: Jan Dersak 69 | B130: 1969 | C130: Kralupy | D130: CZ/C1 | E130: M
A131: Jan Dersak 92 | B131: 1992 | C131: Kralupy | D131: CZ/C1 | E131: M
A132: Jan Drahota | B132: 1988 | C132: Rakovník | D132: CZ/C1 | E132: M
A133: Jan Florian | B133: 1992 | C133: Zbraslavice | D133: CZ/C1 | E133: M
A134: Jan Habermann | B134: 1975 | C134: Vlašim | D134: =VLOOKUP(C134,Region,2,0) -> CZ/C1 | E134: M | F134: =IF(A134="(prázdné)","",IF(($G$1-B134)>25,"","Junior v roce "&$G$1)) -> 
A135: Jan Hejret | B135: 1976 | C135: Jaroměř | D135: CZ/C2 | E135: M
A136: Jan Hlavacek | B136: 1965 | C136: Rakovník | D136: CZ/C1 | E136: M
A137: Jan Horak | B137: 1971 | C137: Zbraslavice | D137: CZ/C1 | E137: M
A138: Jan Horky | B138: 1968 | C138: Medlánky | D138: CZ/M | E138: M
A139: Jan Hrbatsch | B139: 1989 | C139: Hodkovice | D139: CZ/C2 | E139: M
A140: Jan Hruska | B140: 1988 | C140: Tábor | D140: CZ/C1 | E140: M | F140: =IF(A140="(prázdné)","",IF(($G$1-B140)>25,"","Junior v roce "&$G$1)) -> 
A141: Jan Hybner | B141: 1977 | C141: Liberec | D141: =VLOOKUP(C141,Region,2,0) -> CZ/C2 | E141: M
A142: Jan Jicha | B142: 1984 | C142: Podhořany | D142: CZ/C2 | E142: M
A143: Jan Jindra | B143: 1981 | C143: Roudnice | D143: CZ/C2 | E143: M
A144: Jan Kantor | B144: 1983 | C144: Letňany | D144: CZ/C1 | E144: M
A145: Jan Kapralek | B145: 1991 | C145: Kladno | D145: CZ/C1 | E145: M
A146: Jan Kohout | B146: 1970 | C146: Žamberk | D146: CZ/C2 | E146: M
A147: Jan Konecny | B147: 1972 | C147: Rakovník | D147: CZ/C1 | E147: M
A148: Jan Kostka | B148: 1996 | C148: Kladno | D148: CZ/C1 | E148: M | F148: Junior v roce 2019
A149: Jan Kotan | B149: 1982 | C149: Letňany | D149: CZ/C1 | E149: M
A150: Jan Kralik | B150: 1991 | C150: Letkov | D150: CZ/C1 | E150: M
A151: Jan Kristof | B151: 1962 | C151: Frýdlant | D151: CZ/M | E151: M
A152: Jan Kulistak | B152: 1990 | C152: Kunovice | D152: CZ/M | E152: M
A153: Jan Lancdorf | B153: 1988 | C153: Panenský Týnec | D153: CZ/C1 | E153: M
A154: Jan Louda | B154: 1986 | C154: Mladá Boleslav | D154: CZ/C1 | E154: M
A155: Jan Mareth | B155: 1979 | C155: Frýdlant | D155: CZ/M | E155: M
A156: Jan Masek | B156: 1977 | C156: Kladno | D156: CZ/C1 | E156: M
A157: Jan Matejovsky | B157: 1972 | C157: Hranice | D157: CZ/M | E157: M
A158: Jan Merta | B158: 1952 | C158: Šumperk | D158: CZ/M | E158: M
A159: Jan Moravec | B159: 1979 | C159: Zábřeh | D159: CZ/M | E159: M
A160: Jan Obrucnik | B160: 1991 | C160: Kralupy | D160: CZ/C1 | E160: M
A161: Jan Oscatka | B161: 1990 | C161: Jaroměř | D161: =VLOOKUP(C161,Region,2,0) -> CZ/C2 | E161: M | F161: =IF(A161="(prázdné)","",IF(($G$1-B161)>25,"","Junior v roce "&$G$1)) -> 
A162: Jan Otrusina | B162: 1976 | C162: Křižanov | D162: CZ/M | E162: M
A163: Jan Ourada | B163: 1978 | C163: Točná | D163: CZ/C1 | E163: M
A164: Jan Pavlik | B164: 1987 | C164: Křižanov | D164: CZ/M | E164: M
A165: Jan Platenik | B165: 1981 | C165: Krnov | D165: CZ/M | E165: M
A166: Jan Podhrazsky | B166: 1976 | C166: Šumperk | D166: CZ/M | E166: M
A167: Jan Pokluda | B167: 1973 | C167: Šumperk | D167: CZ/M | E167: M
A168: Jan Pubec | B168: 1979 | C168: Plzeň Bory | D168: CZ/C1 | E168: M
A169: Jan Ratz | B169: 1987 | C169: Plasy | D169: CZ/C1 | E169: M
A170: Jan Rensa | B170: 1980 | C170: Polička | D170: CZ/C2 | E170: M
A171: Jan Rolinek | B171: 1973 | C171: Luhačovice | D171: CZ/M | E171: M
A172: Jan Rott | B172: 1962 | C172: Plasy | D172: CZ/C1 | E172: M
A173: Jan Repka | B173: 1959 | C173: Liberec | D173: CZ/C2 | E173: M
A174: Jan Seifert | B174: 1948 | C174: Raná | D174: CZ/C2 | E174: M
A175: Jan Simon | B175: 1970 | C175: Kralupy | D175: CZ/C1 | E175: M
A176: Jan Sindelar | B176: 1946 | C176: Kunovice | D176: CZ/M | E176: M
A177: Jan Smaha | B177: 1958 | C177: Česká Lípa | D177: CZ/C2 | E177: M
A178: Jan Sponer | B178: 1988 | C178: Medlánky | D178: CZ/M | E178: M
A179: Jan Stepan | B179: 1991 | C179: Hronov | D179: CZ/C2 | E179: M
A180: Jan Sustr 76 | B180: 1976 | C180: Raná | D180: CZ/C2 | E180: M
A181: Jan Sustr 77 | B181: 1977 | C181: Staňkov | D181: CZ/C1 | E181: M
A182: Jan Svarc | B182: 1977 | C182: Raná | D182: CZ/C2 | E182: M
A183: Jan Terrich | B183: 1978 | C183: Liberec | D183: CZ/C2 | E183: M
A184: Jan Tomasek | B184: 1970 | C184: Dvůr Králové | D184: CZ/C2 | E184: M
A185: Jan Turek | B185: 1987 | C185: Toužim | D185: CZ/C1 | E185: M
A186: Jan Vavrin | B186: 1987 | C186: Vysoké Mýto | D186: CZ/C2 | E186: M
A187: Jan Viskot | B187: 1995 | C187: Břeclav | D187: CZ/M | E187: M | F187: Junior v roce 2019
A188: Jan Vozeh | B188: 1995 | C188: Rakovník | D188: CZ/C1 | E188: M | F188: Junior v roce 2019
A189: Jan Zahradka | B189: 1981 | C189: Hodkovice | D189: CZ/C2 | E189: M
A190: Jan Zapletal | B190: 1997 | C190: Kroměříž | D190: CZ/M | E190: M | F190: Junior v roce 2019
A191: Jan Zdvorak | B191: 1980 | C191: Roudnice | D191: CZ/C2 | E191: M
A192: Jan Zezula | B192: 1979 | C192: Letňany | D192: CZ/C1 | E192: M
A193: Jan Zona | B193: 1965 | C193: Kroměříž | D193: CZ/M | E193: M
A194: Jan Zanda | B194: 1983 | C194: Letkov | D194: CZ/C1 | E194: M
A195: Jana Dvorakova | B195: 1953 | C195: Raná | D195: CZ/C2 | E195: F
A196: Jana Kantorova | B196: 1980 | C196: Hosín | D196: CZ/C1 | E196: F
A197: Jana Krejcova | B197: 1972 | C197: Křižanov | D197: CZ/M | E197: F
A198: Jana Mezerova | B198: 1975 | C198: Raná | D198: CZ/C2 | E198: F
A199: Jana Treslova | B199: 1963 | C199: Raná | D199: CZ/C2 | E199: F
A200: Jana Veprekova | B200: 1961 | C200: Dvůr Králové | D200: CZ/C2 | E200: F
... 676 more rows

Sheet Data
M1: Počet: | N1: =SUBTOTAL(103,N7:N3543) -> 995 | O1: =SUBTOTAL(103,O7:O3543) -> 88
A2: * | M2: Počet pilot: | N2: =COUNTIFS(N$7:N$3543,"x",$A$7:$A$3543,$A$2) -> 995 | O2: =COUNTIFS(O$7:O$3543,"x",$A$7:$A$3543,$A$2) -> 88
M3: 2017 | N3: =COUNTIFS($M$7:$M$3543,$M3,N$7:N$3543,"x",$A$7:$A$3543,$A$2) -> 296 | O3: 27
M4: 2016 | N4: 287 | O4: 20
M5: 2015 | N5: 0 | O5: 0
A6: Jméno | B6: Rok narození | C6: Aeroklub | D6: Region | E6: Soutěž | F6: Stát | G6: Pořadí ve třídě | H6: Body ve třídě | I6: Max. B ve třídě | J6: Kn | K6: Bi | L6: Bi×Kn | M6: Rok | N6: G | O6: W | P6: Typ | Q6: CN | R6: M/F | S6: Junior | T6: Poznámka
A7: Zdenek Boruvka 86 | B7: =VLOOKUP(A7,Pilot,2,0) -> 1986 | C7: =VLOOKUP(A7,Pilot,3,0) -> Jičín | D7: =VLOOKUP(A7,Pilot,4,0) -> CZ/C2 | E7: AZ Cup 2016 - Klub | F7: CZ | G7: 1 | H7: 2540 | I7: 2540 | J7: =VLOOKUP(E7,Soutez,8,0) -> 0.945 | K7: =ROUND(H7/I7*10000*0.7+(MAX($G$7:$G$61)-G7)/(MAX($G$7:$G$61)-1)*10000*0.3,0) -> 10000 | L7: =ROUND(J7*K7,0) -> 9450 | M7: 2016 | N7: x | P7: Std. Cirrus | Q7: BJ | R7: =VLOOKUP(A7,Pilot,5,0) -> M | S7: =IF(ISERROR(VLOOKUP(A7,Pilot,6,0)),"Není v databázi",VLOOKUP(A7,Pilot,6,0)) -> 
A8: Tomas Suchanek | B8: 1964 | C8: GAC Benešov | D8: CZ/C1 | E8: AZ Cup 2016 - Klub | F8: CZ | G8: 2 | H8: 2536 | I8: 2540 | J8: 0.945 | K8: =ROUND(H8/I8*10000*0.7+(MAX($G$7:$G$61)-G8)/(MAX($G$7:$G$61)-1)*10000*0.3,0) -> 9932 | L8: =ROUND(J8*K8,0) -> 9386 | M8: 2016 | P8: Cirrus Std. | Q8: STI | R8: M
A9: David Popovsky | B9: 1976 | C9: Rakovník | D9: CZ/C1 | E9: AZ Cup 2016 - Klub | F9: CZ | G9: 3 | H9: 2496 | I9: 2540 | J9: 0.945 | K9: 9766 | L9: 9229 | M9: 2016 | N9: x | P9: ASW-24A bez TN8 | Q9: 76 | R9: M
A10: Jaroslav Tomana | B10: 1975 | C10: Zbraslavice | D10: CZ/C1 | E10: AZ Cup 2016 - Klub | F10: CZ | G10: 4 | H10: 2484 | I10: 2540 | J10: 0.945 | K10: 9676 | L10: 9144 | M10: 2016 | P10: Std. Cirrus | Q10: SN | R10: M
A11: Jan Horak | B11: 1971 | C11: Zbraslavice | D11: CZ/C1 | E11: AZ Cup 2016 - Klub | F11: CZ | G11: 5 | H11: 2473 | I11: 2540 | J11: 0.945 | K11: 9589 | L11: 9062 | M11: 2016 | N11: x | P11: ASW-15B | Q11: TX | R11: M
A12: Martin Urban | B12: 1971 | C12: Frýdlant | D12: CZ/M | E12: AZ Cup 2016 - Klub | F12: CZ | G12: 6 | H12: 2401 | I12: 2540 | J12: 0.945 | K12: 9334 | L12: 8821 | M12: 2016 | N12: x | P12: LS-3A 15m | Q12: SJ | R12: M
A13: Jakub Kmosek | B13: 1978 | C13: Zbraslavice | D13: CZ/C1 | E13: AZ Cup 2016 - Klub | F13: CZ | G13: 7 | H13: 2397 | I13: 2540 | J13: 0.945 | K13: 9266 | L13: 8756 | M13: 2016 | N13: x | P13: Std. Cirrus | Q13: ST | R13: M
A14: Michal Kodousek | B14: 1983 | C14: Jaroměř | D14: CZ/C2 | E14: AZ Cup 2016 - Klub | F14: CZ | G14: 8 | H14: 2379 | I14: 2540 | J14: 0.945 | K14: 9160 | L14: 8656 | M14: 2016 | N14: x | P14: LS-3 15m | Q14: RI | R14: M
A15: Jakub Hlavacek | B15: 1991 | C15: Letkov | D15: CZ/C1 | E15: AZ Cup 2016 - Klub | F15: CZ | G15: 9 | H15: 2367 | I15: 2540 | J15: 0.945 | K15: 9070 | L15: 8571 | M15: 2016 | P15: Std. Cirrus | Q15: AL | R15: M
A16: Richard Vlcek | B16: 1993 | C16: Kunovice | D16: CZ/M | E16: AZ Cup 2016 - Klub | F16: CZ | G16: 10 | H16: 2317 | I16: 2540 | J16: 0.945 | K16: 8876 | L16: 8388 | M16: 2016 | N16: x | P16: Std. Cirrus | Q16: OK | R16: M
A17: Ondrej Dvorak 87 | B17: 1987 | C17: Raná | D17: CZ/C2 | E17: AZ Cup 2016 - Klub | F17: CZ | G17: 10 | H17: 2317 | I17: 2540 | J17: 0.945 | K17: 8876 | L17: 8388 | M17: 2016 | P17: Std. Cirrus | Q17: FW | R17: M
A18: Jan Louda | B18: 1986 | C18: Mladá Boleslav | D18: CZ/C1 | E18: AZ Cup 2016 - Klub | F18: CZ | G18: 12 | H18: 2314 | I18: 2540 | J18: 0.945 | K18: 8755 | L18: 8273 | M18: 2016 | P18: Std. Cirrus | Q18: CX | R18: M
A19: Josef Bostik | B19: 1963 | C19: GAC Benešov | D19: CZ/C1 | E19: AZ Cup 2016 - Klub | F19: CZ | G19: 13 | H19: 2302 | I19: 2540 | J19: 0.945 | K19: 8665 | L19: 8188 | M19: 2016 | P19: Std. Cirrus | Q19: I | R19: M
A20: Pavel Rericha | B20: 1967 | C20: Moravská Třebová | D20: CZ/M | E20: AZ Cup 2016 - Klub | F20: CZ | G20: 14 | H20: 2260 | I20: 2540 | J20: 0.945 | K20: 8492 | L20: 8025 | M20: 2016 | N20: x | P20: ASW-19B | Q20: AE | R20: M
A21: Vaclav Marel | B21: 1974 | C21: Jaroměř | D21: CZ/C2 | E21: AZ Cup 2016 - Klub | F21: CZ | G21: 15 | H21: 2255 | I21: 2540 | J21: =VLOOKUP(E21,Soutez,8,0) -> 0.945 | K21: 8422 | L21: 7959 | M21: 2016 | P21: Std. Cirrus | Q21: IF | R21: M
A22: Michal Lesinger | B22: 1966 | C22: Moravská Třebová | D22: CZ/M | E22: AZ Cup 2016 - Klub | F22: CZ | G22: 16 | H22: 2193 | I22: 2540 | J22: 0.945 | K22: 8195 | L22: 7744 | M22: 2016 | P22: ASW-19B | Q22: LL | R22: M
A23: Leos Strnadek | B23: 1983 | C23: Hodkovice | D23: CZ/C2 | E23: AZ Cup 2016 - Klub | F23: CZ | G23: 17 | H23: 2173 | I23: 2540 | J23: 0.945 | K23: 8083 | L23: 7638 | M23: 2016 | N23: x | P23: ASW-19B | Q23: AFK | R23: M
A24: Barbora Moravcova | B24: 1994 | C24: Zbraslavice | D24: CZ/C1 | E24: AZ Cup 2016 - Klub | F24: CZ | G24: 18 | H24: 2030 | I24: 2540 | J24: 0.945 | K24: 7632 | L24: 7212 | M24: 2016 | P24: ASW-15B | Q24: JJ | R24: F | S24: Junior v roce 2019
A25: Ondrej Sindelar | B25: 1979 | C25: Mladá Boleslav | D25: CZ/C1 | E25: AZ Cup 2016 - Klub | F25: CZ | G25: 19 | H25: 1977 | I25: 2540 | J25: 0.945 | K25: 7430 | L25: 7021 | M25: 2016 | P25: ASW-19B | Q25: OI | R25: M
A26: Jiri Fousek | B26: 1990 | C26: Raná | D26: CZ/C2 | E26: AZ Cup 2016 - Klub | F26: CZ | G26: 20 | H26: 1865 | I26: 2540 | J26: 0.945 | K26: 7064 | L26: 6675 | M26: 2016 | P26: Std. Cirrus | Q26: LW | R26: M
A27: Martin Balik | B27: 1982 | C27: Kralupy | D27: CZ/C1 | E27: AZ Cup 2016 - Klub | F27: CZ | G27: 21 | H27: 1818 | I27: 2540 | J27: 0.945 | K27: 6878 | L27: 6500 | M27: 2016 | N27: x | P27: LS-1f | Q27: EF | R27: M
A28: Vaclav Kunasek | B28: 1987 | C28: Zbraslavice | D28: CZ/C1 | E28: AZ Cup 2016 - Klub | F28: CZ | G28: 22 | H28: 1792 | I28: 2540 | J28: 0.945 | K28: 6750 | L28: 6379 | M28: 2016 | N28: x | P28: Std. Cirrus | Q28: P2 | R28: M
A29: Jan Hruska | B29: 1988 | C29: Tábor | D29: CZ/C1 | E29: AZ Cup 2016 - Klub | F29: CZ | G29: 23 | H29: 1788 | I29: 2540 | J29: 0.945 | K29: 6682 | L29: 6314 | M29: 2016 | N29: x | P29: ASW-15B | Q29: SP | R29: M
A30: Jan Vavrin | B30: 1987 | C30: Vysoké Mýto | D30: CZ/C2 | E30: AZ Cup 2016 - Klub | F30: CZ | G30: 24 | H30: 1764 | I30: 2540 | J30: 0.945 | K30: 6560 | L30: 6199 | M30: 2016 | P30: ASW-15B | Q30: IG | R30: M
A31: Michal Kratochvil | B31: 1984 | C31: Slaný | D31: CZ/C1 | E31: AZ Cup 2016 - Klub | F31: CZ | G31: 25 | H31: 1760 | I31: 2540 | J31: 0.945 | K31: 6492 | L31: 6135 | M31: 2016 | N31: x | P31: Std. Cirrus | Q31: OMG | R31: M
A32: Linda Vasatova | B32: 1990 | C32: Mladá Boleslav | D32: CZ/C1 | E32: AZ Cup 2016 - Klub | F32: CZ | G32: 26 | H32: 1752 | I32: 2540 | J32: 0.945 | K32: 6413 | L32: 6060 | M32: 2016 | N32: x | O32: x | P32: ASW-19B | Q32: AH | R32: F
A33: Pavel Jiranek | B33: 1993 | C33: Toužim | D33: CZ/C1 | E33: AZ Cup 2016 - Klub | F33: CZ | G33: 27 | H33: 1717 | I33: 2540 | J33: 0.945 | K33: 6260 | L33: 5916 | M33: 2016 | P33: Std. Cirrus | Q33: IYD | R33: M
A34: David Mach | B34: 1994 | C34: Hronov | D34: CZ/C2 | E34: AZ Cup 2016 - Klub | F34: CZ | G34: 28 | H34: 1679 | I34: 2540 | J34: 0.945 | K34: 6099 | L34: 5764 | M34: 2016 | P34: Cirrus VTC | Q34: 1W | R34: M | S34: Junior v roce 2019
A35: David Riha | B35: 1983 | C35: Vlašim | D35: CZ/C1 | E35: AZ Cup 2016 - Klub | F35: CZ | G35: 29 | H35: 1673 | I35: 2540 | J35: 0.945 | K35: 6026 | L35: 5695 | M35: 2016 | N35: x | P35: ASW-15B | Q35: XE | R35: M
A36: Lukas Plocek | B36: 1990 | C36: Mladá Boleslav | D36: CZ/C1 | E36: AZ Cup 2016 - Klub | F36: CZ | G36: 30 | H36: 1586 | I36: 2540 | J36: 0.945 | K36: 5729 | L36: 5414 | M36: 2016 | P36: ASW-15B | Q36: MB | R36: M
A37: Vaclav Svoboda | B37: 1970 | C37: Letkov | D37: CZ/C1 | E37: AZ Cup 2016 - Klub | F37: CZ | G37: 31 | H37: 1548 | I37: 2540 | J37: 0.945 | K37: 5568 | L37: 5262 | M37: 2016 | P37: Std. Cirrus | Q37: W1 | R37: M
A38: Anna Hajkova | B38: 1989 | C38: Mladá Boleslav | D38: CZ/C1 | E38: AZ Cup 2016 - Klub | F38: CZ | G38: 32 | H38: 1528 | I38: 2540 | J38: 0.945 | K38: 5456 | L38: 5156 | M38: 2016 | P38: Std. Cirrus | Q38: BB | R38: F
A39: Jiri Hula | B39: =VLOOKUP(A39,Pilot,2,0) -> 1973 | C39: =VLOOKUP(A39,Pilot,3,0) -> Slaný | D39: =VLOOKUP(A39,Pilot,4,0) -> CZ/C1 | E39: AZ Cup 2016 - Klub | F39: CZ | G39: 33 | H39: 1515 | I39: 2540 | J39: 0.945 | K39: 5364 | L39: 5069 | M39: 2016 | N39: x | P39: Std. Cirrus | Q39: CON | R39: =VLOOKUP(A39,Pilot,5,0) -> M | S39: =IF(ISERROR(VLOOKUP(A39,Pilot,6,0)),"Není v databázi",VLOOKUP(A39,Pilot,6,0)) -> 
A40: Matej Krestes | B40: 1986 | C40: Slaný | D40: CZ/C1 | E40: AZ Cup 2016 - Klub | F40: CZ | G40: 34 | H40: 1497 | I40: 2540 | J40: 0.945 | K40: 5258 | L40: 4969 | M40: 2016 | N40: x | P40: ASW-15B | Q40: A24 | R40: M
A41: Lukas Koukal | B41: 1991 | C41: Letkov | D41: CZ/C1 | E41: AZ Cup 2016 - Klub | F41: CZ | G41: 35 | H41: 1482 | I41: 2540 | J41: 0.945 | K41: 5160 | L41: 4876 | M41: 2016 | P41: ASW-15B | Q41: T1 | R41: M
A42: Vojtech Kostejn | B42: 1974 | C42: Hodkovice | D42: CZ/C2 | E42: AZ Cup 2016 - Klub | F42: CZ | G42: 36 | H42: 1479 | I42: 2540 | J42: 0.945 | K42: 5095 | L42: 4815 | M42: 2016 | N42: x | P42: Std. Cirrus | Q42: AC | R42: M
A43: Ladislav Jozsa | B43: 1981 | C43: Medlánky | D43: CZ/M | E43: AZ Cup 2016 - Klub | F43: CZ | G43: 37 | H43: 1477 | I43: 2540 | J43: 0.945 | K43: 5033 | L43: 4756 | M43: 2016 | P43: Std. Cirrus | Q43: LJ | R43: M
A44: David Sachl | B44: 1978 | C44: Kralupy | D44: CZ/C1 | E44: AZ Cup 2016 - Klub | F44: CZ | G44: 38 | H44: 1353 | I44: 2540 | J44: 0.945 | K44: 4634 | L44: 4379 | M44: 2016 | N44: x | P44: DG-200 15m | Q44: RZ | R44: M
A45: Jiri Koudela | B45: 1974 | C45: Vyškov | D45: CZ/M | E45: AZ Cup 2016 - Klub | F45: CZ | G45: 39 | H45: 1239 | I45: 2540 | J45: 0.945 | K45: 4264 | L45: 4029 | M45: 2016 | N45: x | P45: VSO-10 | Q45: J9 | R45: M
A46: Oldrich Houzvicka | B46: 1975 | C46: Frýdlant | D46: CZ/M | E46: AZ Cup 2016 - Klub | F46: CZ | G46: 40 | H46: 1231 | I46: 2540 | J46: 0.945 | K46: 4185 | L46: 3955 | M46: 2016 | N46: x | P46: LS-4 | Q46: FP | R46: M
A47: Tomas Prikryl | B47: 1973 | C47: Vyškov | D47: CZ/M | E47: AZ Cup 2016 - Klub | F47: CZ | G47: 41 | H47: 1221 | I47: 2540 | J47: 0.945 | K47: 4101 | L47: 3875 | M47: 2016 | N47: x | P47: DG-100 | Q47: JR | R47: M
A48: Katerina Vojtova | B48: 1983 | C48: Slaný | D48: CZ/C1 | E48: AZ Cup 2016 - Klub | F48: CZ | G48: 42 | H48: 1131 | I48: 2540 | J48: 0.945 | K48: 3796 | L48: 3587 | M48: 2016 | N48: x | O48: x | P48: Std. Cirrus | Q48: SNI | R48: F
A49: Frantisek Pycha | B49: 1972 | C49: Chrudim | D49: CZ/C2 | E49: AZ Cup 2016 - Klub | F49: CZ | G49: 43 | H49: 1069 | I49: 2540 | J49: 0.945 | K49: 3569 | L49: 3373 | M49: 2016 | N49: x | P49: Std. Cirrus | Q49: FF | R49: M
A50: Eduard Svoboda | B50: 1957 | C50: Raná | D50: CZ/C2 | E50: AZ Cup 2016 - Klub | F50: CZ | G50: 44 | H50: 1004 | I50: 2540 | J50: 0.945 | K50: 3333 | L50: 3150 | M50: 2016 | P50: ASW-15B | Q50: HL | R50: M
A51: Jindrich Hala | B51: 1989 | C51: Rakovník | D51: CZ/C1 | E51: AZ Cup 2016 - Klub | F51: CZ | G51: 45 | H51: 975 | I51: 2540 | J51: 0.945 | K51: 3196 | L51: 3020 | M51: 2016 | N51: x | P51: Std. Cirrus | Q51: OG | R51: M
A52: Antonin Kutalek | B52: 1943 | C52: Zábřeh | D52: CZ/M | E52: AZ Cup 2016 - Klub | F52: CZ | G52: 46 | H52: 926 | I52: 2540 | J52: 0.945 | K52: 3005 | L52: 2840 | M52: 2016 | N52: x | P52: Mini Nimbus C | Q52: GL | R52: M
A53: Martin Fric | B53: 1967 | C53: Raná | D53: CZ/C2 | E53: AZ Cup 2016 - Klub | F53: CZ | G53: 47 | H53: 897 | I53: 2540 | J53: 0.945 | K53: 2868 | L53: 2710 | M53: 2016 | N53: x | P53: ASW-19B | Q53: FR | R53: M
A54: Jiri Hodan | B54: 1959 | C54: Zbraslavice | D54: CZ/C1 | E54: AZ Cup 2016 - Klub | F54: CZ | G54: 48 | H54: 619 | I54: 2540 | J54: 0.945 | K54: 2046 | L54: 1933 | M54: 2016 | N54: x | P54: G-103 Twin Astir | Q54: RB | R54: M
A55: Petr Kubik 75 | B55: 1975 | C55: Moravská Třebová | D55: CZ/M | E55: AZ Cup 2016 - Klub | F55: CZ | G55: 49 | H55: 603 | I55: 2540 | J55: 0.945 | K55: 1945 | L55: 1838 | M55: 2016 | N55: x | P55: ASW-19B | Q55: NO | R55: M
A56: Rudolf Jung | B56: 1954 | C56: Zbraslavice | D56: CZ/C1 | E56: AZ Cup 2016 - Klub | F56: CZ | G56: 50 | H56: 583 | I56: 2540 | J56: 0.945 | K56: 1833 | L56: 1732 | M56: 2016 | N56: x | P56: Std. Cirrus | Q56: C1 | R56: M
A57: Tomas Jung | B57: 1950 | C57: Zbraslavice | D57: CZ/C1 | E57: AZ Cup 2016 - Klub | F57: CZ | G57: 51 | H57: 578 | I57: 2540 | J57: 0.945 | K57: 1763 | L57: 1666 | M57: 2016 | N57: x | P57: ASW-19B | Q57: O2 | R57: M
A58: Petr Lonsky | B58: 1965 | C58: Toužim | D58: CZ/C1 | E58: AZ Cup 2016 - Klub | F58: CZ | G58: 52 | H58: 523 | I58: 2540 | J58: 0.945 | K58: 1555 | L58: 1469 | M58: 2016 | P58: LS-1d | Q58: CL | R58: M
A59: Roman Michalek | B59: 1974 | C59: Toužim | D59: CZ/C1 | E59: AZ Cup 2016 - Klub | F59: CZ | G59: 53 | H59: 420 | I59: 2540 | J59: 0.945 | K59: =ROUND(H59/I59*10000*0.7+(MAX($G$7:$G$61)-G59)/(MAX($G$7:$G$61)-1)*10000*0.3,0) -> 1214 | L59: 1147 | M59: 2016 | N59: x | P59: LS-3 15m | Q59: Y1 | R59: M
A60: Viktor Becan | B60: 1979 | C60: GAC Benešov | D60: CZ/C1 | E60: AZ Cup 2016 - Klub | F60: CZ | G60: 54 | H60: 0 | I60: 2540 | J60: 0.945 | K60: 0 | L60: 0 | M60: 2016 | P60: LS-1d | Q60: VB | R60: M
A61: Pavel Svrcek | B61: 1972 | C61: Frýdlant | D61: CZ/M | E61: AZ Cup 2016 - Klub | F61: CZ | G61: 54 | H61: 0 | I61: 2540 | J61: 0.945 | K61: =ROUND(H61/I61*10000*0.7+(MAX($G$7:$G$61)-G61)/(MAX($G$7:$G$61)-1)*10000*0.3,0) -> 0 | L61: 0 | M61: 2016 | P61: DG-200 15m | Q61: AK | R61: M
A62: Petr Tichy | B62: 1973 | C62: Zbraslavice | D62: CZ/C1 | E62: AZ Cup 2016 - Kombi | F62: CZ | G62: 1 | H62: 2052 | I62: 2052 | J62: 0 | K62: =ROUND(H62/I62*10000*0.7+(MAX($G$62:$G$83)-G62)/(MAX($G$62:$G$83)-1)*10000*0.3,0) -> 10000 | L62: =ROUND(J62*K62,0) -> 0 | M62: 2016 | P62: ASG-29E 18m 600kg | Q62: AJ | R62: M
A63: Petr Starek | B63: 1974 | C63: Zbraslavice | D63: CZ/C1 | E63: AZ Cup 2016 - Kombi | F63: CZ | G63: 2 | H63: 1989 | I63: 2052 | J63: 0 | K63: =ROUND(H63/I63*10000*0.7+(MAX($G$62:$G$83)-G63)/(MAX($G$62:$G$83)-1)*10000*0.3,0) -> 9642 | L63: =ROUND(J63*K63,0) -> 0 | M63: 2016 | P63: HPH 304SJ 18m 573kg | Q63: 66 | R63: M
A64: Radek Kucirek | B64: 1973 | C64: Havlíčkův Brod | D64: CZ/C2 | E64: AZ Cup 2016 - Kombi | F64: CZ | G64: 3 | H64: 1925 | I64: 2052 | J64: 0 | K64: 9281 | L64: 0 | M64: 2016 | P64: Ventus 2b 15m | Q64: YA | R64: M
A65: Martin Hrivna | B65: 1978 | C65: Zbraslavice | D65: CZ/C1 | E65: AZ Cup 2016 - Kombi | F65: CZ | G65: 4 | H65: 1901 | I65: 2052 | J65: 0 | K65: 9056 | L65: 0 | M65: 2016 | P65: ASG-29E 18m 600kg | Q65: NX | R65: M
A66: Jan Kantor | B66: 1983 | C66: Letňany | D66: CZ/C1 | E66: AZ Cup 2016 - Kombi | F66: CZ | G66: 5 | H66: 1787 | I66: 2052 | J66: 0 | K66: 8525 | L66: 0 | M66: 2016 | P66: Ventus c 17,6m | Q66: UC | R66: M
A67: Alena Netusilova | B67: 1970 | C67: Zbraslavice | D67: CZ/C1 | E67: AZ Cup 2016 - Kombi | F67: CZ | G67: 6 | H67: 1768 | I67: 2052 | J67: 0 | K67: 8317 | L67: 0 | M67: 2016 | P67: JS-1 CTJ 21m | Q67: JX | R67: F
A68: Tomas Rendla | B68: 1973 | C68: Zbraslavice | D68: CZ/C1 | E68: AZ Cup 2016 - Kombi | F68: CZ | G68: 7 | H68: 1764 | I68: 2052 | J68: 0 | K68: 8160 | L68: 0 | M68: 2016 | P68: Arcus M | Q68: EY | R68: M
A69: Martin Vnoucek | B69: 1972 | C69: Vlašim | D69: CZ/C1 | E69: AZ Cup 2016 - Kombi | F69: CZ | G69: 8 | H69: 1756 | I69: 2052 | J69: 0 | K69: 7990 | L69: 0 | M69: 2016 | P69: Ventus 2cxt 18m 600kg | Q69: PX | R69: M
A70: Tomas Malik | B70: 1972 | C70: Letňany | D70: CZ/C1 | E70: AZ Cup 2016 - Kombi | F70: CZ | G70: 9 | H70: 1689 | I70: 2052 | J70: 0 | K70: 7619 | L70: 0 | M70: 2016 | P70: Ventus 2c 18m 525kg | Q70: JT | R70: M
A71: David Zapletal | B71: =VLOOKUP(A71,Pilot,2,0) -> 1970 | C71: =VLOOKUP(A71,Pilot,3,0) -> Mladá Boleslav | D71: =VLOOKUP(A71,Pilot,4,0) -> CZ/C1 | E71: AZ Cup 2016 - Kombi | F71: CZ | G71: 10 | H71: 1630 | I71: 2052 | J71: 0 | K71: 7275 | L71: 0 | M71: 2016 | P71: Ventus c 17.6m | Q71: PUP | R71: =VLOOKUP(A71,Pilot,5,0) -> M | S71: =IF(ISERROR(VLOOKUP(A71,Pilot,6,0)),"Není v databázi",VLOOKUP(A71,Pilot,6,0)) -> 
A72: Zdenek Schenk | B72: 1972 | C72: Hranice | D72: CZ/M | E72: AZ Cup 2016 - Kombi | F72: CZ | G72: 11 | H72: 1585 | I72: 2052 | J72: 0 | K72: 6978 | L72: 0 | M72: 2016 | P72: Ventus ct 17.6m | Q72: SNK | R72: M
A73: Petr Malcek | B73: 1965 | C73: Letňany | D73: CZ/C1 | E73: AZ Cup 2016 - Kombi | F73: CZ | G73: 12 | H73: 1554 | I73: 2052 | J73: 0 | K73: 6730 | L73: 0 | M73: 2016 | P73: LS-6c 18m+W | Q73: F5 | R73: M
A74: Jan Dersak 69 | B74: 1969 | C74: Kralupy | D74: CZ/C1 | E74: AZ Cup 2016 - Kombi | F74: CZ | G74: 13 | H74: 1551 | I74: 2052 | J74: 0 | K74: 6577 | L74: 0 | M74: 2016 | P74: HPH 304CZ 17,4m | Q74: DJ | R74: M
A75: Jan Simon | B75: 1970 | C75: Kralupy | D75: CZ/C1 | E75: AZ Cup 2016 - Kombi | F75: CZ | G75: 14 | H75: 1470 | I75: 2052 | J75: 0 | K75: 6157 | L75: 0 | M75: 2016 | P75: Nimbus 3 22.9m 750 kg WL | Q75: HS | R75: M
A76: Zdenek Boruvka 54 | B76: 1954 | C76: Jičín | D76: CZ/C2 | E76: AZ Cup 2016 - Kombi | F76: CZ | G76: 15 | H76: 1101 | I76: 2052 | J76: 0 | K76: 4756 | L76: 0 | M76: 2016 | P76: LS-8-18 18m | Q76: ZB | R76: M
A77: Karel Benisek 76 | B77: 1976 | C77: Toužim | D77: CZ/C1 | E77: AZ Cup 2016 - Kombi | F77: CZ | G77: 16 | H77: 1019 | I77: 2052 | J77: 0 | K77: 4333 | L77: 0 | M77: 2016 | P77: Ventus ct 17,6m | Q77: KB | R77: M
A78: Tomas Charvat | B78: 1981 | C78: Vysoké Mýto | D78: CZ/C2 | E78: AZ Cup 2016 - Kombi | F78: CZ | G78: 17 | H78: 974 | I78: 2052 | J78: 0 | K78: 4037 | L78: 0 | M78: 2016 | P78: DuoDiscus 700kg | Q78: 777 | R78: M
A79: Roman Lanzendorf | B79: 1964 | C79: Letkov | D79: CZ/C1 | E79: AZ Cup 2016 - Kombi | F79: CZ | G79: 18 | H79: 941 | I79: 2052 | J79: 0 | K79: 3781 | L79: 0 | M79: 2016 | P79: Ventus ct 17.6m | Q79: AS | R79: M
A80: Petr Jiranek 63 | B80: 1962 | C80: Toužim | D80: CZ/C1 | E80: AZ Cup 2016 - Kombi | F80: CZ | G80: 19 | H80: 491 | I80: 2052 | J80: 0 | K80: =ROUND(H80/I80*10000*0.7+(MAX($G$62:$G$83)-G80)/(MAX($G$62:$G$83)-1)*10000*0.3,0) -> 2104 | L80: 0 | M80: 2016 | P80: Ventus ct 17.6m | Q80: EB | R80: M
A81: Ondrej Dupal | B81: 1966 | C81: GAC Benešov | D81: CZ/C1 | E81: AZ Cup 2016 - Kombi | F81: CZ | G81: 20 | H81: 455 | I81: 2052 | J81: 0 | K81: 1838 | L81: 0 | M81: 2016 | P81: ASG-29E 18m 600kg | Q81: GO | R81: M
A82: Vladimir Spilka | B82: 1940 | C82: Hranice | D82: CZ/M | E82: AZ Cup 2016 - Kombi | F82: CZ | G82: 21 | H82: 305 | I82: 2052 | J82: 0 | K82: 1183 | L82: 0 | M82: 2016 | P82: Nimbus 2b | Q82: AY | R82: M
A83: Lenka Kuthanova | B83: 1960 | C83: LK Břeclav | D83: CZ/M | E83: AZ Cup 2016 - Kombi | F83: CZ | G83: 22 | H83: 244 | I83: 2052 | J83: 0 | K83: 832 | L83: 0 | M83: 2016 | P83: LS-8b 18m | Q83: JB | R83: F
A84: Michal Lesinger | B84: 1966 | C84: Moravská Třebová | D84: CZ/M | E84: 12. JPJ 2016 - Klub | F84: CZ | G84: 1 | H84: 4336 | I84: 4336 | J84: 0.605 | K84: =ROUND(H84/I84*10000*0.7+(MAX($G$84:$G$108)-G84)/(MAX($G$84:$G$108)-1)*10000*0.3,0) -> 10000 | L84: =ROUND(J84*K84,0) -> 6050 | M84: 2016 | P84: ASW-19B | Q84: LL | R84: M
A85: Petr Vodicka | B85: 1965 | C85: Jaroměř | D85: CZ/C2 | E85: 12. JPJ 2016 - Klub | F85: CZ | G85: 2 | H85: 4152 | I85: 4336 | J85: =VLOOKUP(E85,Soutez,8,0) -> 0.605 | K85: =ROUND(H85/I85*10000*0.7+(MAX($G$84:$G$108)-G85)/(MAX($G$84:$G$108)-1)*10000*0.3,0) -> 9578 | L85: =ROUND(J85*K85,0) -> 5795 | M85: 2016 | N85: x | P85: Discus b | Q85: JA | R85: M
A86: Radek Hybl | B86: 1980 | C86: Šumperk | D86: CZ/M | E86: 12. JPJ 2016 - Klub | F86: CZ | G86: 3 | H86: 3822 | I86: 4336 | J86: 0.605 | K86: 8920 | L86: 5397 | M86: 2016 | N86: x | P86: Std. Cirrus | Q86: AYz | R86: M
A87: Martin Ficnar | B87: 1971 | C87: Šumperk | D87: CZ/M | E87: 12. JPJ 2016 - Klub | F87: CZ | G87: 4 | H87: 3783 | I87: 4336 | J87: 0.605 | K87: 8732 | L87: 5283 | M87: 2016 | N87: x | P87: LS 3a | Q87: S20 | R87: M
A88: Josef Novak | B88: 1981 | C88: Kunovice | D88: CZ/M | E88: 12. JPJ 2016 - Klub | F88: CZ | G88: 5 | H88: 3639 | I88: 4336 | J88: 0.605 | K88: 8375 | L88: 5067 | M88: 2016 | N88: x | P88: LS-1f | Q88: JT | R88: M
A89: Roman Schotli | B89: 1970 | C89: Hranice | D89: CZ/M | E89: 12. JPJ 2016 - Klub | F89: CZ | G89: 6 | H89: 3383 | I89: 4336 | J89: 0.605 | K89: 7836 | L89: 4741 | M89: 2016 | N89: x | P89: ASW-19B | Q89: 19 | R89: M
A90: Petr Lonsky | B90: 1965 | C90: Toužim | D90: CZ/C1 | E90: 12. JPJ 2016 - Klub | F90: CZ | G90: 7 | H90: 3245 | I90: 4336 | J90: 0.605 | K90: 7489 | L90: 4531 | M90: 2016 | N90: x | P90: LS-1d | Q90: CL | R90: M
A91: Libor Bednarik | B91: 1972 | C91: Kunovice | D91: CZ/M | E91: 12. JPJ 2016 - Klub | F91: CZ | G91: 8 | H91: 3168 | I91: 4336 | J91: 0.605 | K91: 7239 | L91: 4380 | M91: 2016 | N91: x | P91: Std. Cirrus | Q91: PIF | R91: M
A92: Jan Zahradka | B92: 1981 | C92: Hodkovice | D92: CZ/C2 | E92: 12. JPJ 2016 - Klub | F92: CZ | G92: 9 | H92: 2970 | I92: 4336 | J92: 0.605 | K92: 6795 | L92: 4111 | M92: 2016 | P92: Std. Cirrus | Q92: UB | R92: M
A93: Jan Matejovsky | B93: 1972 | C93: Hranice | D93: CZ/M | E93: 12. JPJ 2016 - Klub | F93: CZ | G93: 10 | H93: 2941 | I93: 4336 | J93: 0.605 | K93: 6623 | L93: 4007 | M93: 2016 | P93: LS 3 | Q93: BT | R93: M
A94: Michal Cechmanek | B94: 1978 | C94: Luhačovice | D94: CZ/M | E94: 12. JPJ 2016 - Klub | F94: CZ | G94: 11 | H94: 2903 | I94: 4336 | J94: 0.605 | K94: 6437 | L94: 3894 | M94: 2016 | N94: x | P94: Phobus | Q94: P1 | R94: M
A95: Eduard Svoboda | B95: 1957 | C95: Raná | D95: CZ/C2 | E95: 12. JPJ 2016 - Klub | F95: CZ | G95: 12 | H95: 2887 | I95: 4336 | J95: 0.605 | K95: 6286 | L95: 3803 | M95: 2016 | P95: ASW-15B | Q95: HL | R95: M
A96: Martin Urner | B96: 1974 | C96: Letňany | D96: CZ/C1 | E96: 12. JPJ 2016 - Klub | F96: CZ | G96: 13 | H96: 2881 | I96: 4336 | J96: 0.605 | K96: 6151 | L96: 3721 | M96: 2016 | P96: ASW-15B | Q96: JJ | R96: M
A97: Matous Schmidt | B97: 1981 | C97: Letňany | D97: CZ/C1 | E97: 12. JPJ 2016 - Klub | F97: CZ | G97: 14 | H97: 2759 | I97: 4336 | J97: 0.605 | K97: 5829 | L97: 3527 | M97: 2016 | P97: Std. Cirrus | Q97: IMI | R97: M
A98: Martin Kriz | B98: 1968 | C98: Přibyslav | D98: CZ/C2 | E98: 12. JPJ 2016 - Klub | F98: CZ | G98: 15 | H98: 2712 | I98: 4336 | J98: 0.605 | K98: 5628 | L98: 3405 | M98: 2016 | P98: ASW-15B | Q98: BE | R98: M
A99: Martin Svarc | B99: 1981 | C99: Olomouc | D99: CZ/M | E99: 12. JPJ 2016 - Klub | F99: CZ | G99: 16 | H99: 2693 | I99: 4336 | J99: 0.605 | K99: 5473 | L99: 3311 | M99: 2016 | N99: x | P99: DG-101G | Q99: HE | R99: M
A100: Martin Hejny | B100: 1984 | C100: Šumperk | D100: CZ/M | E100: 12. JPJ 2016 - Klub | F100: CZ | G100: 17 | H100: 2657 | I100: 4336 | J100: 0.605 | K100: 5289 | L100: 3200 | M100: 2016 | N100: x | P100: ASW 15B | Q100: EZ | R100: M
A101: Tomas Prokop | B101: 1972 | C101: Šumperk | D101: CZ/M | E101: 12. JPJ 2016 - Klub | F101: CZ | G101: 18 | H101: 2597 | I101: 4336 | J101: 0.605 | K101: 5068 | L101: 3066 | M101: 2016 | N101: x | P101: ASW-15 | Q101: UP | R101: M
A102: Petr Havrlant | B102: 1965 | C102: Šumperk | D102: CZ/M | E102: 12. JPJ 2016 - Klub | F102: CZ | G102: 19 | H102: 2431 | I102: 4336 | J102: 0.605 | K102: 4675 | L102: 2828 | M102: 2016 | N102: x | P102: ASW15B | Q102: R5 | R102: M
A103: Lubomir Papezik | B103: =VLOOKUP(A103,Pilot,2,0) -> 1951 | C103: =VLOOKUP(A103,Pilot,3,0) -> Luhačovice | D103: =VLOOKUP(A103,Pilot,4,0) -> CZ/M | E103: 12. JPJ 2016 - Klub | F103: CZ | G103: 20 | H103: 2353 | I103: 4336 | J103: 0.605 | K103: 4424 | L103: 2677 | M103: 2016 | P103: LS-4 | Q103: FP | R103: =VLOOKUP(A103,Pilot,5,0) -> M | S103: =IF(ISERROR(VLOOKUP(A103,Pilot,6,0)),"Není v databázi",VLOOKUP(A103,Pilot,6,0)) -> 
A104: Petr Kolomaznik | B104: 1981 | C104: Šumperk | D104: CZ/M | E104: 12. JPJ 2016 - Klub | F104: CZ | G104: 21 | H104: 1804 | I104: 4336 | J104: 0.605 | K104: 3412 | L104: 2064 | M104: 2016 | N104: x | P104: Jantar std. 2 | Q104: SU | R104: M
A105: Jaromir Vlk | B105: 1959 | C105: Šumperk | D105: CZ/M | E105: 12. JPJ 2016 - Klub | F105: CZ | G105: 22 | H105: 1767 | I105: 4336 | J105: 0.605 | K105: 3228 | L105: 1953 | M105: 2016 | P105: VSO-10 | Q105: 4 | R105: M
A106: Antonin Kutalek | B106: 1943 | C106: Zábřeh | D106: CZ/M | E106: 12. JPJ 2016 - Klub | F106: CZ | G106: 23 | H106: 1744 | I106: 4336 | J106: 0.605 | K106: 3065 | L106: 1854 | M106: 2016 | P106: Mini-Nimbus | Q106: GL | R106: M
A107: Yvona Vyhnankova | B107: 1963 | C107: Olomouc | D107: CZ/M | E107: 12. JPJ 2016 - Klub | F107: CZ | G107: 24 | H107: 1500 | I107: 4336 | J107: 0.605 | K107: 2547 | L107: 1541 | M107: 2016 | P107: ASW-15 | Q107: YZ | R107: F
A108: Jan Pokluda | B108: 1973 | C108: Šumperk | D108: CZ/M | E108: 12. JPJ 2016 - Klub | F108: CZ | G108: 25 | H108: 1254 | I108: 4336 | J108: 0.605 | K108: =ROUND(H108/I108*10000*0.7+(MAX($G$84:$G$108)-G108)/(MAX($G$84:$G$108)-1)*10000*0.3,0) -> 2024 | L108: 1225 | M108: 2016 | N108: x | P108: ASW-15B WL | Q108: JG | R108: M
A109: Danes Grula | B109: 1961 | C109: Medlánky | D109: CZ/M | E109: 12. JPJ 2016 - Kombi | F109: CZ | G109: 1 | H109: 4522 | I109: 4522 | J109: 0.6 | K109: =ROUND(H109/I109*10000*0.7+(MAX($G$109:$G$125)-G109)/(MAX($G$109:$G$125)-1)*10000*0.3,0) -> 10000 | L109: =ROUND(J109*K109,0) -> 6000 | M109: 2016 | P109: ASG 29E 18m | Q109: DX | R109: M
A110: Frantisek Vancura | B110: 1966 | C110: Hranice | D110: CZ/M | E110: 12. JPJ 2016 - Kombi | F110: CZ | G110: 2 | H110: 3862 | I110: 4522 | J110: 0.6 | K110: =ROUND(H110/I110*10000*0.7+(MAX($G$109:$G$125)-G110)/(MAX($G$109:$G$125)-1)*10000*0.3,0) -> 8791 | L110: =ROUND(J110*K110,0) -> 5275 | M110: 2016 | P110: Nimbus 3T 24,5m | Q110: A1 | R110: M
A111: Marek Blatak | B111: 1969 | C111: Šumperk | D111: CZ/M | E111: 12. JPJ 2016 - Kombi | F111: CZ | G111: 3 | H111: 3824 | I111: 4522 | J111: 0.6 | K111: 8545 | L111: 5127 | M111: 2016 | P111: Ventus c 17.6m | Q111: EB | R111: M
A112: Miroslav Koci | B112: 1961 | C112: Žamberk | D112: CZ/C2 | E112: 12. JPJ 2016 - Kombi | F112: CZ | G112: 4 | H112: 3696 | I112: 4522 | J112: 0.6 | K112: 8159 | L112: 4895 | M112: 2016 | N112: x | P112: Ventus 2cxM/18m | Q112: E8 | R112: M
A113: Jan Simon | B113: 1970 | C113: Kralupy | D113: CZ/C1 | E113: 12. JPJ 2016 - Kombi | F113: CZ | G113: 5 | H113: 3689 | I113: 4522 | J113: 0.6 | K113: 7961 | L113: 4777 | M113: 2016 | N113: x | P113: Nimbus 3 22,9m WL | Q113: HS | R113: M
A114: Zdenek Schenk | B114: 1972 | C114: Hranice | D114: CZ/M | E114: 12. JPJ 2016 - Kombi | F114: CZ | G114: 6 | H114: 3524 | I114: 4522 | J114: 0.6 | K114: 7518 | L114: 4511 | M114: 2016 | P114: Ventus ct 17.6m | Q114: SNK | R114: M
A115: Jiri Steiger | B115: 1969 | C115: Olomouc | D115: CZ/M | E115: 12. JPJ 2016 - Kombi | F115: CZ | G115: 7 | H115: 3489 | I115: 4522 | J115: 0.6 | K115: 7276 | L115: 4366 | M115: 2016 | P115: Ventus 2cxT/18m | Q115: JS | R115: M
A116: Kamil Sohr | B116: 1973 | C116: Šumperk | D116: CZ/M | E116: 12. JPJ 2016 - Kombi | F116: CZ | G116: 8 | H116: 3297 | I116: 4522 | J116: 0.6 | K116: 6791 | L116: 4075 | M116: 2016 | N116: x | P116: SZD 55 | Q116: BC | R116: M
A117: Miroslav Sklenar | B117: 1964 | C117: Žamberk | D117: CZ/C2 | E117: 12. JPJ 2016 - Kombi | F117: CZ | G117: 9 | H117: 3200 | I117: 4522 | J117: 0.6 | K117: 6454 | L117: 3872 | M117: 2016 | N117: x | P117: Duo Discus | Q117: VP | R117: M
A118: Roman Petro | C118: Nitra | D118: SK | E118: 12. JPJ 2016 - Kombi | F118: CZ | G118: 10 | H118: 2920 | I118: 4522 | J118: 0.6 | K118: 5833 | L118: 3500 | M118: 2016 | P118: DG 1000S | Q118: NIT | R118: M
A119: Albrecht Beat | B119: =VLOOKUP(A119,Pilot,2,0) -> 1953 | C119: =VLOOKUP(A119,Pilot,3,0) -> Šumperk | D119: =VLOOKUP(A119,Pilot,4,0) -> CZ/M | E119: 12. JPJ 2016 - Kombi | F119: CZ | G119: 11 | H119: 2727 | I119: 4522 | J119: 0.6 | K119: 5346 | L119: 3208 | M119: 2016 | N119: x | P119: LS 8 | Q119: GL | R119: =VLOOKUP(A119,Pilot,5,0) -> M | S119: =IF(ISERROR(VLOOKUP(A119,Pilot,6,0)),"Není v databázi",VLOOKUP(A119,Pilot,6,0)) -> 
A120: Tomas Fiala 77 | B120: =VLOOKUP(A120,Pilot,2,0) -> 1977 | C120: =VLOOKUP(A120,Pilot,3,0) -> Luhačovice | D120: =VLOOKUP(A120,Pilot,4,0) -> CZ/M | E120: 12. JPJ 2016 - Kombi | F120: CZ | G120: 12 | H120: 2181 | I120: 4522 | J120: 0.6 | K120: 4314 | L120: 2588 | M120: 2016 | N120: x | P120: Arcus M | Q120: AR | R120: =VLOOKUP(A120,Pilot,5,0) -> M | S120: =IF(ISERROR(VLOOKUP(A120,Pilot,6,0)),"Není v databázi",VLOOKUP(A120,Pilot,6,0)) -> 
A121: Christof Madoery | E121: 12. JPJ 2016 - Kombi | F121: CZ | G121: 13 | H121: 2039 | I121: 4522 | J121: 0.6 | K121: 3906 | L121: 2344 | M121: 2016 | P121: ASH 25 | Q121: IQ | R121: M
A122: Vladimir Spilka | B122: =VLOOKUP(A122,Pilot,2,0) -> 1940 | C122: =VLOOKUP(A122,Pilot,3,0) -> Hranice | D122: =VLOOKUP(A122,Pilot,4,0) -> CZ/M | E122: 12. JPJ 2016 - Kombi | F122: CZ | G122: 14 | H122: 1727 | I122: 4522 | J122: 0.6 | K122: 3236 | L122: 1942 | M122: 2016 | P122: Nimbus 2b | Q122: AY | R122: =VLOOKUP(A122,Pilot,5,0) -> M | S122: =IF(ISERROR(VLOOKUP(A122,Pilot,6,0)),"Není v databázi",VLOOKUP(A122,Pilot,6,0)) -> 
A123: Dusan Sys | B123: 1977 | C123: Šumperk | D123: CZ/M | E123: 12. JPJ 2016 - Kombi | F123: CZ | G123: 15 | H123: 1309 | I123: 4522 | J123: 0.6 | K123: =ROUND(H123/I123*10000*0.7+(MAX($G$109:$G$125)-G123)/(MAX($G$109:$G$125)-1)*10000*0.3,0) -> 2401 | L123: 1441 | M123: 2016 | N123: x | P123: DG 808C/18m WL | Q123: MS | R123: M
A124: Roman Cerny | B124: 1971 | C124: Hranice | D124: CZ/M | E124: 12. JPJ 2016 - Kombi | F124: CZ | G124: 16 | H124: 1197 | I124: 4522 | J124: 0.6 | K124: 2040 | L124: 1224 | M124: 2016 | N124: x | P124: ASW 20 | Q124: 67 | R124: M
A125: Marek Sild | B125: 1976 | C125: Kunovice | D125: CZ/M | E125: 12. JPJ 2016 - Kombi | F125: CZ | G125: 17 | H125: 0 | I125: 4522 | J125: 0.6 | K125: 0 | L125: 0 | M125: 2016 | P125: DG-400 17m | Q125: VZ | R125: M
A126: Jiri Klicnar | B126: 1965 | C126: Medlánky | D126: CZ/M | E126: Závody Šohajů 2016 - Klub | F126: CZ | G126: 1 | H126: 44 | I126: 44 | J126: 0 | K126: =ROUND(H126/I126*10000*0.7+(MAX($G$126:$G$134)-G126)/(MAX($G$126:$G$134)-1)*10000*0.3,0) -> 10000 | L126: =ROUND(J126*K126,0) -> 0 | M126: 2016 | P126: VT-125 Sohaj | Q126: Š | R126: M
A127: Miroslav Burdych | B127: 1973 | C127: Nové Město nad Metují | D127: CZ/C2 | E127: Závody Šohajů 2016 - Klub | F127: CZ | G127: 2 | H127: 32 | I127: 44 | J127: 0 | K127: =ROUND(H127/I127*10000*0.7+(MAX($G$126:$G$134)-G127)/(MAX($G$126:$G$134)-1)*10000*0.3,0) -> 7716 | L127: =ROUND(J127*K127,0) -> 0 | M127: 2016 | P127: Bergfalke III | Q127: R | R127: M
A128: Vladimir Abraham | B128: 1962 | C128: Raná | D128: CZ/C2 | E128: Závody Šohajů 2016 - Klub | F128: CZ | G128: 3 | H128: 28 | I128: 44 | J128: 0 | K128: 6705 | L128: 0 | M128: 2016 | P128: Ka 6 | Q128: YZ | R128: M
A129: Miroslav Major | B129: 1968 | C129: GAC Benešov | D129: CZ/C1 | E129: Závody Šohajů 2016 - Klub | F129: CZ | G129: 3 | H129: 28 | I129: 44 | J129: 0 | K129: 6705 | L129: 0 | M129: 2016 | P129: VT-125 Sohaj | Q129: F | R129: M
A130: Vaclav Cerny | B130: 1949 | C130: Plasy | D130: CZ/C1 | E130: Závody Šohajů 2016 - Klub | F130: CZ | G130: 5 | H130: 27 | I130: 44 | J130: 0 | K130: 5795 | L130: 0 | M130: 2016 | P130: VT-125 Sohaj | Q130: V | R130: M
A131: Tomas Mezera | B131: 1973 | C131: Raná | D131: CZ/C2 | E131: Závody Šohajů 2016 - Klub | F131: CZ | G131: 5 | H131: 27 | I131: 44 | J131: 0 | K131: 5795 | L131: 0 | M131: 2016 | P131: VT-425 Sohaj | Q131: T | R131: M
A132: Jiri Lenik | B132: 1947 | C132: Raná | D132: CZ/C2 | E132: Závody Šohajů 2016 - Klub | F132: CZ | G132: 7 | H132: 21 | I132: 44 | J132: 0 | K132: 4091 | L132: 0 | M132: 2016 | P132: Olympia 2 | Q132: BKK | R132: M
A133: Jiri Slouka | B133: 1967 | C133: Medlánky | D133: CZ/M | E133: Závody Šohajů 2016 - Klub | F133: CZ | G133: 8 | H133: 16 | I133: 44 | J133: 0 | K133: =ROUND(H133/I133*10000*0.7+(MAX($G$126:$G$134)-G133)/(MAX($G$126:$G$134)-1)*10000*0.3,0) -> 2920 | L133: 0 | M133: 2016 | P133: Vt-125 Sohaj | Q133: I | R133: M
A134: Ulf Kern | B134: 1958 | C134: Raná | D134: CZ/C2 | E134: Závody Šohajů 2016 - Klub | F134: CZ | G134: 9 | H134: 11 | I134: 44 | J134: 0 | K134: 1750 | L134: 0 | M134: 2016 | P134: VT-125 Sohaj | Q134: L | R134: M
A135: Ondrej Dvorak 87 | B135: 1987 | C135: Raná | D135: CZ/C2 | E135: PMČR 2016 - Klub | F135: CZ | G135: 1 | H135: 4331 | I135: 4331 | J135: 1.09 | K135: =ROUND(H135/I135*10000*0.7+(MAX($G$135:$G$180)-G135)/(MAX($G$135:$G$180)-1)*10000*0.3,0) -> 10000 | L135: =ROUND(J135*K135,0) -> 10900 | M135: 2016 | N135: x | P135: Std. Cirrus | Q135: FW | R135: M
A136: Tomas Suchanek | B136: 1964 | C136: GAC Benešov | D136: CZ/C1 | E136: PMČR 2016 - Klub | F136: CZ | G136: 2 | H136: 4272 | I136: 4331 | J136: 1.09 | K136: =ROUND(H136/I136*10000*0.7+(MAX($G$135:$G$180)-G136)/(MAX($G$135:$G$180)-1)*10000*0.3,0) -> 9838 | L136: =ROUND(J136*K136,0) -> 10723 | M136: 2016 | N136: x | P136: Std. Cirrus | Q136: ST | R136: M
A137: Marek Pechanec | B137: 1970 | C137: Luhačovice | D137: CZ/M | E137: PMČR 2016 - Klub | F137: CZ | G137: 3 | H137: 4230 | I137: 4331 | J137: 1.09 | K137: 9703 | L137: 10576 | M137: 2016 | N137: x | P137: Std. Cirrus | Q137: SJ | R137: M
A138: David Mach | B138: 1994 | C138: Hronov | D138: CZ/C2 | E138: PMČR 2016 - Klub | F138: CZ | G138: 4 | H138: 4212 | I138: 4331 | J138: 1.09 | K138: 9608 | L138: 10473 | M138: 2016 | N138: x | P138: Cirrus VTC | Q138: 1W | R138: M | S138: Junior v roce 2019
A139: Lubomir Motl | B139: 1959 | C139: Kyjov | D139: CZ/M | E139: PMČR 2016 - Klub | F139: CZ | G139: 5 | H139: 4160 | I139: 4331 | J139: 1.09 | K139: 9457 | L139: 10308 | M139: 2016 | N139: x | P139: LS 1f | Q139: G2 | R139: M
A140: Ondrej Bordovsky | B140: 1983 | C140: Krnov | D140: CZ/M | E140: PMČR 2016 - Klub | F140: CZ | G140: 6 | H140: 4121 | I140: 4331 | J140: 1.09 | K140: 9327 | L140: 10166 | M140: 2016 | N140: x | P140: Std. Cirrus | Q140: BW | R140: M
A141: Jan Louda | B141: 1986 | C141: Mladá Boleslav | D141: CZ/C1 | E141: PMČR 2016 - Klub | F141: CZ | G141: 7 | H141: 3989 | I141: 4331 | J141: 1.09 | K141: 9047 | L141: 9861 | M141: 2016 | N141: x | P141: Std. Cirrus | Q141: CX | R141: M
A142: Gunnar Axelsson | C142: Boraas Segelflygklubb | D142: SE | E142: PMČR 2016 - Klub | F142: CZ | G142: 8 | H142: 3976 | I142: 4331 | J142: 1.09 | K142: 8960 | L142: 9766 | M142: 2016 | P142: Std. Cirrus | Q142: XII | R142: M | S142: Není v databázi
A143: Michal Lesinger | B143: =VLOOKUP(A143,Pilot,2,0) -> 1966 | C143: =VLOOKUP(A143,Pilot,3,0) -> Moravská Třebová | D143: =VLOOKUP(A143,Pilot,4,0) -> CZ/M | E143: PMČR 2016 - Klub | F143: CZ | G143: 9 | H143: 3955 | I143: 4331 | J143: 1.09 | K143: 8859 | L143: 9656 | M143: 2016 | N143: x | P143: ASW-19B | Q143: LL | R143: =VLOOKUP(A143,Pilot,5,0) -> M
A144: Eric Bernard | C144: Bordeaux | D144: FR | E144: PMČR 2016 - Klub | F144: CZ | G144: 10 | H144: 3919 | I144: 4331 | J144: 1.09 | K144: 8734 | L144: 9520 | M144: 2016 | P144: Std. Cirrus | Q144: C11 | R144: M | S144: Není v databázi
A145: Fabian Peitz | C145: LSV-Schneverdingen e.V. | D145: DE | E145: PMČR 2016 - Klub | F145: CZ | G145: 11 | H145: 3896 | I145: 4331 | J145: 1.09 | K145: 8630 | L145: 9407 | M145: 2016 | P145: H-201b Std. Libelle | Q145: FH | R145: M | S145: Není v databázi
A146: Ivan Novak | B146: =VLOOKUP(A146,Pilot,2,0) -> 1962 | C146: =VLOOKUP(A146,Pilot,3,0) -> Mladá Boleslav | D146: =VLOOKUP(A146,Pilot,4,0) -> CZ/C1 | E146: PMČR 2016 - Klub | F146: CZ | G146: 12 | H146: 3876 | I146: 4331 | J146: 1.09 | K146: 8531 | L146: 9299 | M146: 2016 | P146: Std. Cirrus | Q146: DI | R146: =VLOOKUP(A146,Pilot,5,0) -> M
A147: Jan Pavlik | B147: 1987 | C147: Křižanov | D147: CZ/M | E147: PMČR 2016 - Klub | F147: CZ | G147: 13 | H147: 3872 | I147: 4331 | J147: 1.09 | K147: 8458 | L147: 9219 | M147: 2016 | N147: x | P147: Std. Cirrus | Q147: ICQ | R147: M
A148: Jakub Hlavacek | B148: 1991 | C148: Letkov | D148: CZ/C1 | E148: PMČR 2016 - Klub | F148: CZ | G148: 14 | H148: 3818 | I148: 4331 | J148: 1.09 | K148: 8304 | L148: 9051 | M148: 2016 | N148: x | P148: Std. Cirrus | Q148: AL | R148: M
A149: Klara Teichmannova | B149: 1993 | C149: Hronov | D149: CZ/C2 | E149: PMČR 2016 - Klub | F149: CZ | G149: 15 | H149: 3706 | I149: 4331 | J149: =VLOOKUP(E149,Soutez,8,0) -> 1.09 | K149: 8057 | L149: 8782 | M149: 2016 | N149: x | O149: x | P149: Std. Cirrus | Q149: LY | R149: F
A150: Josef Bostik | B150: 1963 | C150: GAC Benešov | D150: CZ/C1 | E150: PMČR 2016 - Klub | F150: CZ | G150: 16 | H150: 3675 | I150: 4331 | J150: 1.09 | K150: 7940 | L150: 8655 | M150: 2016 | N150: x | P150: Std. Cirrus | Q150: I | R150: M
A151: Zdenek Boruvka 86 | B151: 1986 | C151: Jičín | D151: CZ/C2 | E151: PMČR 2016 - Klub | F151: CZ | G151: 17 | H151: 3670 | I151: 4331 | J151: 1.09 | K151: 7865 | L151: 8573 | M151: 2016 | P151: Std. Cirrus | Q151: BJ | R151: M
A152: Jan Kotan | B152: 1982 | C152: Letňany | D152: CZ/C1 | E152: PMČR 2016 - Klub | F152: CZ | G152: 18 | H152: 3593 | I152: 4331 | J152: 1.09 | K152: 7674 | L152: 8365 | M152: 2016 | P152: ASW-19B | Q152: WT | R152: M
A153: Vaclav Marel | B153: 1974 | C153: Jaroměř | D153: CZ/C2 | E153: PMČR 2016 - Klub | F153: CZ | G153: 19 | H153: 3463 | I153: 4331 | J153: 1.09 | K153: 7397 | L153: 8063 | M153: 2016 | N153: x | P153: Std. Cirrus | Q153: IF | R153: M
A154: Martin Jurovic | C154: Bratislava | D154: SK | E154: PMČR 2016 - Klub | F154: CZ | G154: 20 | H154: 3460 | I154: 4331 | J154: 1.09 | K154: 7326 | L154: 7985 | M154: 2016 | P154: Centrair C-101B Pegas | Q154: J2 | R154: M | S154: Není v databázi
A155: Jan Obrucnik | B155: =VLOOKUP(A155,Pilot,2,0) -> 1991 | C155: =VLOOKUP(A155,Pilot,3,0) -> Kralupy | D155: =VLOOKUP(A155,Pilot,4,0) -> CZ/C1 | E155: PMČR 2016 - Klub | F155: CZ | G155: 21 | H155: 3369 | I155: 4331 | J155: 1.09 | K155: 7112 | L155: 7752 | M155: 2016 | N155: x | P155: LS 1f | Q155: EF | R155: =VLOOKUP(A155,Pilot,5,0) -> M
A156: Martin Piskacek | B156: =VLOOKUP(A156,Pilot,2,0) -> 1991 | C156: =VLOOKUP(A156,Pilot,3,0) -> Beroun | D156: =VLOOKUP(A156,Pilot,4,0) -> CZ/C1 | E156: PMČR 2016 - Klub | F156: CZ | G156: 22 | H156: 3278 | I156: 4331 | J156: 1.09 | K156: 6898 | L156: 7519 | M156: 2016 | N156: x | P156: Std. Cirrus | Q156: 75 | R156: =VLOOKUP(A156,Pilot,5,0) -> M
A157: Petr Panek | B157: =VLOOKUP(A157,Pilot,2,0) -> 1975 | C157: =VLOOKUP(A157,Pilot,3,0) -> Dvůr Králové | D157: =VLOOKUP(A157,Pilot,4,0) -> CZ/C2 | E157: PMČR 2016 - Klub | F157: CZ | G157: 23 | H157: 3216 | I157: 4331 | J157: 1.09 | K157: 6731 | L157: 7337 | M157: 2016 | P157: Std. Cirrus | Q157: YU | R157: =VLOOKUP(A157,Pilot,5,0) -> M
A158: Martin Stepanek | B158: =VLOOKUP(A158,Pilot,2,0) -> 1987 | C158: =VLOOKUP(A158,Pilot,3,0) -> Moravská Třebová | D158: =VLOOKUP(A158,Pilot,4,0) -> CZ/M | E158: PMČR 2016 - Klub | F158: CZ | G158: 24 | H158: 3166 | I158: 4331 | J158: 1.09 | K158: 6584 | L158: 7177 | M158: 2016 | N158: x | P158: ASW-15B | Q158: LE | R158: =VLOOKUP(A158,Pilot,5,0) -> M
A159: Amelie Audier | C159: Beynes | D159: FR | E159: PMČR 2016 - Klub | F159: CZ | G159: 25 | H159: 3085 | I159: 4331 | J159: 1.09 | K159: 6386 | L159: 6961 | M159: 2016 | P159: Std. Cirrus | Q159: EA | R159: F | S159: Není v databázi
A160: Jan Viskot | B160: =VLOOKUP(A160,Pilot,2,0) -> 1995 | C160: =VLOOKUP(A160,Pilot,3,0) -> Břeclav | D160: =VLOOKUP(A160,Pilot,4,0) -> CZ/M | E160: PMČR 2016 - Klub | F160: CZ | G160: 26 | H160: 3084 | I160: 4331 | J160: 1.09 | K160: 6318 | L160: 6887 | M160: 2016 | P160: G-102 Astir cs | Q160: AY | R160: =VLOOKUP(A160,Pilot,5,0) -> M | S160: Junior v roce 2019
A161: Tomas Frinta | B161: =VLOOKUP(A161,Pilot,2,0) -> 1970 | C161: =VLOOKUP(A161,Pilot,3,0) -> Hodkovice | D161: =VLOOKUP(A161,Pilot,4,0) -> CZ/C2 | E161: PMČR 2016 - Klub | F161: CZ | G161: 27 | H161: 3079 | I161: 4331 | J161: 1.09 | K161: 6243 | L161: 6805 | M161: 2016 | N161: x | P161: ASW-19B | Q161: CF | R161: =VLOOKUP(A161,Pilot,5,0) -> M
A162: Viktor Hnata | C162: Holic | D162: SK | E162: PMČR 2016 - Klub | F162: CZ | G162: 28 | H162: 3060 | I162: 4331 | J162: 1.09 | K162: 6146 | L162: 6699 | M162: 2016 | P162: Std. Cirrus | Q162: V1 | R162: M | S162: Není v databázi
A163: Pavlina Horackova | B163: =VLOOKUP(A163,Pilot,2,0) -> 1965 | C163: =VLOOKUP(A163,Pilot,3,0) -> Šumperk | D163: =VLOOKUP(A163,Pilot,4,0) -> CZ/M | E163: PMČR 2016 - Klub | F163: CZ | G163: 29 | H163: 3047 | I163: 4331 | J163: 1.09 | K163: 6058 | L163: 6603 | M163: 2016 | N163: x | O163: x | P163: SZD-48 Jantar Std.2 | Q163: SU | R163: =VLOOKUP(A163,Pilot,5,0) -> F
A164: Niklas Lofgren | C164: Karlstad SFK | D164: DE | E164: PMČR 2016 - Klub | F164: CZ | G164: 30 | H164: 3022 | I164: 4331 | J164: 1.09 | K164: 5951 | L164: 6487 | M164: 2016 | P164: Std. Cirrus | Q164: A1 | R164: M | S164: Není v databázi
A165: Petr Stepanek | B165: =VLOOKUP(A165,Pilot,2,0) -> 1989 | C165: =VLOOKUP(A165,Pilot,3,0) -> Moravská Třebová | D165: =VLOOKUP(A165,Pilot,4,0) -> CZ/M | E165: PMČR 2016 - Klub | F165: CZ | G165: 31 | H165: 3014 | I165: 4331 | J165: 1.09 | K165: 5871 | L165: 6399 | M165: 2016 | N165: x | P165: ASW-19B | Q165: AE | R165: =VLOOKUP(A165,Pilot,5,0) -> M
A166: Dennis van Deest-Behnke | C166: LSV Schneverdingen | D166: DE | E166: PMČR 2016 - Klub | F166: CZ | G166: 32 | H166: 2952 | I166: 4331 | J166: 1.09 | K166: 5705 | L166: 6218 | M166: 2016 | P166: H-201b Std. Libelle | Q166: Y6 | R166: M | S166: Není v databázi
A167: Jan Horak | B167: =VLOOKUP(A167,Pilot,2,0) -> 1971 | C167: =VLOOKUP(A167,Pilot,3,0) -> Zbraslavice | D167: =VLOOKUP(A167,Pilot,4,0) -> CZ/C1 | E167: PMČR 2016 - Klub | F167: CZ | G167: 33 | H167: 2927 | I167: 4331 | J167: 1.09 | K167: 5597 | L167: 6101 | M167: 2016 | P167: ASW-15B | Q167: TX | R167: =VLOOKUP(A167,Pilot,5,0) -> M
A168: Pavel Jiranek | B168: =VLOOKUP(A168,Pilot,2,0) -> 1993 | C168: =VLOOKUP(A168,Pilot,3,0) -> Toužim | D168: =VLOOKUP(A168,Pilot,4,0) -> CZ/C1 | E168: PMČR 2016 - Klub | F168: CZ | G168: 34 | H168: 2896 | I168: 4331 | J168: 1.09 | K168: 5481 | L168: 5974 | M168: 2016 | N168: x | P168: Std. Cirrus | Q168: IYD | R168: =VLOOKUP(A168,Pilot,5,0) -> M
A169: Leos Strnadek | B169: =VLOOKUP(A169,Pilot,2,0) -> 1983 | C169: =VLOOKUP(A169,Pilot,3,0) -> Hodkovice | D169: =VLOOKUP(A169,Pilot,4,0) -> CZ/C2 | E169: PMČR 2016 - Klub | F169: CZ | G169: 35 | H169: 2848 | I169: 4331 | J169: 1.09 | K169: 5336 | L169: 5816 | M169: 2016 | P169: ASW-19B | Q169: AFK | R169: =VLOOKUP(A169,Pilot,5,0) -> M
A170: Marek Straka | C170: Trencin | D170: SK | E170: PMČR 2016 - Klub | F170: CZ | G170: 36 | H170: 2840 | I170: 4331 | J170: 1.09 | K170: 5257 | L170: 5730 | M170: 2016 | P170: ASW-19 | Q170: AI | R170: M | S170: Není v databázi
A171: Zdenek Balcarek | B171: =VLOOKUP(A171,Pilot,2,0) -> 1967 | C171: =VLOOKUP(A171,Pilot,3,0) -> Kroměříž | D171: =VLOOKUP(A171,Pilot,4,0) -> CZ/M | E171: PMČR 2016 - Klub | F171: CZ | G171: 37 | H171: 2788 | I171: 4331 | J171: 1.09 | K171: 5106 | L171: 5566 | M171: 2016 | P171: Std. Cirrus | Q171: ZL | R171: =VLOOKUP(A171,Pilot,5,0) -> M
A172: Barbora Moravcova | B172: =VLOOKUP(A172,Pilot,2,0) -> 1994 | C172: =VLOOKUP(A172,Pilot,3,0) -> Zbraslavice | D172: =VLOOKUP(A172,Pilot,4,0) -> CZ/C1 | E172: PMČR 2016 - Klub | F172: CZ | G172: 38 | H172: 2776 | I172: 4331 | J172: 1.09 | K172: 5020 | L172: 5472 | M172: 2016 | P172: ASW-15B | Q172: JJ | R172: =VLOOKUP(A172,Pilot,5,0) -> F | S172: Junior v roce 2019
A173: Richard Vlcek | B173: =VLOOKUP(A173,Pilot,2,0) -> 1993 | C173: =VLOOKUP(A173,Pilot,3,0) -> Kunovice | D173: =VLOOKUP(A173,Pilot,4,0) -> CZ/M | E173: PMČR 2016 - Klub | F173: CZ | G173: 39 | H173: 2651 | I173: 4331 | J173: 1.09 | K173: 4751 | L173: 5179 | M173: 2016 | P173: Std. Cirrus | Q173: WO | R173: =VLOOKUP(A173,Pilot,5,0) -> M
A174: Frantisek Filandr | B174: =VLOOKUP(A174,Pilot,2,0) -> 1956 | C174: =VLOOKUP(A174,Pilot,3,0) -> Most | D174: =VLOOKUP(A174,Pilot,4,0) -> CZ/C2 | E174: PMČR 2016 - Klub | F174: CZ | G174: 40 | H174: 2618 | I174: 4331 | J174: 1.09 | K174: 4631 | L174: 5048 | M174: 2016 | P174: Std. Cirrus | Q174: FF | R174: =VLOOKUP(A174,Pilot,5,0) -> M
A175: Christophe Cousseau | C175: FAFP | D175: FR | E175: PMČR 2016 - Klub | F175: CZ | G175: 41 | H175: 2277 | I175: 4331 | J175: 1.09 | K175: 4014 | L175: 4375 | M175: 2016 | P175: H 206 Hornet | Q175: H1 | R175: M | S175: Není v databázi
A176: Ionut Tanana | C176: Romania | D176: RU | E176: PMČR 2016 - Klub | F176: CZ | G176: 42 | H176: 2272 | I176: 4331 | J176: 1.09 | K176: 3939 | L176: 4294 | M176: 2016 | P176: SZD-48 Jantar Std.2 | Q176: YC | R176: M | S176: Není v databázi
A177: Antoine Havet | C177: Centre de Planeurs du Senonais | D177: FR | E177: PMČR 2016 - Klub | F177: CZ | G177: 43 | H177: 2084 | I177: 4331 | J177: 1.09 | K177: 3568 | L177: 3889 | M177: 2016 | P177: Std. Cirrus | Q177: C12 | R177: M | S177: Není v databázi
A178: Octavian Mihalcea | C178: Romanian | D178: RU | E178: PMČR 2016 - Klub | F178: CZ | G178: 44 | H178: 2054 | I178: 4331 | J178: 1.09 | K178: 3453 | L178: 3764 | M178: 2016 | P178: SZD-48 Jantar Std.2 | Q178: YD | R178: M | S178: Není v databázi
A179: Eduard Svoboda | B179: =VLOOKUP(A179,Pilot,2,0) -> 1957 | C179: =VLOOKUP(A179,Pilot,3,0) -> Raná | D179: =VLOOKUP(A179,Pilot,4,0) -> CZ/C2 | E179: PMČR 2016 - Klub | F179: CZ | G179: 45 | H179: 1131 | I179: 4331 | J179: 1.09 | K179: =ROUND(H179/I179*10000*0.7+(MAX($G$135:$G$180)-G179)/(MAX($G$135:$G$180)-1)*10000*0.3,0) -> 1895 | L179: =ROUND(J179*K179,0) -> 2066 | M179: 2016 | P179: ASW-15B | Q179: HL | R179: =VLOOKUP(A179,Pilot,5,0) -> M
A180: Petr Lonsky | B180: =VLOOKUP(A180,Pilot,2,0) -> 1965 | C180: =VLOOKUP(A180,Pilot,3,0) -> Toužim | D180: =VLOOKUP(A180,Pilot,4,0) -> CZ/C1 | E180: PMČR 2016 - Klub | F180: CZ | G180: 46 | H180: 0 | I180: 4331 | J180: 1.09 | K180: =ROUND(H180/I180*10000*0.7+(MAX($G$135:$G$180)-G180)/(MAX($G$135:$G$180)-1)*10000*0.3,0) -> 0 | L180: 0 | M180: 2016 | P180: LS 1d | Q180: CL | R180: =VLOOKUP(A180,Pilot,5,0) -> M
A181: Roman Mracek | B181: =VLOOKUP(A181,Pilot,2,0) -> 1980 | C181: =VLOOKUP(A181,Pilot,3,0) -> Letkov | D181: =VLOOKUP(A181,Pilot,4,0) -> CZ/C1 | E181: PMČR 2016 - Kombi Open | F181: CZ | G181: 1 | H181: 4346 | I181: 4346 | J181: 1.06 | K181: =ROUND(H181/I181*10000*0.7+(MAX($G$181:$G$203)-G181)/(MAX($G$181:$G$203)-1)*10000*0.3,0) -> 10000 | L181: =ROUND(J181*K181,0) -> 10600 | M181: 2016 | N181: x | P181: ASG-29E 18m 600kg | Q181: QX | R181: =VLOOKUP(A181,Pilot,5,0) -> M
A182: Petr Krejcirik | B182: =VLOOKUP(A182,Pilot,2,0) -> 1960 | C182: =VLOOKUP(A182,Pilot,3,0) -> Hranice | D182: =VLOOKUP(A182,Pilot,4,0) -> CZ/M | E182: PMČR 2016 - Kombi Open | F182: CZ | G182: 2 | H182: 4001 | I182: 4346 | J182: 1.06 | K182: =ROUND(H182/I182*10000*0.7+(MAX($G$181:$G$203)-G182)/(MAX($G$181:$G$203)-1)*10000*0.3,0) -> 9308 | L182: =ROUND(J182*K182,0) -> 9866 | M182: 2016 | N182: x | P182: ASW-22 BLE 27m 850kg | Q182: RX | R182: =VLOOKUP(A182,Pilot,5,0) -> M
A183: Martin Hrivna | B183: =VLOOKUP(A183,Pilot,2,0) -> 1978 | C183: =VLOOKUP(A183,Pilot,3,0) -> Zbraslavice | D183: =VLOOKUP(A183,Pilot,4,0) -> CZ/C1 | E183: PMČR 2016 - Kombi Open | F183: CZ | G183: 3 | H183: 3927 | I183: 4346 | J183: 1.06 | K183: 9052 | L183: 9595 | M183: 2016 | N183: x | P183: ASG-29E 18m 600kg | Q183: NX | R183: =VLOOKUP(A183,Pilot,5,0) -> M
A184: Lucas Delobel | C184: Pole France | D184: FR | E184: PMČR 2016 - Kombi Open | F184: CZ | G184: 4 | H184: 3717 | I184: 4346 | J184: 1.06 | K184: 8578 | L184: 9093 | M184: 2016 | P184: JS-1C EVO 18m | Q184: FC | R184: M | S184: Není v databázi
A185: Danes Grula | B185: =VLOOKUP(A185,Pilot,2,0) -> 1961 | C185: =VLOOKUP(A185,Pilot,3,0) -> Medlánky | D185: =VLOOKUP(A185,Pilot,4,0) -> CZ/M | E185: PMČR 2016 - Kombi Open | F185: CZ | G185: 5 | H185: 3648 | I185: 4346 | J185: 1.06 | K185: 8330 | L185: 8830 | M185: 2016 | N185: x | P185: ASG-29 18m 600kg | Q185: DX | R185: =VLOOKUP(A185,Pilot,5,0) -> M
A186: Eric Napoleon | C186: Fédération Française de Vol à Voile | D186: FR | E186: PMČR 2016 - Kombi Open | F186: CZ | G186: 6 | H186: 3638 | I186: 4346 | J186: 1.06 | K186: 8178 | L186: 8669 | M186: 2016 | P186: Arcus S | Q186: FP | R186: M | S186: =IF(ISERROR(VLOOKUP(A186,Pilot,6,0)),"Není v databázi",VLOOKUP(A186,Pilot,6,0)) -> Není v databázi
A187: Anne Ducarouge | C187: Nogaro | D187: FR | E187: PMČR 2016 - Kombi Open | F187: CZ | G187: 7 | H187: 3505 | I187: 4346 | J187: 1.06 | K187: 7827 | L187: 8297 | M187: 2016 | P187: ASG-29 18m | Q187: FB | R187: F | S187: Není v databázi
A188: Norbert Sommer | D188: DE | E188: PMČR 2016 - Kombi Open | F188: CZ | G188: 8 | H188: 3494 | I188: 4346 | J188: 1.06 | K188: 7673 | L188: 8133 | M188: 2016 | P188: Ventus 2cxt 18m 600kg | Q188: 7L | R188: M | S188: Není v databázi
A189: Jana Treslova | B189: =VLOOKUP(A189,Pilot,2,0) -> 1963 | C189: =VLOOKUP(A189,Pilot,3,0) -> Raná | D189: =VLOOKUP(A189,Pilot,4,0) -> CZ/C2 | E189: PMČR 2016 - Kombi Open | F189: CZ | G189: 9 | H189: 3462 | I189: 4346 | J189: 1.06 | K189: 7485 | L189: 7934 | M189: 2016 | N189: x | O189: x | P189: ASG-29 18m 600kg | Q189: QZ | R189: =VLOOKUP(A189,Pilot,5,0) -> F
A190: Takeshi Maruyama | C190: Japan Soaring Club | D190: JP | E190: PMČR 2016 - Kombi Open | F190: CZ | G190: 10 | H190: 3435 | I190: 4346 | J190: 1.06 | K190: 7305 | L190: 7743 | M190: 2016 | P190: ASG-29E 18m 600kg | Q190: RI | R190: M | S190: Není v databázi
A191: Jiri Steiger | B191: =VLOOKUP(A191,Pilot,2,0) -> 1969 | C191: =VLOOKUP(A191,Pilot,3,0) -> Olomouc | D191: =VLOOKUP(A191,Pilot,4,0) -> CZ/M | E191: PMČR 2016 - Kombi Open | F191: CZ | G191: 11 | H191: 3221 | I191: 4346 | J191: 1.06 | K191: 6824 | L191: 7233 | M191: 2016 | N191: x | P191: Ventus 2cxt 18m 600kg | Q191: JS | R191: =VLOOKUP(A191,Pilot,5,0) -> M
A192: Jiri Stepanek | B192: =VLOOKUP(A192,Pilot,2,0) -> 1956 | C192: =VLOOKUP(A192,Pilot,3,0) -> Moravská Třebová | D192: =VLOOKUP(A192,Pilot,4,0) -> CZ/M | E192: PMČR 2016 - Kombi Open | F192: CZ | G192: 12 | H192: 3156 | I192: 4346 | J192: 1.06 | K192: 6583 | L192: 6978 | M192: 2016 | N192: x | P192: Nimbus 2b | Q192: MT | R192: =VLOOKUP(A192,Pilot,5,0) -> M
A193: Thomas Viehmann | C193: LSV Henschel Flugzeug Werke | D193: DE | E193: PMČR 2016 - Kombi Open | F193: CZ | G193: 13 | H193: 3084 | I193: 4346 | J193: 1.06 | K193: 6331 | L193: 6711 | M193: 2016 | P193: Arcus T | Q193: HLB | R193: M | S193: Není v databázi
A194: Jan Boruvka | B194: =VLOOKUP(A194,Pilot,2,0) -> 1984 | C194: =VLOOKUP(A194,Pilot,3,0) -> Jičín | D194: =VLOOKUP(A194,Pilot,4,0) -> CZ/C2 | E194: PMČR 2016 - Kombi Open | F194: CZ | G194: 14 | H194: 2891 | I194: 4346 | J194: 1.06 | K194: 5884 | L194: 6237 | M194: 2016 | P194: Ventus c 17,6m | Q194: EG | R194: =VLOOKUP(A194,Pilot,5,0) -> M
A195: Petr Hotovy | B195: 1958 | C195: Česká Lípa | D195: CZ/C2 | E195: PMČR 2016 - Kombi Open | F195: CZ | G195: 15 | H195: 2810 | I195: 4346 | J195: 1.06 | K195: 5617 | L195: 5954 | M195: 2016 | P195: HpH 304M Shark 18m | Q195: MH | R195: M
A196: Karel Mares | B196: 1974 | C196: Slaný | D196: CZ/C1 | E196: PMČR 2016 - Kombi Open | F196: CZ | G196: 16 | H196: 2771 | I196: 4346 | J196: 1.06 | K196: 5418 | L196: 5743 | M196: 2016 | P196: LAK 17 AT 18m | Q196: YF | R196: M
A197: Alena Netusilova | B197: 1970 | C197: Zbraslavice | D197: CZ/C1 | E197: PMČR 2016 - Kombi Open | F197: CZ | G197: 17 | H197: 1880 | I197: 4346 | J197: 1.06 | K197: 3846 | L197: 4077 | M197: 2016 | P197: JS-1CTJ 21m | Q197: JX | R197: F
A198: Petr Starek | B198: 1974 | C198: Zbraslavice | D198: CZ/C1 | E198: PMČR 2016 - Kombi Open | F198: CZ | G198: 18 | H198: 1877 | I198: 4346 | J198: 1.06 | K198: =ROUND(H198/I198*10000*0.7+(MAX($G$181:$G$203)-G198)/(MAX($G$181:$G$203)-1)*10000*0.3,0) -> 3705 | L198: 3927 | M198: 2016 | N198: x | P198: HpH 304SJ 18m 573kg | Q198: 66 | R198: M
A199: Jan Kantor | B199: 1983 | C199: Letňany | D199: CZ/C1 | E199: PMČR 2016 - Kombi Open | F199: CZ | G199: 19 | H199: 1567 | I199: 4346 | J199: 1.06 | K199: 3069 | L199: 3253 | M199: 2016 | N199: x | P199: Ventus c 17,6m | Q199: UC | R199: M
A200: Petr Tichy | B200: 1973 | C200: Zbraslavice | D200: CZ/C1 | E200: PMČR 2016 - Kombi Open | F200: CZ | G200: 20 | H200: 1487 | I200: 4346 | J200: 1.06 | K200: 2804 | L200: 2972 | M200: 2016 | P200: ASG-29E 18m 600kg | Q200: AJ | R200: M
... 3379 more rows

Sheet Temp
A1: Jméno | B1: Rok narození | C1: Aeroklub | D1: Region | E1: Soutěž | F1: Stát | G1: Pořadí ve třídě | H1: Body ve třídě | I1: Max. B ve třídě | J1: Ki | K1: Bi | L1: Bi×Ki | M1: Rok | N1: G | O1: W | P1: Typ | Q1: CN | R1: M/F | S1: Junior | T1: Poznámka

Sheet Zebrik G
B1: ="Všeobecný Žebřík pilotů plachtařů PK AeČR "&A6 -> Všeobecný Žebřík pilotů plachtařů PK AeČR 2018 | G1: =Zmeny!A4 -> 2018-10-28 | H1: Rev. | I1: =Zmeny!B4 -> 01 | J1: =Zmeny!C4 -> Upravené koeficienty soutěží
B3: G | C3: x | I3: Junior v roce: | J3: Junior v roce: | K3: ="Repre družstvo "&I4 -> Repre družstvo 2019 | L3: ="Repre výběr "&I4 -> Repre výběr 2019 | M3: ="W "&L3 -> W Repre výběr 2019 | N3: Poznámka
I4: =A6+1 -> 2019 | J4: =A6+2 -> 2020 | K4: (RD) | L4: (RV) | M4: (WRV)
A5: Pořadí | G5: Data | I5: =COUNTIF(I7:I1000,"Junior v roce "&$I$4) -> 39 | J5: =COUNTIF(J7:J1000,"Junior v roce "&$J$4) -> 30 | K5: =COUNTIF(K7:K1000,"RD "&$I$4) -> 26 | L5: =COUNTIF(L7:L1000,"RV "&$I$4) -> 31 | M5: =COUNTIF(M7:M1000,"RV "&$I$4) -> 0 | N5: =COUNTIF(N7:N1000,"<>") -> 0
A6: 2018 | B6: Jméno | C6: Rok narození | D6: Aeroklub | E6: Region | F6: M/F | G6: Počet G | H6: Součet z Bi×Kn
A7: =RANK(H7,H:H) -> 1 | B7: Miloslav Cink | C7: 1987 | D7: Letkov | E7: CZ/C1 | F7: M | G7: 3 | H7: 31559 | I7: =IF(C7="(prázdné)","",IF(($I$4-C7)>25,"","Junior v roce "&$I$4)) ->  | J7: =IF(C7="(prázdné)","",IF(($J$4-C7)>25,"","Junior v roce "&$J$4)) ->  | K7: RD 2019 | L7: RV 2019 | M7: =IF(ISERROR(VLOOKUP(B7,'Zebrik W'!$B$7:$L$1002,11,0)),"",IF(VLOOKUP(B7,'Zebrik W'!$B$7:$L$1002,11,0)=0,"--",VLOOKUP(B7,'Zebrik W'!$B$7:$L$1002,11,0))) -> 
A8: =RANK(H8,H:H) -> 2 | B8: Jaroslav Tomana | C8: 1975 | D8: Zbraslavice | E8: CZ/C1 | F8: M | G8: 3 | H8: 31458 | I8: =IF(C8="(prázdné)","",IF(($I$4-C8)>25,"","Junior v roce "&$I$4)) ->  | J8: =IF(C8="(prázdné)","",IF(($J$4-C8)>25,"","Junior v roce "&$J$4)) ->  | K8: RD 2019 | L8: RV 2019 | M8: =IF(ISERROR(VLOOKUP(B8,'Zebrik W'!$B$7:$L$1002,11,0)),"",IF(VLOOKUP(B8,'Zebrik W'!$B$7:$L$1002,11,0)=0,"--",VLOOKUP(B8,'Zebrik W'!$B$7:$L$1002,11,0))) -> 
A9: 3 | B9: Pavel Louzecky | C9: 1957 | D9: Přibyslav | E9: CZ/C2 | F9: M | G9: 3 | H9: 31225 | K9: RD 2019 | L9: RV 2019 | M9: =IF(ISERROR(VLOOKUP(B9,'Zebrik W'!$B$7:$L$1002,11,0)),"",IF(VLOOKUP(B9,'Zebrik W'!$B$7:$L$1002,11,0)=0,"--",VLOOKUP(B9,'Zebrik W'!$B$7:$L$1002,11,0))) -> 
A10: 4 | B10: Roman Mracek | C10: 1980 | D10: Letkov | E10: CZ/C1 | F10: M | G10: 3 | H10: 31125 | K10: RD 2019 | L10: RV 2019 | M10: =IF(ISERROR(VLOOKUP(B10,'Zebrik W'!$B$7:$L$1002,11,0)),"",IF(VLOOKUP(B10,'Zebrik W'!$B$7:$L$1002,11,0)=0,"--",VLOOKUP(B10,'Zebrik W'!$B$7:$L$1002,11,0))) -> 
A11: 5 | B11: Tomas Suchanek | C11: 1964 | D11: GAC Benešov | E11: CZ/C1 | F11: M | G11: 3 | H11: 30918 | K11: RD 2019 | L11: RV 2019 | M11: =IF(ISERROR(VLOOKUP(B11,'Zebrik W'!$B$7:$L$1002,11,0)),"",IF(VLOOKUP(B11,'Zebrik W'!$B$7:$L$1002,11,0)=0,"--",VLOOKUP(B11,'Zebrik W'!$B$7:$L$1002,11,0))) -> 
A12: 6 | B12: Ivan Novak | C12: 1962 | D12: Mladá Boleslav | E12: CZ/C1 | F12: M | G12: 3 | H12: 30913 | K12: RD 2019 | L12: RV 2019 | M12: =IF(ISERROR(VLOOKUP(B12,'Zebrik W'!$B$7:$L$1002,11,0)),"",IF(VLOOKUP(B12,'Zebrik W'!$B$7:$L$1002,11,0)=0,"--",VLOOKUP(B12,'Zebrik W'!$B$7:$L$1002,11,0))) -> 
A13: 7 | B13: Petr Tichy | C13: 1973 | D13: Zbraslavice | E13: CZ/C1 | F13: M | G13: 3 | H13: 30460 | K13: RD 2019 | L13: RV 2019 | M13: =IF(ISERROR(VLOOKUP(B13,'Zebrik W'!$B$7:$L$1002,11,0)),"",IF(VLOOKUP(B13,'Zebrik W'!$B$7:$L$1002,11,0)=0,"--",VLOOKUP(B13,'Zebrik W'!$B$7:$L$1002,11,0))) -> 
A14: 8 | B14: Marek Pechanec | C14: 1970 | D14: Luhačovice | E14: CZ/M | F14: M | G14: 3 | H14: 29812 | K14: RD 2019 | L14: RV 2019 | M14: =IF(ISERROR(VLOOKUP(B14,'Zebrik W'!$B$7:$L$1002,11,0)),"",IF(VLOOKUP(B14,'Zebrik W'!$B$7:$L$1002,11,0)=0,"--",VLOOKUP(B14,'Zebrik W'!$B$7:$L$1002,11,0))) -> 
A15: 9 | B15: David Mach | C15: 1994 | D15: Hronov | E15: CZ/C2 | F15: M | G15: 3 | H15: 29785 | I15: Junior v roce 2019 | K15: RD 2019 | L15: RV 2019 | M15: =IF(ISERROR(VLOOKUP(B15,'Zebrik W'!$B$7:$L$1002,11,0)),"",IF(VLOOKUP(B15,'Zebrik W'!$B$7:$L$1002,11,0)=0,"--",VLOOKUP(B15,'Zebrik W'!$B$7:$L$1002,11,0))) -> 
A16: 10 | B16: Jan Louda | C16: 1986 | D16: Mladá Boleslav | E16: CZ/C1 | F16: M | G16: 3 | H16: 29285 | L16: RV 2019 | M16: =IF(ISERROR(VLOOKUP(B16,'Zebrik W'!$B$7:$L$1002,11,0)),"",IF(VLOOKUP(B16,'Zebrik W'!$B$7:$L$1002,11,0)=0,"--",VLOOKUP(B16,'Zebrik W'!$B$7:$L$1002,11,0))) -> 
A17: 11 | B17: Michal Lesinger | C17: 1966 | D17: Moravská Třebová | E17: CZ/M | F17: M | G17: 3 | H17: 29140 | K17: RD 2019 | L17: RV 2019 | M17: =IF(ISERROR(VLOOKUP(B17,'Zebrik W'!$B$7:$L$1002,11,0)),"",IF(VLOOKUP(B17,'Zebrik W'!$B$7:$L$1002,11,0)=0,"--",VLOOKUP(B17,'Zebrik W'!$B$7:$L$1002,11,0))) -> 
A18: 12 | B18: Radek Krejcirik | C18: 1991 | D18: Hranice | E18: CZ/M | F18: M | G18: 3 | H18: 28916 | K18: RD 2019 | L18: RV 2019 | M18: =IF(ISERROR(VLOOKUP(B18,'Zebrik W'!$B$7:$L$1002,11,0)),"",IF(VLOOKUP(B18,'Zebrik W'!$B$7:$L$1002,11,0)=0,"--",VLOOKUP(B18,'Zebrik W'!$B$7:$L$1002,11,0))) -> 
A19: 13 | B19: Petr Krejcirik | C19: 1960 | D19: Hranice | E19: CZ/M | F19: M | G19: 3 | H19: 28573 | K19: RD 2019 | L19: RV 2019 | M19: =IF(ISERROR(VLOOKUP(B19,'Zebrik W'!$B$7:$L$1002,11,0)),"",IF(VLOOKUP(B19,'Zebrik W'!$B$7:$L$1002,11,0)=0,"--",VLOOKUP(B19,'Zebrik W'!$B$7:$L$1002,11,0))) -> 
A20: 14 | B20: Karel Novak | C20: 1993 | D20: Mladá Boleslav | E20: CZ/C1 | F20: M | G20: 3 | H20: 28253 | L20: RV 2019 | M20: =IF(ISERROR(VLOOKUP(B20,'Zebrik W'!$B$7:$L$1002,11,0)),"",IF(VLOOKUP(B20,'Zebrik W'!$B$7:$L$1002,11,0)=0,"--",VLOOKUP(B20,'Zebrik W'!$B$7:$L$1002,11,0))) -> 
A21: 15 | B21: Ondrej Bordovsky | C21: 1983 | D21: Krnov | E21: CZ/M | F21: M | G21: 3 | H21: 27938 | K21: RD 2019 | L21: RV 2019 | M21: =IF(ISERROR(VLOOKUP(B21,'Zebrik W'!$B$7:$L$1002,11,0)),"",IF(VLOOKUP(B21,'Zebrik W'!$B$7:$L$1002,11,0)=0,"--",VLOOKUP(B21,'Zebrik W'!$B$7:$L$1002,11,0))) -> 
A22: 16 | B22: Zdenek Boruvka 86 | C22: 1986 | D22: Jičín | E22: CZ/C2 | F22: M | G22: 3 | H22: 27911 | L22: RV 2019 | M22: =IF(ISERROR(VLOOKUP(B22,'Zebrik W'!$B$7:$L$1002,11,0)),"",IF(VLOOKUP(B22,'Zebrik W'!$B$7:$L$1002,11,0)=0,"--",VLOOKUP(B22,'Zebrik W'!$B$7:$L$1002,11,0))) -> 
A23: 17 | B23: Lubomir Motl | C23: 1959 | D23: Kyjov | E23: CZ/M | F23: M | G23: 3 | H23: 27795 | L23: RV 2019 | M23: =IF(ISERROR(VLOOKUP(B23,'Zebrik W'!$B$7:$L$1002,11,0)),"",IF(VLOOKUP(B23,'Zebrik W'!$B$7:$L$1002,11,0)=0,"--",VLOOKUP(B23,'Zebrik W'!$B$7:$L$1002,11,0))) -> 
A24: 18 | B24: Jana Veprekova | C24: 1961 | D24: Dvůr Králové | E24: CZ/C2 | F24: F | G24: 3 | H24: 27591 | K24: RD 2019 | L24: RV 2019 | M24: =IF(ISERROR(VLOOKUP(B24,'Zebrik W'!$B$7:$L$1002,11,0)),"",IF(VLOOKUP(B24,'Zebrik W'!$B$7:$L$1002,11,0)=0,"--",VLOOKUP(B24,'Zebrik W'!$B$7:$L$1002,11,0))) -> WRV 2019
A25: 19 | B25: Daniel Ryba | C25: 1994 | D25: Dvůr Králové | E25: CZ/C2 | F25: M | G25: 3 | H25: 27256 | I25: Junior v roce 2019 | K25: RD 2019 | L25: RV 2019 | M25: =IF(ISERROR(VLOOKUP(B25,'Zebrik W'!$B$7:$L$1002,11,0)),"",IF(VLOOKUP(B25,'Zebrik W'!$B$7:$L$1002,11,0)=0,"--",VLOOKUP(B25,'Zebrik W'!$B$7:$L$1002,11,0))) -> 
A26: 20 | B26: Petr Koutny | C26: 1971 | D26: Křižanov | E26: CZ/M | F26: M | G26: 3 | H26: 27204 | L26: RV 2019 | M26: =IF(ISERROR(VLOOKUP(B26,'Zebrik W'!$B$7:$L$1002,11,0)),"",IF(VLOOKUP(B26,'Zebrik W'!$B$7:$L$1002,11,0)=0,"--",VLOOKUP(B26,'Zebrik W'!$B$7:$L$1002,11,0))) -> 
A27: 21 | B27: Jan Pavlik | C27: 1987 | D27: Křižanov | E27: CZ/M | F27: M | G27: 3 | H27: 27158 | M27: =IF(ISERROR(VLOOKUP(B27,'Zebrik W'!$B$7:$L$1002,11,0)),"",IF(VLOOKUP(B27,'Zebrik W'!$B$7:$L$1002,11,0)=0,"--",VLOOKUP(B27,'Zebrik W'!$B$7:$L$1002,11,0))) -> 
A28: 22 | B28: Dana Novakova | C28: 1965 | D28: Mladá Boleslav | E28: CZ/C1 | F28: F | G28: 3 | H28: 27005 | K28: RD 2019 | L28: RV 2019 | M28: =IF(ISERROR(VLOOKUP(B28,'Zebrik W'!$B$7:$L$1002,11,0)),"",IF(VLOOKUP(B28,'Zebrik W'!$B$7:$L$1002,11,0)=0,"--",VLOOKUP(B28,'Zebrik W'!$B$7:$L$1002,11,0))) -> WRV 2019
A29: 23 | B29: Danes Grula | C29: 1961 | D29: Medlánky | E29: CZ/M | F29: M | G29: 3 | H29: 26973 | M29: =IF(ISERROR(VLOOKUP(B29,'Zebrik W'!$B$7:$L$1002,11,0)),"",IF(VLOOKUP(B29,'Zebrik W'!$B$7:$L$1002,11,0)=0,"--",VLOOKUP(B29,'Zebrik W'!$B$7:$L$1002,11,0))) -> 
A30: 24 | B30: Petr Panek | C30: 1975 | D30: Dvůr Králové | E30: CZ/C2 | F30: M | G30: 3 | H30: 26535 | M30: =IF(ISERROR(VLOOKUP(B30,'Zebrik W'!$B$7:$L$1002,11,0)),"",IF(VLOOKUP(B30,'Zebrik W'!$B$7:$L$1002,11,0)=0,"--",VLOOKUP(B30,'Zebrik W'!$B$7:$L$1002,11,0))) -> 
A31: 25 | B31: Hana Treslova | C31: 1991 | D31: Raná | E31: CZ/C2 | F31: F | G31: 3 | H31: 26439 | K31: RD 2019 | L31: RV 2019 | M31: =IF(ISERROR(VLOOKUP(B31,'Zebrik W'!$B$7:$L$1002,11,0)),"",IF(VLOOKUP(B31,'Zebrik W'!$B$7:$L$1002,11,0)=0,"--",VLOOKUP(B31,'Zebrik W'!$B$7:$L$1002,11,0))) -> WRV 2019
A32: 26 | B32: Jan Viskot | C32: 1995 | D32: Břeclav | E32: CZ/M | F32: M | G32: 3 | H32: 26305 | I32: Junior v roce 2019 | J32: Junior v roce 2020 | K32: RD 2019 | L32: RV 2019 | M32: =IF(ISERROR(VLOOKUP(B32,'Zebrik W'!$B$7:$L$1002,11,0)),"",IF(VLOOKUP(B32,'Zebrik W'!$B$7:$L$1002,11,0)=0,"--",VLOOKUP(B32,'Zebrik W'!$B$7:$L$1002,11,0))) -> 
A33: 27 | B33: Klara Teichmannova | C33: 1993 | D33: Hronov | E33: CZ/C2 | F33: F | G33: 3 | H33: 26283 | K33: RD 2019 | L33: RV 2019 | M33: =IF(ISERROR(VLOOKUP(B33,'Zebrik W'!$B$7:$L$1002,11,0)),"",IF(VLOOKUP(B33,'Zebrik W'!$B$7:$L$1002,11,0)=0,"--",VLOOKUP(B33,'Zebrik W'!$B$7:$L$1002,11,0))) -> WRV 2019
A34: 28 | B34: Pavel Trybenekr | C34: 1990 | D34: Hořice | E34: CZ/C2 | F34: M | G34: 3 | H34: 26097 | M34: =IF(ISERROR(VLOOKUP(B34,'Zebrik W'!$B$7:$L$1002,11,0)),"",IF(VLOOKUP(B34,'Zebrik W'!$B$7:$L$1002,11,0)=0,"--",VLOOKUP(B34,'Zebrik W'!$B$7:$L$1002,11,0))) -> 
A35: 29 | B35: Jan Boruvka | C35: 1984 | D35: Jičín | E35: CZ/C2 | F35: M | G35: 3 | H35: 25802 | M35: =IF(ISERROR(VLOOKUP(B35,'Zebrik W'!$B$7:$L$1002,11,0)),"",IF(VLOOKUP(B35,'Zebrik W'!$B$7:$L$1002,11,0)=0,"--",VLOOKUP(B35,'Zebrik W'!$B$7:$L$1002,11,0))) -> 
A36: 30 | B36: Alena Netusilova | C36: 1970 | D36: Zbraslavice | E36: CZ/C1 | F36: F | G36: 3 | H36: 25743 | K36: RD 2019 | L36: RV 2019 | M36: =IF(ISERROR(VLOOKUP(B36,'Zebrik W'!$B$7:$L$1002,11,0)),"",IF(VLOOKUP(B36,'Zebrik W'!$B$7:$L$1002,11,0)=0,"--",VLOOKUP(B36,'Zebrik W'!$B$7:$L$1002,11,0))) -> WRV 2019
A37: 31 | B37: Jaromir Macoun | C37: 1999 | D37: Jičín | E37: CZ/C2 | F37: M | G37: 3 | H37: 25717 | I37: Junior v roce 2019 | J37: Junior v roce 2020 | K37: RD 2019 | L37: RV 2019 | M37: =IF(ISERROR(VLOOKUP(B37,'Zebrik W'!$B$7:$L$1002,11,0)),"",IF(VLOOKUP(B37,'Zebrik W'!$B$7:$L$1002,11,0)=0,"--",VLOOKUP(B37,'Zebrik W'!$B$7:$L$1002,11,0))) -> 
A38: 32 | B38: Richard Vlcek | C38: 1993 | D38: Kunovice | E38: CZ/M | F38: M | G38: 3 | H38: 25588 | M38: =IF(ISERROR(VLOOKUP(B38,'Zebrik W'!$B$7:$L$1002,11,0)),"",IF(VLOOKUP(B38,'Zebrik W'!$B$7:$L$1002,11,0)=0,"--",VLOOKUP(B38,'Zebrik W'!$B$7:$L$1002,11,0))) -> 
A39: 33 | B39: Jan Zapletal | C39: 1997 | D39: Kroměříž | E39: CZ/M | F39: M | G39: 3 | H39: 25457 | I39: Junior v roce 2019 | J39: Junior v roce 2020 | K39: RD 2019 | L39: RV 2019 | M39: =IF(ISERROR(VLOOKUP(B39,'Zebrik W'!$B$7:$L$1002,11,0)),"",IF(VLOOKUP(B39,'Zebrik W'!$B$7:$L$1002,11,0)=0,"--",VLOOKUP(B39,'Zebrik W'!$B$7:$L$1002,11,0))) -> 
A40: 34 | B40: Ivan Harasta 65 | C40: 1965 | D40: Toužim | E40: CZ/C1 | F40: M | G40: 3 | H40: 25356 | M40: =IF(ISERROR(VLOOKUP(B40,'Zebrik W'!$B$7:$L$1002,11,0)),"",IF(VLOOKUP(B40,'Zebrik W'!$B$7:$L$1002,11,0)=0,"--",VLOOKUP(B40,'Zebrik W'!$B$7:$L$1002,11,0))) -> 
A41: 35 | B41: Karel Mares | C41: 1974 | D41: Slaný | E41: CZ/C1 | F41: M | G41: 3 | H41: 25313 | M41: =IF(ISERROR(VLOOKUP(B41,'Zebrik W'!$B$7:$L$1002,11,0)),"",IF(VLOOKUP(B41,'Zebrik W'!$B$7:$L$1002,11,0)=0,"--",VLOOKUP(B41,'Zebrik W'!$B$7:$L$1002,11,0))) -> 
A42: 36 | B42: Vaclav Marel | C42: 1974 | D42: Jaroměř | E42: CZ/C2 | F42: M | G42: 3 | H42: 25255 | M42: =IF(ISERROR(VLOOKUP(B42,'Zebrik W'!$B$7:$L$1002,11,0)),"",IF(VLOOKUP(B42,'Zebrik W'!$B$7:$L$1002,11,0)=0,"--",VLOOKUP(B42,'Zebrik W'!$B$7:$L$1002,11,0))) -> 
A43: 37 | B43: Zdenek Balcarek | C43: 1967 | D43: Kroměříž | E43: CZ/M | F43: M | G43: 3 | H43: 24853 | M43: =IF(ISERROR(VLOOKUP(B43,'Zebrik W'!$B$7:$L$1002,11,0)),"",IF(VLOOKUP(B43,'Zebrik W'!$B$7:$L$1002,11,0)=0,"--",VLOOKUP(B43,'Zebrik W'!$B$7:$L$1002,11,0))) -> 
A44: 38 | B44: Marek Svancara | C44: 1976 | D44: GAC Benešov | E44: CZ/C1 | F44: M | G44: 3 | H44: 24761 | M44: =IF(ISERROR(VLOOKUP(B44,'Zebrik W'!$B$7:$L$1002,11,0)),"",IF(VLOOKUP(B44,'Zebrik W'!$B$7:$L$1002,11,0)=0,"--",VLOOKUP(B44,'Zebrik W'!$B$7:$L$1002,11,0))) -> 
A45: 39 | B45: Barbora Moravcova | C45: 1994 | D45: Zbraslavice | E45: CZ/C1 | F45: F | G45: 3 | H45: 24573 | I45: Junior v roce 2019 | K45: RD 2019 | L45: RV 2019 | M45: =IF(ISERROR(VLOOKUP(B45,'Zebrik W'!$B$7:$L$1002,11,0)),"",IF(VLOOKUP(B45,'Zebrik W'!$B$7:$L$1002,11,0)=0,"--",VLOOKUP(B45,'Zebrik W'!$B$7:$L$1002,11,0))) -> WRV 2019
A46: 40 | B46: Martin Hrivna | C46: 1978 | D46: Zbraslavice | E46: CZ/C1 | F46: M | G46: 3 | H46: 24531 | M46: =IF(ISERROR(VLOOKUP(B46,'Zebrik W'!$B$7:$L$1002,11,0)),"",IF(VLOOKUP(B46,'Zebrik W'!$B$7:$L$1002,11,0)=0,"--",VLOOKUP(B46,'Zebrik W'!$B$7:$L$1002,11,0))) -> 
A47: 41 | B47: Jiri Kusbach | C47: 1959 | D47: Luhačovice | E47: CZ/M | F47: M | G47: 3 | H47: 24473 | M47: =IF(ISERROR(VLOOKUP(B47,'Zebrik W'!$B$7:$L$1002,11,0)),"",IF(VLOOKUP(B47,'Zebrik W'!$B$7:$L$1002,11,0)=0,"--",VLOOKUP(B47,'Zebrik W'!$B$7:$L$1002,11,0))) -> 
A48: 42 | B48: Petr Hotovy | C48: 1958 | D48: Česká Lípa | E48: CZ/C2 | F48: M | G48: 3 | H48: 24392 | M48: =IF(ISERROR(VLOOKUP(B48,'Zebrik W'!$B$7:$L$1002,11,0)),"",IF(VLOOKUP(B48,'Zebrik W'!$B$7:$L$1002,11,0)=0,"--",VLOOKUP(B48,'Zebrik W'!$B$7:$L$1002,11,0))) -> 
A49: 43 | B49: Jan Horak | C49: 1971 | D49: Zbraslavice | E49: CZ/C1 | F49: M | G49: 3 | H49: 24337 | M49: =IF(ISERROR(VLOOKUP(B49,'Zebrik W'!$B$7:$L$1002,11,0)),"",IF(VLOOKUP(B49,'Zebrik W'!$B$7:$L$1002,11,0)=0,"--",VLOOKUP(B49,'Zebrik W'!$B$7:$L$1002,11,0))) -> 
A50: 44 | B50: Jana Treslova | C50: 1963 | D50: Raná | E50: CZ/C2 | F50: F | G50: 3 | H50: 24325 | K50: RD 2019 | L50: RV 2019 | M50: =IF(ISERROR(VLOOKUP(B50,'Zebrik W'!$B$7:$L$1002,11,0)),"",IF(VLOOKUP(B50,'Zebrik W'!$B$7:$L$1002,11,0)=0,"--",VLOOKUP(B50,'Zebrik W'!$B$7:$L$1002,11,0))) -> WRV 2019
A51: 45 | B51: Lukas Capek | C51: 1992 | D51: Letňany | E51: CZ/C1 | F51: M | G51: 3 | H51: 23499 | M51: =IF(ISERROR(VLOOKUP(B51,'Zebrik W'!$B$7:$L$1002,11,0)),"",IF(VLOOKUP(B51,'Zebrik W'!$B$7:$L$1002,11,0)=0,"--",VLOOKUP(B51,'Zebrik W'!$B$7:$L$1002,11,0))) -> 
A52: 46 | B52: Zdenek Boruvka 54 | C52: 1954 | D52: Jičín | E52: CZ/C2 | F52: M | G52: 3 | H52: 23497 | M52: =IF(ISERROR(VLOOKUP(B52,'Zebrik W'!$B$7:$L$1002,11,0)),"",IF(VLOOKUP(B52,'Zebrik W'!$B$7:$L$1002,11,0)=0,"--",VLOOKUP(B52,'Zebrik W'!$B$7:$L$1002,11,0))) -> 
A53: 47 | B53: Pavel Rericha | C53: 1967 | D53: Moravská Třebová | E53: CZ/M | F53: M | G53: 3 | H53: 23357 | M53: =IF(ISERROR(VLOOKUP(B53,'Zebrik W'!$B$7:$L$1002,11,0)),"",IF(VLOOKUP(B53,'Zebrik W'!$B$7:$L$1002,11,0)=0,"--",VLOOKUP(B53,'Zebrik W'!$B$7:$L$1002,11,0))) -> 
A54: 48 | B54: Lenka Kuthanova | C54: 1960 | D54: LK Břeclav | E54: CZ/M | F54: F | G54: 3 | H54: 23033 | K54: RD 2019 | L54: RV 2019 | M54: =IF(ISERROR(VLOOKUP(B54,'Zebrik W'!$B$7:$L$1002,11,0)),"",IF(VLOOKUP(B54,'Zebrik W'!$B$7:$L$1002,11,0)=0,"--",VLOOKUP(B54,'Zebrik W'!$B$7:$L$1002,11,0))) -> WRV 2019
A55: 49 | B55: Jan Zahradka | C55: 1981 | D55: Hodkovice | E55: CZ/C2 | F55: M | G55: 3 | H55: 22903 | M55: =IF(ISERROR(VLOOKUP(B55,'Zebrik W'!$B$7:$L$1002,11,0)),"",IF(VLOOKUP(B55,'Zebrik W'!$B$7:$L$1002,11,0)=0,"--",VLOOKUP(B55,'Zebrik W'!$B$7:$L$1002,11,0))) -> 
A56: 50 | B56: Jan Vavrin | C56: 1987 | D56: Vysoké Mýto | E56: CZ/C2 | F56: M | G56: 3 | H56: 22874 | M56: =IF(ISERROR(VLOOKUP(B56,'Zebrik W'!$B$7:$L$1002,11,0)),"",IF(VLOOKUP(B56,'Zebrik W'!$B$7:$L$1002,11,0)=0,"--",VLOOKUP(B56,'Zebrik W'!$B$7:$L$1002,11,0))) -> 
A57: 51 | B57: Vojtech Novotny | C57: 1992 | D57: Kralupy | E57: CZ/C1 | F57: M | G57: 3 | H57: 22859 | M57: =IF(ISERROR(VLOOKUP(B57,'Zebrik W'!$B$7:$L$1002,11,0)),"",IF(VLOOKUP(B57,'Zebrik W'!$B$7:$L$1002,11,0)=0,"--",VLOOKUP(B57,'Zebrik W'!$B$7:$L$1002,11,0))) -> 
A58: 52 | B58: Jiri Fousek | C58: 1990 | D58: Raná | E58: CZ/C2 | F58: M | G58: 3 | H58: 22855 | M58: =IF(ISERROR(VLOOKUP(B58,'Zebrik W'!$B$7:$L$1002,11,0)),"",IF(VLOOKUP(B58,'Zebrik W'!$B$7:$L$1002,11,0)=0,"--",VLOOKUP(B58,'Zebrik W'!$B$7:$L$1002,11,0))) -> 
A59: 53 | B59: Ondrej Sindelar | C59: 1979 | D59: Mladá Boleslav | E59: CZ/C1 | F59: M | G59: 3 | H59: 22807 | M59: =IF(ISERROR(VLOOKUP(B59,'Zebrik W'!$B$7:$L$1002,11,0)),"",IF(VLOOKUP(B59,'Zebrik W'!$B$7:$L$1002,11,0)=0,"--",VLOOKUP(B59,'Zebrik W'!$B$7:$L$1002,11,0))) -> 
A60: 54 | B60: Jan Ratz | C60: 1987 | D60: Plasy | E60: CZ/C1 | F60: M | G60: 3 | H60: 22777 | M60: =IF(ISERROR(VLOOKUP(B60,'Zebrik W'!$B$7:$L$1002,11,0)),"",IF(VLOOKUP(B60,'Zebrik W'!$B$7:$L$1002,11,0)=0,"--",VLOOKUP(B60,'Zebrik W'!$B$7:$L$1002,11,0))) -> 
A61: 55 | B61: Michal Krupicka | C61: 1975 | D61: Most | E61: CZ/C2 | F61: M | G61: 3 | H61: 22701 | M61: =IF(ISERROR(VLOOKUP(B61,'Zebrik W'!$B$7:$L$1002,11,0)),"",IF(VLOOKUP(B61,'Zebrik W'!$B$7:$L$1002,11,0)=0,"--",VLOOKUP(B61,'Zebrik W'!$B$7:$L$1002,11,0))) -> 
A62: 56 | B62: Lukas Koukal | C62: 1991 | D62: Letkov | E62: CZ/C1 | F62: M | G62: 3 | H62: 22671 | M62: =IF(ISERROR(VLOOKUP(B62,'Zebrik W'!$B$7:$L$1002,11,0)),"",IF(VLOOKUP(B62,'Zebrik W'!$B$7:$L$1002,11,0)=0,"--",VLOOKUP(B62,'Zebrik W'!$B$7:$L$1002,11,0))) -> 
A63: 57 | B63: Petra Piskata | C63: 1989 | D63: Hranice | E63: CZ/M | F63: F | G63: 3 | H63: 22599 | K63: RD 2019 | L63: RV 2019 | M63: =IF(ISERROR(VLOOKUP(B63,'Zebrik W'!$B$7:$L$1002,11,0)),"",IF(VLOOKUP(B63,'Zebrik W'!$B$7:$L$1002,11,0)=0,"--",VLOOKUP(B63,'Zebrik W'!$B$7:$L$1002,11,0))) -> WRV 2019
A64: 58 | B64: Jiri Stepanek | C64: 1956 | D64: Moravská Třebová | E64: CZ/M | F64: M | G64: 3 | H64: 22540 | M64: =IF(ISERROR(VLOOKUP(B64,'Zebrik W'!$B$7:$L$1002,11,0)),"",IF(VLOOKUP(B64,'Zebrik W'!$B$7:$L$1002,11,0)=0,"--",VLOOKUP(B64,'Zebrik W'!$B$7:$L$1002,11,0))) -> 
A65: 59 | B65: Leos Strnadek | C65: 1983 | D65: Hodkovice | E65: CZ/C2 | F65: M | G65: 3 | H65: 22324 | M65: =IF(ISERROR(VLOOKUP(B65,'Zebrik W'!$B$7:$L$1002,11,0)),"",IF(VLOOKUP(B65,'Zebrik W'!$B$7:$L$1002,11,0)=0,"--",VLOOKUP(B65,'Zebrik W'!$B$7:$L$1002,11,0))) -> 
A66: 60 | B66: Petr Stepanek | C66: 1989 | D66: Moravská Třebová | E66: CZ/M | F66: M | G66: 3 | H66: 22195 | M66: =IF(ISERROR(VLOOKUP(B66,'Zebrik W'!$B$7:$L$1002,11,0)),"",IF(VLOOKUP(B66,'Zebrik W'!$B$7:$L$1002,11,0)=0,"--",VLOOKUP(B66,'Zebrik W'!$B$7:$L$1002,11,0))) -> 
A67: 61 | B67: Zdenek Schenk | C67: 1972 | D67: Hranice | E67: CZ/M | F67: M | G67: 3 | H67: 22070 | M67: =IF(ISERROR(VLOOKUP(B67,'Zebrik W'!$B$7:$L$1002,11,0)),"",IF(VLOOKUP(B67,'Zebrik W'!$B$7:$L$1002,11,0)=0,"--",VLOOKUP(B67,'Zebrik W'!$B$7:$L$1002,11,0))) -> 
A68: 62 | B68: Antonin Novotny | C68: 1972 | D68: Luhačovice | E68: CZ/M | F68: M | G68: 3 | H68: 21616 | M68: =IF(ISERROR(VLOOKUP(B68,'Zebrik W'!$B$7:$L$1002,11,0)),"",IF(VLOOKUP(B68,'Zebrik W'!$B$7:$L$1002,11,0)=0,"--",VLOOKUP(B68,'Zebrik W'!$B$7:$L$1002,11,0))) -> 
A69: 63 | B69: Radek Zima 78 | C69: 1978 | D69: Hodkovice | E69: CZ/C2 | F69: M | G69: 3 | H69: 21512 | M69: =IF(ISERROR(VLOOKUP(B69,'Zebrik W'!$B$7:$L$1002,11,0)),"",IF(VLOOKUP(B69,'Zebrik W'!$B$7:$L$1002,11,0)=0,"--",VLOOKUP(B69,'Zebrik W'!$B$7:$L$1002,11,0))) -> 
A70: 64 | B70: Jan Smaha | C70: 1958 | D70: Česká Lípa | E70: CZ/C2 | F70: M | G70: 3 | H70: 21277 | M70: =IF(ISERROR(VLOOKUP(B70,'Zebrik W'!$B$7:$L$1002,11,0)),"",IF(VLOOKUP(B70,'Zebrik W'!$B$7:$L$1002,11,0)=0,"--",VLOOKUP(B70,'Zebrik W'!$B$7:$L$1002,11,0))) -> 
A71: 65 | B71: Jan Vozeh | C71: 1995 | D71: Rakovník | E71: CZ/C1 | F71: M | G71: 3 | H71: 21235 | I71: Junior v roce 2019 | J71: Junior v roce 2020 | M71: =IF(ISERROR(VLOOKUP(B71,'Zebrik W'!$B$7:$L$1002,11,0)),"",IF(VLOOKUP(B71,'Zebrik W'!$B$7:$L$1002,11,0)=0,"--",VLOOKUP(B71,'Zebrik W'!$B$7:$L$1002,11,0))) -> 
A72: =RANK(H72,H:H) -> 66 | B72: Petr Setka | C72: 1971 | D72: Letkov | E72: CZ/C1 | F72: M | G72: 3 | H72: 20977 | I72: =IF(C72="(prázdné)","",IF(($I$4-C72)>25,"","Junior v roce "&$I$4)) ->  | J72: =IF(C72="(prázdné)","",IF(($J$4-C72)>25,"","Junior v roce "&$J$4)) ->  | M72: =IF(ISERROR(VLOOKUP(B72,'Zebrik W'!$B$7:$L$1002,11,0)),"",IF(VLOOKUP(B72,'Zebrik W'!$B$7:$L$1002,11,0)=0,"--",VLOOKUP(B72,'Zebrik W'!$B$7:$L$1002,11,0))) -> 
A73: 67 | B73: Martin Picka | C73: 1974 | D73: Letkov | E73: CZ/C1 | F73: M | G73: 3 | H73: 20963 | M73: =IF(ISERROR(VLOOKUP(B73,'Zebrik W'!$B$7:$L$1002,11,0)),"",IF(VLOOKUP(B73,'Zebrik W'!$B$7:$L$1002,11,0)=0,"--",VLOOKUP(B73,'Zebrik W'!$B$7:$L$1002,11,0))) -> 
A74: 68 | B74: Lumir Motyka | C74: 1955 | D74: Frýdlant | E74: CZ/M | F74: M | G74: 3 | H74: 20725 | M74: =IF(ISERROR(VLOOKUP(B74,'Zebrik W'!$B$7:$L$1002,11,0)),"",IF(VLOOKUP(B74,'Zebrik W'!$B$7:$L$1002,11,0)=0,"--",VLOOKUP(B74,'Zebrik W'!$B$7:$L$1002,11,0))) -> 
A75: 68 | B75: Martin Pekar | C75: 1973 | D75: Šumperk | E75: CZ/M | F75: M | G75: 3 | H75: 20725 | M75: =IF(ISERROR(VLOOKUP(B75,'Zebrik W'!$B$7:$L$1002,11,0)),"",IF(VLOOKUP(B75,'Zebrik W'!$B$7:$L$1002,11,0)=0,"--",VLOOKUP(B75,'Zebrik W'!$B$7:$L$1002,11,0))) -> 
A76: 70 | B76: Ondrej Dupal | C76: 1966 | D76: GAC Benešov | E76: CZ/C1 | F76: M | G76: 3 | H76: 20578 | M76: =IF(ISERROR(VLOOKUP(B76,'Zebrik W'!$B$7:$L$1002,11,0)),"",IF(VLOOKUP(B76,'Zebrik W'!$B$7:$L$1002,11,0)=0,"--",VLOOKUP(B76,'Zebrik W'!$B$7:$L$1002,11,0))) -> 
A77: 71 | B77: Ivan Tvrdik | C77: 1997 | D77: Letňany | E77: CZ/C1 | F77: M | G77: 3 | H77: 20434 | I77: Junior v roce 2019 | J77: Junior v roce 2020 | M77: =IF(ISERROR(VLOOKUP(B77,'Zebrik W'!$B$7:$L$1002,11,0)),"",IF(VLOOKUP(B77,'Zebrik W'!$B$7:$L$1002,11,0)=0,"--",VLOOKUP(B77,'Zebrik W'!$B$7:$L$1002,11,0))) -> 
A78: 72 | B78: Anna Hajkova | C78: 1989 | D78: Mladá Boleslav | E78: CZ/C1 | F78: F | G78: 3 | H78: 20248 | M78: =IF(ISERROR(VLOOKUP(B78,'Zebrik W'!$B$7:$L$1002,11,0)),"",IF(VLOOKUP(B78,'Zebrik W'!$B$7:$L$1002,11,0)=0,"--",VLOOKUP(B78,'Zebrik W'!$B$7:$L$1002,11,0))) -> --
A79: 73 | B79: Jan Kotan | C79: 1982 | D79: Letňany | E79: CZ/C1 | F79: M | G79: 3 | H79: 20133 | M79: =IF(ISERROR(VLOOKUP(B79,'Zebrik W'!$B$7:$L$1002,11,0)),"",IF(VLOOKUP(B79,'Zebrik W'!$B$7:$L$1002,11,0)=0,"--",VLOOKUP(B79,'Zebrik W'!$B$7:$L$1002,11,0))) -> 
A80: 74 | B80: Slavomir Piskaty 84 | C80: 1984 | D80: Kunovice | E80: CZ/M | F80: M | G80: 3 | H80: 20091 | M80: =IF(ISERROR(VLOOKUP(B80,'Zebrik W'!$B$7:$L$1002,11,0)),"",IF(VLOOKUP(B80,'Zebrik W'!$B$7:$L$1002,11,0)=0,"--",VLOOKUP(B80,'Zebrik W'!$B$7:$L$1002,11,0))) -> 
A81: 75 | B81: Karel Benisek 76 | C81: 1976 | D81: Toužim | E81: CZ/C1 | F81: M | G81: 3 | H81: 19965 | M81: =IF(ISERROR(VLOOKUP(B81,'Zebrik W'!$B$7:$L$1002,11,0)),"",IF(VLOOKUP(B81,'Zebrik W'!$B$7:$L$1002,11,0)=0,"--",VLOOKUP(B81,'Zebrik W'!$B$7:$L$1002,11,0))) -> 
A82: 76 | B82: Pavlina Horackova | C82: 1965 | D82: Šumperk | E82: CZ/M | F82: F | G82: 3 | H82: 19846 | M82: =IF(ISERROR(VLOOKUP(B82,'Zebrik W'!$B$7:$L$1002,11,0)),"",IF(VLOOKUP(B82,'Zebrik W'!$B$7:$L$1002,11,0)=0,"--",VLOOKUP(B82,'Zebrik W'!$B$7:$L$1002,11,0))) -> --
A83: 77 | B83: Lukas Plocek | C83: 1990 | D83: Mladá Boleslav | E83: CZ/C1 | F83: M | G83: 3 | H83: 19792 | M83: =IF(ISERROR(VLOOKUP(B83,'Zebrik W'!$B$7:$L$1002,11,0)),"",IF(VLOOKUP(B83,'Zebrik W'!$B$7:$L$1002,11,0)=0,"--",VLOOKUP(B83,'Zebrik W'!$B$7:$L$1002,11,0))) -> 
A84: 78 | B84: Tomas Jilek | C84: 1995 | D84: Raná | E84: CZ/C2 | F84: M | G84: 3 | H84: 19743 | I84: Junior v roce 2019 | J84: Junior v roce 2020 | M84: =IF(ISERROR(VLOOKUP(B84,'Zebrik W'!$B$7:$L$1002,11,0)),"",IF(VLOOKUP(B84,'Zebrik W'!$B$7:$L$1002,11,0)=0,"--",VLOOKUP(B84,'Zebrik W'!$B$7:$L$1002,11,0))) -> 
A85: 79 | B85: Jiri Steiger | C85: 1969 | D85: Olomouc | E85: CZ/M | F85: M | G85: 3 | H85: 19620 | M85: =IF(ISERROR(VLOOKUP(B85,'Zebrik W'!$B$7:$L$1002,11,0)),"",IF(VLOOKUP(B85,'Zebrik W'!$B$7:$L$1002,11,0)=0,"--",VLOOKUP(B85,'Zebrik W'!$B$7:$L$1002,11,0))) -> 
A86: 80 | B86: Karel Knotek | C86: 1961 | D86: Soběslav | E86: CZ/C1 | F86: M | G86: 3 | H86: 19568 | M86: =IF(ISERROR(VLOOKUP(B86,'Zebrik W'!$B$7:$L$1002,11,0)),"",IF(VLOOKUP(B86,'Zebrik W'!$B$7:$L$1002,11,0)=0,"--",VLOOKUP(B86,'Zebrik W'!$B$7:$L$1002,11,0))) -> 
A87: 81 | B87: Frantisek Filandr | C87: 1956 | D87: Most | E87: CZ/C2 | F87: M | G87: 3 | H87: 19553 | M87: =IF(ISERROR(VLOOKUP(B87,'Zebrik W'!$B$7:$L$1002,11,0)),"",IF(VLOOKUP(B87,'Zebrik W'!$B$7:$L$1002,11,0)=0,"--",VLOOKUP(B87,'Zebrik W'!$B$7:$L$1002,11,0))) -> 
A88: 82 | B88: Jaroslav Buryan | C88: 1953 | D88: Zábřeh | E88: CZ/M | F88: M | G88: 3 | H88: 19363 | M88: =IF(ISERROR(VLOOKUP(B88,'Zebrik W'!$B$7:$L$1002,11,0)),"",IF(VLOOKUP(B88,'Zebrik W'!$B$7:$L$1002,11,0)=0,"--",VLOOKUP(B88,'Zebrik W'!$B$7:$L$1002,11,0))) -> 
A89: 83 | B89: Radek Kucirek | C89: 1973 | D89: Havlíčkův Brod | E89: CZ/C2 | F89: M | G89: 3 | H89: 19161 | M89: =IF(ISERROR(VLOOKUP(B89,'Zebrik W'!$B$7:$L$1002,11,0)),"",IF(VLOOKUP(B89,'Zebrik W'!$B$7:$L$1002,11,0)=0,"--",VLOOKUP(B89,'Zebrik W'!$B$7:$L$1002,11,0))) -> 
A90: 84 | B90: Petr Starek | C90: 1974 | D90: Zbraslavice | E90: CZ/C1 | F90: M | G90: 3 | H90: 18753 | M90: =IF(ISERROR(VLOOKUP(B90,'Zebrik W'!$B$7:$L$1002,11,0)),"",IF(VLOOKUP(B90,'Zebrik W'!$B$7:$L$1002,11,0)=0,"--",VLOOKUP(B90,'Zebrik W'!$B$7:$L$1002,11,0))) -> 
A91: 85 | B91: Milan Svoboda 80 | C91: 1980 | D91: Havlíčkův Brod | E91: CZ/C2 | F91: M | G91: 3 | H91: 18447 | M91: =IF(ISERROR(VLOOKUP(B91,'Zebrik W'!$B$7:$L$1002,11,0)),"",IF(VLOOKUP(B91,'Zebrik W'!$B$7:$L$1002,11,0)=0,"--",VLOOKUP(B91,'Zebrik W'!$B$7:$L$1002,11,0))) -> 
A92: 86 | B92: Ladislav Jozsa | C92: 1981 | D92: Medlánky | E92: CZ/M | F92: M | G92: 3 | H92: 18404 | M92: =IF(ISERROR(VLOOKUP(B92,'Zebrik W'!$B$7:$L$1002,11,0)),"",IF(VLOOKUP(B92,'Zebrik W'!$B$7:$L$1002,11,0)=0,"--",VLOOKUP(B92,'Zebrik W'!$B$7:$L$1002,11,0))) -> 
A93: 87 | B93: Matej Krestes | C93: 1986 | D93: Slaný | E93: CZ/C1 | F93: M | G93: 3 | H93: 18163 | M93: =IF(ISERROR(VLOOKUP(B93,'Zebrik W'!$B$7:$L$1002,11,0)),"",IF(VLOOKUP(B93,'Zebrik W'!$B$7:$L$1002,11,0)=0,"--",VLOOKUP(B93,'Zebrik W'!$B$7:$L$1002,11,0))) -> 
A94: 88 | B94: Jan Dersak 69 | C94: 1969 | D94: Kralupy | E94: CZ/C1 | F94: M | G94: 3 | H94: 18147 | M94: =IF(ISERROR(VLOOKUP(B94,'Zebrik W'!$B$7:$L$1002,11,0)),"",IF(VLOOKUP(B94,'Zebrik W'!$B$7:$L$1002,11,0)=0,"--",VLOOKUP(B94,'Zebrik W'!$B$7:$L$1002,11,0))) -> 
A95: 89 | B95: Jan Hruska | C95: 1988 | D95: Tábor | E95: CZ/C1 | F95: M | G95: 3 | H95: 18143 | M95: =IF(ISERROR(VLOOKUP(B95,'Zebrik W'!$B$7:$L$1002,11,0)),"",IF(VLOOKUP(B95,'Zebrik W'!$B$7:$L$1002,11,0)=0,"--",VLOOKUP(B95,'Zebrik W'!$B$7:$L$1002,11,0))) -> 
A96: 90 | B96: Frantisek Vancura | C96: 1966 | D96: Hranice | E96: CZ/M | F96: M | G96: 3 | H96: 17818 | M96: =IF(ISERROR(VLOOKUP(B96,'Zebrik W'!$B$7:$L$1002,11,0)),"",IF(VLOOKUP(B96,'Zebrik W'!$B$7:$L$1002,11,0)=0,"--",VLOOKUP(B96,'Zebrik W'!$B$7:$L$1002,11,0))) -> 
A97: 91 | B97: Marek Kornec | C97: 1957 | D97: Dvůr Králové | E97: CZ/C2 | F97: M | G97: 3 | H97: 17782 | M97: =IF(ISERROR(VLOOKUP(B97,'Zebrik W'!$B$7:$L$1002,11,0)),"",IF(VLOOKUP(B97,'Zebrik W'!$B$7:$L$1002,11,0)=0,"--",VLOOKUP(B97,'Zebrik W'!$B$7:$L$1002,11,0))) -> 
A98: 92 | B98: Josef Hlusek | C98: 1993 | D98: Kunovice | E98: CZ/M | F98: M | G98: 3 | H98: 17745 | M98: =IF(ISERROR(VLOOKUP(B98,'Zebrik W'!$B$7:$L$1002,11,0)),"",IF(VLOOKUP(B98,'Zebrik W'!$B$7:$L$1002,11,0)=0,"--",VLOOKUP(B98,'Zebrik W'!$B$7:$L$1002,11,0))) -> 
A99: 93 | B99: David Sachl | C99: 1978 | D99: Kralupy | E99: CZ/C1 | F99: M | G99: 3 | H99: 17692 | M99: =IF(ISERROR(VLOOKUP(B99,'Zebrik W'!$B$7:$L$1002,11,0)),"",IF(VLOOKUP(B99,'Zebrik W'!$B$7:$L$1002,11,0)=0,"--",VLOOKUP(B99,'Zebrik W'!$B$7:$L$1002,11,0))) -> 
A100: 94 | B100: Rene Hudak | C100: 1972 | D100: Kunovice | E100: CZ/M | F100: M | G100: 3 | H100: 17607 | M100: =IF(ISERROR(VLOOKUP(B100,'Zebrik W'!$B$7:$L$1002,11,0)),"",IF(VLOOKUP(B100,'Zebrik W'!$B$7:$L$1002,11,0)=0,"--",VLOOKUP(B100,'Zebrik W'!$B$7:$L$1002,11,0))) -> 
A101: 95 | B101: Michal Kodousek | C101: 1983 | D101: Jaroměř | E101: CZ/C2 | F101: M | G101: 2 | H101: 17450 | M101: =IF(ISERROR(VLOOKUP(B101,'Zebrik W'!$B$7:$L$1002,11,0)),"",IF(VLOOKUP(B101,'Zebrik W'!$B$7:$L$1002,11,0)=0,"--",VLOOKUP(B101,'Zebrik W'!$B$7:$L$1002,11,0))) -> 
A102: 96 | B102: Jan Simon | C102: 1970 | D102: Kralupy | E102: CZ/C1 | F102: M | G102: 3 | H102: 17393 | M102: =IF(ISERROR(VLOOKUP(B102,'Zebrik W'!$B$7:$L$1002,11,0)),"",IF(VLOOKUP(B102,'Zebrik W'!$B$7:$L$1002,11,0)=0,"--",VLOOKUP(B102,'Zebrik W'!$B$7:$L$1002,11,0))) -> 
A103: 97 | B103: Antonin Konicek | C103: 1973 | D103: Kunovice | E103: CZ/M | F103: M | G103: 3 | H103: 17366 | M103: =IF(ISERROR(VLOOKUP(B103,'Zebrik W'!$B$7:$L$1002,11,0)),"",IF(VLOOKUP(B103,'Zebrik W'!$B$7:$L$1002,11,0)=0,"--",VLOOKUP(B103,'Zebrik W'!$B$7:$L$1002,11,0))) -> 
A104: 98 | B104: Martin Piskacek | C104: 1991 | D104: Beroun | E104: CZ/C1 | F104: M | G104: 3 | H104: 17224 | M104: =IF(ISERROR(VLOOKUP(B104,'Zebrik W'!$B$7:$L$1002,11,0)),"",IF(VLOOKUP(B104,'Zebrik W'!$B$7:$L$1002,11,0)=0,"--",VLOOKUP(B104,'Zebrik W'!$B$7:$L$1002,11,0))) -> 
A105: 99 | B105: Wolfgang Sluka | C105: 1942 | D105: Liberec | E105: CZ/C2 | F105: M | G105: 3 | H105: 17192 | M105: =IF(ISERROR(VLOOKUP(B105,'Zebrik W'!$B$7:$L$1002,11,0)),"",IF(VLOOKUP(B105,'Zebrik W'!$B$7:$L$1002,11,0)=0,"--",VLOOKUP(B105,'Zebrik W'!$B$7:$L$1002,11,0))) -> 
A106: 100 | B106: Martin Urner | C106: 1974 | D106: Letňany | E106: CZ/C1 | F106: M | G106: 3 | H106: 17085 | M106: =IF(ISERROR(VLOOKUP(B106,'Zebrik W'!$B$7:$L$1002,11,0)),"",IF(VLOOKUP(B106,'Zebrik W'!$B$7:$L$1002,11,0)=0,"--",VLOOKUP(B106,'Zebrik W'!$B$7:$L$1002,11,0))) -> 
A107: 101 | B107: Jan Sindelar | C107: 1946 | D107: Kunovice | E107: CZ/M | F107: M | G107: 3 | H107: 17080 | M107: =IF(ISERROR(VLOOKUP(B107,'Zebrik W'!$B$7:$L$1002,11,0)),"",IF(VLOOKUP(B107,'Zebrik W'!$B$7:$L$1002,11,0)=0,"--",VLOOKUP(B107,'Zebrik W'!$B$7:$L$1002,11,0))) -> 
A108: 102 | B108: Daniel Suchy | C108: 1995 | D108: Hranice | E108: CZ/M | F108: M | G108: 3 | H108: 16885 | I108: Junior v roce 2019 | J108: Junior v roce 2020 | M108: =IF(ISERROR(VLOOKUP(B108,'Zebrik W'!$B$7:$L$1002,11,0)),"",IF(VLOOKUP(B108,'Zebrik W'!$B$7:$L$1002,11,0)=0,"--",VLOOKUP(B108,'Zebrik W'!$B$7:$L$1002,11,0))) -> 
A109: 103 | B109: Slavomir Valecko | C109: 1960 | D109: Hranice | E109: CZ/M | F109: M | G109: 3 | H109: 16838 | M109: =IF(ISERROR(VLOOKUP(B109,'Zebrik W'!$B$7:$L$1002,11,0)),"",IF(VLOOKUP(B109,'Zebrik W'!$B$7:$L$1002,11,0)=0,"--",VLOOKUP(B109,'Zebrik W'!$B$7:$L$1002,11,0))) -> 
A110: 104 | B110: Eva Cerna | C110: 1964 | D110: Příbram | E110: CZ/C1 | F110: F | G110: 3 | H110: 16732 | M110: =IF(ISERROR(VLOOKUP(B110,'Zebrik W'!$B$7:$L$1002,11,0)),"",IF(VLOOKUP(B110,'Zebrik W'!$B$7:$L$1002,11,0)=0,"--",VLOOKUP(B110,'Zebrik W'!$B$7:$L$1002,11,0))) -> --
A111: 105 | B111: Ondrej Blaha | C111: 1976 | D111: Letňany | E111: CZ/C1 | F111: M | G111: 3 | H111: 16677 | M111: =IF(ISERROR(VLOOKUP(B111,'Zebrik W'!$B$7:$L$1002,11,0)),"",IF(VLOOKUP(B111,'Zebrik W'!$B$7:$L$1002,11,0)=0,"--",VLOOKUP(B111,'Zebrik W'!$B$7:$L$1002,11,0))) -> 
A112: 106 | B112: Tomas Rendla | C112: 1973 | D112: Zbraslavice | E112: CZ/C1 | F112: M | G112: 3 | H112: 16673 | M112: =IF(ISERROR(VLOOKUP(B112,'Zebrik W'!$B$7:$L$1002,11,0)),"",IF(VLOOKUP(B112,'Zebrik W'!$B$7:$L$1002,11,0)=0,"--",VLOOKUP(B112,'Zebrik W'!$B$7:$L$1002,11,0))) -> 
A113: 107 | B113: Vojtech Pivonka | C113: 1976 | D113: Vrchlabí | E113: CZ/C2 | F113: M | G113: 3 | H113: 16555 | M113: =IF(ISERROR(VLOOKUP(B113,'Zebrik W'!$B$7:$L$1002,11,0)),"",IF(VLOOKUP(B113,'Zebrik W'!$B$7:$L$1002,11,0)=0,"--",VLOOKUP(B113,'Zebrik W'!$B$7:$L$1002,11,0))) -> 
A114: 108 | B114: Michal Cupak | C114: 1991 | D114: Medlánky | E114: CZ/M | F114: M | G114: 3 | H114: 16517 | M114: =IF(ISERROR(VLOOKUP(B114,'Zebrik W'!$B$7:$L$1002,11,0)),"",IF(VLOOKUP(B114,'Zebrik W'!$B$7:$L$1002,11,0)=0,"--",VLOOKUP(B114,'Zebrik W'!$B$7:$L$1002,11,0))) -> 
A115: 109 | B115: Radim Vadasz | C115: 1989 | D115: Soběslav | E115: CZ/C1 | F115: M | G115: 3 | H115: 16509 | M115: =IF(ISERROR(VLOOKUP(B115,'Zebrik W'!$B$7:$L$1002,11,0)),"",IF(VLOOKUP(B115,'Zebrik W'!$B$7:$L$1002,11,0)=0,"--",VLOOKUP(B115,'Zebrik W'!$B$7:$L$1002,11,0))) -> 
A116: 110 | B116: Pavel Zima | C116: 1979 | D116: Břeclav | E116: CZ/M | F116: M | G116: 3 | H116: 16319 | M116: =IF(ISERROR(VLOOKUP(B116,'Zebrik W'!$B$7:$L$1002,11,0)),"",IF(VLOOKUP(B116,'Zebrik W'!$B$7:$L$1002,11,0)=0,"--",VLOOKUP(B116,'Zebrik W'!$B$7:$L$1002,11,0))) -> 
A117: 111 | B117: Miroslav Stepan | C117: 1955 | D117: Žamberk | E117: CZ/C2 | F117: M | G117: 3 | H117: 16109 | M117: =IF(ISERROR(VLOOKUP(B117,'Zebrik W'!$B$7:$L$1002,11,0)),"",IF(VLOOKUP(B117,'Zebrik W'!$B$7:$L$1002,11,0)=0,"--",VLOOKUP(B117,'Zebrik W'!$B$7:$L$1002,11,0))) -> 
A118: 112 | B118: David Popovsky | C118: 1976 | D118: Rakovník | E118: CZ/C1 | F118: M | G118: 2 | H118: 15973 | M118: =IF(ISERROR(VLOOKUP(B118,'Zebrik W'!$B$7:$L$1002,11,0)),"",IF(VLOOKUP(B118,'Zebrik W'!$B$7:$L$1002,11,0)=0,"--",VLOOKUP(B118,'Zebrik W'!$B$7:$L$1002,11,0))) -> 
A119: 113 | B119: Martin Urban | C119: 1971 | D119: Frýdlant | E119: CZ/M | F119: M | G119: 3 | H119: 15909 | M119: =IF(ISERROR(VLOOKUP(B119,'Zebrik W'!$B$7:$L$1002,11,0)),"",IF(VLOOKUP(B119,'Zebrik W'!$B$7:$L$1002,11,0)=0,"--",VLOOKUP(B119,'Zebrik W'!$B$7:$L$1002,11,0))) -> 
A120: 114 | B120: Lukas Maly | C120: 1998 | D120: Vysoké Mýto | E120: CZ/C2 | F120: M | G120: 3 | H120: 15781 | I120: Junior v roce 2019 | J120: Junior v roce 2020 | M120: =IF(ISERROR(VLOOKUP(B120,'Zebrik W'!$B$7:$L$1002,11,0)),"",IF(VLOOKUP(B120,'Zebrik W'!$B$7:$L$1002,11,0)=0,"--",VLOOKUP(B120,'Zebrik W'!$B$7:$L$1002,11,0))) -> 
A121: 115 | B121: Oldrich Slavicek | C121: 1959 | D121: Hronov | E121: CZ/C2 | F121: M | G121: 3 | H121: 15666 | M121: =IF(ISERROR(VLOOKUP(B121,'Zebrik W'!$B$7:$L$1002,11,0)),"",IF(VLOOKUP(B121,'Zebrik W'!$B$7:$L$1002,11,0)=0,"--",VLOOKUP(B121,'Zebrik W'!$B$7:$L$1002,11,0))) -> 
A122: 116 | B122: Jakub Kmosek | C122: 1978 | D122: Zbraslavice | E122: CZ/C1 | F122: M | G122: 2 | H122: 15618 | M122: =IF(ISERROR(VLOOKUP(B122,'Zebrik W'!$B$7:$L$1002,11,0)),"",IF(VLOOKUP(B122,'Zebrik W'!$B$7:$L$1002,11,0)=0,"--",VLOOKUP(B122,'Zebrik W'!$B$7:$L$1002,11,0))) -> 
A123: 117 | B123: Rostislav Stryk | C123: 1972 | D123: Frýdlant | E123: CZ/M | F123: M | G123: 3 | H123: 15455 | M123: =IF(ISERROR(VLOOKUP(B123,'Zebrik W'!$B$7:$L$1002,11,0)),"",IF(VLOOKUP(B123,'Zebrik W'!$B$7:$L$1002,11,0)=0,"--",VLOOKUP(B123,'Zebrik W'!$B$7:$L$1002,11,0))) -> 
A124: 118 | B124: Jindrich Hruska | C124: 1986 | D124: Soběslav | E124: CZ/C1 | F124: M | G124: 3 | H124: 15440 | M124: =IF(ISERROR(VLOOKUP(B124,'Zebrik W'!$B$7:$L$1002,11,0)),"",IF(VLOOKUP(B124,'Zebrik W'!$B$7:$L$1002,11,0)=0,"--",VLOOKUP(B124,'Zebrik W'!$B$7:$L$1002,11,0))) -> 
A125: 119 | B125: Vladimir Prihoda | C125: 1953 | D125: Kralupy | E125: CZ/C1 | F125: M | G125: 3 | H125: 15249 | M125: =IF(ISERROR(VLOOKUP(B125,'Zebrik W'!$B$7:$L$1002,11,0)),"",IF(VLOOKUP(B125,'Zebrik W'!$B$7:$L$1002,11,0)=0,"--",VLOOKUP(B125,'Zebrik W'!$B$7:$L$1002,11,0))) -> 
A126: 120 | B126: Pavel Derda | C126: 1952 | D126: Dvůr Králové | E126: CZ/C2 | F126: M | G126: 3 | H126: 15210 | M126: =IF(ISERROR(VLOOKUP(B126,'Zebrik W'!$B$7:$L$1002,11,0)),"",IF(VLOOKUP(B126,'Zebrik W'!$B$7:$L$1002,11,0)=0,"--",VLOOKUP(B126,'Zebrik W'!$B$7:$L$1002,11,0))) -> 
A127: 121 | B127: Milan Dvorak | C127: 1965 | D127: Liberec | E127: CZ/C2 | F127: M | G127: 3 | H127: 15053 | M127: =IF(ISERROR(VLOOKUP(B127,'Zebrik W'!$B$7:$L$1002,11,0)),"",IF(VLOOKUP(B127,'Zebrik W'!$B$7:$L$1002,11,0)=0,"--",VLOOKUP(B127,'Zebrik W'!$B$7:$L$1002,11,0))) -> 
A128: 122 | B128: Libor Bednarik | C128: 1972 | D128: Kunovice | E128: CZ/M | F128: M | G128: 3 | H128: 15037 | M128: =IF(ISERROR(VLOOKUP(B128,'Zebrik W'!$B$7:$L$1002,11,0)),"",IF(VLOOKUP(B128,'Zebrik W'!$B$7:$L$1002,11,0)=0,"--",VLOOKUP(B128,'Zebrik W'!$B$7:$L$1002,11,0))) -> 
A129: 123 | B129: Marek Pechar | C129: 1995 | D129: Chrudim | E129: CZ/C2 | F129: M | G129: 3 | H129: 15022 | I129: Junior v roce 2019 | J129: Junior v roce 2020 | M129: =IF(ISERROR(VLOOKUP(B129,'Zebrik W'!$B$7:$L$1002,11,0)),"",IF(VLOOKUP(B129,'Zebrik W'!$B$7:$L$1002,11,0)=0,"--",VLOOKUP(B129,'Zebrik W'!$B$7:$L$1002,11,0))) -> 
A130: 124 | B130: Petr Hofman | C130: 1984 | D130: Letňany | E130: CZ/C1 | F130: M | G130: 2 | H130: 15000 | M130: =IF(ISERROR(VLOOKUP(B130,'Zebrik W'!$B$7:$L$1002,11,0)),"",IF(VLOOKUP(B130,'Zebrik W'!$B$7:$L$1002,11,0)=0,"--",VLOOKUP(B130,'Zebrik W'!$B$7:$L$1002,11,0))) -> 
A131: 125 | B131: Jaroslav Sima | C131: 1972 | D131: Chomutov | E131: CZ/C2 | F131: M | G131: 3 | H131: 14994 | M131: =IF(ISERROR(VLOOKUP(B131,'Zebrik W'!$B$7:$L$1002,11,0)),"",IF(VLOOKUP(B131,'Zebrik W'!$B$7:$L$1002,11,0)=0,"--",VLOOKUP(B131,'Zebrik W'!$B$7:$L$1002,11,0))) -> 
A132: 126 | B132: Jakub Kohn | C132: 1992 | D132: Prostějov | E132: CZ/M | F132: M | G132: 3 | H132: 14975 | M132: =IF(ISERROR(VLOOKUP(B132,'Zebrik W'!$B$7:$L$1002,11,0)),"",IF(VLOOKUP(B132,'Zebrik W'!$B$7:$L$1002,11,0)=0,"--",VLOOKUP(B132,'Zebrik W'!$B$7:$L$1002,11,0))) -> 
A133: 126 | B133: Miroslav Koci | C133: 1961 | D133: Žamberk | E133: CZ/C2 | F133: M | G133: 3 | H133: 14975 | M133: =IF(ISERROR(VLOOKUP(B133,'Zebrik W'!$B$7:$L$1002,11,0)),"",IF(VLOOKUP(B133,'Zebrik W'!$B$7:$L$1002,11,0)=0,"--",VLOOKUP(B133,'Zebrik W'!$B$7:$L$1002,11,0))) -> 
A134: 128 | B134: Vaclav Svoboda | C134: 1970 | D134: Letkov | E134: CZ/C1 | F134: M | G134: 3 | H134: 14963 | M134: =IF(ISERROR(VLOOKUP(B134,'Zebrik W'!$B$7:$L$1002,11,0)),"",IF(VLOOKUP(B134,'Zebrik W'!$B$7:$L$1002,11,0)=0,"--",VLOOKUP(B134,'Zebrik W'!$B$7:$L$1002,11,0))) -> 
A135: 129 | B135: Ondrej Dvorak 98 | C135: 1998 | D135: Mladá Boleslav | E135: CZ/C1 | F135: M | G135: 3 | H135: 14937 | I135: Junior v roce 2019 | J135: Junior v roce 2020 | M135: =IF(ISERROR(VLOOKUP(B135,'Zebrik W'!$B$7:$L$1002,11,0)),"",IF(VLOOKUP(B135,'Zebrik W'!$B$7:$L$1002,11,0)=0,"--",VLOOKUP(B135,'Zebrik W'!$B$7:$L$1002,11,0))) -> 
A136: =RANK(H136,H:H) -> 130 | B136: Lukas Hynek | C136: 1979 | D136: Dvůr Králové | E136: CZ/C2 | F136: M | G136: 3 | H136: 14823 | I136: =IF(C136="(prázdné)","",IF(($I$4-C136)>25,"","Junior v roce "&$I$4)) ->  | J136: =IF(C136="(prázdné)","",IF(($J$4-C136)>25,"","Junior v roce "&$J$4)) ->  | M136: =IF(ISERROR(VLOOKUP(B136,'Zebrik W'!$B$7:$L$1002,11,0)),"",IF(VLOOKUP(B136,'Zebrik W'!$B$7:$L$1002,11,0)=0,"--",VLOOKUP(B136,'Zebrik W'!$B$7:$L$1002,11,0))) -> 
A137: 131 | B137: Jiri Klicnar | C137: 1965 | D137: Medlánky | E137: CZ/M | F137: M | G137: 3 | H137: 14598 | M137: =IF(ISERROR(VLOOKUP(B137,'Zebrik W'!$B$7:$L$1002,11,0)),"",IF(VLOOKUP(B137,'Zebrik W'!$B$7:$L$1002,11,0)=0,"--",VLOOKUP(B137,'Zebrik W'!$B$7:$L$1002,11,0))) -> 
A138: 132 | B138: Milan Meisner | C138: 1961 | D138: Dvůr Králové | E138: CZ/C2 | F138: M | G138: 3 | H138: 14452 | M138: =IF(ISERROR(VLOOKUP(B138,'Zebrik W'!$B$7:$L$1002,11,0)),"",IF(VLOOKUP(B138,'Zebrik W'!$B$7:$L$1002,11,0)=0,"--",VLOOKUP(B138,'Zebrik W'!$B$7:$L$1002,11,0))) -> 
A139: 133 | B139: Milos Matejka | C139: 1956 | D139: Beroun | E139: CZ/C1 | F139: M | G139: 3 | H139: 14295 | M139: =IF(ISERROR(VLOOKUP(B139,'Zebrik W'!$B$7:$L$1002,11,0)),"",IF(VLOOKUP(B139,'Zebrik W'!$B$7:$L$1002,11,0)=0,"--",VLOOKUP(B139,'Zebrik W'!$B$7:$L$1002,11,0))) -> 
A140: 134 | B140: Petr Vodicka | C140: 1965 | D140: Jaroměř | E140: CZ/C2 | F140: M | G140: 2 | H140: 14268 | M140: =IF(ISERROR(VLOOKUP(B140,'Zebrik W'!$B$7:$L$1002,11,0)),"",IF(VLOOKUP(B140,'Zebrik W'!$B$7:$L$1002,11,0)=0,"--",VLOOKUP(B140,'Zebrik W'!$B$7:$L$1002,11,0))) -> 
A141: 135 | B141: Jan Kostka | C141: 1996 | D141: Kladno | E141: CZ/C1 | F141: M | G141: 3 | H141: 14249 | I141: Junior v roce 2019 | J141: Junior v roce 2020 | M141: =IF(ISERROR(VLOOKUP(B141,'Zebrik W'!$B$7:$L$1002,11,0)),"",IF(VLOOKUP(B141,'Zebrik W'!$B$7:$L$1002,11,0)=0,"--",VLOOKUP(B141,'Zebrik W'!$B$7:$L$1002,11,0))) -> 
A142: 136 | B142: Petr Jiranek 63 | C142: 1962 | D142: Toužim | E142: CZ/C1 | F142: M | G142: 3 | H142: 13995 | M142: =IF(ISERROR(VLOOKUP(B142,'Zebrik W'!$B$7:$L$1002,11,0)),"",IF(VLOOKUP(B142,'Zebrik W'!$B$7:$L$1002,11,0)=0,"--",VLOOKUP(B142,'Zebrik W'!$B$7:$L$1002,11,0))) -> 
A143: 137 | B143: Vit Prokop | C143: 1987 | D143: Medlánky | E143: CZ/M | F143: M | G143: 3 | H143: 13948 | M143: =IF(ISERROR(VLOOKUP(B143,'Zebrik W'!$B$7:$L$1002,11,0)),"",IF(VLOOKUP(B143,'Zebrik W'!$B$7:$L$1002,11,0)=0,"--",VLOOKUP(B143,'Zebrik W'!$B$7:$L$1002,11,0))) -> 
A144: 138 | B144: Vladimir Jirka | C144: 1965 | D144: Zábřeh | E144: CZ/M | F144: M | G144: 3 | H144: 13836 | M144: =IF(ISERROR(VLOOKUP(B144,'Zebrik W'!$B$7:$L$1002,11,0)),"",IF(VLOOKUP(B144,'Zebrik W'!$B$7:$L$1002,11,0)=0,"--",VLOOKUP(B144,'Zebrik W'!$B$7:$L$1002,11,0))) -> 
A145: 139 | B145: Jiri Maier 66 | C145: 1966 | D145: Raná | E145: CZ/C2 | F145: M | G145: 3 | H145: 13805 | M145: =IF(ISERROR(VLOOKUP(B145,'Zebrik W'!$B$7:$L$1002,11,0)),"",IF(VLOOKUP(B145,'Zebrik W'!$B$7:$L$1002,11,0)=0,"--",VLOOKUP(B145,'Zebrik W'!$B$7:$L$1002,11,0))) -> 
A146: 140 | B146: Petr Valenta | C146: 1994 | D146: Kunovice | E146: CZ/M | F146: M | G146: 2 | H146: 13781 | I146: Junior v roce 2019 | M146: =IF(ISERROR(VLOOKUP(B146,'Zebrik W'!$B$7:$L$1002,11,0)),"",IF(VLOOKUP(B146,'Zebrik W'!$B$7:$L$1002,11,0)=0,"--",VLOOKUP(B146,'Zebrik W'!$B$7:$L$1002,11,0))) -> 
A147: 141 | B147: Martin Koci | C147: 1975 | D147: Ústí nad Orlicí | E147: CZ/C2 | F147: M | G147: 3 | H147: 13727 | M147: =IF(ISERROR(VLOOKUP(B147,'Zebrik W'!$B$7:$L$1002,11,0)),"",IF(VLOOKUP(B147,'Zebrik W'!$B$7:$L$1002,11,0)=0,"--",VLOOKUP(B147,'Zebrik W'!$B$7:$L$1002,11,0))) -> 
A148: 142 | B148: Jiri Koudela | C148: 1974 | D148: Vyškov | E148: CZ/M | F148: M | G148: 3 | H148: 13668 | M148: =IF(ISERROR(VLOOKUP(B148,'Zebrik W'!$B$7:$L$1002,11,0)),"",IF(VLOOKUP(B148,'Zebrik W'!$B$7:$L$1002,11,0)=0,"--",VLOOKUP(B148,'Zebrik W'!$B$7:$L$1002,11,0))) -> 
A149: 143 | B149: Martin Stepanek | C149: 1987 | D149: Moravská Třebová | E149: CZ/M | F149: M | G149: 2 | H149: 13659 | M149: =IF(ISERROR(VLOOKUP(B149,'Zebrik W'!$B$7:$L$1002,11,0)),"",IF(VLOOKUP(B149,'Zebrik W'!$B$7:$L$1002,11,0)=0,"--",VLOOKUP(B149,'Zebrik W'!$B$7:$L$1002,11,0))) -> 
A150: 144 | B150: Ivan Kuzelka | C150: 1945 | D150: Havlíčkův Brod | E150: CZ/C2 | F150: M | G150: 3 | H150: 13643 | M150: =IF(ISERROR(VLOOKUP(B150,'Zebrik W'!$B$7:$L$1002,11,0)),"",IF(VLOOKUP(B150,'Zebrik W'!$B$7:$L$1002,11,0)=0,"--",VLOOKUP(B150,'Zebrik W'!$B$7:$L$1002,11,0))) -> 
A151: 145 | B151: Pavel Svoboda | C151: 1938 | D151: Letňany | E151: CZ/C1 | F151: M | G151: 3 | H151: 13635 | M151: =IF(ISERROR(VLOOKUP(B151,'Zebrik W'!$B$7:$L$1002,11,0)),"",IF(VLOOKUP(B151,'Zebrik W'!$B$7:$L$1002,11,0)=0,"--",VLOOKUP(B151,'Zebrik W'!$B$7:$L$1002,11,0))) -> 
A152: 146 | B152: David Tejnora | C152: 1982 | D152: Kolín | E152: CZ/C1 | F152: M | G152: 3 | H152: 13548 | M152: =IF(ISERROR(VLOOKUP(B152,'Zebrik W'!$B$7:$L$1002,11,0)),"",IF(VLOOKUP(B152,'Zebrik W'!$B$7:$L$1002,11,0)=0,"--",VLOOKUP(B152,'Zebrik W'!$B$7:$L$1002,11,0))) -> 
A153: 147 | B153: Ondrej Dvorak 87 | C153: 1987 | D153: Raná | E153: CZ/C2 | F153: M | G153: 2 | H153: 13394 | M153: =IF(ISERROR(VLOOKUP(B153,'Zebrik W'!$B$7:$L$1002,11,0)),"",IF(VLOOKUP(B153,'Zebrik W'!$B$7:$L$1002,11,0)=0,"--",VLOOKUP(B153,'Zebrik W'!$B$7:$L$1002,11,0))) -> 
A154: 148 | B154: Martin Kriz | C154: 1968 | D154: Přibyslav | E154: CZ/C2 | F154: M | G154: 3 | H154: 13346 | M154: =IF(ISERROR(VLOOKUP(B154,'Zebrik W'!$B$7:$L$1002,11,0)),"",IF(VLOOKUP(B154,'Zebrik W'!$B$7:$L$1002,11,0)=0,"--",VLOOKUP(B154,'Zebrik W'!$B$7:$L$1002,11,0))) -> 
A155: 149 | B155: Michal Drab | C155: 1969 | D155: Letkov | E155: CZ/C1 | F155: M | G155: 2 | H155: 13345 | M155: =IF(ISERROR(VLOOKUP(B155,'Zebrik W'!$B$7:$L$1002,11,0)),"",IF(VLOOKUP(B155,'Zebrik W'!$B$7:$L$1002,11,0)=0,"--",VLOOKUP(B155,'Zebrik W'!$B$7:$L$1002,11,0))) -> 
A156: 150 | B156: Pavel Trojan | C156: 1960 | D156: Chrudim | E156: CZ/C2 | F156: M | G156: 3 | H156: 13341 | M156: =IF(ISERROR(VLOOKUP(B156,'Zebrik W'!$B$7:$L$1002,11,0)),"",IF(VLOOKUP(B156,'Zebrik W'!$B$7:$L$1002,11,0)=0,"--",VLOOKUP(B156,'Zebrik W'!$B$7:$L$1002,11,0))) -> 
A157: 151 | B157: Carsten Tietz | C157: 1966 | D157: Hronov | E157: CZ/C2 | F157: M | G157: 3 | H157: 13318 | M157: =IF(ISERROR(VLOOKUP(B157,'Zebrik W'!$B$7:$L$1002,11,0)),"",IF(VLOOKUP(B157,'Zebrik W'!$B$7:$L$1002,11,0)=0,"--",VLOOKUP(B157,'Zebrik W'!$B$7:$L$1002,11,0))) -> 
A158: 152 | B158: Pavel Jiranek | C158: 1993 | D158: Toužim | E158: CZ/C1 | F158: M | G158: 2 | H158: 13302 | M158: =IF(ISERROR(VLOOKUP(B158,'Zebrik W'!$B$7:$L$1002,11,0)),"",IF(VLOOKUP(B158,'Zebrik W'!$B$7:$L$1002,11,0)=0,"--",VLOOKUP(B158,'Zebrik W'!$B$7:$L$1002,11,0))) -> 
A159: 153 | B159: David Zapletal | C159: 1970 | D159: Mladá Boleslav | E159: CZ/C1 | F159: M | G159: 3 | H159: 13295 | M159: =IF(ISERROR(VLOOKUP(B159,'Zebrik W'!$B$7:$L$1002,11,0)),"",IF(VLOOKUP(B159,'Zebrik W'!$B$7:$L$1002,11,0)=0,"--",VLOOKUP(B159,'Zebrik W'!$B$7:$L$1002,11,0))) -> 
A160: 154 | B160: Jiri Prochazka | C160: 1971 | D160: Toužim | E160: CZ/C1 | F160: M | G160: 3 | H160: 13278 | M160: =IF(ISERROR(VLOOKUP(B160,'Zebrik W'!$B$7:$L$1002,11,0)),"",IF(VLOOKUP(B160,'Zebrik W'!$B$7:$L$1002,11,0)=0,"--",VLOOKUP(B160,'Zebrik W'!$B$7:$L$1002,11,0))) -> 
A161: 155 | B161: Josef Rydl | C161: 1940 | D161: Turnov | E161: CZ/C2 | F161: M | G161: 3 | H161: 13188 | M161: =IF(ISERROR(VLOOKUP(B161,'Zebrik W'!$B$7:$L$1002,11,0)),"",IF(VLOOKUP(B161,'Zebrik W'!$B$7:$L$1002,11,0)=0,"--",VLOOKUP(B161,'Zebrik W'!$B$7:$L$1002,11,0))) -> 
A162: 156 | B162: Slavomir Piskaty 58 | C162: 1958 | D162: Kunovice | E162: CZ/M | F162: M | G162: 3 | H162: 13149 | M162: =IF(ISERROR(VLOOKUP(B162,'Zebrik W'!$B$7:$L$1002,11,0)),"",IF(VLOOKUP(B162,'Zebrik W'!$B$7:$L$1002,11,0)=0,"--",VLOOKUP(B162,'Zebrik W'!$B$7:$L$1002,11,0))) -> 
A163: 157 | B163: Roman Lanzendorf | C163: 1964 | D163: Letkov | E163: CZ/C1 | F163: M | G163: 3 | H163: 13146 | M163: =IF(ISERROR(VLOOKUP(B163,'Zebrik W'!$B$7:$L$1002,11,0)),"",IF(VLOOKUP(B163,'Zebrik W'!$B$7:$L$1002,11,0)=0,"--",VLOOKUP(B163,'Zebrik W'!$B$7:$L$1002,11,0))) -> 
A164: 158 | B164: Katerina Vojtova | C164: 1983 | D164: Slaný | E164: CZ/C1 | F164: F | G164: 3 | H164: 13083 | M164: =IF(ISERROR(VLOOKUP(B164,'Zebrik W'!$B$7:$L$1002,11,0)),"",IF(VLOOKUP(B164,'Zebrik W'!$B$7:$L$1002,11,0)=0,"--",VLOOKUP(B164,'Zebrik W'!$B$7:$L$1002,11,0))) -> --
A165: 159 | B165: Pavel Liska | C165: 1965 | D165: Roudnice | E165: CZ/C2 | F165: M | G165: 3 | H165: 13071 | M165: =IF(ISERROR(VLOOKUP(B165,'Zebrik W'!$B$7:$L$1002,11,0)),"",IF(VLOOKUP(B165,'Zebrik W'!$B$7:$L$1002,11,0)=0,"--",VLOOKUP(B165,'Zebrik W'!$B$7:$L$1002,11,0))) -> 
A166: 160 | B166: Jiri Hula | C166: 1973 | D166: Slaný | E166: CZ/C1 | F166: M | G166: 3 | H166: 13011 | M166: =IF(ISERROR(VLOOKUP(B166,'Zebrik W'!$B$7:$L$1002,11,0)),"",IF(VLOOKUP(B166,'Zebrik W'!$B$7:$L$1002,11,0)=0,"--",VLOOKUP(B166,'Zebrik W'!$B$7:$L$1002,11,0))) -> 
A167: 161 | B167: Martin Cicvarek | C167: 1966 | D167: Liberec | E167: CZ/C2 | F167: M | G167: 3 | H167: 12966 | M167: =IF(ISERROR(VLOOKUP(B167,'Zebrik W'!$B$7:$L$1002,11,0)),"",IF(VLOOKUP(B167,'Zebrik W'!$B$7:$L$1002,11,0)=0,"--",VLOOKUP(B167,'Zebrik W'!$B$7:$L$1002,11,0))) -> 
A168: 162 | B168: Josef Kolman | C168: 1983 | D168: Letňany | E168: CZ/C1 | F168: M | G168: 2 | H168: 12912 | M168: =IF(ISERROR(VLOOKUP(B168,'Zebrik W'!$B$7:$L$1002,11,0)),"",IF(VLOOKUP(B168,'Zebrik W'!$B$7:$L$1002,11,0)=0,"--",VLOOKUP(B168,'Zebrik W'!$B$7:$L$1002,11,0))) -> 
A169: 163 | B169: Tomas Talanda | C169: 1988 | D169: Křižanov | E169: CZ/M | F169: M | G169: 2 | H169: 12820 | M169: =IF(ISERROR(VLOOKUP(B169,'Zebrik W'!$B$7:$L$1002,11,0)),"",IF(VLOOKUP(B169,'Zebrik W'!$B$7:$L$1002,11,0)=0,"--",VLOOKUP(B169,'Zebrik W'!$B$7:$L$1002,11,0))) -> 
A170: 164 | B170: Tomas Hlavacek | C170: 1984 | D170: Kolín | E170: CZ/C1 | F170: M | G170: 3 | H170: 12682 | M170: =IF(ISERROR(VLOOKUP(B170,'Zebrik W'!$B$7:$L$1002,11,0)),"",IF(VLOOKUP(B170,'Zebrik W'!$B$7:$L$1002,11,0)=0,"--",VLOOKUP(B170,'Zebrik W'!$B$7:$L$1002,11,0))) -> 
A171: 165 | B171: Milan Svoboda 34 | C171: 1934 | D171: Letkov | E171: CZ/C1 | F171: M | G171: 3 | H171: 12667 | M171: =IF(ISERROR(VLOOKUP(B171,'Zebrik W'!$B$7:$L$1002,11,0)),"",IF(VLOOKUP(B171,'Zebrik W'!$B$7:$L$1002,11,0)=0,"--",VLOOKUP(B171,'Zebrik W'!$B$7:$L$1002,11,0))) -> 
A172: 166 | B172: Oldrich Houzvicka | C172: 1975 | D172: Frýdlant | E172: CZ/M | F172: M | G172: 3 | H172: 12640 | M172: =IF(ISERROR(VLOOKUP(B172,'Zebrik W'!$B$7:$L$1002,11,0)),"",IF(VLOOKUP(B172,'Zebrik W'!$B$7:$L$1002,11,0)=0,"--",VLOOKUP(B172,'Zebrik W'!$B$7:$L$1002,11,0))) -> 
A173: 167 | B173: Martin Svarc | C173: 1981 | D173: Olomouc | E173: CZ/M | F173: M | G173: 3 | H173: 12638 | M173: =IF(ISERROR(VLOOKUP(B173,'Zebrik W'!$B$7:$L$1002,11,0)),"",IF(VLOOKUP(B173,'Zebrik W'!$B$7:$L$1002,11,0)=0,"--",VLOOKUP(B173,'Zebrik W'!$B$7:$L$1002,11,0))) -> 
A174: 168 | B174: Jaromir Vlk | C174: 1959 | D174: Šumperk | E174: CZ/M | F174: M | G174: 3 | H174: 12548 | M174: =IF(ISERROR(VLOOKUP(B174,'Zebrik W'!$B$7:$L$1002,11,0)),"",IF(VLOOKUP(B174,'Zebrik W'!$B$7:$L$1002,11,0)=0,"--",VLOOKUP(B174,'Zebrik W'!$B$7:$L$1002,11,0))) -> 
A175: 169 | B175: Petr Jiranek 91 | C175: 1991 | D175: Toužim | E175: CZ/C1 | F175: M | G175: 2 | H175: 12472 | M175: =IF(ISERROR(VLOOKUP(B175,'Zebrik W'!$B$7:$L$1002,11,0)),"",IF(VLOOKUP(B175,'Zebrik W'!$B$7:$L$1002,11,0)=0,"--",VLOOKUP(B175,'Zebrik W'!$B$7:$L$1002,11,0))) -> 
A176: 170 | B176: Michal Navratil | C176: 1985 | D176: Křižanov | E176: CZ/M | F176: M | G176: 2 | H176: 12449 | M176: =IF(ISERROR(VLOOKUP(B176,'Zebrik W'!$B$7:$L$1002,11,0)),"",IF(VLOOKUP(B176,'Zebrik W'!$B$7:$L$1002,11,0)=0,"--",VLOOKUP(B176,'Zebrik W'!$B$7:$L$1002,11,0))) -> 
A177: 171 | B177: Jaromir Hendrych | C177: 1954 | D177: Raná | E177: CZ/C2 | F177: M | G177: 3 | H177: 12440 | M177: =IF(ISERROR(VLOOKUP(B177,'Zebrik W'!$B$7:$L$1002,11,0)),"",IF(VLOOKUP(B177,'Zebrik W'!$B$7:$L$1002,11,0)=0,"--",VLOOKUP(B177,'Zebrik W'!$B$7:$L$1002,11,0))) -> 
A178: 172 | B178: Vit Morkovsky | C178: 2000 | D178: Polička | E178: CZ/C2 | F178: M | G178: 2 | H178: 12431 | I178: Junior v roce 2019 | J178: Junior v roce 2020 | M178: =IF(ISERROR(VLOOKUP(B178,'Zebrik W'!$B$7:$L$1002,11,0)),"",IF(VLOOKUP(B178,'Zebrik W'!$B$7:$L$1002,11,0)=0,"--",VLOOKUP(B178,'Zebrik W'!$B$7:$L$1002,11,0))) -> 
A179: 173 | B179: Barbora Kubickova | C179: 1993 | D179: Medlánky | E179: CZ/M | F179: F | G179: 3 | H179: 12394 | M179: =IF(ISERROR(VLOOKUP(B179,'Zebrik W'!$B$7:$L$1002,11,0)),"",IF(VLOOKUP(B179,'Zebrik W'!$B$7:$L$1002,11,0)=0,"--",VLOOKUP(B179,'Zebrik W'!$B$7:$L$1002,11,0))) -> --
A180: 174 | B180: Jaromir Pauer | C180: 1974 | D180: Hosín | E180: CZ/C1 | F180: M | G180: 2 | H180: 12357 | M180: =IF(ISERROR(VLOOKUP(B180,'Zebrik W'!$B$7:$L$1002,11,0)),"",IF(VLOOKUP(B180,'Zebrik W'!$B$7:$L$1002,11,0)=0,"--",VLOOKUP(B180,'Zebrik W'!$B$7:$L$1002,11,0))) -> 
A181: 175 | B181: Jan Hybner | C181: 1977 | D181: Liberec | E181: CZ/C2 | F181: M | G181: 3 | H181: 12345 | M181: =IF(ISERROR(VLOOKUP(B181,'Zebrik W'!$B$7:$L$1002,11,0)),"",IF(VLOOKUP(B181,'Zebrik W'!$B$7:$L$1002,11,0)=0,"--",VLOOKUP(B181,'Zebrik W'!$B$7:$L$1002,11,0))) -> 
A182: 176 | B182: Daniel Novak | C182: 1971 | D182: Letkov | E182: CZ/C1 | F182: M | G182: 2 | H182: 12096 | M182: =IF(ISERROR(VLOOKUP(B182,'Zebrik W'!$B$7:$L$1002,11,0)),"",IF(VLOOKUP(B182,'Zebrik W'!$B$7:$L$1002,11,0)=0,"--",VLOOKUP(B182,'Zebrik W'!$B$7:$L$1002,11,0))) -> 
A183: 177 | B183: Lubor Zeleny | C183: 1957 | D183: Přibyslav | E183: CZ/C2 | F183: M | G183: 2 | H183: 12066 | M183: =IF(ISERROR(VLOOKUP(B183,'Zebrik W'!$B$7:$L$1002,11,0)),"",IF(VLOOKUP(B183,'Zebrik W'!$B$7:$L$1002,11,0)=0,"--",VLOOKUP(B183,'Zebrik W'!$B$7:$L$1002,11,0))) -> 
A184: 178 | B184: Petr Bartak | C184: 1984 | D184: Letkov | E184: CZ/C1 | F184: M | G184: 2 | H184: 11988 | M184: =IF(ISERROR(VLOOKUP(B184,'Zebrik W'!$B$7:$L$1002,11,0)),"",IF(VLOOKUP(B184,'Zebrik W'!$B$7:$L$1002,11,0)=0,"--",VLOOKUP(B184,'Zebrik W'!$B$7:$L$1002,11,0))) -> 
A185: 179 | B185: Ondrej Teichman | C185: 1984 | D185: Dvůr Králové | E185: CZ/C2 | F185: M | G185: 3 | H185: 11976 | M185: =IF(ISERROR(VLOOKUP(B185,'Zebrik W'!$B$7:$L$1002,11,0)),"",IF(VLOOKUP(B185,'Zebrik W'!$B$7:$L$1002,11,0)=0,"--",VLOOKUP(B185,'Zebrik W'!$B$7:$L$1002,11,0))) -> 
A186: 180 | B186: Petr Frycek | C186: 1960 | D186: Most | E186: CZ/C2 | F186: M | G186: 3 | H186: 11945 | M186: =IF(ISERROR(VLOOKUP(B186,'Zebrik W'!$B$7:$L$1002,11,0)),"",IF(VLOOKUP(B186,'Zebrik W'!$B$7:$L$1002,11,0)=0,"--",VLOOKUP(B186,'Zebrik W'!$B$7:$L$1002,11,0))) -> 
A187: 181 | B187: Vojtech Hajek | C187: 1987 | D187: Mladá Boleslav | E187: CZ/C1 | F187: M | G187: 2 | H187: 11796 | M187: =IF(ISERROR(VLOOKUP(B187,'Zebrik W'!$B$7:$L$1002,11,0)),"",IF(VLOOKUP(B187,'Zebrik W'!$B$7:$L$1002,11,0)=0,"--",VLOOKUP(B187,'Zebrik W'!$B$7:$L$1002,11,0))) -> 
A188: 182 | B188: Jan Rott | C188: 1962 | D188: Plasy | E188: CZ/C1 | F188: M | G188: 3 | H188: 11698 | M188: =IF(ISERROR(VLOOKUP(B188,'Zebrik W'!$B$7:$L$1002,11,0)),"",IF(VLOOKUP(B188,'Zebrik W'!$B$7:$L$1002,11,0)=0,"--",VLOOKUP(B188,'Zebrik W'!$B$7:$L$1002,11,0))) -> 
A189: 183 | B189: Radek Hybl | C189: 1980 | D189: Šumperk | E189: CZ/M | F189: M | G189: 2 | H189: 11697 | M189: =IF(ISERROR(VLOOKUP(B189,'Zebrik W'!$B$7:$L$1002,11,0)),"",IF(VLOOKUP(B189,'Zebrik W'!$B$7:$L$1002,11,0)=0,"--",VLOOKUP(B189,'Zebrik W'!$B$7:$L$1002,11,0))) -> 
A190: 184 | B190: Lukas Kotek | C190: 1994 | D190: Frýdlant | E190: CZ/M | F190: M | G190: 3 | H190: 11665 | I190: Junior v roce 2019 | M190: =IF(ISERROR(VLOOKUP(B190,'Zebrik W'!$B$7:$L$1002,11,0)),"",IF(VLOOKUP(B190,'Zebrik W'!$B$7:$L$1002,11,0)=0,"--",VLOOKUP(B190,'Zebrik W'!$B$7:$L$1002,11,0))) -> 
A191: 185 | B191: Josef Busek | C191: 1967 | D191: Hosín | E191: CZ/C1 | F191: M | G191: 2 | H191: 11656 | M191: =IF(ISERROR(VLOOKUP(B191,'Zebrik W'!$B$7:$L$1002,11,0)),"",IF(VLOOKUP(B191,'Zebrik W'!$B$7:$L$1002,11,0)=0,"--",VLOOKUP(B191,'Zebrik W'!$B$7:$L$1002,11,0))) -> 
A192: 186 | B192: Petr Fisar | C192: 1974 | D192: Ústí nad Orlicí | E192: CZ/C2 | F192: M | G192: 3 | H192: 11527 | M192: =IF(ISERROR(VLOOKUP(B192,'Zebrik W'!$B$7:$L$1002,11,0)),"",IF(VLOOKUP(B192,'Zebrik W'!$B$7:$L$1002,11,0)=0,"--",VLOOKUP(B192,'Zebrik W'!$B$7:$L$1002,11,0))) -> 
A193: 187 | B193: Tomas Mezera | C193: 1973 | D193: Raná | E193: CZ/C2 | F193: M | G193: 3 | H193: 11501 | M193: =IF(ISERROR(VLOOKUP(B193,'Zebrik W'!$B$7:$L$1002,11,0)),"",IF(VLOOKUP(B193,'Zebrik W'!$B$7:$L$1002,11,0)=0,"--",VLOOKUP(B193,'Zebrik W'!$B$7:$L$1002,11,0))) -> 
A194: 188 | B194: Pavel Brodsky | C194: 1992 | D194: Hořice | E194: CZ/C2 | F194: M | G194: 2 | H194: 11460 | M194: =IF(ISERROR(VLOOKUP(B194,'Zebrik W'!$B$7:$L$1002,11,0)),"",IF(VLOOKUP(B194,'Zebrik W'!$B$7:$L$1002,11,0)=0,"--",VLOOKUP(B194,'Zebrik W'!$B$7:$L$1002,11,0))) -> 
A195: 189 | B195: Petr Hybner | C195: 1951 | D195: Liberec | E195: CZ/C2 | F195: M | G195: 3 | H195: 11445 | M195: =IF(ISERROR(VLOOKUP(B195,'Zebrik W'!$B$7:$L$1002,11,0)),"",IF(VLOOKUP(B195,'Zebrik W'!$B$7:$L$1002,11,0)=0,"--",VLOOKUP(B195,'Zebrik W'!$B$7:$L$1002,11,0))) -> 
A196: 190 | B196: Michal Kratochvil | C196: 1984 | D196: Slaný | E196: CZ/C1 | F196: M | G196: 2 | H196: 11375 | M196: =IF(ISERROR(VLOOKUP(B196,'Zebrik W'!$B$7:$L$1002,11,0)),"",IF(VLOOKUP(B196,'Zebrik W'!$B$7:$L$1002,11,0)=0,"--",VLOOKUP(B196,'Zebrik W'!$B$7:$L$1002,11,0))) -> 
A197: 191 | B197: Josef Andrasovsky | C197: 1954 | D197: Jaroměř | E197: CZ/C2 | F197: M | G197: 3 | H197: 11249 | M197: =IF(ISERROR(VLOOKUP(B197,'Zebrik W'!$B$7:$L$1002,11,0)),"",IF(VLOOKUP(B197,'Zebrik W'!$B$7:$L$1002,11,0)=0,"--",VLOOKUP(B197,'Zebrik W'!$B$7:$L$1002,11,0))) -> 
A198: 192 | B198: Jan Zezula | C198: 1979 | D198: Letňany | E198: CZ/C1 | F198: M | G198: 3 | H198: 11167 | M198: =IF(ISERROR(VLOOKUP(B198,'Zebrik W'!$B$7:$L$1002,11,0)),"",IF(VLOOKUP(B198,'Zebrik W'!$B$7:$L$1002,11,0)=0,"--",VLOOKUP(B198,'Zebrik W'!$B$7:$L$1002,11,0))) -> 
A199: 193 | B199: Jiri Pesta | C199: 1973 | D199: Dvůr Králové | E199: CZ/C2 | F199: M | G199: 2 | H199: 11141 | M199: =IF(ISERROR(VLOOKUP(B199,'Zebrik W'!$B$7:$L$1002,11,0)),"",IF(VLOOKUP(B199,'Zebrik W'!$B$7:$L$1002,11,0)=0,"--",VLOOKUP(B199,'Zebrik W'!$B$7:$L$1002,11,0))) -> 
A200: =RANK(H200,H:H) -> 194 | B200: Martin Valenta | C200: 1969 | D200: Toužim | E200: CZ/C1 | F200: M | G200: 2 | H200: 11139 | I200: =IF(C200="(prázdné)","",IF(($I$4-C200)>25,"","Junior v roce "&$I$4)) ->  | J200: =IF(C200="(prázdné)","",IF(($J$4-C200)>25,"","Junior v roce "&$J$4)) ->  | M200: =IF(ISERROR(VLOOKUP(B200,'Zebrik W'!$B$7:$L$1002,11,0)),"",IF(VLOOKUP(B200,'Zebrik W'!$B$7:$L$1002,11,0)=0,"--",VLOOKUP(B200,'Zebrik W'!$B$7:$L$1002,11,0))) -> 
A201: 195 | B201: Marek Blatak | C201: 1969 | D201: Šumperk | E201: CZ/M | F201: M | G201: 2 | H201: 11092 | M201: =IF(ISERROR(VLOOKUP(B201,'Zebrik W'!$B$7:$L$1002,11,0)),"",IF(VLOOKUP(B201,'Zebrik W'!$B$7:$L$1002,11,0)=0,"--",VLOOKUP(B201,'Zebrik W'!$B$7:$L$1002,11,0))) -> 
... 269 more rows

Sheet Zebrik W
B1: ="Ženský Žebřík pilotek plachtařek PK AeČR "&A6 -> Ženský Žebřík pilotek plachtařek PK AeČR 2018 | G1: ='Zebrik G'!G1 -> 2018-10-28 | H1: Rev. | I1: ='Zebrik G'!I1 -> 01 | J1: ='Zebrik G'!J1 -> Upravené koeficienty soutěží
B3: W | C3: x | I3: Juniorka v roce: | J3: Juniorka v roce: | K3: ="W Repre družstvo "&I4 -> W Repre družstvo 2019 | L3: ="W Repre výběr "&I4 -> W Repre výběr 2019 | M3: Poznámka
I4: =A6+1 -> 2019 | J4: =A6+2 -> 2020 | K4: (WRD) | L4: (WRV)
A5: Pořadí | G5: Data | I5: =COUNTIF(I7:I499,"Juniorka v roce "&$I$4) -> 8 | J5: =COUNTIF(J7:J499,"Juniorka v roce "&$J$4) -> 6 | K5: =COUNTIF(K7:K499,"WRD "&$I$4) -> 0 | L5: =COUNTIF(L7:L499,"WRV "&$I$4) -> 9 | M5: =COUNTIF(M7:M499,"<>") -> 0
A6: ='Zebrik G'!A6 -> 2018 | B6: Jméno | C6: Rok narození | D6: Aeroklub | E6: Region | F6: M/F | G6: Počet W | H6: Součet z Bi×Kn
A7: =RANK(H7,H:H) -> 1 | B7: Jana Veprekova | C7: 1961 | D7: Dvůr Králové | E7: CZ/C2 | F7: F | G7: 3 | H7: 28282 | I7: =IF(C7="(prázdné)","",IF(($I$4-C7)>25,"","Juniorka v roce "&$I$4)) ->  | J7: =IF(C7="(prázdné)","",IF(($J$4-C7)>25,"","Juniorka v roce "&$J$4)) ->  | K7: RD 2019 | L7: WRV 2019
A8: 2 | B8: Dana Novakova | C8: 1965 | D8: Mladá Boleslav | E8: CZ/C1 | F8: F | G8: 3 | H8: 27005 | I8: =IF(C8="(prázdné)","",IF(($I$4-C8)>25,"","Juniorka v roce "&$I$4)) ->  | J8: =IF(C8="(prázdné)","",IF(($J$4-C8)>25,"","Juniorka v roce "&$J$4)) ->  | K8: RD 2019 | L8: WRV 2019
A9: 3 | B9: Alena Netusilova | C9: 1970 | D9: Zbraslavice | E9: CZ/C1 | F9: F | G9: 3 | H9: 26790 | K9: RD 2019 | L9: WRV 2019
A10: 4 | B10: Hana Treslova | C10: 1991 | D10: Raná | E10: CZ/C2 | F10: F | G10: 3 | H10: 26439 | K10: RD 2019 | L10: WRV 2019
A11: 5 | B11: Klara Teichmannova | C11: 1993 | D11: Hronov | E11: CZ/C2 | F11: F | G11: 3 | H11: 26283 | K11: RD 2019 | L11: WRV 2019
A12: 6 | B12: Barbora Moravcova | C12: 1994 | D12: Zbraslavice | E12: CZ/C1 | F12: F | G12: 3 | H12: 24573 | I12: Juniorka v roce 2019 | K12: RD 2019 | L12: WRV 2019
A13: 7 | B13: Jana Treslova | C13: 1963 | D13: Raná | E13: CZ/C2 | F13: F | G13: 3 | H13: 24325 | K13: RD 2019 | L13: WRV 2019
A14: 8 | B14: Petra Piskata | C14: 1989 | D14: Hranice | E14: CZ/M | F14: F | G14: 3 | H14: 23552 | K14: RD 2019 | L14: WRV 2019
A15: 9 | B15: Lenka Kuthanova | C15: 1960 | D15: LK Břeclav | E15: CZ/M | F15: F | G15: 3 | H15: 23033 | K15: RD 2019 | L15: WRV 2019
A16: 10 | B16: Anna Hajkova | C16: 1989 | D16: Mladá Boleslav | E16: CZ/C1 | F16: F | G16: 3 | H16: 20248
A17: 11 | B17: Pavlina Horackova | C17: 1965 | D17: Šumperk | E17: CZ/M | F17: F | G17: 3 | H17: 19846
A18: 12 | B18: Eva Cerna | C18: 1964 | D18: Příbram | E18: CZ/C1 | F18: F | G18: 3 | H18: 18981
A19: 13 | B19: Katerina Vojtova | C19: 1983 | D19: Slaný | E19: CZ/C1 | F19: F | G19: 3 | H19: 13083
A20: 14 | B20: Barbora Kubickova | C20: 1993 | D20: Medlánky | E20: CZ/M | F20: F | G20: 3 | H20: 12394
A21: 15 | B21: Sarka Lochova | C21: 1966 | D21: Šumperk | E21: CZ/M | F21: F | G21: 3 | H21: 10830
A22: 16 | B22: Tereza Koubkova | C22: 1999 | D22: Letňany | E22: CZ/C1 | F22: F | G22: 2 | H22: 10213 | I22: Juniorka v roce 2019 | J22: Juniorka v roce 2020
A23: 17 | B23: Radmila Horacek Filakovska | C23: 1963 | D23: Dvůr Králové | E23: CZ/C2 | F23: F | G23: 3 | H23: 8838
A24: 18 | B24: Olga Mokosova | C24: 1970 | D24: Jihlava | E24: CZ/M | F24: F | G24: 3 | H24: 8503
A25: 19 | B25: Yvona Vyhnankova | C25: 1963 | D25: Olomouc | E25: CZ/M | F25: F | G25: 3 | H25: 8396
A26: 20 | B26: Linda Vasatova | C26: 1990 | D26: Mladá Boleslav | E26: CZ/C1 | F26: F | G26: 2 | H26: 8093
A27: 21 | B27: Veronika Ambrozova | C27: 1984 | D27: Křižanov | E27: CZ/M | F27: F | G27: 2 | H27: 7942
A28: 22 | B28: Petra Diepoldova | C28: 1978 | D28: Vysoké Mýto | E28: CZ/C2 | F28: F | G28: 3 | H28: 7869
A29: 23 | B29: Zuzana Kutilkova | C29: 1993 | D29: Křižanov | E29: CZ/M | F29: F | G29: 3 | H29: 7554
A30: 24 | B30: Jana Mezerova | C30: 1975 | D30: Raná | E30: CZ/C2 | F30: F | G30: 3 | H30: 7516
A31: 25 | B31: Jarmila Zatykova | C31: 1959 | D31: Kralupy | E31: CZ/C1 | F31: F | G31: 3 | H31: 6221
A32: 26 | B32: Tereza Novakova | C32: 1993 | D32: Chrudim | E32: CZ/C2 | F32: F | G32: 3 | H32: 5958
A33: 27 | B33: Milada Moudra | C33: 1991 | D33: Hodkovice | E33: CZ/C2 | F33: F | G33: 2 | H33: 5356
A34: 28 | B34: Sabina Vitova | C34: 1998 | D34: Kroměříž | E34: CZ/M | F34: F | G34: 3 | H34: 4921 | I34: Juniorka v roce 2019 | J34: Juniorka v roce 2020
A35: 29 | B35: Monika Jiraskova | C35: 1994 | D35: Hronov | E35: CZ/C2 | F35: F | G35: 1 | H35: 4679 | I35: Juniorka v roce 2019
A36: 30 | B36: Jana Krejcova | C36: 1972 | D36: Křižanov | E36: CZ/M | F36: F | G36: 1 | H36: 4331
A37: 31 | B37: Kristina Santruckova | C37: 1996 | D37: Podhořany | E37: CZ/C2 | F37: F | G37: 2 | H37: 4011 | I37: Juniorka v roce 2019 | J37: Juniorka v roce 2020
A38: 32 | B38: Michaela Sirmerova | C38: 2000 | D38: Jihlava | E38: CZ/M | F38: F | G38: 1 | H38: 3808 | I38: Juniorka v roce 2019 | J38: Juniorka v roce 2020
A39: 33 | B39: Zuzana Markesova | C39: 2001 | D39: Medlánky | E39: CZ/M | F39: F | G39: 1 | H39: 2409 | I39: Juniorka v roce 2019 | J39: Juniorka v roce 2020
A40: 34 | B40: Tereza Jirsakova | C40: 1997 | D40: Hronov | E40: CZ/C2 | F40: F | G40: 1 | H40: 2173 | I40: Juniorka v roce 2019 | J40: Juniorka v roce 2020
A41: 35 | B41: Petra Retamozova | C41: 1990 | D41: Kralupy | E41: CZ/C1 | F41: F | G41: 1 | H41: 1094
A44: =Soutez!A155 -> Schváleno Plachtařskou komisí AeČR dne 4.11.2018 ve Vysokém Mýtě

Sheet KB PMRg 2016
A1: PMRg 2016 - Zbraslavice - Korigované body
A2: Pořadí v KB | B2: Jméno | C2: Rok narození | D2: Aeroklub | E2: Region | F2: Soutěž | G2: Pořadí ve třídě | H2: Body ve třídě | I2: Max. B ve třídě | J2: Bi | K2: Typ | L2: CN | M2: M/F | N2: Junior
A3: =RANK(J3,J:J) -> 1 | B3: Pavel Trybenekr | C3: 1990 | D3: Hořice | E3: CZ/C2 | F3: PMRg 2016 - Klub | G3: 1 | H3: 5330 | I3: 5330 | J3: 10000 | K3: LS 4 | L3: PF | M3: M
A4: 1 | B4: Petr Tichý | C4: 1973 | D4: Zbraslavice | E4: CZ/C1 | F4: PMRg 2016 - Kombi | G4: 1 | H4: 5070 | I4: 5070 | J4: 10000 | K4: ASG-29E 18m 600kg | L4: AJ | M4: M
A5: 3 | B5: Jaroslav Tomaňa | C5: 1975 | D5: Zbraslavice | E5: CZ/C1 | F5: PMRg 2016 - Klub | G5: 2 | H5: 5183 | I5: 5330 | J5: 9724 | K5: Std. Cirrus | L5: SN | M5: M
A6: 4 | B6: Petr Krejčiřík | C6: 1960 | D6: Hranice | E6: CZ/M | F6: PMRg 2016 - Kombi | G6: 2 | H6: 4876 | I6: 5070 | J6: 9617 | K6: JS-1C EVO 18m | L6: AX | M6: M
A7: 5 | B7: Jan Koťan | C7: 1982 | D7: Letňany | E7: CZ/C1 | F7: PMRg 2016 - Klub | G7: 3 | H7: 5084 | I7: 5330 | J7: 9538 | K7: ASW-19B | L7: WT | M7: M
A8: 6 | B8: Jan Horák | C8: 1971 | D8: Zbraslavice | E8: CZ/C1 | F8: PMRg 2016 - Klub | G8: 4 | H8: 4920 | I8: 5330 | J8: 9231 | K8: ASW-15B | L8: TX | M8: M
A9: 7 | B9: Ondřej Šindelář | C9: 1979 | D9: Mladá Boleslav | E9: CZ/C1 | F9: PMRg 2016 - Klub | G9: 5 | H9: 4904 | I9: 5330 | J9: 9201 | K9: ASW-19B | L9: OI | M9: M
A10: 8 | B10: Jana Vepřeková | C10: 1961 | D10: Dvůr Králové | E10: CZ/C2 | F10: PMRg 2016 - Kombi | G10: 3 | H10: 4549 | I10: 5070 | J10: 8972 | K10: LS-8b 15m | L10: W8 | M10: F
A11: 9 | B11: Lukáš Plocek | C11: 1990 | D11: Mladá Boleslav | E11: CZ/C1 | F11: PMRg 2016 - Klub | G11: 6 | H11: 4651 | I11: 5330 | J11: 8726 | K11: ASW-15B | L11: MB | M11: M
A12: 10 | B12: Dana Nováková | C12: 1965 | D12: Mladá Boleslav | E12: CZ/C1 | F12: PMRg 2016 - Kombi | G12: 4 | H12: 4418 | I12: 5070 | J12: 8714 | K12: LS-8b 15m | L12: FX | M12: F
A13: 11 | B13: Jan Viskot | C13: 1995 | D13: Břeclav | E13: CZ/M | F13: PMRg 2016 - Klub | G13: 7 | H13: 4640 | I13: 5330 | J13: 8705 | K13: Std. Cirrus | L13: W | M13: M | N13: Junior v roce 2017
A14: 12 | B14: Marek Švancara | C14: 1976 | D14: GAC Benešov | E14: CZ/C1 | F14: PMRg 2016 - Klub | G14: 8 | H14: 4606 | I14: 5330 | J14: 8642 | K14: Std. Cirrus | L14: GT | M14: M
A15: 13 | B15: Richard Vlček | C15: 1993 | D15: Kunovice | E15: CZ/M | F15: PMRg 2016 - Klub | G15: 9 | H15: 4598 | I15: 5330 | J15: 8627 | K15: Std. Cirrus | L15: OK | M15: M | N15: Junior v roce 2017
A16: 14 | B16: Jakub Hlaváček | C16: 1991 | D16: Letkov | E16: CZ/C1 | F16: PMRg 2016 - Klub | G16: 10 | H16: 4462 | I16: 5330 | J16: 8371 | K16: Std. Cirrus | L16: 75 | M16: M
A17: 15 | B17: Hana Trešlová | C17: 1991 | D17: Raná | E17: CZ/C2 | F17: PMRg 2016 - Kombi | G17: 5 | H17: 4233 | I17: 5070 | J17: 8349 | K17: Discus 2a 15m | L17: GX | M17: F
A18: 16 | B18: Karel Novák | C18: 1993 | D18: Mladá Boleslav | E18: CZ/C1 | F18: PMRg 2016 - Kombi | G18: 6 | H18: 4039 | I18: 5070 | J18: 7966 | K18: LS-8b 15m | L18: JB | M18: M | N18: Junior v roce 2017
A19: 17 | B19: František Filandr | C19: 1956 | D19: Most | E19: CZ/C2 | F19: PMRg 2016 - Klub | G19: 11 | H19: 4123 | I19: 5330 | J19: 7735 | K19: Std. Cirrus | L19: FF | M19: M
A20: 18 | B20: Michal Krupička | C20: 1975 | D20: Most | E20: CZ/C2 | F20: PMRg 2016 - Klub | G20: 12 | H20: 4049 | I20: 5330 | J20: 7597 | K20: Std. Cirrus | L20: K | M20: M
A21: 19 | B21: Karel Knotek | C21: 1961 | D21: Soběslav | E21: CZ/C1 | F21: PMRg 2016 - Klub | G21: 13 | H21: 4028 | I21: 5330 | J21: 7557 | K21: ASW-19B | L21: SO | M21: M
A22: 20 | B22: Nina Shalneva | D22: Novosibirsk Aviaclub | E22: RU | F22: PMRg 2016 - Klub | G22: 14 | H22: 3967 | I22: 5330 | J22: 7443 | K22: Std. Cirrus | L22: XC | M22: F | N22: Není v databázi
A23: 21 | B23: Jan Šmaha | C23: 1958 | D23: Česká Lípa | E23: CZ/C2 | F23: PMRg 2016 - Klub | G23: 15 | H23: 3749 | I23: 5330 | J23: 7034 | K23: ASW -15B | L23: CW | M23: M
A24: 22 | B24: Lenka Kuthanová | C24: 1960 | D24: Letecký klub Břeclav | E24: CZ/M | F24: PMRg 2016 - Kombi | G24: 7 | H24: 3552 | I24: 5070 | J24: 7006 | K24: ASG 29E 18m 600kg | L24: QX | M24: F
A25: 23 | B25: Jan Červený | C25: 1984 | D25: Jaroměř | E25: CZ/C2 | F25: PMRg 2016 - Klub | G25: 16 | H25: 3729 | I25: 5330 | J25: 6996 | K25: LS 3a 15m | L25: EI | M25: M
A26: 24 | B26: Martin Pekař | C26: 1973 | D26: Šumperk | E26: CZ/M | F26: PMRg 2016 - Kombi | G26: 8 | H26: 3459 | I26: 5070 | J26: 6822 | K26: HpH 304e Shark 18m 573kg | L26: ES | M26: M
A27: 25 | B27: Jiří Fousek | C27: 1990 | D27: Raná | E27: CZ/C2 | F27: PMRg 2016 - Klub | G27: 17 | H27: 3634 | I27: 5330 | J27: 6818 | K27: Std. Cirrus | L27: LW | M27: M
A28: 26 | B28: Irina Gajnulova | D28: Kazan Avioclub | E28: RU | F28: PMRg 2016 - Klub | G28: 18 | H28: 3622 | I28: 5330 | J28: 6795 | K28: SZD-48 Jantar Std.2 | L28: SP | M28: F | N28: Není v databázi
A29: 27 | B29: Ladislav Józsa | C29: 1981 | D29: Medlánky | E29: CZ/M | F29: PMRg 2016 - Klub | G29: 19 | H29: 3615 | I29: 5330 | J29: 6782 | K29: Std. Cirrus | L29: LJ | M29: M
A30: 28 | B30: Pavlína Horáčková | C30: 1965 | D30: Šumperk | E30: CZ/M | F30: PMRg 2016 - Klub | G30: 20 | H30: 3608 | I30: 5330 | J30: 6769 | K30: SZD-48 Jantar Std 2 | L30: SU | M30: F
A31: 29 | B31: Barbora Moravcová | C31: 1994 | D31: Zbraslavice | E31: CZ/C1 | F31: PMRg 2016 - Klub | G31: 21 | H31: 3570 | I31: 5330 | J31: 6698 | K31: ASW-15B | L31: JJ | M31: F | N31: Junior v roce 2017
A32: 30 | B32: Linda Vašatová | C32: 1990 | D32: Mladá Boleslav | E32: CZ/C1 | F32: PMRg 2016 - Klub | G32: 22 | H32: 3566 | I32: 5330 | J32: 6690 | K32: ASW-19B | L32: AH | M32: F
A33: 31 | B33: Daniel Ryba | C33: 1994 | D33: Dvůr Králové | E33: CZ/C2 | F33: PMRg 2016 - Klub | G33: 23 | H33: 3553 | I33: 5330 | J33: 6666 | K33: Cirrus VTC | L33: VE | M33: M | N33: Junior v roce 2017
A34: 32 | B34: Eva Černá | C34: 1964 | D34: Příbram | E34: CZ/C1 | F34: PMRg 2016 - Kombi | G34: 9 | H34: 3378 | I34: 5070 | J34: 6663 | K34: Ventus 2cxt 18m 600kg | L34: EK | M34: F
A35: =RANK(J35,J:J) -> 33 | B35: Jana Trešlová | C35: 1963 | D35: Raná | E35: CZ/C2 | F35: PMRg 2016 - Kombi | G35: 10 | H35: 3263 | I35: 5070 | J35: 6436 | K35: ASG-29E 18m 600kg | L35: QZ | M35: F
A36: 34 | B36: Klára Teichmannová | C36: 1993 | D36: Hronov | E36: CZ/C2 | F36: PMRg 2016 - Klub | G36: 24 | H36: 3271 | I36: 5330 | J36: 6137 | K36: Std. Cirrus | L36: LY | M36: F | N36: Junior v roce 2017
A37: 35 | B37: Lukáš Koukal | C37: 1991 | D37: Kladno | E37: CZ/C1 | F37: PMRg 2016 - Klub | G37: 25 | H37: 3179 | I37: 5330 | J37: 5964 | K37: ASW-15B | L37: T1 | M37: M
A38: 36 | B38: Lubor Zelený | C38: 1957 | D38: Přibyslav | E38: CZ/C2 | F38: PMRg 2016 - Klub | G38: 26 | H38: 3169 | I38: 5330 | J38: 5946 | K38: Std. Cirrus | L38: AW | M38: M
A39: 37 | B39: Jan Florián | C39: 1992 | D39: Zbraslavice | E39: CZ/C1 | F39: PMRg 2016 - Klub | G39: 27 | H39: 3135 | I39: 5330 | J39: 5882 | K39: Std. Cirrus | L39: C1 | M39: M | N39: Junior v roce 2017
A40: 38 | B40: Tomáš Frinta | C40: 1970 | D40: Hodkovice | E40: CZ/C2 | F40: PMRg 2016 - Klub | G40: 28 | H40: 3084 | I40: 5330 | J40: 5786 | K40: ASW-19B | L40: CF | M40: M
A41: 39 | B41: Alena Netušilová | C41: 1970 | D41: Zbraslavice | E41: CZ/C1 | F41: PMRg 2016 - Kombi | G41: 11 | H41: 2869 | I41: 5070 | J41: 5659 | K41: JS-1 CTJ 18m | L41: JX | M41: F
A42: 40 | B42: Martin Kříž | C42: 1968 | D42: Přibyslav | E42: CZ/C2 | F42: PMRg 2016 - Klub | G42: 29 | H42: 2738 | I42: 5330 | J42: 5137 | K42: ASW-15B | L42: BE | M42: M
A43: 41 | B43: Jindřich Hruška | C43: 1986 | D43: Soběslav | E43: CZ/C1 | F43: PMRg 2016 - Klub | G43: 30 | H43: 2606 | I43: 5330 | J43: 4889 | K43: 303 Mosquito | L43: UFO | M43: M
A44: 42 | B44: Lukáš Čapek | C44: 1992 | D44: Letňany | E44: CZ/C1 | F44: PMRg 2016 - Klub | G44: 31 | H44: 2515 | I44: 5330 | J44: 4719 | K44: 303 Mosquito | L44: LC | M44: M | N44: Junior v roce 2017
A45: 43 | B45: Veronika Ambrožová | C45: 1984 | D45: Křižanov | E45: CZ/M | F45: PMRg 2016 - Klub | G45: 32 | H45: 2391 | I45: 5330 | J45: 4486 | K45: ASW-15B | L45: 17 | M45: F
A46: 44 | B46: Leoš Strnádek | C46: 1983 | D46: Hodkovice | E46: CZ/C2 | F46: PMRg 2016 - Klub | G46: 33 | H46: 2311 | I46: 5330 | J46: 4336 | K46: ASW-19B | L46: AFK | M46: M
A47: 45 | B47: Radim Vadász | C47: 1989 | D47: Soběslav | E47: CZ/C1 | F47: PMRg 2016 - Klub | G47: 34 | H47: 2305 | I47: 5330 | J47: 4325 | K47: ASW-15A | L47: ASW | M47: M
A48: 46 | B48: Olga Mokošová | C48: 1970 | D48: Jihlava | E48: CZ/M | F48: PMRg 2016 - Kombi | G48: 12 | H48: 2156 | I48: 5070 | J48: 4252 | K48: LS-6c 18m+W | L48: MM | M48: F
A49: 47 | B49: Petr Fryček | C49: 1960 | D49: Most | E49: CZ/C2 | F49: PMRg 2016 - Kombi | G49: 13 | H49: 2148 | I49: 5070 | J49: 4237 | K49: Nimbus 3/25.5m 700kg | L49: F | M49: M
A50: 48 | B50: Jan Vožeh | C50: 1995 | D50: Rakovník | E50: CZ/C1 | F50: PMRg 2016 - Klub | G50: 35 | H50: 1959 | I50: 5330 | J50: 3675 | K50: Std. Cirrus | L50: OG | M50: M | N50: Junior v roce 2017
A51: 49 | B51: Pavel Líska | C51: 1965 | D51: Roudnice | E51: CZ/C2 | F51: PMRg 2016 - Klub | G51: 36 | H51: 1434 | I51: 5330 | J51: 2690 | K51: ASW-19B | L51: RCE | M51: M
A52: 50 | B52: Petr Filip | C52: 1982 | D52: Zbraslavice | E52: CZ/C1 | F52: PMRg 2016 - Klub | G52: 37 | H52: 940 | I52: 5330 | J52: 1764 | K52: G-102 Astir CS | L52: MV | M52: M
A53: 51 | B53: Vilém Říha | C53: 1990 | D53: Letňany | E53: CZ/C1 | F53: PMRg 2016 - Klub | G53: 38 | H53: 778 | I53: 5330 | J53: 1460 | K53: VSO-10 | L53: G8 | M53: M
A54: 52 | B54: Jaroslav Palička | C54: 1992 | D54: Frýdlant | E54: CZ/M | F54: PMRg 2016 - Klub | G54: 39 | H54: 288 | I54: 5330 | J54: 540 | K54: G-102 Astir CS | L54: W7 | M54: M | N54: Junior v roce 2017
A57: Schváleno Plachtařskou komisí AeČR dne 26.2.2017 ve Vysokém Mýtě

Sheet KB PMRg 2017
A1: PMRg 2017 - Křižanov - Korigované body
A2: Pořadí v KB | B2: Jméno | C2: Rok narození | D2: Aeroklub | E2: Region | F2: Soutěž | G2: Pořadí ve třídě | H2: Body ve třídě | I2: Max. B ve třídě | J2: Bi | K2: Typ | L2: CN | M2: M/F | N2: Junior
A3: =RANK(J3,J:J) -> 1 | B3: Ivan Novak | C3: =VLOOKUP(B3,Pilot,2,0) -> 1962 | D3: =VLOOKUP(B3,Pilot,3,0) -> Mladá Boleslav | E3: =VLOOKUP(B3,Pilot,4,0) -> CZ/C1 | F3: PMRg 2017 - Klub | G3: 1 | H3: 5132 | I3: 5132 | J3: =ROUND(H3/I3*10000,0) -> 10000 | K3: Std. Cirrus | L3: DI | M3: =VLOOKUP(B3,Pilot,5,0) -> M | N3: =IF(ISERROR(VLOOKUP(B3,Pilot,6,0)),"Není v databázi",VLOOKUP(B3,Pilot,6,0)) -> 
A4: 1 | B4: Karel Mares | C4: 1974 | D4: Slaný | E4: CZ/C1 | F4: PMRg 2017 - Kombi | G4: 1 | H4: 5750 | I4: 5750 | J4: 10000 | K4: Ventus c /17,6m (voda) | L4: 7F | M4: M
A5: 3 | B5: Hana Treslova | C5: 1991 | D5: Raná | E5: CZ/C2 | F5: PMRg 2017 - Klub | G5: 2 | H5: 5049 | I5: 5132 | J5: 9838 | K5: Std. Cirrus | L5: CI | M5: F
A6: 4 | B6: Daniel Ryba | C6: 1994 | D6: Dvůr Králové | E6: CZ/C2 | F6: PMRg 2017 - Klub | G6: 3 | H6: 5030 | I6: 5132 | J6: 9801 | K6: ASW-19B | L6: L7 | M6: M | N6: Junior v roce 2019
A7: 5 | B7: Josef Novotny | C7: 1983 | D7: Přibyslav | E7: CZ/C2 | F7: PMRg 2017 - Klub | G7: 4 | H7: 4967 | I7: 5132 | J7: 9678 | K7: Std. Cirrus | L7: AW | M7: M
A8: 6 | B8: Leos Strnadek | C8: 1983 | D8: Hodkovice | E8: CZ/C2 | F8: PMRg 2017 - Klub | G8: 5 | H8: 4958 | I8: 5132 | J8: 9661 | K8: ASW-19B | L8: XZ | M8: M
A9: 7 | B9: Zdenek Boruvka 54 | C9: 1954 | D9: Jičín | E9: CZ/C2 | F9: PMRg 2017 - Kombi | G9: 2 | H9: 5538 | I9: 5750 | J9: 9631 | K9: LS 8,a,b,s,st,18 /15m (voda) | L9: ZB | M9: M
A10: 8 | B10: Marek Svancara | C10: 1976 | D10: GAC Benešov | E10: CZ/C1 | F10: PMRg 2017 - Klub | G10: 6 | H10: 4925 | I10: 5132 | J10: 9597 | K10: Std. Cirrus | L10: GT | M10: M
A11: 9 | B11: Zdenek Balcarek | C11: 1967 | D11: Kroměříž | E11: CZ/M | F11: PMRg 2017 - Klub | G11: 7 | H11: 4908 | I11: 5132 | J11: 9564 | K11: Std. Cirrus | L11: ZL | M11: M
A12: 10 | B12: Lubomir Motl | C12: 1959 | D12: Kyjov | E12: CZ/M | F12: PMRg 2017 - Klub | G12: 8 | H12: 4863 | I12: 5132 | J12: 9476 | K12: LS-1f | L12: G2 | M12: M
A13: 11 | B13: Zdenek Boruvka 86 | C13: 1986 | D13: Jičín | E13: CZ/C2 | F13: PMRg 2017 - Klub | G13: 9 | H13: 4830 | I13: 5132 | J13: 9412 | K13: Std. Cirrus | L13: BJ | M13: M
A14: 12 | B14: Jana Veprekova | C14: 1961 | D14: Dvůr Králové | E14: CZ/C2 | F14: PMRg 2017 - Kombi | G14: 3 | H14: 5410 | I14: 5750 | J14: 9409 | K14: LS 8,a,b,s,st,18 /15m (voda) | L14: AU | M14: F
A15: 13 | B15: Frantisek Marek | C15: 1960 | D15: Křižanov | E15: CZ/M | F15: PMRg 2017 - Kombi | G15: 4 | H15: 5355 | I15: 5750 | J15: 9313 | K15: T-59D Kestrel 19m (voda) | L15: XJ | M15: M
A16: 14 | B16: Petr Hotovy | C16: 1958 | D16: Česká Lípa | E16: CZ/C2 | F16: PMRg 2017 - Kombi | G16: 5 | H16: 5341 | I16: 5750 | J16: 9289 | K16: HpH 304M SHARK (600kg) /18m (voda) | L16: MH | M16: M
A17: 15 | B17: Dana Novakova | C17: 1965 | D17: Mladá Boleslav | E17: CZ/C1 | F17: PMRg 2017 - Kombi | G17: 6 | H17: 5307 | I17: 5750 | J17: 9230 | K17: LS 8,a,b,s,st,18 /15m (voda) | L17: EU | M17: F
A18: 16 | B18: Michal Navratil | C18: 1985 | D18: Křižanov | E18: CZ/M | F18: PMRg 2017 - Klub | G18: 10 | H18: 4718 | I18: 5132 | J18: 9193 | K18: Std. Cirrus | L18: IJ | M18: M
A19: 17 | B19: Jana Treslova | C19: 1963 | D19: Raná | E19: CZ/C2 | F19: PMRg 2017 - Kombi | G19: 7 | H19: 5212 | I19: 5750 | J19: 9064 | K19: Ventus bt /16,6m (voda) | L19: VT | M19: F
A20: 18 | B20: Matej Krestes | C20: 1986 | D20: Slaný | E20: CZ/C1 | F20: PMRg 2017 - Klub | G20: 11 | H20: 4435 | I20: 5132 | J20: 8642 | K20: Centrair C-201B Marianne | L20: II | M20: M
A21: 19 | B21: Michal Krupicka | C21: 1975 | D21: Most | E21: CZ/C2 | F21: PMRg 2017 - Klub | G21: 12 | H21: 4320 | I21: 5132 | J21: 8418 | K21: Std. Cirrus | L21: K | M21: M
A22: 20 | B22: David Sachl | C22: 1978 | D22: Kralupy | E22: CZ/C1 | F22: PMRg 2017 - Klub | G22: 13 | H22: 4288 | I22: 5132 | J22: 8355 | K22: DG-200 15m | L22: RZ | M22: M
A23: 21 | B23: Antonin Novotny | C23: 1972 | D23: Luhačovice | E23: CZ/M | F23: PMRg 2017 - Klub | G23: 14 | H23: 4237 | I23: 5132 | J23: 8256 | K23: Std. Cirrus | L23: SP | M23: M
A24: 22 | B24: Petr Panek | C24: 1975 | D24: Dvůr Králové | E24: CZ/C2 | F24: PMRg 2017 - Klub | G24: 15 | H24: 4216 | I24: 5132 | J24: 8215 | K24: Std. Cirrus | L24: YU | M24: M
A25: 23 | B25: Jan Smaha | C25: 1958 | D25: Česká Lípa | E25: CZ/C2 | F25: PMRg 2017 - Klub | G25: 16 | H25: 4189 | I25: 5132 | J25: 8163 | K25: ASW-15B | L25: CW | M25: M
A26: 24 | B26: Karel Knotek | C26: 1961 | D26: Soběslav | E26: CZ/C1 | F26: PMRg 2017 - Klub | G26: 17 | H26: 4171 | I26: 5132 | J26: 8127 | K26: ASW-19B | L26: SO | M26: M
A27: 25 | B27: Vaclav Marel | C27: 1974 | D27: Jaroměř | E27: CZ/C2 | F27: PMRg 2017 - Klub | G27: 18 | H27: 4162 | I27: 5132 | J27: 8110 | K27: Std. Cirrus | L27: IF | M27: M
A28: 26 | B28: Jaroslav Buryan | C28: 1953 | D28: Zábřeh | E28: CZ/M | F28: PMRg 2017 - Kombi | G28: 8 | H28: 4600 | I28: 5750 | J28: 8000 | K28: ASW-20 (A)+F /15m WL (voda) | L28: NS | M28: M
A29: 27 | B29: Radek Zima 78 | C29: 1978 | D29: Hodkovice | E29: CZ/C2 | F29: PMRg 2017 - Kombi | G29: 9 | H29: 4578 | I29: 5750 | J29: 7962 | K29: Ventus b /16,6m WL (voda) | L29: 7E | M29: M
A30: 28 | B30: Radim Vadasz | C30: 1989 | D30: Soběslav | E30: CZ/C1 | F30: PMRg 2017 - Klub | G30: 19 | H30: 4066 | I30: 5132 | J30: 7923 | K30: ASW-15 | L30: ASW | M30: M
A31: 29 | B31: Barbora Moravcova | C31: 1994 | D31: Zbraslavice | E31: CZ/C1 | F31: PMRg 2017 - Klub | G31: 20 | H31: 4020 | I31: 5132 | J31: 7833 | K31: ASW-19B | L31: CF | M31: F | N31: Junior v roce 2019
A32: 30 | B32: Jan Vozeh | C32: 1995 | D32: Rakovník | E32: CZ/C1 | F32: PMRg 2017 - Klub | G32: 21 | H32: 3978 | I32: 5132 | J32: 7751 | K32: Std. Cirrus | L32: OG | M32: M | N32: Junior v roce 2019
A33: 31 | B33: Dusan Gadas | C33: 1960 | D33: Hranice | E33: CZ/M | F33: PMRg 2017 - Kombi | G33: 10 | H33: 4309 | I33: 5750 | J33: 7494 | K33: LAK 17B FES /21m (voda) | L33: TF | M33: M
A34: 32 | B34: Zdenek Schenk | C34: 1972 | D34: Hranice | E34: CZ/M | F34: PMRg 2017 - Kombi | G34: 11 | H34: 4269 | I34: 5750 | J34: 7424 | K34: Ventus ct /17,6m (voda) | L34: ŠNeK | M34: M
A35: =RANK(J35,J:J) -> 33 | B35: Jan Zapletal | C35: 1997 | D35: Kroměříž | E35: CZ/M | F35: PMRg 2017 - Kombi | G35: 12 | H35: 4267 | I35: 5750 | J35: =ROUND(H35/I35*10000,0) -> 7421 | K35: Discus 2b /15m (voda) | L35: SH | M35: M | N35: =IF(ISERROR(VLOOKUP(B35,Pilot,6,0)),"Není v databázi",VLOOKUP(B35,Pilot,6,0)) -> Junior v roce 2019
A36: 34 | B36: Jan Zahradka | C36: 1981 | D36: Hodkovice | E36: CZ/C2 | F36: PMRg 2017 - Klub | G36: 22 | H36: 3792 | I36: 5132 | J36: 7389 | K36: Std. Cirrus | L36: UB | M36: M
A37: 35 | B37: Ivan Bajana | D37: Martin | E37: SK | F37: PMRg 2017 - Klub | G37: 23 | H37: 3775 | I37: 5132 | J37: 7356 | K37: Std. Cirrus WL | L37: DZ | M37: M | N37: Není v databázi
A38: 36 | B38: Petr Rajda | C38: =VLOOKUP(B38,Pilot,2,0) -> 1970 | D38: =VLOOKUP(B38,Pilot,3,0) -> Křižanov | E38: =VLOOKUP(B38,Pilot,4,0) -> CZ/M | F38: PMRg 2017 - Klub | G38: 24 | H38: 3773 | I38: 5132 | J38: 7352 | K38: DG-200 15m | L38: CK | M38: =VLOOKUP(B38,Pilot,5,0) -> M
A39: 37 | B39: Miroslav Kudlacek | C39: 1986 | D39: Polička | E39: CZ/C2 | F39: PMRg 2017 - Klub | G39: 25 | H39: 3650 | I39: 5132 | J39: 7112 | K39: ASW-24("A") WL (-bez modif TN8) | L39: SM | M39: M
A40: 38 | B40: Pavel Koudelka | C40: 1973 | D40: Křižanov | E40: CZ/M | F40: PMRg 2017 - Klub | G40: 26 | H40: 3529 | I40: 5132 | J40: 6876 | K40: LS-1f | L40: R7 | M40: M
A41: 39 | B41: Marek Pechanec | C41: 1970 | D41: Luhačovice | E41: CZ/M | F41: PMRg 2017 - Klub | G41: 27 | H41: 3510 | I41: 5132 | J41: 6839 | K41: Std. Cirrus | L41: SJ | M41: M
A42: 40 | B42: Ivan Tvrdik | C42: 1997 | D42: Letňany | E42: CZ/C1 | F42: PMRg 2017 - Klub | G42: 28 | H42: 3476 | I42: 5132 | J42: 6773 | K42: ASW-19B | L42: IHD | M42: M | N42: Junior v roce 2019
A43: 41 | B43: Jiri Peterka | C43: 1951 | D43: Křižanov | E43: CZ/M | F43: PMRg 2017 - Klub | G43: 29 | H43: 3414 | I43: 5132 | J43: 6652 | K43: Std. Cirrus | L43: M | M43: M
A44: 42 | B44: Miroslav Cervenka | C44: 1980 | D44: Křižanov | E44: CZ/M | F44: PMRg 2017 - Klub | G44: 30 | H44: 3412 | I44: 5132 | J44: 6648 | K44: LS-1f | L44: AF | M44: M
A45: 43 | B45: Jindrich Hruska | C45: 1986 | D45: Soběslav | E45: CZ/C1 | F45: PMRg 2017 - Klub | G45: 31 | H45: 3389 | I45: 5132 | J45: 6604 | K45: 303 Mosquito | L45: UFO | M45: M
A46: 44 | B46: Slavomir Piskaty 58 | C46: 1958 | D46: Kunovice | E46: CZ/M | F46: PMRg 2017 - Kombi | G46: 13 | H46: 3761 | I46: 5750 | J46: 6541 | K46: Discus b WL (voda) | L46: KAL | M46: M
A47: 45 | B47: Rene Gabris | D47: Partizánské | E47: SK | F47: PMRg 2017 - Klub | G47: 32 | H47: 3340 | I47: 5132 | J47: 6508 | K47: Std. Cirrus | L47: 2C | M47: M | N47: Není v databázi
A48: 46 | B48: Tomas Jilek | C48: =VLOOKUP(B48,Pilot,2,0) -> 1995 | D48: =VLOOKUP(B48,Pilot,3,0) -> Raná | E48: =VLOOKUP(B48,Pilot,4,0) -> CZ/C2 | F48: PMRg 2017 - Klub | G48: 33 | H48: 3305 | I48: 5132 | J48: 6440 | K48: Cirrus VTC | L48: 1W | M48: =VLOOKUP(B48,Pilot,5,0) -> M | N48: Junior v roce 2019
A49: 47 | B49: Daniel Suchy | C49: =VLOOKUP(B49,Pilot,2,0) -> 1995 | D49: =VLOOKUP(B49,Pilot,3,0) -> Hranice | E49: =VLOOKUP(B49,Pilot,4,0) -> CZ/M | F49: PMRg 2017 - Klub | G49: 34 | H49: 3296 | I49: 5132 | J49: 6422 | K49: G-102 Astir cs | L49: W7 | M49: =VLOOKUP(B49,Pilot,5,0) -> M | N49: Junior v roce 2019
A50: 48 | B50: Petr Frycek | C50: =VLOOKUP(B50,Pilot,2,0) -> 1960 | D50: =VLOOKUP(B50,Pilot,3,0) -> Most | E50: =VLOOKUP(B50,Pilot,4,0) -> CZ/C2 | F50: PMRg 2017 - Kombi | G50: 14 | H50: 3684 | I50: 5750 | J50: 6407 | K50: Nimbus 3 /25,5m - 700kg (voda) | L50: F | M50: =VLOOKUP(B50,Pilot,5,0) -> M
A51: 49 | B51: Jan Ratz | C51: =VLOOKUP(B51,Pilot,2,0) -> 1987 | D51: =VLOOKUP(B51,Pilot,3,0) -> Plasy | E51: =VLOOKUP(B51,Pilot,4,0) -> CZ/C1 | F51: PMRg 2017 - Kombi | G51: 15 | H51: 3653 | I51: 5750 | J51: 6353 | K51: Ventus b /16,6m WL (voda) | L51: JET | M51: =VLOOKUP(B51,Pilot,5,0) -> M
A52: 50 | B52: Miroslav Beliansky | D52: Partizánské | E52: SK | F52: PMRg 2017 - Klub | G52: 35 | H52: 3132 | I52: 5132 | J52: 6103 | K52: Std. Cirrus | L52: SZ | M52: M | N52: Není v databázi
A53: 51 | B53: Miroslav Koci | C53: =VLOOKUP(B53,Pilot,2,0) -> 1961 | D53: =VLOOKUP(B53,Pilot,3,0) -> Žamberk | E53: =VLOOKUP(B53,Pilot,4,0) -> CZ/C2 | F53: PMRg 2017 - Kombi | G53: 16 | H53: 3478 | I53: 5750 | J53: 6049 | K53: Ventus 2cxm /18m - 565 kg (voda) | L53: E8 | M53: =VLOOKUP(B53,Pilot,5,0) -> M
A54: 52 | B54: Jan Hruska | C54: 1988 | D54: Tábor | E54: CZ/C1 | F54: PMRg 2017 - Klub | G54: 36 | H54: 3086 | I54: 5132 | J54: 6013 | K54: ASW-15B | L54: LittleFo | M54: M
A55: 53 | B55: Barbora Kubickova | C55: 1993 | D55: Medlánky | E55: CZ/M | F55: PMRg 2017 - Klub | G55: 37 | H55: 3042 | I55: 5132 | J55: 5928 | K55: ASW-15B | L55: Y | M55: F
A56: 54 | B56: Tomas Talanda | C56: 1988 | D56: Křižanov | E56: CZ/M | F56: PMRg 2017 - Klub | G56: 38 | H56: 3007 | I56: 5132 | J56: 5859 | K56: ASW-19B | L56: A1 | M56: M
A57: 55 | B57: Veronika Ambrozova | C57: 1984 | D57: Křižanov | E57: CZ/M | F57: PMRg 2017 - Klub | G57: 39 | H57: 2924 | I57: 5132 | J57: 5698 | K57: ASW-15B | L57: 17 | M57: F
A58: 56 | B58: Jana Krejcova | C58: 1972 | D58: Křižanov | E58: CZ/M | F58: PMRg 2017 - Klub | G58: 40 | H58: 2922 | I58: 5132 | J58: 5694 | K58: Std. Cirrus | L58: ICQ | M58: F
A59: 57 | B59: Martin Kriz | C59: 1968 | D59: Přibyslav | E59: CZ/C2 | F59: PMRg 2017 - Klub | G59: 41 | H59: 2898 | I59: 5132 | J59: 5647 | K59: ASW-15B | L59: BE | M59: M
A60: 58 | B60: Jan Kotan | C60: 1982 | D60: Letňany | E60: CZ/C1 | F60: PMRg 2017 - Klub | G60: 42 | H60: 2766 | I60: 5132 | J60: 5390 | K60: ASW-19 | L60: WT | M60: M
A61: 59 | B61: Lukas Plocek | C61: 1990 | D61: Mladá Boleslav | E61: CZ/C1 | F61: PMRg 2017 - Klub | G61: 43 | H61: 2632 | I61: 5132 | J61: 5129 | K61: ASW-19B | L61: AH | M61: M
A62: 60 | B62: Vladimir Spilka | C62: 1940 | D62: Hranice | E62: CZ/M | F62: PMRg 2017 - Kombi | G62: 17 | H62: 2343 | I62: 5750 | J62: 4075 | K62: Nimbus 2, 2b, 2M (voda) | L62: AY | M62: M
A63: 61 | B63: Antonin Kutalek | C63: 1943 | D63: Zábřeh | E63: CZ/M | F63: PMRg 2017 - Kombi | G63: 18 | H63: 2200 | I63: 5750 | J63: 3826 | K63: Mini-Nimbus c (voda) | L63: GL | M63: M
A64: 62 | B64: Tomas Laso | D64: Martin | E64: SK | F64: PMRg 2017 - Klub | G64: 44 | H64: 1927 | I64: 5132 | J64: 3755 | K64: H-201b Std. Libelle WL | L64: 48 | M64: M | N64: Není v databázi
A65: 63 | B65: Petr Lonsky | C65: =VLOOKUP(B65,Pilot,2,0) -> 1965 | D65: =VLOOKUP(B65,Pilot,3,0) -> Toužim | E65: =VLOOKUP(B65,Pilot,4,0) -> CZ/C1 | F65: PMRg 2017 - Klub | G65: 45 | H65: 1765 | I65: 5132 | J65: 3439 | K65: Std. Cirrus WL | L65: FD | M65: =VLOOKUP(B65,Pilot,5,0) -> M
A66: 64 | B66: Olga Mokosova | C66: =VLOOKUP(B66,Pilot,2,0) -> 1970 | D66: =VLOOKUP(B66,Pilot,3,0) -> Jihlava | E66: =VLOOKUP(B66,Pilot,4,0) -> CZ/M | F66: PMRg 2017 - Kombi | G66: 19 | H66: 1971 | I66: 5750 | J66: 3428 | K66: LS 6c /18m WL (voda) | L66: MM | M66: =VLOOKUP(B66,Pilot,5,0) -> F
A67: 65 | B67: Petr Havrlant | C67: =VLOOKUP(B67,Pilot,2,0) -> 1965 | D67: =VLOOKUP(B67,Pilot,3,0) -> Šumperk | E67: =VLOOKUP(B67,Pilot,4,0) -> CZ/M | F67: PMRg 2017 - Klub | G67: 46 | H67: 1729 | I67: 5132 | J67: =ROUND(H67/I67*10000,0) -> 3369 | K67: ASW-15B | L67: Q1 | M67: =VLOOKUP(B67,Pilot,5,0) -> M
A68: 66 | B68: Martin Kozina | C68: =VLOOKUP(B68,Pilot,2,0) -> 1970 | D68: =VLOOKUP(B68,Pilot,3,0) -> Křižanov | E68: =VLOOKUP(B68,Pilot,4,0) -> CZ/M | F68: PMRg 2017 - Klub | G68: 47 | H68: 1583 | I68: 5132 | J68: =ROUND(H68/I68*10000,0) -> 3085 | K68: LS-1f | L68: PK | M68: =VLOOKUP(B68,Pilot,5,0) -> M
A71: Schváleno Plachtařskou komisí AeČR dne 29.10.2017 ve Vysokém Mýtě

Sheet KB PMRg 2018
A1: PMRg 2018 - Hodkovice - Korigované body
A2: Pořadí v KB | B2: Jméno | C2: Rok narození | D2: Aeroklub | E2: Region | F2: Soutěž | G2: Pořadí ve třídě | H2: Body ve třídě | I2: Max. B ve třídě | J2: Bi | K2: Typ | L2: CN | M2: M/F | N2: Junior
A3: =RANK(J3,J:J) -> 1 | B3: Marek Pechanec | C3: =VLOOKUP(B3,Pilot,2,0) -> 1970 | D3: =VLOOKUP(B3,Pilot,3,0) -> Luhačovice | E3: =VLOOKUP(B3,Pilot,4,0) -> CZ/M | F3: PMRg 2018 - Klub | G3: CZ | H3: 1 | I3: 6509 | J3: 10000 | K3: std. cirrus | L3: SJ | M3: =VLOOKUP(B3,Pilot,5,0) -> M | N3: =IF(ISERROR(VLOOKUP(B3,Pilot,6,0)),"Není v databázi",VLOOKUP(B3,Pilot,6,0)) -> 
A4: 1 | B4: Jan Louda | C4: 1986 | D4: Mladá Boleslav | E4: CZ/C1 | F4: PMRg 2018 - Kombi | G4: CZ | H4: 1 | I4: 7195 | J4: 10000 | K4: Ventus a 15m WL 500kg (voda) | L4: FW | M4: M
A5: 3 | B5: Zdenek Boruvka 86 | C5: 1986 | D5: Jičín | E5: CZ/C2 | F5: PMRg 2018 - Klub | G5: CZ | H5: 2 | I5: 6377 | J5: 9772 | K5: Std. Cirrus | L5: BJ | M5: M
A6: 4 | B6: Karel Novak | C6: 1993 | D6: Mladá Boleslav | E6: CZ/C1 | F6: PMRg 2018 - Klub | G6: CZ | H6: 3 | I6: 6342 | J6: 9649 | K6: std. cirrus | L6: DI | M6: M
A7: 5 | B7: Karel Mares | C7: 1974 | D7: Slaný | E7: CZ/C1 | F7: PMRg 2018 - Kombi | G7: CZ | H7: 2 | I7: 6865 | J7: 9491 | K7: LS-8b, LS-8-18, LS-8t /18m | L7: YF | M7: M
A8: 6 | B8: Daniel Ryba | C8: 1994 | D8: Dvůr Králové | E8: CZ/C2 | F8: PMRg 2018 - Klub | G8: CZ | H8: 4 | I8: 6268 | J8: 9484 | K8: ASW-19B | L8: L7 | M8: M | N8: Junior v roce 2019
A9: 7 | B9: Petr Panek | C9: 1975 | D9: Dvůr Králové | E9: CZ/C2 | F9: PMRg 2018 - Klub | G9: CZ | H9: 5 | I9: 6208 | J9: 9333 | K9: std. cirrus | L9: YU | M9: M
A10: 8 | B10: Jana Veprekova | C10: 1961 | D10: Dvůr Králové | E10: CZ/C2 | F10: PMRg 2018 - Kombi | G10: CZ | H10: 3 | I10: 6818 | J10: 9258 | K10: LS 8,a,b,s,st,18 15m (voda) | L10: W8 | M10: F
A11: 9 | B11: Hana Treslova | C11: 1991 | D11: Raná | E11: CZ/C2 | F11: PMRg 2018 - Kombi | G11: CZ | H11: 4 | I11: 6765 | J11: 9019 | K11: LS 8,a,b,s,st,18 15m (voda) | L11: FX | M11: F
A12: 10 | B12: Vaclav Marel | C12: 1974 | D12: Jaroměř | E12: CZ/C2 | F12: PMRg 2018 - Klub | G12: CZ | H12: 6 | I12: 5949 | J12: 8969 | K12: Std. Cirrus | L12: IF | M12: M
A13: 11 | B13: Dana Novakova | C13: 1965 | D13: Mladá Boleslav | E13: CZ/C1 | F13: PMRg 2018 - Kombi | G13: CZ | H13: 5 | I13: 6742 | J13: 8809 | K13: LS 8,a,b,s,st,18 15m (voda) | L13: AU | M13: F
A14: 12 | B14: Jan Ratz | C14: 1987 | D14: Plasy | E14: CZ/C1 | F14: PMRg 2018 - Klub | G14: CZ | H14: 7 | I14: 5857 | J14: 8785 | K14: Std. Cirrus | L14: REX | M14: M
A15: 13 | B15: Jana Treslova | C15: 1963 | D15: Raná | E15: CZ/C2 | F15: PMRg 2018 - Kombi | G15: CZ | H15: 6 | I15: 6716 | J15: 8596 | K15: LS 8,a,b,s,st,18 15m (voda) | L15: EU | M15: F
A16: 14 | B16: Lukas Koukal | C16: 1991 | D16: Letkov | E16: CZ/C1 | F16: PMRg 2018 - Klub | G16: CZ | H16: 8 | I16: 5526 | J16: 8343 | K16: ASW-15B | L16: T1 | M16: M
A17: 15 | B17: Jiri Kusbach | C17: 1959 | D17: Luhačovice | E17: CZ/M | F17: PMRg 2018 - Kombi | G17: CZ | H17: 7 | I17: 6510 | J17: 8209 | K17: KKB-18E FES (voda) | L17: B | M17: M
A18: 16 | B18: Jan Vavrin | C18: 1987 | D18: Vysoké Mýto | E18: CZ/C2 | F18: PMRg 2018 - Klub | G18: CZ | H18: 9 | I18: 5438 | J18: 8162 | K18: ASW-15B | L18: IG | M18: M
A19: 17 | B19: Vojtech Novotny | C19: 1992 | D19: Kralupy | E19: CZ/C1 | F19: PMRg 2018 - Klub | G19: CZ | H19: 10 | I19: 5418 | J19: 8055 | K19: LS-1f | L19: EF | M19: M
A20: 18 | B20: Radek Zima 78 | C20: 1978 | D20: Hodkovice | E20: CZ/C2 | F20: PMRg 2018 - Kombi | G20: CZ | H20: 8 | I20: 6481 | J20: 7993 | K20: Ventus b /15m WL -500 kg | L20: 7F | M20: M
A21: 19 | B21: Lukas Plocek | C21: 1990 | D21: Mladá Boleslav | E21: CZ/C1 | F21: PMRg 2018 - Klub | G21: CZ | H21: 11 | I21: 5400 | J21: 7950 | K21: ASW-19B | L21: AH | M21: M
A22: 20 | B22: Michal Krupicka | C22: 1975 | D22: Most | E22: CZ/C2 | F22: PMRg 2018 - Klub | G22: CZ | H22: 12 | I22: 5390 | J22: 7854 | K22: Std. Cirrus | L22: K | M22: M
A23: 21 | B23: Marek Svancara | C23: 1976 | D23: GAC Benešov | E23: CZ/C1 | F23: PMRg 2018 - Klub | G23: CZ | H23: 13 | I23: 5343 | J23: 7717 | K23: Std. Cirrus | L23: GT | M23: M
A24: 22 | B24: Jan Zahradka | C24: 1981 | D24: Hodkovice | E24: CZ/C2 | F24: PMRg 2018 - Klub | G24: CZ | H24: 14 | I24: 5324 | J24: 7611 | K24: Std. Cirrus | L24: AR | M24: M
A25: 23 | B25: Jan Smaha | C25: 1958 | D25: Česká Lípa | E25: CZ/C2 | F25: PMRg 2018 - Klub | G25: CZ | H25: 15 | I25: 5255 | J25: 7451 | K25: ASW-15B | L25: CW | M25: M
A26: 24 | B26: Petr Hotovy | C26: 1958 | D26: Česká Lípa | E26: CZ/C2 | F26: PMRg 2018 - Kombi | G26: CZ | H26: 9 | I26: 6061 | J26: 7397 | K26: JS-1A,B,C,BTJ,CTJ 18m (voda) | L26: IGC | M26: M
A27: 25 | B27: Jan Hruska | C27: 1988 | D27: Tábor | E27: CZ/C1 | F27: PMRg 2018 - Klub | G27: CZ | H27: 16 | I27: 5175 | J27: 7280 | K27: ASW-15B | L27: LF | M27: M
A28: 26 | B28: Vojtech Hajek | C28: 1987 | D28: Mladá Boleslav | E28: CZ/C1 | F28: PMRg 2018 - Klub | G28: CZ | H28: 17 | I28: 5122 | J28: 7137 | K28: Std. Cirrus | L28: BW | M28: M
A29: 27 | B29: Ladislav Prokes | C29: 1954 | D29: Vrchlabí | E29: CZ/C2 | F29: PMRg 2018 - Kombi | G29: CZ | H29: 10 | I29: 5935 | J29: 7087 | K29: Discus b | L29: VR | M29: M
A30: 28 | B30: Antonin Novotny | C30: 1972 | D30: Luhačovice | E30: CZ/M | F30: PMRg 2018 - Klub | G30: CZ | H30: 18 | I30: 5057 | J30: 6981 | K30: Std. Cirrus | L30: SP | M30: M
A31: 29 | B31: Jaroslav Buryan | C31: 1953 | D31: Zábřeh | E31: CZ/M | F31: PMRg 2018 - Kombi | G31: CZ | H31: 11 | I31: 5901 | J31: 6866 | K31: ASW-20(A)+F 15m+W (voda) | L31: NS | M31: M
A32: 30 | B32: Ondrej Sindelar | C32: 1979 | D32: Mladá Boleslav | E32: CZ/C1 | F32: PMRg 2018 - Klub | G32: CZ | H32: 19 | I32: 4881 | J32: 6706 | K32: ASW-19B | L32: OI | M32: M
A33: 31 | B33: Jakub Kohn | C33: 1992 | D33: Prostějov | E33: CZ/M | F33: PMRg 2018 - Klub | G33: CZ | H33: 20 | I33: 4714 | J33: 6441 | K33: ASW-15B | L33: FK | M33: M
A34: 32 | B34: Ladislav Jozsa | C34: 1981 | D34: Medlánky | E34: CZ/M | F34: PMRg 2018 - Klub | G34: CZ | H34: 21 | I34: 4708 | J34: 6349 | K34: Std. Cirrus | L34: LJ | M34: M
A35: =RANK(J35,J:J) -> 33 | B35: Jindrich Hruska | C35: 1986 | D35: Soběslav | E35: CZ/C1 | F35: PMRg 2018 - Klub | G35: CZ | H35: 22 | I35: 4616 | J35: 6164 | K35: ASW-15 | L35: ASW | M35: =VLOOKUP(B35,Pilot,5,0) -> M | N35: =IF(ISERROR(VLOOKUP(B35,Pilot,6,0)),"Není v databázi",VLOOKUP(B35,Pilot,6,0)) -> 
A36: 34 | B36: Pavlina Horackova | C36: 1965 | D36: Šumperk | E36: CZ/M | F36: PMRg 2018 - Klub | G36: CZ | H36: 23 | I36: 4590 | J36: 6051 | K36: SZD-48 Jantar Std. 2(3) | L36: SU | M36: F
A37: 35 | B37: Jan Vozeh | C37: 1995 | D37: Rakovník | E37: CZ/C1 | F37: PMRg 2018 - Klub | G37: CZ | H37: 24 | I37: 4499 | J37: 5867 | K37: std. cirrus | L37: OG | M37: M | N37: Junior v roce 2019
A38: 36 | B38: Miroslav Koci | C38: 1961 | D38: Žamberk | E38: CZ/C2 | F38: PMRg 2018 - Kombi | G38: CZ | H38: 12 | I38: 4877 | J38: 5682 | K38: Ventusy: 2cx, 2cxm, 2cxt /18m -600 kg | L38: E8 | M38: M
A39: 37 | B39: David Sachl | C39: 1978 | D39: Kralupy | E39: CZ/C1 | F39: PMRg 2018 - Klub | G39: CZ | H39: 25 | I39: 4374 | J39: 5647 | K39: DG-300 | L39: BK | M39: M
A40: 38 | B40: Vilem Riha | C40: 1990 | D40: Letňany | E40: CZ/C1 | F40: PMRg 2018 - Klub | G40: CZ | H40: 26 | I40: 4300 | J40: 5482 | K40: Std. Cirrus | L40: UB | M40: M
A41: 39 | B41: Karel Knotek | C41: 1961 | D41: Soběslav | E41: CZ/C1 | F41: PMRg 2018 - Klub | G41: CZ | H41: 27 | I41: 4163 | J41: 5248 | K41: ASW-19 | L41: SO | M41: M
A42: 40 | B42: Martin Kriz | C42: 1968 | D42: Přibyslav | E42: CZ/C2 | F42: PMRg 2018 - Klub | G42: CZ | H42: 28 | I42: 4085 | J42: 5079 | K42: ASW-15B | L42: BE | M42: M
A43: 41 | B43: Slavomir Piskaty 58 | C43: 1958 | D43: Kunovice | E43: CZ/M | F43: PMRg 2018 - Kombi | G43: CZ | H43: 13 | I43: 4380 | J43: 5011 | K43: Discus b +W(voda) | L43: KAL | M43: M
A44: 42 | B44: Martin Cicvarek | C44: 1966 | D44: Liberec | E44: CZ/C2 | F44: PMRg 2018 - Kombi | G44: CZ | H44: 14 | I44: 4248 | J44: 4695 | K44: DG-400 17m | L44: AC | M44: M
A45: 43 | B45: Pavel Liska | C45: 1965 | D45: Roudnice | E45: CZ/C2 | F45: PMRg 2018 - Klub | G45: CZ | H45: 29 | I45: 3725 | J45: 4606 | K45: ASW-19B | L45: RCE | M45: M
A46: 44 | B46: Tereza Koubkova | C46: 1999 | D46: Letňany | E46: CZ/C1 | F46: PMRg 2018 - Klub | G46: CZ | H46: 30 | I46: 3668 | J46: 4459 | K46: Std. Cirrus | L46: WY | M46: F | N46: Junior v roce 2019
A47: 45 | B47: Karel Policky | C47: 1950 | D47: Kolín | E47: CZ/C1 | F47: PMRg 2018 - Klub | G47: CZ | H47: 31 | I47: 3427 | J47: 4114 | K47: VSO-10 | L47: 47 | M47: M
A48: 46 | B48: Petr Frycek | C48: 1960 | D48: Most | E48: CZ/C2 | F48: PMRg 2018 - Kombi | G48: CZ | H48: 15 | I48: 3737 | J48: 4011 | K48: Nimbus 3 (25,5m,700kg)(voda) | L48: F | M48: M
A49: 47 | B49: Ondrej Dvorak 98 | C49: 1998 | D49: Mladá Boleslav | E49: CZ/C1 | F49: PMRg 2018 - Klub | G49: CZ | H49: 32 | I49: 3377 | J49: 3975 | K49: ASW-15B | L49: MB | M49: M | N49: Junior v roce 2019
A50: 48 | B50: Pavel Sulc | C50: 1976 | D50: Hodkovice | E50: CZ/C2 | F50: PMRg 2018 - Klub | G50: CZ | H50: 33 | I50: 3096 | J50: 3587 | K50: Std. Cirrus | L50: AC | M50: M
A51: 49 | B51: Milada Moudra | C51: 1991 | D51: Hodkovice | E51: CZ/C2 | F51: PMRg 2018 - Klub | G51: CZ | H51: 34 | I51: 2540 | J51: 2903 | K51: ASW-19B | L51: XP | M51: F
A52: 50 | B52: Antonin Kutalek | C52: 1943 | D52: Zábřeh | E52: CZ/M | F52: PMRg 2018 - Kombi | G52: CZ | H52: 16 | I52: 2610 | J52: 2727 | K52: Mini-Nimbus c (voda) | L52: GL | M52: M
A53: 51 | B53: Leos Strnadek | C53: 1983 | D53: Hodkovice | E53: CZ/C2 | F53: PMRg 2018 - Klub | G53: CZ | H53: 35 | I53: 2113 | J53: 2358 | K53: ASW-19B | L53: XZ | M53: M
A54: 52 | B54: Olga Mokosova | C54: 1970 | D54: Jihlava | E54: CZ/M | F54: PMRg 2018 - Kombi | G54: CZ | H54: 17 | I54: 2309 | J54: 2246 | K54: LS 6c 18m+W (voda) | L54: MM | M54: F
A55: 53 | B55: Petr Lonsky | C55: 1965 | D55: Toužim | E55: CZ/C1 | F55: PMRg 2018 - Klub | G55: CZ | H55: 36 | I55: 638 | J55: 686 | K55: Cirrus VTC | L55: JP | M55: M
A58: Schváleno Plachtařskou komisí AeČR dne 4.11.2018 ve Vysokém Mýtě

Sheet N PMČR 2019
B1: Nominace na PMČR 2019 | H1: Kontrola: | I1: Počet | J1: Počet | K1: Nominace | L1: Počet | M1: Nominace | N1: M: | O1: F: | P1: M+F:
A2: No | B2: Jméno | C2: Aeroklub | D2: Rok narození | E2: M/F | F2: Junior | G2: No | I2: PMČR | J2: PMRg | K2: PMRg | L2: PMČRj | M2: PMČRj | N2: =COUNTIF(E:E,"M") -> 77 | O2: =COUNTIF(E:E,"F") -> 13 | P2: =N2+O2 -> 90 | Q2: S náhradníky
A3: 6.6.5. | B3: Nominace na PMČR - všeobecně (dle SŘ ZM8) | M3: Celkem řádně nominováno: | N3: =N2-COUNTIF(E60:E64,"M")-COUNTIF(E111:E119,"M") -> 69 | O3: =O2-COUNTIF(E60:E64,"F")-COUNTIF(E111:E119,"F") -> 12 | P3: =N3+O3 -> 81 | Q3: Bez náhradníků
B4: Na PMČR nominuje PK minimálně 80 pilotů/pilotek a příslušný počet náhradníků pro stanovená nominační kritéria.
B5: PMČR se mohou zúčastnit pouze soutěžící nominovaní dle jednotlivých bodů odstavců 6.6.6., 6.6.7. a 6.6.8.
B6: Pořadatel soutěže nemůže doplnit soutěžící na základě jiných kritérií.
A7: 6.6.6. | B7: Řádná nominace - Na PMČR jsou nominováni
A8: 6.6.6.1. | B8: všichni členové reprezentačního výběru (RV) ČR stanoveného pro daný soutěžní ročník (bez náhradníků)
A9: 1 | B9: Miloslav Cink | C9: =VLOOKUP(B9,Pilot!A:C,3,0) -> Letkov | D9: =VLOOKUP(B9,Pilot!A:B,2,0) -> 1987 | E9: =VLOOKUP(B9,Pilot!A:E,5,0) -> M | F9: =VLOOKUP(B9,Pilot!A:F,6,0) ->  | G9: =A9 -> 1 | I9: =COUNTIF(B:B,B9) -> 1 | J9: =IF(COUNTIF('N PMRg 2019'!B:B,B9)=0,"-",COUNTIF('N PMRg 2019'!B:B,B9)) -> - | K9: =IF(ISERROR(VLOOKUP(B9,'N PMRg 2019'!B:G,6,0)),"-",VLOOKUP(B9,'N PMRg 2019'!B:G,6,0)) -> - | L9: =IF(COUNTIF('N PMČRj 2019'!B:B,B9)=0,"-",COUNTIF('N PMČRj 2019'!B:B,B9)) -> - | M9: =IF(ISERROR(VLOOKUP(B9,'N PMČRj 2019'!B:G,6,0)),"-",VLOOKUP(B9,'N PMČRj 2019'!B:G,6,0)) -> -
A10: =A9+1 -> 2 | B10: Jaroslav Tomana | C10: =VLOOKUP(B10,Pilot!A:C,3,0) -> Zbraslavice | D10: =VLOOKUP(B10,Pilot!A:B,2,0) -> 1975 | E10: =VLOOKUP(B10,Pilot!A:E,5,0) -> M | F10: =VLOOKUP(B10,Pilot!A:F,6,0) ->  | G10: =A10 -> 2 | I10: 1 | J10: =IF(COUNTIF('N PMRg 2019'!B:B,B10)=0,"-",COUNTIF('N PMRg 2019'!B:B,B10)) -> - | K10: =IF(ISERROR(VLOOKUP(B10,'N PMRg 2019'!B:G,6,0)),"-",VLOOKUP(B10,'N PMRg 2019'!B:G,6,0)) -> - | L10: =IF(COUNTIF('N PMČRj 2019'!B:B,B10)=0,"-",COUNTIF('N PMČRj 2019'!B:B,B10)) -> - | M10: =IF(ISERROR(VLOOKUP(B10,'N PMČRj 2019'!B:G,6,0)),"-",VLOOKUP(B10,'N PMČRj 2019'!B:G,6,0)) -> -
A11: =A10+1 -> 3 | B11: Pavel Louzecky | C11: =VLOOKUP(B11,Pilot!A:C,3,0) -> Přibyslav | D11: =VLOOKUP(B11,Pilot!A:B,2,0) -> 1957 | E11: =VLOOKUP(B11,Pilot!A:E,5,0) -> M | F11: =VLOOKUP(B11,Pilot!A:F,6,0) ->  | G11: 3 | I11: 1 | J11: =IF(COUNTIF('N PMRg 2019'!B:B,B11)=0,"-",COUNTIF('N PMRg 2019'!B:B,B11)) -> - | K11: =IF(ISERROR(VLOOKUP(B11,'N PMRg 2019'!B:G,6,0)),"-",VLOOKUP(B11,'N PMRg 2019'!B:G,6,0)) -> - | L11: =IF(COUNTIF('N PMČRj 2019'!B:B,B11)=0,"-",COUNTIF('N PMČRj 2019'!B:B,B11)) -> - | M11: =IF(ISERROR(VLOOKUP(B11,'N PMČRj 2019'!B:G,6,0)),"-",VLOOKUP(B11,'N PMČRj 2019'!B:G,6,0)) -> -
A12: 4 | B12: Roman Mracek | C12: =VLOOKUP(B12,Pilot!A:C,3,0) -> Letkov | D12: =VLOOKUP(B12,Pilot!A:B,2,0) -> 1980 | E12: =VLOOKUP(B12,Pilot!A:E,5,0) -> M | F12: =VLOOKUP(B12,Pilot!A:F,6,0) ->  | G12: 4 | I12: 1 | J12: =IF(COUNTIF('N PMRg 2019'!B:B,B12)=0,"-",COUNTIF('N PMRg 2019'!B:B,B12)) -> - | K12: =IF(ISERROR(VLOOKUP(B12,'N PMRg 2019'!B:G,6,0)),"-",VLOOKUP(B12,'N PMRg 2019'!B:G,6,0)) -> - | L12: =IF(COUNTIF('N PMČRj 2019'!B:B,B12)=0,"-",COUNTIF('N PMČRj 2019'!B:B,B12)) -> - | M12: =IF(ISERROR(VLOOKUP(B12,'N PMČRj 2019'!B:G,6,0)),"-",VLOOKUP(B12,'N PMČRj 2019'!B:G,6,0)) -> -
A13: 5 | B13: Tomas Suchanek | C13: =VLOOKUP(B13,Pilot!A:C,3,0) -> GAC Benešov | D13: =VLOOKUP(B13,Pilot!A:B,2,0) -> 1964 | E13: =VLOOKUP(B13,Pilot!A:E,5,0) -> M | F13: =VLOOKUP(B13,Pilot!A:F,6,0) ->  | G13: 5 | I13: 1 | J13: =IF(COUNTIF('N PMRg 2019'!B:B,B13)=0,"-",COUNTIF('N PMRg 2019'!B:B,B13)) -> - | K13: =IF(ISERROR(VLOOKUP(B13,'N PMRg 2019'!B:G,6,0)),"-",VLOOKUP(B13,'N PMRg 2019'!B:G,6,0)) -> - | L13: =IF(COUNTIF('N PMČRj 2019'!B:B,B13)=0,"-",COUNTIF('N PMČRj 2019'!B:B,B13)) -> - | M13: =IF(ISERROR(VLOOKUP(B13,'N PMČRj 2019'!B:G,6,0)),"-",VLOOKUP(B13,'N PMČRj 2019'!B:G,6,0)) -> -
A14: 6 | B14: Ivan Novak | C14: =VLOOKUP(B14,Pilot!A:C,3,0) -> Mladá Boleslav | D14: =VLOOKUP(B14,Pilot!A:B,2,0) -> 1962 | E14: =VLOOKUP(B14,Pilot!A:E,5,0) -> M | F14: =VLOOKUP(B14,Pilot!A:F,6,0) ->  | G14: 6 | I14: 1 | J14: =IF(COUNTIF('N PMRg 2019'!B:B,B14)=0,"-",COUNTIF('N PMRg 2019'!B:B,B14)) -> - | K14: =IF(ISERROR(VLOOKUP(B14,'N PMRg 2019'!B:G,6,0)),"-",VLOOKUP(B14,'N PMRg 2019'!B:G,6,0)) -> - | L14: =IF(COUNTIF('N PMČRj 2019'!B:B,B14)=0,"-",COUNTIF('N PMČRj 2019'!B:B,B14)) -> - | M14: =IF(ISERROR(VLOOKUP(B14,'N PMČRj 2019'!B:G,6,0)),"-",VLOOKUP(B14,'N PMČRj 2019'!B:G,6,0)) -> -
A15: 7 | B15: Petr Tichy | C15: =VLOOKUP(B15,Pilot!A:C,3,0) -> Zbraslavice | D15: =VLOOKUP(B15,Pilot!A:B,2,0) -> 1973 | E15: =VLOOKUP(B15,Pilot!A:E,5,0) -> M | F15: =VLOOKUP(B15,Pilot!A:F,6,0) ->  | G15: 7 | I15: 1 | J15: =IF(COUNTIF('N PMRg 2019'!B:B,B15)=0,"-",COUNTIF('N PMRg 2019'!B:B,B15)) -> - | K15: =IF(ISERROR(VLOOKUP(B15,'N PMRg 2019'!B:G,6,0)),"-",VLOOKUP(B15,'N PMRg 2019'!B:G,6,0)) -> - | L15: =IF(COUNTIF('N PMČRj 2019'!B:B,B15)=0,"-",COUNTIF('N PMČRj 2019'!B:B,B15)) -> - | M15: =IF(ISERROR(VLOOKUP(B15,'N PMČRj 2019'!B:G,6,0)),"-",VLOOKUP(B15,'N PMČRj 2019'!B:G,6,0)) -> -
A16: 8 | B16: Marek Pechanec | C16: =VLOOKUP(B16,Pilot!A:C,3,0) -> Luhačovice | D16: =VLOOKUP(B16,Pilot!A:B,2,0) -> 1970 | E16: =VLOOKUP(B16,Pilot!A:E,5,0) -> M | F16: =VLOOKUP(B16,Pilot!A:F,6,0) ->  | G16: 8 | I16: 1 | J16: =IF(COUNTIF('N PMRg 2019'!B:B,B16)=0,"-",COUNTIF('N PMRg 2019'!B:B,B16)) -> - | K16: =IF(ISERROR(VLOOKUP(B16,'N PMRg 2019'!B:G,6,0)),"-",VLOOKUP(B16,'N PMRg 2019'!B:G,6,0)) -> - | L16: =IF(COUNTIF('N PMČRj 2019'!B:B,B16)=0,"-",COUNTIF('N PMČRj 2019'!B:B,B16)) -> - | M16: =IF(ISERROR(VLOOKUP(B16,'N PMČRj 2019'!B:G,6,0)),"-",VLOOKUP(B16,'N PMČRj 2019'!B:G,6,0)) -> -
A17: 9 | B17: David Mach | C17: =VLOOKUP(B17,Pilot!A:C,3,0) -> Hronov | D17: =VLOOKUP(B17,Pilot!A:B,2,0) -> 1994 | E17: =VLOOKUP(B17,Pilot!A:E,5,0) -> M | F17: =VLOOKUP(B17,Pilot!A:F,6,0) -> Junior v roce 2019 | G17: 9 | I17: 1 | J17: =IF(COUNTIF('N PMRg 2019'!B:B,B17)=0,"-",COUNTIF('N PMRg 2019'!B:B,B17)) -> - | K17: =IF(ISERROR(VLOOKUP(B17,'N PMRg 2019'!B:G,6,0)),"-",VLOOKUP(B17,'N PMRg 2019'!B:G,6,0)) -> - | L17: =IF(COUNTIF('N PMČRj 2019'!B:B,B17)=0,"-",COUNTIF('N PMČRj 2019'!B:B,B17)) -> - | M17: =IF(ISERROR(VLOOKUP(B17,'N PMČRj 2019'!B:G,6,0)),"-",VLOOKUP(B17,'N PMČRj 2019'!B:G,6,0)) -> -
A18: 10 | B18: Jan Louda | C18: =VLOOKUP(B18,Pilot!A:C,3,0) -> Mladá Boleslav | D18: =VLOOKUP(B18,Pilot!A:B,2,0) -> 1986 | E18: =VLOOKUP(B18,Pilot!A:E,5,0) -> M | F18: =VLOOKUP(B18,Pilot!A:F,6,0) ->  | G18: =A18 -> 10 | I18: 1 | J18: =IF(COUNTIF('N PMRg 2019'!B:B,B18)=0,"-",COUNTIF('N PMRg 2019'!B:B,B18)) -> - | K18: =IF(ISERROR(VLOOKUP(B18,'N PMRg 2019'!B:G,6,0)),"-",VLOOKUP(B18,'N PMRg 2019'!B:G,6,0)) -> - | L18: =IF(COUNTIF('N PMČRj 2019'!B:B,B18)=0,"-",COUNTIF('N PMČRj 2019'!B:B,B18)) -> - | M18: =IF(ISERROR(VLOOKUP(B18,'N PMČRj 2019'!B:G,6,0)),"-",VLOOKUP(B18,'N PMČRj 2019'!B:G,6,0)) -> -
A19: 11 | B19: Michal Lesinger | C19: =VLOOKUP(B19,Pilot!A:C,3,0) -> Moravská Třebová | D19: =VLOOKUP(B19,Pilot!A:B,2,0) -> 1966 | E19: =VLOOKUP(B19,Pilot!A:E,5,0) -> M | F19: =VLOOKUP(B19,Pilot!A:F,6,0) ->  | G19: 11 | I19: 1 | J19: =IF(COUNTIF('N PMRg 2019'!B:B,B19)=0,"-",COUNTIF('N PMRg 2019'!B:B,B19)) -> - | K19: =IF(ISERROR(VLOOKUP(B19,'N PMRg 2019'!B:G,6,0)),"-",VLOOKUP(B19,'N PMRg 2019'!B:G,6,0)) -> - | L19: =IF(COUNTIF('N PMČRj 2019'!B:B,B19)=0,"-",COUNTIF('N PMČRj 2019'!B:B,B19)) -> - | M19: =IF(ISERROR(VLOOKUP(B19,'N PMČRj 2019'!B:G,6,0)),"-",VLOOKUP(B19,'N PMČRj 2019'!B:G,6,0)) -> -
A20: 12 | B20: Radek Krejcirik | C20: =VLOOKUP(B20,Pilot!A:C,3,0) -> Hranice | D20: =VLOOKUP(B20,Pilot!A:B,2,0) -> 1991 | E20: =VLOOKUP(B20,Pilot!A:E,5,0) -> M | F20: =VLOOKUP(B20,Pilot!A:F,6,0) ->  | G20: 12 | I20: 1 | J20: =IF(COUNTIF('N PMRg 2019'!B:B,B20)=0,"-",COUNTIF('N PMRg 2019'!B:B,B20)) -> - | K20: =IF(ISERROR(VLOOKUP(B20,'N PMRg 2019'!B:G,6,0)),"-",VLOOKUP(B20,'N PMRg 2019'!B:G,6,0)) -> - | L20: =IF(COUNTIF('N PMČRj 2019'!B:B,B20)=0,"-",COUNTIF('N PMČRj 2019'!B:B,B20)) -> - | M20: =IF(ISERROR(VLOOKUP(B20,'N PMČRj 2019'!B:G,6,0)),"-",VLOOKUP(B20,'N PMČRj 2019'!B:G,6,0)) -> -
A21: 13 | B21: Petr Krejcirik | C21: =VLOOKUP(B21,Pilot!A:C,3,0) -> Hranice | D21: =VLOOKUP(B21,Pilot!A:B,2,0) -> 1960 | E21: =VLOOKUP(B21,Pilot!A:E,5,0) -> M | F21: =VLOOKUP(B21,Pilot!A:F,6,0) ->  | G21: =A21 -> 13 | I21: 1 | J21: =IF(COUNTIF('N PMRg 2019'!B:B,B21)=0,"-",COUNTIF('N PMRg 2019'!B:B,B21)) -> - | K21: =IF(ISERROR(VLOOKUP(B21,'N PMRg 2019'!B:G,6,0)),"-",VLOOKUP(B21,'N PMRg 2019'!B:G,6,0)) -> - | L21: =IF(COUNTIF('N PMČRj 2019'!B:B,B21)=0,"-",COUNTIF('N PMČRj 2019'!B:B,B21)) -> - | M21: =IF(ISERROR(VLOOKUP(B21,'N PMČRj 2019'!B:G,6,0)),"-",VLOOKUP(B21,'N PMČRj 2019'!B:G,6,0)) -> -
A22: 14 | B22: Karel Novak | C22: =VLOOKUP(B22,Pilot!A:C,3,0) -> Mladá Boleslav | D22: =VLOOKUP(B22,Pilot!A:B,2,0) -> 1993 | E22: =VLOOKUP(B22,Pilot!A:E,5,0) -> M | F22: =VLOOKUP(B22,Pilot!A:F,6,0) ->  | G22: 14 | I22: 1 | J22: =IF(COUNTIF('N PMRg 2019'!B:B,B22)=0,"-",COUNTIF('N PMRg 2019'!B:B,B22)) -> - | K22: =IF(ISERROR(VLOOKUP(B22,'N PMRg 2019'!B:G,6,0)),"-",VLOOKUP(B22,'N PMRg 2019'!B:G,6,0)) -> - | L22: =IF(COUNTIF('N PMČRj 2019'!B:B,B22)=0,"-",COUNTIF('N PMČRj 2019'!B:B,B22)) -> - | M22: =IF(ISERROR(VLOOKUP(B22,'N PMČRj 2019'!B:G,6,0)),"-",VLOOKUP(B22,'N PMČRj 2019'!B:G,6,0)) -> -
A23: 15 | B23: Ondrej Bordovsky | C23: =VLOOKUP(B23,Pilot!A:C,3,0) -> Krnov | D23: =VLOOKUP(B23,Pilot!A:B,2,0) -> 1983 | E23: =VLOOKUP(B23,Pilot!A:E,5,0) -> M | F23: =VLOOKUP(B23,Pilot!A:F,6,0) ->  | G23: 15 | I23: 1 | J23: =IF(COUNTIF('N PMRg 2019'!B:B,B23)=0,"-",COUNTIF('N PMRg 2019'!B:B,B23)) -> - | K23: =IF(ISERROR(VLOOKUP(B23,'N PMRg 2019'!B:G,6,0)),"-",VLOOKUP(B23,'N PMRg 2019'!B:G,6,0)) -> - | L23: =IF(COUNTIF('N PMČRj 2019'!B:B,B23)=0,"-",COUNTIF('N PMČRj 2019'!B:B,B23)) -> - | M23: =IF(ISERROR(VLOOKUP(B23,'N PMČRj 2019'!B:G,6,0)),"-",VLOOKUP(B23,'N PMČRj 2019'!B:G,6,0)) -> -
A24: 16 | B24: Zdenek Boruvka 86 | C24: =VLOOKUP(B24,Pilot!A:C,3,0) -> Jičín | D24: =VLOOKUP(B24,Pilot!A:B,2,0) -> 1986 | E24: =VLOOKUP(B24,Pilot!A:E,5,0) -> M | F24: =VLOOKUP(B24,Pilot!A:F,6,0) ->  | G24: 16 | I24: 1 | J24: =IF(COUNTIF('N PMRg 2019'!B:B,B24)=0,"-",COUNTIF('N PMRg 2019'!B:B,B24)) -> - | K24: =IF(ISERROR(VLOOKUP(B24,'N PMRg 2019'!B:G,6,0)),"-",VLOOKUP(B24,'N PMRg 2019'!B:G,6,0)) -> - | L24: =IF(COUNTIF('N PMČRj 2019'!B:B,B24)=0,"-",COUNTIF('N PMČRj 2019'!B:B,B24)) -> - | M24: =IF(ISERROR(VLOOKUP(B24,'N PMČRj 2019'!B:G,6,0)),"-",VLOOKUP(B24,'N PMČRj 2019'!B:G,6,0)) -> -
A25: 17 | B25: Lubomir Motl | C25: =VLOOKUP(B25,Pilot!A:C,3,0) -> Kyjov | D25: =VLOOKUP(B25,Pilot!A:B,2,0) -> 1959 | E25: =VLOOKUP(B25,Pilot!A:E,5,0) -> M | F25: =VLOOKUP(B25,Pilot!A:F,6,0) ->  | G25: 17 | I25: 1 | J25: =IF(COUNTIF('N PMRg 2019'!B:B,B25)=0,"-",COUNTIF('N PMRg 2019'!B:B,B25)) -> - | K25: =IF(ISERROR(VLOOKUP(B25,'N PMRg 2019'!B:G,6,0)),"-",VLOOKUP(B25,'N PMRg 2019'!B:G,6,0)) -> - | L25: =IF(COUNTIF('N PMČRj 2019'!B:B,B25)=0,"-",COUNTIF('N PMČRj 2019'!B:B,B25)) -> - | M25: =IF(ISERROR(VLOOKUP(B25,'N PMČRj 2019'!B:G,6,0)),"-",VLOOKUP(B25,'N PMČRj 2019'!B:G,6,0)) -> -
A26: 18 | B26: Jana Veprekova | C26: =VLOOKUP(B26,Pilot!A:C,3,0) -> Dvůr Králové | D26: =VLOOKUP(B26,Pilot!A:B,2,0) -> 1961 | E26: =VLOOKUP(B26,Pilot!A:E,5,0) -> F | F26: =VLOOKUP(B26,Pilot!A:F,6,0) ->  | G26: 18 | I26: 1 | J26: =IF(COUNTIF('N PMRg 2019'!B:B,B26)=0,"-",COUNTIF('N PMRg 2019'!B:B,B26)) -> - | K26: =IF(ISERROR(VLOOKUP(B26,'N PMRg 2019'!B:G,6,0)),"-",VLOOKUP(B26,'N PMRg 2019'!B:G,6,0)) -> - | L26: =IF(COUNTIF('N PMČRj 2019'!B:B,B26)=0,"-",COUNTIF('N PMČRj 2019'!B:B,B26)) -> - | M26: =IF(ISERROR(VLOOKUP(B26,'N PMČRj 2019'!B:G,6,0)),"-",VLOOKUP(B26,'N PMČRj 2019'!B:G,6,0)) -> -
A27: 19 | B27: Daniel Ryba | C27: =VLOOKUP(B27,Pilot!A:C,3,0) -> Dvůr Králové | D27: =VLOOKUP(B27,Pilot!A:B,2,0) -> 1994 | E27: =VLOOKUP(B27,Pilot!A:E,5,0) -> M | F27: =VLOOKUP(B27,Pilot!A:F,6,0) -> Junior v roce 2019 | G27: 19 | I27: 1 | J27: =IF(COUNTIF('N PMRg 2019'!B:B,B27)=0,"-",COUNTIF('N PMRg 2019'!B:B,B27)) -> - | K27: =IF(ISERROR(VLOOKUP(B27,'N PMRg 2019'!B:G,6,0)),"-",VLOOKUP(B27,'N PMRg 2019'!B:G,6,0)) -> - | L27: =IF(COUNTIF('N PMČRj 2019'!B:B,B27)=0,"-",COUNTIF('N PMČRj 2019'!B:B,B27)) -> - | M27: =IF(ISERROR(VLOOKUP(B27,'N PMČRj 2019'!B:G,6,0)),"-",VLOOKUP(B27,'N PMČRj 2019'!B:G,6,0)) -> -
A28: 20 | B28: Petr Koutny | C28: =VLOOKUP(B28,Pilot!A:C,3,0) -> Křižanov | D28: =VLOOKUP(B28,Pilot!A:B,2,0) -> 1971 | E28: =VLOOKUP(B28,Pilot!A:E,5,0) -> M | F28: =VLOOKUP(B28,Pilot!A:F,6,0) ->  | G28: 20 | I28: 1 | J28: =IF(COUNTIF('N PMRg 2019'!B:B,B28)=0,"-",COUNTIF('N PMRg 2019'!B:B,B28)) -> - | K28: =IF(ISERROR(VLOOKUP(B28,'N PMRg 2019'!B:G,6,0)),"-",VLOOKUP(B28,'N PMRg 2019'!B:G,6,0)) -> - | L28: =IF(COUNTIF('N PMČRj 2019'!B:B,B28)=0,"-",COUNTIF('N PMČRj 2019'!B:B,B28)) -> - | M28: =IF(ISERROR(VLOOKUP(B28,'N PMČRj 2019'!B:G,6,0)),"-",VLOOKUP(B28,'N PMČRj 2019'!B:G,6,0)) -> -
A29: 21 | B29: Dana Novakova | C29: =VLOOKUP(B29,Pilot!A:C,3,0) -> Mladá Boleslav | D29: =VLOOKUP(B29,Pilot!A:B,2,0) -> 1965 | E29: =VLOOKUP(B29,Pilot!A:E,5,0) -> F | F29: =VLOOKUP(B29,Pilot!A:F,6,0) ->  | G29: 21 | I29: 1 | J29: =IF(COUNTIF('N PMRg 2019'!B:B,B29)=0,"-",COUNTIF('N PMRg 2019'!B:B,B29)) -> - | K29: =IF(ISERROR(VLOOKUP(B29,'N PMRg 2019'!B:G,6,0)),"-",VLOOKUP(B29,'N PMRg 2019'!B:G,6,0)) -> - | L29: =IF(COUNTIF('N PMČRj 2019'!B:B,B29)=0,"-",COUNTIF('N PMČRj 2019'!B:B,B29)) -> - | M29: =IF(ISERROR(VLOOKUP(B29,'N PMČRj 2019'!B:G,6,0)),"-",VLOOKUP(B29,'N PMČRj 2019'!B:G,6,0)) -> -
A30: 22 | B30: Hana Treslova | C30: =VLOOKUP(B30,Pilot!A:C,3,0) -> Raná | D30: =VLOOKUP(B30,Pilot!A:B,2,0) -> 1991 | E30: =VLOOKUP(B30,Pilot!A:E,5,0) -> F | F30: =VLOOKUP(B30,Pilot!A:F,6,0) ->  | G30: 22 | I30: 1 | J30: =IF(COUNTIF('N PMRg 2019'!B:B,B30)=0,"-",COUNTIF('N PMRg 2019'!B:B,B30)) -> - | K30: =IF(ISERROR(VLOOKUP(B30,'N PMRg 2019'!B:G,6,0)),"-",VLOOKUP(B30,'N PMRg 2019'!B:G,6,0)) -> - | L30: =IF(COUNTIF('N PMČRj 2019'!B:B,B30)=0,"-",COUNTIF('N PMČRj 2019'!B:B,B30)) -> - | M30: =IF(ISERROR(VLOOKUP(B30,'N PMČRj 2019'!B:G,6,0)),"-",VLOOKUP(B30,'N PMČRj 2019'!B:G,6,0)) -> -
A31: 23 | B31: Jan Viskot | C31: =VLOOKUP(B31,Pilot!A:C,3,0) -> Břeclav | D31: =VLOOKUP(B31,Pilot!A:B,2,0) -> 1995 | E31: =VLOOKUP(B31,Pilot!A:E,5,0) -> M | F31: =VLOOKUP(B31,Pilot!A:F,6,0) -> Junior v roce 2019 | G31: 23 | I31: 1 | J31: =IF(COUNTIF('N PMRg 2019'!B:B,B31)=0,"-",COUNTIF('N PMRg 2019'!B:B,B31)) -> - | K31: =IF(ISERROR(VLOOKUP(B31,'N PMRg 2019'!B:G,6,0)),"-",VLOOKUP(B31,'N PMRg 2019'!B:G,6,0)) -> - | L31: =IF(COUNTIF('N PMČRj 2019'!B:B,B31)=0,"-",COUNTIF('N PMČRj 2019'!B:B,B31)) -> - | M31: =IF(ISERROR(VLOOKUP(B31,'N PMČRj 2019'!B:G,6,0)),"-",VLOOKUP(B31,'N PMČRj 2019'!B:G,6,0)) -> -
A32: 24 | B32: Klara Teichmannova | C32: =VLOOKUP(B32,Pilot!A:C,3,0) -> Hronov | D32: =VLOOKUP(B32,Pilot!A:B,2,0) -> 1993 | E32: =VLOOKUP(B32,Pilot!A:E,5,0) -> F | F32: =VLOOKUP(B32,Pilot!A:F,6,0) ->  | G32: 24 | I32: 1 | J32: =IF(COUNTIF('N PMRg 2019'!B:B,B32)=0,"-",COUNTIF('N PMRg 2019'!B:B,B32)) -> - | K32: =IF(ISERROR(VLOOKUP(B32,'N PMRg 2019'!B:G,6,0)),"-",VLOOKUP(B32,'N PMRg 2019'!B:G,6,0)) -> - | L32: =IF(COUNTIF('N PMČRj 2019'!B:B,B32)=0,"-",COUNTIF('N PMČRj 2019'!B:B,B32)) -> - | M32: =IF(ISERROR(VLOOKUP(B32,'N PMČRj 2019'!B:G,6,0)),"-",VLOOKUP(B32,'N PMČRj 2019'!B:G,6,0)) -> -
A33: 25 | B33: Alena Netusilova | C33: =VLOOKUP(B33,Pilot!A:C,3,0) -> Zbraslavice | D33: =VLOOKUP(B33,Pilot!A:B,2,0) -> 1970 | E33: =VLOOKUP(B33,Pilot!A:E,5,0) -> F | F33: =VLOOKUP(B33,Pilot!A:F,6,0) ->  | G33: 25 | I33: 1 | J33: =IF(COUNTIF('N PMRg 2019'!B:B,B33)=0,"-",COUNTIF('N PMRg 2019'!B:B,B33)) -> - | K33: =IF(ISERROR(VLOOKUP(B33,'N PMRg 2019'!B:G,6,0)),"-",VLOOKUP(B33,'N PMRg 2019'!B:G,6,0)) -> - | L33: =IF(COUNTIF('N PMČRj 2019'!B:B,B33)=0,"-",COUNTIF('N PMČRj 2019'!B:B,B33)) -> - | M33: =IF(ISERROR(VLOOKUP(B33,'N PMČRj 2019'!B:G,6,0)),"-",VLOOKUP(B33,'N PMČRj 2019'!B:G,6,0)) -> -
A34: 26 | B34: Jaromir Macoun | C34: =VLOOKUP(B34,Pilot!A:C,3,0) -> Jičín | D34: =VLOOKUP(B34,Pilot!A:B,2,0) -> 1999 | E34: =VLOOKUP(B34,Pilot!A:E,5,0) -> M | F34: =VLOOKUP(B34,Pilot!A:F,6,0) -> Junior v roce 2019 | G34: =A34 -> 26 | I34: 1 | J34: =IF(COUNTIF('N PMRg 2019'!B:B,B34)=0,"-",COUNTIF('N PMRg 2019'!B:B,B34)) -> - | K34: =IF(ISERROR(VLOOKUP(B34,'N PMRg 2019'!B:G,6,0)),"-",VLOOKUP(B34,'N PMRg 2019'!B:G,6,0)) -> - | L34: =IF(COUNTIF('N PMČRj 2019'!B:B,B34)=0,"-",COUNTIF('N PMČRj 2019'!B:B,B34)) -> - | M34: =IF(ISERROR(VLOOKUP(B34,'N PMČRj 2019'!B:G,6,0)),"-",VLOOKUP(B34,'N PMČRj 2019'!B:G,6,0)) -> -
A35: 27 | B35: Jan Zapletal | C35: =VLOOKUP(B35,Pilot!A:C,3,0) -> Kroměříž | D35: =VLOOKUP(B35,Pilot!A:B,2,0) -> 1997 | E35: =VLOOKUP(B35,Pilot!A:E,5,0) -> M | F35: =VLOOKUP(B35,Pilot!A:F,6,0) -> Junior v roce 2019 | G35: 27 | I35: 1 | J35: =IF(COUNTIF('N PMRg 2019'!B:B,B35)=0,"-",COUNTIF('N PMRg 2019'!B:B,B35)) -> - | K35: =IF(ISERROR(VLOOKUP(B35,'N PMRg 2019'!B:G,6,0)),"-",VLOOKUP(B35,'N PMRg 2019'!B:G,6,0)) -> - | L35: =IF(COUNTIF('N PMČRj 2019'!B:B,B35)=0,"-",COUNTIF('N PMČRj 2019'!B:B,B35)) -> - | M35: =IF(ISERROR(VLOOKUP(B35,'N PMČRj 2019'!B:G,6,0)),"-",VLOOKUP(B35,'N PMČRj 2019'!B:G,6,0)) -> -
A36: 28 | B36: Barbora Moravcova | C36: =VLOOKUP(B36,Pilot!A:C,3,0) -> Zbraslavice | D36: =VLOOKUP(B36,Pilot!A:B,2,0) -> 1994 | E36: =VLOOKUP(B36,Pilot!A:E,5,0) -> F | F36: =VLOOKUP(B36,Pilot!A:F,6,0) -> Junior v roce 2019 | G36: 28 | I36: 1 | J36: =IF(COUNTIF('N PMRg 2019'!B:B,B36)=0,"-",COUNTIF('N PMRg 2019'!B:B,B36)) -> - | K36: =IF(ISERROR(VLOOKUP(B36,'N PMRg 2019'!B:G,6,0)),"-",VLOOKUP(B36,'N PMRg 2019'!B:G,6,0)) -> - | L36: =IF(COUNTIF('N PMČRj 2019'!B:B,B36)=0,"-",COUNTIF('N PMČRj 2019'!B:B,B36)) -> - | M36: =IF(ISERROR(VLOOKUP(B36,'N PMČRj 2019'!B:G,6,0)),"-",VLOOKUP(B36,'N PMČRj 2019'!B:G,6,0)) -> -
A37: 29 | B37: Jana Treslova | C37: =VLOOKUP(B37,Pilot!A:C,3,0) -> Raná | D37: =VLOOKUP(B37,Pilot!A:B,2,0) -> 1963 | E37: =VLOOKUP(B37,Pilot!A:E,5,0) -> F | F37: =VLOOKUP(B37,Pilot!A:F,6,0) ->  | G37: 29 | I37: 1 | J37: =IF(COUNTIF('N PMRg 2019'!B:B,B37)=0,"-",COUNTIF('N PMRg 2019'!B:B,B37)) -> - | K37: =IF(ISERROR(VLOOKUP(B37,'N PMRg 2019'!B:G,6,0)),"-",VLOOKUP(B37,'N PMRg 2019'!B:G,6,0)) -> - | L37: =IF(COUNTIF('N PMČRj 2019'!B:B,B37)=0,"-",COUNTIF('N PMČRj 2019'!B:B,B37)) -> - | M37: =IF(ISERROR(VLOOKUP(B37,'N PMČRj 2019'!B:G,6,0)),"-",VLOOKUP(B37,'N PMČRj 2019'!B:G,6,0)) -> -
A38: 30 | B38: Lenka Kuthanova | C38: =VLOOKUP(B38,Pilot!A:C,3,0) -> LK Břeclav | D38: =VLOOKUP(B38,Pilot!A:B,2,0) -> 1960 | E38: =VLOOKUP(B38,Pilot!A:E,5,0) -> F | F38: =VLOOKUP(B38,Pilot!A:F,6,0) ->  | G38: 30 | I38: 1 | J38: =IF(COUNTIF('N PMRg 2019'!B:B,B38)=0,"-",COUNTIF('N PMRg 2019'!B:B,B38)) -> - | K38: =IF(ISERROR(VLOOKUP(B38,'N PMRg 2019'!B:G,6,0)),"-",VLOOKUP(B38,'N PMRg 2019'!B:G,6,0)) -> - | L38: =IF(COUNTIF('N PMČRj 2019'!B:B,B38)=0,"-",COUNTIF('N PMČRj 2019'!B:B,B38)) -> - | M38: =IF(ISERROR(VLOOKUP(B38,'N PMČRj 2019'!B:G,6,0)),"-",VLOOKUP(B38,'N PMČRj 2019'!B:G,6,0)) -> -
A39: 31 | B39: Petra Piskata | C39: =VLOOKUP(B39,Pilot!A:C,3,0) -> Hranice | D39: =VLOOKUP(B39,Pilot!A:B,2,0) -> 1989 | E39: =VLOOKUP(B39,Pilot!A:E,5,0) -> F | F39: =VLOOKUP(B39,Pilot!A:F,6,0) ->  | G39: 31 | I39: 1 | J39: =IF(COUNTIF('N PMRg 2019'!B:B,B39)=0,"-",COUNTIF('N PMRg 2019'!B:B,B39)) -> - | K39: =IF(ISERROR(VLOOKUP(B39,'N PMRg 2019'!B:G,6,0)),"-",VLOOKUP(B39,'N PMRg 2019'!B:G,6,0)) -> - | L39: =IF(COUNTIF('N PMČRj 2019'!B:B,B39)=0,"-",COUNTIF('N PMČRj 2019'!B:B,B39)) -> - | M39: =IF(ISERROR(VLOOKUP(B39,'N PMČRj 2019'!B:G,6,0)),"-",VLOOKUP(B39,'N PMČRj 2019'!B:G,6,0)) -> -
A40: 6.6.6.2. | B40: další soutěžící, kteří se umístili v konečném pořadí na posledním platném PMČR ve své třídě nejhůře v první polovině celkového pořadí (bez náhradníků)
B41: PMČR 2018 - Tábor - Klub
A42: =MAX(A9:A39)+1 -> 32 | B42: Pavel Rericha | C42: =VLOOKUP(B42,Pilot!A:C,3,0) -> Moravská Třebová | D42: =VLOOKUP(B42,Pilot!A:B,2,0) -> 1967 | E42: =VLOOKUP(B42,Pilot!A:E,5,0) -> M | F42: =VLOOKUP(B42,Pilot!A:F,6,0) ->  | G42: =A42 -> 32 | I42: =COUNTIF(B:B,B42) -> 1 | J42: =IF(COUNTIF('N PMRg 2019'!B:B,B42)=0,"-",COUNTIF('N PMRg 2019'!B:B,B42)) -> - | K42: =IF(ISERROR(VLOOKUP(B42,'N PMRg 2019'!B:G,6,0)),"-",VLOOKUP(B42,'N PMRg 2019'!B:G,6,0)) -> - | L42: =IF(COUNTIF('N PMČRj 2019'!B:B,B42)=0,"-",COUNTIF('N PMČRj 2019'!B:B,B42)) -> - | M42: =IF(ISERROR(VLOOKUP(B42,'N PMČRj 2019'!B:G,6,0)),"-",VLOOKUP(B42,'N PMČRj 2019'!B:G,6,0)) -> -
A43: =A42+1 -> 33 | B43: Pavel Trybenekr | C43: =VLOOKUP(B43,Pilot!A:C,3,0) -> Hořice | D43: =VLOOKUP(B43,Pilot!A:B,2,0) -> 1990 | E43: =VLOOKUP(B43,Pilot!A:E,5,0) -> M | F43: =VLOOKUP(B43,Pilot!A:F,6,0) ->  | G43: =A43 -> 33 | I43: =COUNTIF(B:B,B43) -> 1 | J43: =IF(COUNTIF('N PMRg 2019'!B:B,B43)=0,"-",COUNTIF('N PMRg 2019'!B:B,B43)) -> - | K43: =IF(ISERROR(VLOOKUP(B43,'N PMRg 2019'!B:G,6,0)),"-",VLOOKUP(B43,'N PMRg 2019'!B:G,6,0)) -> - | L43: =IF(COUNTIF('N PMČRj 2019'!B:B,B43)=0,"-",COUNTIF('N PMČRj 2019'!B:B,B43)) -> - | M43: =IF(ISERROR(VLOOKUP(B43,'N PMČRj 2019'!B:G,6,0)),"-",VLOOKUP(B43,'N PMČRj 2019'!B:G,6,0)) -> -
A44: =A43+1 -> 34 | B44: Slavomir Piskaty 84 | C44: =VLOOKUP(B44,Pilot!A:C,3,0) -> Kunovice | D44: =VLOOKUP(B44,Pilot!A:B,2,0) -> 1984 | E44: =VLOOKUP(B44,Pilot!A:E,5,0) -> M | F44: =VLOOKUP(B44,Pilot!A:F,6,0) ->  | G44: =A44 -> 34 | I44: =COUNTIF(B:B,B44) -> 1 | J44: =IF(COUNTIF('N PMRg 2019'!B:B,B44)=0,"-",COUNTIF('N PMRg 2019'!B:B,B44)) -> - | K44: =IF(ISERROR(VLOOKUP(B44,'N PMRg 2019'!B:G,6,0)),"-",VLOOKUP(B44,'N PMRg 2019'!B:G,6,0)) -> - | L44: =IF(COUNTIF('N PMČRj 2019'!B:B,B44)=0,"-",COUNTIF('N PMČRj 2019'!B:B,B44)) -> - | M44: =IF(ISERROR(VLOOKUP(B44,'N PMČRj 2019'!B:G,6,0)),"-",VLOOKUP(B44,'N PMČRj 2019'!B:G,6,0)) -> -
A45: =A44+1 -> 35 | B45: Petr Panek | C45: =VLOOKUP(B45,Pilot!A:C,3,0) -> Dvůr Králové | D45: =VLOOKUP(B45,Pilot!A:B,2,0) -> 1975 | E45: =VLOOKUP(B45,Pilot!A:E,5,0) -> M | F45: =VLOOKUP(B45,Pilot!A:F,6,0) ->  | G45: =A45 -> 35 | I45: =COUNTIF(B:B,B45) -> 1 | J45: =IF(COUNTIF('N PMRg 2019'!B:B,B45)=0,"-",COUNTIF('N PMRg 2019'!B:B,B45)) -> - | K45: =IF(ISERROR(VLOOKUP(B45,'N PMRg 2019'!B:G,6,0)),"-",VLOOKUP(B45,'N PMRg 2019'!B:G,6,0)) -> - | L45: =IF(COUNTIF('N PMČRj 2019'!B:B,B45)=0,"-",COUNTIF('N PMČRj 2019'!B:B,B45)) -> - | M45: =IF(ISERROR(VLOOKUP(B45,'N PMČRj 2019'!B:G,6,0)),"-",VLOOKUP(B45,'N PMČRj 2019'!B:G,6,0)) -> -
A46: =A45+1 -> 36 | B46: Ivan Harasta 65 | C46: =VLOOKUP(B46,Pilot!A:C,3,0) -> Toužim | D46: =VLOOKUP(B46,Pilot!A:B,2,0) -> 1965 | E46: =VLOOKUP(B46,Pilot!A:E,5,0) -> M | F46: =VLOOKUP(B46,Pilot!A:F,6,0) ->  | G46: =A46 -> 36 | I46: =COUNTIF(B:B,B46) -> 1 | J46: =IF(COUNTIF('N PMRg 2019'!B:B,B46)=0,"-",COUNTIF('N PMRg 2019'!B:B,B46)) -> - | K46: =IF(ISERROR(VLOOKUP(B46,'N PMRg 2019'!B:G,6,0)),"-",VLOOKUP(B46,'N PMRg 2019'!B:G,6,0)) -> - | L46: =IF(COUNTIF('N PMČRj 2019'!B:B,B46)=0,"-",COUNTIF('N PMČRj 2019'!B:B,B46)) -> - | M46: =IF(ISERROR(VLOOKUP(B46,'N PMČRj 2019'!B:G,6,0)),"-",VLOOKUP(B46,'N PMČRj 2019'!B:G,6,0)) -> -
B47: PMČR 2018 - Tábor - Kombi 15m
A48: =MAX(A42:A47)+1 -> 37 | B48: Jan Pavlik | C48: =VLOOKUP(B48,Pilot!A:C,3,0) -> Křižanov | D48: =VLOOKUP(B48,Pilot!A:B,2,0) -> 1987 | E48: =VLOOKUP(B48,Pilot!A:E,5,0) -> M | F48: =VLOOKUP(B48,Pilot!A:F,6,0) ->  | G48: =A48 -> 37 | I48: =COUNTIF(B:B,B48) -> 1 | J48: =IF(COUNTIF('N PMRg 2019'!B:B,B48)=0,"-",COUNTIF('N PMRg 2019'!B:B,B48)) -> - | K48: =IF(ISERROR(VLOOKUP(B48,'N PMRg 2019'!B:G,6,0)),"-",VLOOKUP(B48,'N PMRg 2019'!B:G,6,0)) -> - | L48: =IF(COUNTIF('N PMČRj 2019'!B:B,B48)=0,"-",COUNTIF('N PMČRj 2019'!B:B,B48)) -> - | M48: =IF(ISERROR(VLOOKUP(B48,'N PMČRj 2019'!B:G,6,0)),"-",VLOOKUP(B48,'N PMČRj 2019'!B:G,6,0)) -> -
A49: =A48+1 -> 38 | B49: Jiri Kusbach | C49: =VLOOKUP(B49,Pilot!A:C,3,0) -> Luhačovice | D49: =VLOOKUP(B49,Pilot!A:B,2,0) -> 1959 | E49: =VLOOKUP(B49,Pilot!A:E,5,0) -> M | F49: =VLOOKUP(B49,Pilot!A:F,6,0) ->  | G49: =A49 -> 38 | I49: =COUNTIF(B:B,B49) -> 1 | J49: =IF(COUNTIF('N PMRg 2019'!B:B,B49)=0,"-",COUNTIF('N PMRg 2019'!B:B,B49)) -> - | K49: =IF(ISERROR(VLOOKUP(B49,'N PMRg 2019'!B:G,6,0)),"-",VLOOKUP(B49,'N PMRg 2019'!B:G,6,0)) -> - | L49: =IF(COUNTIF('N PMČRj 2019'!B:B,B49)=0,"-",COUNTIF('N PMČRj 2019'!B:B,B49)) -> - | M49: =IF(ISERROR(VLOOKUP(B49,'N PMČRj 2019'!B:G,6,0)),"-",VLOOKUP(B49,'N PMČRj 2019'!B:G,6,0)) -> -
B50: PMČR 2018 - Tábor - Kombi Open
A51: =MAX(A48:A50)+1 -> 39 | B51: Danes Grula | C51: =VLOOKUP(B51,Pilot!A:C,3,0) -> Medlánky | D51: =VLOOKUP(B51,Pilot!A:B,2,0) -> 1961 | E51: =VLOOKUP(B51,Pilot!A:E,5,0) -> M | F51: =VLOOKUP(B51,Pilot!A:F,6,0) ->  | G51: =A51 -> 39 | I51: =COUNTIF(B:B,B51) -> 1 | J51: =IF(COUNTIF('N PMRg 2019'!B:B,B51)=0,"-",COUNTIF('N PMRg 2019'!B:B,B51)) -> - | K51: =IF(ISERROR(VLOOKUP(B51,'N PMRg 2019'!B:G,6,0)),"-",VLOOKUP(B51,'N PMRg 2019'!B:G,6,0)) -> - | L51: =IF(COUNTIF('N PMČRj 2019'!B:B,B51)=0,"-",COUNTIF('N PMČRj 2019'!B:B,B51)) -> - | M51: =IF(ISERROR(VLOOKUP(B51,'N PMČRj 2019'!B:G,6,0)),"-",VLOOKUP(B51,'N PMČRj 2019'!B:G,6,0)) -> -
A52: =MAX(A49:A51)+1 -> 40 | B52: Petr Hotovy | C52: =VLOOKUP(B52,Pilot!A:C,3,0) -> Česká Lípa | D52: =VLOOKUP(B52,Pilot!A:B,2,0) -> 1958 | E52: =VLOOKUP(B52,Pilot!A:E,5,0) -> M | F52: =VLOOKUP(B52,Pilot!A:F,6,0) ->  | G52: =A52 -> 40 | I52: =COUNTIF(B:B,B52) -> 1 | J52: =IF(COUNTIF('N PMRg 2019'!B:B,B52)=0,"-",COUNTIF('N PMRg 2019'!B:B,B52)) -> - | K52: =IF(ISERROR(VLOOKUP(B52,'N PMRg 2019'!B:G,6,0)),"-",VLOOKUP(B52,'N PMRg 2019'!B:G,6,0)) -> - | L52: =IF(COUNTIF('N PMČRj 2019'!B:B,B52)=0,"-",COUNTIF('N PMČRj 2019'!B:B,B52)) -> - | M52: =IF(ISERROR(VLOOKUP(B52,'N PMČRj 2019'!B:G,6,0)),"-",VLOOKUP(B52,'N PMČRj 2019'!B:G,6,0)) -> -
A53: 6.6.6.3. | B53: prvních 5 soutěžících z posledního platného PMČRj mimo RV (+ 5 náhradníků)
B54: PMČRj 2018 - Raná - Klub
A55: =MAX(A42:A52)+1 -> 41 | B55: Petr Valenta | C55: =VLOOKUP(B55,Pilot!A:C,3,0) -> Kunovice | D55: =VLOOKUP(B55,Pilot!A:B,2,0) -> 1994 | E55: =VLOOKUP(B55,Pilot!A:E,5,0) -> M | F55: =VLOOKUP(B55,Pilot!A:F,6,0) -> Junior v roce 2019 | G55: =A55 -> 41 | I55: =COUNTIF(B:B,B55) -> 1 | J55: =IF(COUNTIF('N PMRg 2019'!B:B,B55)=0,"-",COUNTIF('N PMRg 2019'!B:B,B55)) -> - | K55: =IF(ISERROR(VLOOKUP(B55,'N PMRg 2019'!B:G,6,0)),"-",VLOOKUP(B55,'N PMRg 2019'!B:G,6,0)) -> - | L55: =IF(COUNTIF('N PMČRj 2019'!B:B,B55)=0,"-",COUNTIF('N PMČRj 2019'!B:B,B55)) -> - | M55: =IF(ISERROR(VLOOKUP(B55,'N PMČRj 2019'!B:G,6,0)),"-",VLOOKUP(B55,'N PMČRj 2019'!B:G,6,0)) -> -
A56: =A55+1 -> 42 | B56: Jan Vozeh | C56: =VLOOKUP(B56,Pilot!A:C,3,0) -> Rakovník | D56: =VLOOKUP(B56,Pilot!A:B,2,0) -> 1995 | E56: =VLOOKUP(B56,Pilot!A:E,5,0) -> M | F56: =VLOOKUP(B56,Pilot!A:F,6,0) -> Junior v roce 2019 | G56: 42 | I56: 1 | J56: =IF(COUNTIF('N PMRg 2019'!B:B,B56)=0,"-",COUNTIF('N PMRg 2019'!B:B,B56)) -> - | K56: =IF(ISERROR(VLOOKUP(B56,'N PMRg 2019'!B:G,6,0)),"-",VLOOKUP(B56,'N PMRg 2019'!B:G,6,0)) -> - | L56: =IF(COUNTIF('N PMČRj 2019'!B:B,B56)=0,"-",COUNTIF('N PMČRj 2019'!B:B,B56)) -> - | M56: =IF(ISERROR(VLOOKUP(B56,'N PMČRj 2019'!B:G,6,0)),"-",VLOOKUP(B56,'N PMČRj 2019'!B:G,6,0)) -> -
A57: =A56+1 -> 43 | B57: Ivan Tvrdik | C57: =VLOOKUP(B57,Pilot!A:C,3,0) -> Letňany | D57: =VLOOKUP(B57,Pilot!A:B,2,0) -> 1997 | E57: =VLOOKUP(B57,Pilot!A:E,5,0) -> M | F57: =VLOOKUP(B57,Pilot!A:F,6,0) -> Junior v roce 2019 | G57: 43 | I57: 1 | J57: =IF(COUNTIF('N PMRg 2019'!B:B,B57)=0,"-",COUNTIF('N PMRg 2019'!B:B,B57)) -> - | K57: =IF(ISERROR(VLOOKUP(B57,'N PMRg 2019'!B:G,6,0)),"-",VLOOKUP(B57,'N PMRg 2019'!B:G,6,0)) -> - | L57: =IF(COUNTIF('N PMČRj 2019'!B:B,B57)=0,"-",COUNTIF('N PMČRj 2019'!B:B,B57)) -> - | M57: =IF(ISERROR(VLOOKUP(B57,'N PMČRj 2019'!B:G,6,0)),"-",VLOOKUP(B57,'N PMČRj 2019'!B:G,6,0)) -> -
A58: =A57+1 -> 44 | B58: Tomas Jilek | C58: =VLOOKUP(B58,Pilot!A:C,3,0) -> Raná | D58: =VLOOKUP(B58,Pilot!A:B,2,0) -> 1995 | E58: =VLOOKUP(B58,Pilot!A:E,5,0) -> M | F58: =VLOOKUP(B58,Pilot!A:F,6,0) -> Junior v roce 2019 | G58: 44 | I58: 1 | J58: =IF(COUNTIF('N PMRg 2019'!B:B,B58)=0,"-",COUNTIF('N PMRg 2019'!B:B,B58)) -> - | K58: =IF(ISERROR(VLOOKUP(B58,'N PMRg 2019'!B:G,6,0)),"-",VLOOKUP(B58,'N PMRg 2019'!B:G,6,0)) -> - | L58: =IF(COUNTIF('N PMČRj 2019'!B:B,B58)=0,"-",COUNTIF('N PMČRj 2019'!B:B,B58)) -> - | M58: =IF(ISERROR(VLOOKUP(B58,'N PMČRj 2019'!B:G,6,0)),"-",VLOOKUP(B58,'N PMČRj 2019'!B:G,6,0)) -> -
A59: =A58+1 -> 45 | B59: Daniel Suchy | C59: =VLOOKUP(B59,Pilot!A:C,3,0) -> Hranice | D59: =VLOOKUP(B59,Pilot!A:B,2,0) -> 1995 | E59: =VLOOKUP(B59,Pilot!A:E,5,0) -> M | F59: =VLOOKUP(B59,Pilot!A:F,6,0) -> Junior v roce 2019 | G59: 45 | I59: 1 | J59: =IF(COUNTIF('N PMRg 2019'!B:B,B59)=0,"-",COUNTIF('N PMRg 2019'!B:B,B59)) -> - | K59: =IF(ISERROR(VLOOKUP(B59,'N PMRg 2019'!B:G,6,0)),"-",VLOOKUP(B59,'N PMRg 2019'!B:G,6,0)) -> - | L59: =IF(COUNTIF('N PMČRj 2019'!B:B,B59)=0,"-",COUNTIF('N PMČRj 2019'!B:B,B59)) -> - | M59: =IF(ISERROR(VLOOKUP(B59,'N PMČRj 2019'!B:G,6,0)),"-",VLOOKUP(B59,'N PMČRj 2019'!B:G,6,0)) -> -
A60: N1 | B60: Vit Morkovsky | C60: =VLOOKUP(B60,Pilot!A:C,3,0) -> Polička | D60: =VLOOKUP(B60,Pilot!A:B,2,0) -> 2000 | E60: =VLOOKUP(B60,Pilot!A:E,5,0) -> M | F60: =VLOOKUP(B60,Pilot!A:F,6,0) -> Junior v roce 2019 | G60: N1 | I60: 1 | J60: =IF(COUNTIF('N PMRg 2019'!B:B,B60)=0,"-",COUNTIF('N PMRg 2019'!B:B,B60)) -> - | K60: =IF(ISERROR(VLOOKUP(B60,'N PMRg 2019'!B:G,6,0)),"-",VLOOKUP(B60,'N PMRg 2019'!B:G,6,0)) -> - | L60: =IF(COUNTIF('N PMČRj 2019'!B:B,B60)=0,"-",COUNTIF('N PMČRj 2019'!B:B,B60)) -> - | M60: =IF(ISERROR(VLOOKUP(B60,'N PMČRj 2019'!B:G,6,0)),"-",VLOOKUP(B60,'N PMČRj 2019'!B:G,6,0)) -> -
A61: N2 | B61: Josef Hlusek | C61: =VLOOKUP(B61,Pilot!A:C,3,0) -> Kunovice | D61: =VLOOKUP(B61,Pilot!A:B,2,0) -> 1993 | E61: =VLOOKUP(B61,Pilot!A:E,5,0) -> M | F61: =VLOOKUP(B61,Pilot!A:F,6,0) ->  | G61: N2 | I61: 1 | J61: =IF(COUNTIF('N PMRg 2019'!B:B,B61)=0,"-",COUNTIF('N PMRg 2019'!B:B,B61)) -> - | K61: =IF(ISERROR(VLOOKUP(B61,'N PMRg 2019'!B:G,6,0)),"-",VLOOKUP(B61,'N PMRg 2019'!B:G,6,0)) -> - | L61: =IF(COUNTIF('N PMČRj 2019'!B:B,B61)=0,"-",COUNTIF('N PMČRj 2019'!B:B,B61)) -> - | M61: =IF(ISERROR(VLOOKUP(B61,'N PMČRj 2019'!B:G,6,0)),"-",VLOOKUP(B61,'N PMČRj 2019'!B:G,6,0)) -> -
A62: N3 | B62: Jan Beran | C62: =VLOOKUP(B62,Pilot!A:C,3,0) -> Kladno | D62: =VLOOKUP(B62,Pilot!A:B,2,0) -> 1999 | E62: =VLOOKUP(B62,Pilot!A:E,5,0) -> M | F62: =VLOOKUP(B62,Pilot!A:F,6,0) -> Junior v roce 2019 | G62: N3 | I62: 1 | J62: =IF(COUNTIF('N PMRg 2019'!B:B,B62)=0,"-",COUNTIF('N PMRg 2019'!B:B,B62)) -> - | K62: =IF(ISERROR(VLOOKUP(B62,'N PMRg 2019'!B:G,6,0)),"-",VLOOKUP(B62,'N PMRg 2019'!B:G,6,0)) -> - | L62: =IF(COUNTIF('N PMČRj 2019'!B:B,B62)=0,"-",COUNTIF('N PMČRj 2019'!B:B,B62)) -> - | M62: =IF(ISERROR(VLOOKUP(B62,'N PMČRj 2019'!B:G,6,0)),"-",VLOOKUP(B62,'N PMČRj 2019'!B:G,6,0)) -> -
A63: N4 | B63: Tomas Moravec | C63: =VLOOKUP(B63,Pilot!A:C,3,0) -> Žamberk | D63: =VLOOKUP(B63,Pilot!A:B,2,0) -> 2000 | E63: =VLOOKUP(B63,Pilot!A:E,5,0) -> M | F63: =VLOOKUP(B63,Pilot!A:F,6,0) -> Junior v roce 2019 | G63: N4 | I63: 1 | J63: =IF(COUNTIF('N PMRg 2019'!B:B,B63)=0,"-",COUNTIF('N PMRg 2019'!B:B,B63)) -> - | K63: =IF(ISERROR(VLOOKUP(B63,'N PMRg 2019'!B:G,6,0)),"-",VLOOKUP(B63,'N PMRg 2019'!B:G,6,0)) -> - | L63: =IF(COUNTIF('N PMČRj 2019'!B:B,B63)=0,"-",COUNTIF('N PMČRj 2019'!B:B,B63)) -> - | M63: =IF(ISERROR(VLOOKUP(B63,'N PMČRj 2019'!B:G,6,0)),"-",VLOOKUP(B63,'N PMČRj 2019'!B:G,6,0)) -> -
A64: N5 | B64: Vladimir Hammer | C64: =VLOOKUP(B64,Pilot!A:C,3,0) -> Klatovy | D64: =VLOOKUP(B64,Pilot!A:B,2,0) -> 2000 | E64: =VLOOKUP(B64,Pilot!A:E,5,0) -> M | F64: =VLOOKUP(B64,Pilot!A:F,6,0) -> Junior v roce 2019 | G64: N5 | I64: 1 | J64: =IF(COUNTIF('N PMRg 2019'!B:B,B64)=0,"-",COUNTIF('N PMRg 2019'!B:B,B64)) -> - | K64: =IF(ISERROR(VLOOKUP(B64,'N PMRg 2019'!B:G,6,0)),"-",VLOOKUP(B64,'N PMRg 2019'!B:G,6,0)) -> - | L64: =IF(COUNTIF('N PMČRj 2019'!B:B,B64)=0,"-",COUNTIF('N PMČRj 2019'!B:B,B64)) -> - | M64: =IF(ISERROR(VLOOKUP(B64,'N PMČRj 2019'!B:G,6,0)),"-",VLOOKUP(B64,'N PMČRj 2019'!B:G,6,0)) -> -
A65: 6.6.6.4. | B65: 5 soutěžících může navrhnout PK podle jiných kritérií dle odstavce 9. (bez náhradníků)
A66: - | B66: - | C66: =VLOOKUP(B66,Pilot!A:C,3,0) ->  | D66: =VLOOKUP(B66,Pilot!A:B,2,0) ->  | E66: =VLOOKUP(B66,Pilot!A:E,5,0) ->  | F66: =VLOOKUP(B66,Pilot!A:F,6,0) ->  | G66: =A66 -> - | I66: =COUNTIF(B:B,B66) -> 10 | J66: =IF(COUNTIF('N PMRg 2019'!B:B,B66)=0,"-",COUNTIF('N PMRg 2019'!B:B,B66)) -> 14 | K66: =IF(ISERROR(VLOOKUP(B66,'N PMRg 2019'!B:G,6,0)),"-",VLOOKUP(B66,'N PMRg 2019'!B:G,6,0)) -> - | L66: =IF(COUNTIF('N PMČRj 2019'!B:B,B66)=0,"-",COUNTIF('N PMČRj 2019'!B:B,B66)) -> 10 | M66: =IF(ISERROR(VLOOKUP(B66,'N PMČRj 2019'!B:G,6,0)),"-",VLOOKUP(B66,'N PMČRj 2019'!B:G,6,0)) -> -
A67: - | B67: - | C67: =VLOOKUP(B67,Pilot!A:C,3,0) ->  | D67: =VLOOKUP(B67,Pilot!A:B,2,0) ->  | E67: =VLOOKUP(B67,Pilot!A:E,5,0) ->  | F67: =VLOOKUP(B67,Pilot!A:F,6,0) ->  | G67: =A67 -> - | I67: =COUNTIF(B:B,B67) -> 10 | J67: =IF(COUNTIF('N PMRg 2019'!B:B,B67)=0,"-",COUNTIF('N PMRg 2019'!B:B,B67)) -> 14 | K67: =IF(ISERROR(VLOOKUP(B67,'N PMRg 2019'!B:G,6,0)),"-",VLOOKUP(B67,'N PMRg 2019'!B:G,6,0)) -> - | L67: =IF(COUNTIF('N PMČRj 2019'!B:B,B67)=0,"-",COUNTIF('N PMČRj 2019'!B:B,B67)) -> 10 | M67: =IF(ISERROR(VLOOKUP(B67,'N PMČRj 2019'!B:G,6,0)),"-",VLOOKUP(B67,'N PMČRj 2019'!B:G,6,0)) -> -
A68: - | B68: - | C68: =VLOOKUP(B68,Pilot!A:C,3,0) ->  | D68: =VLOOKUP(B68,Pilot!A:B,2,0) ->  | E68: =VLOOKUP(B68,Pilot!A:E,5,0) ->  | F68: =VLOOKUP(B68,Pilot!A:F,6,0) ->  | G68: =A68 -> - | I68: =COUNTIF(B:B,B68) -> 10 | J68: =IF(COUNTIF('N PMRg 2019'!B:B,B68)=0,"-",COUNTIF('N PMRg 2019'!B:B,B68)) -> 14 | K68: =IF(ISERROR(VLOOKUP(B68,'N PMRg 2019'!B:G,6,0)),"-",VLOOKUP(B68,'N PMRg 2019'!B:G,6,0)) -> - | L68: =IF(COUNTIF('N PMČRj 2019'!B:B,B68)=0,"-",COUNTIF('N PMČRj 2019'!B:B,B68)) -> 10 | M68: =IF(ISERROR(VLOOKUP(B68,'N PMČRj 2019'!B:G,6,0)),"-",VLOOKUP(B68,'N PMČRj 2019'!B:G,6,0)) -> -
A69: - | B69: - | C69: =VLOOKUP(B69,Pilot!A:C,3,0) ->  | D69: =VLOOKUP(B69,Pilot!A:B,2,0) ->  | E69: =VLOOKUP(B69,Pilot!A:E,5,0) ->  | F69: =VLOOKUP(B69,Pilot!A:F,6,0) ->  | G69: =A69 -> - | I69: =COUNTIF(B:B,B69) -> 10 | J69: =IF(COUNTIF('N PMRg 2019'!B:B,B69)=0,"-",COUNTIF('N PMRg 2019'!B:B,B69)) -> 14 | K69: =IF(ISERROR(VLOOKUP(B69,'N PMRg 2019'!B:G,6,0)),"-",VLOOKUP(B69,'N PMRg 2019'!B:G,6,0)) -> - | L69: =IF(COUNTIF('N PMČRj 2019'!B:B,B69)=0,"-",COUNTIF('N PMČRj 2019'!B:B,B69)) -> 10 | M69: =IF(ISERROR(VLOOKUP(B69,'N PMČRj 2019'!B:G,6,0)),"-",VLOOKUP(B69,'N PMČRj 2019'!B:G,6,0)) -> -
A70: - | B70: - | C70: =VLOOKUP(B70,Pilot!A:C,3,0) ->  | D70: =VLOOKUP(B70,Pilot!A:B,2,0) ->  | E70: =VLOOKUP(B70,Pilot!A:E,5,0) ->  | F70: =VLOOKUP(B70,Pilot!A:F,6,0) ->  | G70: =A70 -> - | I70: =COUNTIF(B:B,B70) -> 10 | J70: =IF(COUNTIF('N PMRg 2019'!B:B,B70)=0,"-",COUNTIF('N PMRg 2019'!B:B,B70)) -> 14 | K70: =IF(ISERROR(VLOOKUP(B70,'N PMRg 2019'!B:G,6,0)),"-",VLOOKUP(B70,'N PMRg 2019'!B:G,6,0)) -> - | L70: =IF(COUNTIF('N PMČRj 2019'!B:B,B70)=0,"-",COUNTIF('N PMČRj 2019'!B:B,B70)) -> 10 | M70: =IF(ISERROR(VLOOKUP(B70,'N PMČRj 2019'!B:G,6,0)),"-",VLOOKUP(B70,'N PMČRj 2019'!B:G,6,0)) -> -
A71: 6.6.6.5. | B71: ostatní soutěžící z posledního platného PMRg v pořadí podle umístění, do naplnění celkového počtu nominovaných 80 dle 6.6.5. (+ 10 náhradníků)
A72: 6.6.6.6. | B72: Je-li PMRg pořádáno ve více třídách, a/nebo ve více regionech, pak jsou na PMČR nominováni soutěžící podle korigovaných bodů z jednotlivých tříd/regionů do naplnění celkového počtu nominovaných dle 6.6.5.
A73: 6.6.6.7. | B73: V případě neplatnosti některé ze soutěžních tříd posledního PMRg budou pro výpočet korigovaných bodů použity výsledky z posledního platného PMRg v dané třídě.
B74: PMRg 2018 - Hodkovice - Korigované body
A75: =MAX(A55:A59)+1 -> 46 | B75: Karel Mares | C75: =VLOOKUP(B75,Pilot!A:C,3,0) -> Slaný | D75: =VLOOKUP(B75,Pilot!A:B,2,0) -> 1974 | E75: =VLOOKUP(B75,Pilot!A:E,5,0) -> M | F75: =VLOOKUP(B75,Pilot!A:F,6,0) ->  | G75: =A75 -> 46 | I75: =COUNTIF(B:B,B75) -> 1 | J75: =IF(COUNTIF('N PMRg 2019'!B:B,B75)=0,"-",COUNTIF('N PMRg 2019'!B:B,B75)) -> - | K75: =IF(ISERROR(VLOOKUP(B75,'N PMRg 2019'!B:G,6,0)),"-",VLOOKUP(B75,'N PMRg 2019'!B:G,6,0)) -> - | L75: =IF(COUNTIF('N PMČRj 2019'!B:B,B75)=0,"-",COUNTIF('N PMČRj 2019'!B:B,B75)) -> - | M75: =IF(ISERROR(VLOOKUP(B75,'N PMČRj 2019'!B:G,6,0)),"-",VLOOKUP(B75,'N PMČRj 2019'!B:G,6,0)) -> -
A76: =A75+1 -> 47 | B76: Vaclav Marel | C76: =VLOOKUP(B76,Pilot!A:C,3,0) -> Jaroměř | D76: =VLOOKUP(B76,Pilot!A:B,2,0) -> 1974 | E76: =VLOOKUP(B76,Pilot!A:E,5,0) -> M | F76: =VLOOKUP(B76,Pilot!A:F,6,0) ->  | G76: 47 | I76: 1 | J76: =IF(COUNTIF('N PMRg 2019'!B:B,B76)=0,"-",COUNTIF('N PMRg 2019'!B:B,B76)) -> - | K76: =IF(ISERROR(VLOOKUP(B76,'N PMRg 2019'!B:G,6,0)),"-",VLOOKUP(B76,'N PMRg 2019'!B:G,6,0)) -> - | L76: =IF(COUNTIF('N PMČRj 2019'!B:B,B76)=0,"-",COUNTIF('N PMČRj 2019'!B:B,B76)) -> - | M76: =IF(ISERROR(VLOOKUP(B76,'N PMČRj 2019'!B:G,6,0)),"-",VLOOKUP(B76,'N PMČRj 2019'!B:G,6,0)) -> -
A77: =A76+1 -> 48 | B77: Jan Ratz | C77: =VLOOKUP(B77,Pilot!A:C,3,0) -> Plasy | D77: =VLOOKUP(B77,Pilot!A:B,2,0) -> 1987 | E77: =VLOOKUP(B77,Pilot!A:E,5,0) -> M | F77: =VLOOKUP(B77,Pilot!A:F,6,0) ->  | G77: 48 | I77: 1 | J77: =IF(COUNTIF('N PMRg 2019'!B:B,B77)=0,"-",COUNTIF('N PMRg 2019'!B:B,B77)) -> - | K77: =IF(ISERROR(VLOOKUP(B77,'N PMRg 2019'!B:G,6,0)),"-",VLOOKUP(B77,'N PMRg 2019'!B:G,6,0)) -> - | L77: =IF(COUNTIF('N PMČRj 2019'!B:B,B77)=0,"-",COUNTIF('N PMČRj 2019'!B:B,B77)) -> - | M77: =IF(ISERROR(VLOOKUP(B77,'N PMČRj 2019'!B:G,6,0)),"-",VLOOKUP(B77,'N PMČRj 2019'!B:G,6,0)) -> -
A78: =A77+1 -> 49 | B78: Lukas Koukal | C78: =VLOOKUP(B78,Pilot!A:C,3,0) -> Letkov | D78: =VLOOKUP(B78,Pilot!A:B,2,0) -> 1991 | E78: =VLOOKUP(B78,Pilot!A:E,5,0) -> M | F78: =VLOOKUP(B78,Pilot!A:F,6,0) ->  | G78: 49 | I78: 1 | J78: =IF(COUNTIF('N PMRg 2019'!B:B,B78)=0,"-",COUNTIF('N PMRg 2019'!B:B,B78)) -> - | K78: =IF(ISERROR(VLOOKUP(B78,'N PMRg 2019'!B:G,6,0)),"-",VLOOKUP(B78,'N PMRg 2019'!B:G,6,0)) -> - | L78: =IF(COUNTIF('N PMČRj 2019'!B:B,B78)=0,"-",COUNTIF('N PMČRj 2019'!B:B,B78)) -> - | M78: =IF(ISERROR(VLOOKUP(B78,'N PMČRj 2019'!B:G,6,0)),"-",VLOOKUP(B78,'N PMČRj 2019'!B:G,6,0)) -> -
A79: =A78+1 -> 50 | B79: Jan Vavrin | C79: =VLOOKUP(B79,Pilot!A:C,3,0) -> Vysoké Mýto | D79: =VLOOKUP(B79,Pilot!A:B,2,0) -> 1987 | E79: =VLOOKUP(B79,Pilot!A:E,5,0) -> M | F79: =VLOOKUP(B79,Pilot!A:F,6,0) ->  | G79: 50 | I79: 1 | J79: =IF(COUNTIF('N PMRg 2019'!B:B,B79)=0,"-",COUNTIF('N PMRg 2019'!B:B,B79)) -> - | K79: =IF(ISERROR(VLOOKUP(B79,'N PMRg 2019'!B:G,6,0)),"-",VLOOKUP(B79,'N PMRg 2019'!B:G,6,0)) -> - | L79: =IF(COUNTIF('N PMČRj 2019'!B:B,B79)=0,"-",COUNTIF('N PMČRj 2019'!B:B,B79)) -> - | M79: =IF(ISERROR(VLOOKUP(B79,'N PMČRj 2019'!B:G,6,0)),"-",VLOOKUP(B79,'N PMČRj 2019'!B:G,6,0)) -> -
A80: 51 | B80: Vojtech Novotny | C80: =VLOOKUP(B80,Pilot!A:C,3,0) -> Kralupy | D80: =VLOOKUP(B80,Pilot!A:B,2,0) -> 1992 | E80: =VLOOKUP(B80,Pilot!A:E,5,0) -> M | F80: =VLOOKUP(B80,Pilot!A:F,6,0) ->  | G80: 51 | I80: 1 | J80: =IF(COUNTIF('N PMRg 2019'!B:B,B80)=0,"-",COUNTIF('N PMRg 2019'!B:B,B80)) -> - | K80: =IF(ISERROR(VLOOKUP(B80,'N PMRg 2019'!B:G,6,0)),"-",VLOOKUP(B80,'N PMRg 2019'!B:G,6,0)) -> - | L80: =IF(COUNTIF('N PMČRj 2019'!B:B,B80)=0,"-",COUNTIF('N PMČRj 2019'!B:B,B80)) -> - | M80: =IF(ISERROR(VLOOKUP(B80,'N PMČRj 2019'!B:G,6,0)),"-",VLOOKUP(B80,'N PMČRj 2019'!B:G,6,0)) -> -
A81: 52 | B81: Radek Zima 78 | C81: =VLOOKUP(B81,Pilot!A:C,3,0) -> Hodkovice | D81: =VLOOKUP(B81,Pilot!A:B,2,0) -> 1978 | E81: =VLOOKUP(B81,Pilot!A:E,5,0) -> M | F81: =VLOOKUP(B81,Pilot!A:F,6,0) ->  | G81: 52 | I81: 1 | J81: =IF(COUNTIF('N PMRg 2019'!B:B,B81)=0,"-",COUNTIF('N PMRg 2019'!B:B,B81)) -> - | K81: =IF(ISERROR(VLOOKUP(B81,'N PMRg 2019'!B:G,6,0)),"-",VLOOKUP(B81,'N PMRg 2019'!B:G,6,0)) -> - | L81: =IF(COUNTIF('N PMČRj 2019'!B:B,B81)=0,"-",COUNTIF('N PMČRj 2019'!B:B,B81)) -> - | M81: =IF(ISERROR(VLOOKUP(B81,'N PMČRj 2019'!B:G,6,0)),"-",VLOOKUP(B81,'N PMČRj 2019'!B:G,6,0)) -> -
A82: 53 | B82: Lukas Plocek | C82: =VLOOKUP(B82,Pilot!A:C,3,0) -> Mladá Boleslav | D82: =VLOOKUP(B82,Pilot!A:B,2,0) -> 1990 | E82: =VLOOKUP(B82,Pilot!A:E,5,0) -> M | F82: =VLOOKUP(B82,Pilot!A:F,6,0) ->  | G82: 53 | I82: 1 | J82: =IF(COUNTIF('N PMRg 2019'!B:B,B82)=0,"-",COUNTIF('N PMRg 2019'!B:B,B82)) -> - | K82: =IF(ISERROR(VLOOKUP(B82,'N PMRg 2019'!B:G,6,0)),"-",VLOOKUP(B82,'N PMRg 2019'!B:G,6,0)) -> - | L82: =IF(COUNTIF('N PMČRj 2019'!B:B,B82)=0,"-",COUNTIF('N PMČRj 2019'!B:B,B82)) -> - | M82: =IF(ISERROR(VLOOKUP(B82,'N PMČRj 2019'!B:G,6,0)),"-",VLOOKUP(B82,'N PMČRj 2019'!B:G,6,0)) -> -
A83: 54 | B83: Michal Krupicka | C83: =VLOOKUP(B83,Pilot!A:C,3,0) -> Most | D83: =VLOOKUP(B83,Pilot!A:B,2,0) -> 1975 | E83: =VLOOKUP(B83,Pilot!A:E,5,0) -> M | F83: =VLOOKUP(B83,Pilot!A:F,6,0) ->  | G83: 54 | I83: 1 | J83: =IF(COUNTIF('N PMRg 2019'!B:B,B83)=0,"-",COUNTIF('N PMRg 2019'!B:B,B83)) -> - | K83: =IF(ISERROR(VLOOKUP(B83,'N PMRg 2019'!B:G,6,0)),"-",VLOOKUP(B83,'N PMRg 2019'!B:G,6,0)) -> - | L83: =IF(COUNTIF('N PMČRj 2019'!B:B,B83)=0,"-",COUNTIF('N PMČRj 2019'!B:B,B83)) -> - | M83: =IF(ISERROR(VLOOKUP(B83,'N PMČRj 2019'!B:G,6,0)),"-",VLOOKUP(B83,'N PMČRj 2019'!B:G,6,0)) -> -
A84: 55 | B84: Marek Svancara | C84: =VLOOKUP(B84,Pilot!A:C,3,0) -> GAC Benešov | D84: =VLOOKUP(B84,Pilot!A:B,2,0) -> 1976 | E84: =VLOOKUP(B84,Pilot!A:E,5,0) -> M | F84: =VLOOKUP(B84,Pilot!A:F,6,0) ->  | G84: 55 | I84: 1 | J84: =IF(COUNTIF('N PMRg 2019'!B:B,B84)=0,"-",COUNTIF('N PMRg 2019'!B:B,B84)) -> - | K84: =IF(ISERROR(VLOOKUP(B84,'N PMRg 2019'!B:G,6,0)),"-",VLOOKUP(B84,'N PMRg 2019'!B:G,6,0)) -> - | L84: =IF(COUNTIF('N PMČRj 2019'!B:B,B84)=0,"-",COUNTIF('N PMČRj 2019'!B:B,B84)) -> - | M84: =IF(ISERROR(VLOOKUP(B84,'N PMČRj 2019'!B:G,6,0)),"-",VLOOKUP(B84,'N PMČRj 2019'!B:G,6,0)) -> -
A85: 56 | B85: Jan Zahradka | C85: =VLOOKUP(B85,Pilot!A:C,3,0) -> Hodkovice | D85: =VLOOKUP(B85,Pilot!A:B,2,0) -> 1981 | E85: =VLOOKUP(B85,Pilot!A:E,5,0) -> M | F85: =VLOOKUP(B85,Pilot!A:F,6,0) ->  | G85: 56 | I85: 1 | J85: =IF(COUNTIF('N PMRg 2019'!B:B,B85)=0,"-",COUNTIF('N PMRg 2019'!B:B,B85)) -> - | K85: =IF(ISERROR(VLOOKUP(B85,'N PMRg 2019'!B:G,6,0)),"-",VLOOKUP(B85,'N PMRg 2019'!B:G,6,0)) -> - | L85: =IF(COUNTIF('N PMČRj 2019'!B:B,B85)=0,"-",COUNTIF('N PMČRj 2019'!B:B,B85)) -> - | M85: =IF(ISERROR(VLOOKUP(B85,'N PMČRj 2019'!B:G,6,0)),"-",VLOOKUP(B85,'N PMČRj 2019'!B:G,6,0)) -> -
A86: 57 | B86: Jan Smaha | C86: =VLOOKUP(B86,Pilot!A:C,3,0) -> Česká Lípa | D86: =VLOOKUP(B86,Pilot!A:B,2,0) -> 1958 | E86: =VLOOKUP(B86,Pilot!A:E,5,0) -> M | F86: =VLOOKUP(B86,Pilot!A:F,6,0) ->  | G86: 57 | I86: 1 | J86: =IF(COUNTIF('N PMRg 2019'!B:B,B86)=0,"-",COUNTIF('N PMRg 2019'!B:B,B86)) -> - | K86: =IF(ISERROR(VLOOKUP(B86,'N PMRg 2019'!B:G,6,0)),"-",VLOOKUP(B86,'N PMRg 2019'!B:G,6,0)) -> - | L86: =IF(COUNTIF('N PMČRj 2019'!B:B,B86)=0,"-",COUNTIF('N PMČRj 2019'!B:B,B86)) -> - | M86: =IF(ISERROR(VLOOKUP(B86,'N PMČRj 2019'!B:G,6,0)),"-",VLOOKUP(B86,'N PMČRj 2019'!B:G,6,0)) -> -
A87: 58 | B87: Jan Hruska | C87: =VLOOKUP(B87,Pilot!A:C,3,0) -> Tábor | D87: =VLOOKUP(B87,Pilot!A:B,2,0) -> 1988 | E87: =VLOOKUP(B87,Pilot!A:E,5,0) -> M | F87: =VLOOKUP(B87,Pilot!A:F,6,0) ->  | G87: 58 | I87: 1 | J87: =IF(COUNTIF('N PMRg 2019'!B:B,B87)=0,"-",COUNTIF('N PMRg 2019'!B:B,B87)) -> - | K87: =IF(ISERROR(VLOOKUP(B87,'N PMRg 2019'!B:G,6,0)),"-",VLOOKUP(B87,'N PMRg 2019'!B:G,6,0)) -> - | L87: =IF(COUNTIF('N PMČRj 2019'!B:B,B87)=0,"-",COUNTIF('N PMČRj 2019'!B:B,B87)) -> - | M87: =IF(ISERROR(VLOOKUP(B87,'N PMČRj 2019'!B:G,6,0)),"-",VLOOKUP(B87,'N PMČRj 2019'!B:G,6,0)) -> -
A88: 59 | B88: Vojtech Hajek | C88: =VLOOKUP(B88,Pilot!A:C,3,0) -> Mladá Boleslav | D88: =VLOOKUP(B88,Pilot!A:B,2,0) -> 1987 | E88: =VLOOKUP(B88,Pilot!A:E,5,0) -> M | F88: =VLOOKUP(B88,Pilot!A:F,6,0) ->  | G88: 59 | I88: 1 | J88: =IF(COUNTIF('N PMRg 2019'!B:B,B88)=0,"-",COUNTIF('N PMRg 2019'!B:B,B88)) -> - | K88: =IF(ISERROR(VLOOKUP(B88,'N PMRg 2019'!B:G,6,0)),"-",VLOOKUP(B88,'N PMRg 2019'!B:G,6,0)) -> - | L88: =IF(COUNTIF('N PMČRj 2019'!B:B,B88)=0,"-",COUNTIF('N PMČRj 2019'!B:B,B88)) -> - | M88: =IF(ISERROR(VLOOKUP(B88,'N PMČRj 2019'!B:G,6,0)),"-",VLOOKUP(B88,'N PMČRj 2019'!B:G,6,0)) -> -
A89: 60 | B89: Ladislav Prokes | C89: =VLOOKUP(B89,Pilot!A:C,3,0) -> Vrchlabí | D89: =VLOOKUP(B89,Pilot!A:B,2,0) -> 1954 | E89: =VLOOKUP(B89,Pilot!A:E,5,0) -> M | F89: =VLOOKUP(B89,Pilot!A:F,6,0) ->  | G89: 60 | I89: 1 | J89: =IF(COUNTIF('N PMRg 2019'!B:B,B89)=0,"-",COUNTIF('N PMRg 2019'!B:B,B89)) -> - | K89: =IF(ISERROR(VLOOKUP(B89,'N PMRg 2019'!B:G,6,0)),"-",VLOOKUP(B89,'N PMRg 2019'!B:G,6,0)) -> - | L89: =IF(COUNTIF('N PMČRj 2019'!B:B,B89)=0,"-",COUNTIF('N PMČRj 2019'!B:B,B89)) -> - | M89: =IF(ISERROR(VLOOKUP(B89,'N PMČRj 2019'!B:G,6,0)),"-",VLOOKUP(B89,'N PMČRj 2019'!B:G,6,0)) -> -
A90: 61 | B90: Antonin Novotny | C90: =VLOOKUP(B90,Pilot!A:C,3,0) -> Luhačovice | D90: =VLOOKUP(B90,Pilot!A:B,2,0) -> 1972 | E90: =VLOOKUP(B90,Pilot!A:E,5,0) -> M | F90: =VLOOKUP(B90,Pilot!A:F,6,0) ->  | G90: 61 | I90: 1 | J90: =IF(COUNTIF('N PMRg 2019'!B:B,B90)=0,"-",COUNTIF('N PMRg 2019'!B:B,B90)) -> - | K90: =IF(ISERROR(VLOOKUP(B90,'N PMRg 2019'!B:G,6,0)),"-",VLOOKUP(B90,'N PMRg 2019'!B:G,6,0)) -> - | L90: =IF(COUNTIF('N PMČRj 2019'!B:B,B90)=0,"-",COUNTIF('N PMČRj 2019'!B:B,B90)) -> - | M90: =IF(ISERROR(VLOOKUP(B90,'N PMČRj 2019'!B:G,6,0)),"-",VLOOKUP(B90,'N PMČRj 2019'!B:G,6,0)) -> -
A91: 62 | B91: Jaroslav Buryan | C91: =VLOOKUP(B91,Pilot!A:C,3,0) -> Zábřeh | D91: =VLOOKUP(B91,Pilot!A:B,2,0) -> 1953 | E91: =VLOOKUP(B91,Pilot!A:E,5,0) -> M | F91: =VLOOKUP(B91,Pilot!A:F,6,0) ->  | G91: 62 | I91: 1 | J91: =IF(COUNTIF('N PMRg 2019'!B:B,B91)=0,"-",COUNTIF('N PMRg 2019'!B:B,B91)) -> - | K91: =IF(ISERROR(VLOOKUP(B91,'N PMRg 2019'!B:G,6,0)),"-",VLOOKUP(B91,'N PMRg 2019'!B:G,6,0)) -> - | L91: =IF(COUNTIF('N PMČRj 2019'!B:B,B91)=0,"-",COUNTIF('N PMČRj 2019'!B:B,B91)) -> - | M91: =IF(ISERROR(VLOOKUP(B91,'N PMČRj 2019'!B:G,6,0)),"-",VLOOKUP(B91,'N PMČRj 2019'!B:G,6,0)) -> -
A92: 63 | B92: Ondrej Sindelar | C92: =VLOOKUP(B92,Pilot!A:C,3,0) -> Mladá Boleslav | D92: =VLOOKUP(B92,Pilot!A:B,2,0) -> 1979 | E92: =VLOOKUP(B92,Pilot!A:E,5,0) -> M | F92: =VLOOKUP(B92,Pilot!A:F,6,0) ->  | G92: 63 | I92: 1 | J92: =IF(COUNTIF('N PMRg 2019'!B:B,B92)=0,"-",COUNTIF('N PMRg 2019'!B:B,B92)) -> - | K92: =IF(ISERROR(VLOOKUP(B92,'N PMRg 2019'!B:G,6,0)),"-",VLOOKUP(B92,'N PMRg 2019'!B:G,6,0)) -> - | L92: =IF(COUNTIF('N PMČRj 2019'!B:B,B92)=0,"-",COUNTIF('N PMČRj 2019'!B:B,B92)) -> - | M92: =IF(ISERROR(VLOOKUP(B92,'N PMČRj 2019'!B:G,6,0)),"-",VLOOKUP(B92,'N PMČRj 2019'!B:G,6,0)) -> -
A93: 64 | B93: Jakub Kohn | C93: =VLOOKUP(B93,Pilot!A:C,3,0) -> Prostějov | D93: =VLOOKUP(B93,Pilot!A:B,2,0) -> 1992 | E93: =VLOOKUP(B93,Pilot!A:E,5,0) -> M | F93: =VLOOKUP(B93,Pilot!A:F,6,0) ->  | G93: 64 | I93: 1 | J93: =IF(COUNTIF('N PMRg 2019'!B:B,B93)=0,"-",COUNTIF('N PMRg 2019'!B:B,B93)) -> - | K93: =IF(ISERROR(VLOOKUP(B93,'N PMRg 2019'!B:G,6,0)),"-",VLOOKUP(B93,'N PMRg 2019'!B:G,6,0)) -> - | L93: =IF(COUNTIF('N PMČRj 2019'!B:B,B93)=0,"-",COUNTIF('N PMČRj 2019'!B:B,B93)) -> - | M93: =IF(ISERROR(VLOOKUP(B93,'N PMČRj 2019'!B:G,6,0)),"-",VLOOKUP(B93,'N PMČRj 2019'!B:G,6,0)) -> -
A94: 65 | B94: Ladislav Jozsa | C94: =VLOOKUP(B94,Pilot!A:C,3,0) -> Medlánky | D94: =VLOOKUP(B94,Pilot!A:B,2,0) -> 1981 | E94: =VLOOKUP(B94,Pilot!A:E,5,0) -> M | F94: =VLOOKUP(B94,Pilot!A:F,6,0) ->  | G94: =A94 -> 65 | I94: 1 | J94: =IF(COUNTIF('N PMRg 2019'!B:B,B94)=0,"-",COUNTIF('N PMRg 2019'!B:B,B94)) -> - | K94: =IF(ISERROR(VLOOKUP(B94,'N PMRg 2019'!B:G,6,0)),"-",VLOOKUP(B94,'N PMRg 2019'!B:G,6,0)) -> - | L94: =IF(COUNTIF('N PMČRj 2019'!B:B,B94)=0,"-",COUNTIF('N PMČRj 2019'!B:B,B94)) -> - | M94: =IF(ISERROR(VLOOKUP(B94,'N PMČRj 2019'!B:G,6,0)),"-",VLOOKUP(B94,'N PMČRj 2019'!B:G,6,0)) -> -
A95: 66 | B95: Jindrich Hruska | C95: =VLOOKUP(B95,Pilot!A:C,3,0) -> Soběslav | D95: =VLOOKUP(B95,Pilot!A:B,2,0) -> 1986 | E95: =VLOOKUP(B95,Pilot!A:E,5,0) -> M | F95: =VLOOKUP(B95,Pilot!A:F,6,0) ->  | G95: 66 | I95: 1 | J95: =IF(COUNTIF('N PMRg 2019'!B:B,B95)=0,"-",COUNTIF('N PMRg 2019'!B:B,B95)) -> - | K95: =IF(ISERROR(VLOOKUP(B95,'N PMRg 2019'!B:G,6,0)),"-",VLOOKUP(B95,'N PMRg 2019'!B:G,6,0)) -> - | L95: =IF(COUNTIF('N PMČRj 2019'!B:B,B95)=0,"-",COUNTIF('N PMČRj 2019'!B:B,B95)) -> - | M95: =IF(ISERROR(VLOOKUP(B95,'N PMČRj 2019'!B:G,6,0)),"-",VLOOKUP(B95,'N PMČRj 2019'!B:G,6,0)) -> -
A96: 67 | B96: Pavlina Horackova | C96: =VLOOKUP(B96,Pilot!A:C,3,0) -> Šumperk | D96: =VLOOKUP(B96,Pilot!A:B,2,0) -> 1965 | E96: =VLOOKUP(B96,Pilot!A:E,5,0) -> F | F96: =VLOOKUP(B96,Pilot!A:F,6,0) ->  | G96: =A96 -> 67 | I96: 1 | J96: =IF(COUNTIF('N PMRg 2019'!B:B,B96)=0,"-",COUNTIF('N PMRg 2019'!B:B,B96)) -> - | K96: =IF(ISERROR(VLOOKUP(B96,'N PMRg 2019'!B:G,6,0)),"-",VLOOKUP(B96,'N PMRg 2019'!B:G,6,0)) -> - | L96: =IF(COUNTIF('N PMČRj 2019'!B:B,B96)=0,"-",COUNTIF('N PMČRj 2019'!B:B,B96)) -> - | M96: =IF(ISERROR(VLOOKUP(B96,'N PMČRj 2019'!B:G,6,0)),"-",VLOOKUP(B96,'N PMČRj 2019'!B:G,6,0)) -> -
A97: 68 | B97: Miroslav Koci | C97: =VLOOKUP(B97,Pilot!A:C,3,0) -> Žamberk | D97: =VLOOKUP(B97,Pilot!A:B,2,0) -> 1961 | E97: =VLOOKUP(B97,Pilot!A:E,5,0) -> M | F97: =VLOOKUP(B97,Pilot!A:F,6,0) ->  | G97: 68 | I97: 1 | J97: =IF(COUNTIF('N PMRg 2019'!B:B,B97)=0,"-",COUNTIF('N PMRg 2019'!B:B,B97)) -> - | K97: =IF(ISERROR(VLOOKUP(B97,'N PMRg 2019'!B:G,6,0)),"-",VLOOKUP(B97,'N PMRg 2019'!B:G,6,0)) -> - | L97: =IF(COUNTIF('N PMČRj 2019'!B:B,B97)=0,"-",COUNTIF('N PMČRj 2019'!B:B,B97)) -> - | M97: =IF(ISERROR(VLOOKUP(B97,'N PMČRj 2019'!B:G,6,0)),"-",VLOOKUP(B97,'N PMČRj 2019'!B:G,6,0)) -> -
A98: 69 | B98: David Sachl | C98: =VLOOKUP(B98,Pilot!A:C,3,0) -> Kralupy | D98: =VLOOKUP(B98,Pilot!A:B,2,0) -> 1978 | E98: =VLOOKUP(B98,Pilot!A:E,5,0) -> M | F98: =VLOOKUP(B98,Pilot!A:F,6,0) ->  | G98: 69 | I98: 1 | J98: =IF(COUNTIF('N PMRg 2019'!B:B,B98)=0,"-",COUNTIF('N PMRg 2019'!B:B,B98)) -> - | K98: =IF(ISERROR(VLOOKUP(B98,'N PMRg 2019'!B:G,6,0)),"-",VLOOKUP(B98,'N PMRg 2019'!B:G,6,0)) -> - | L98: =IF(COUNTIF('N PMČRj 2019'!B:B,B98)=0,"-",COUNTIF('N PMČRj 2019'!B:B,B98)) -> - | M98: =IF(ISERROR(VLOOKUP(B98,'N PMČRj 2019'!B:G,6,0)),"-",VLOOKUP(B98,'N PMČRj 2019'!B:G,6,0)) -> -
A99: 70 | B99: Vilem Riha | C99: =VLOOKUP(B99,Pilot!A:C,3,0) -> Letňany | D99: =VLOOKUP(B99,Pilot!A:B,2,0) -> 1990 | E99: =VLOOKUP(B99,Pilot!A:E,5,0) -> M | F99: =VLOOKUP(B99,Pilot!A:F,6,0) ->  | G99: 70 | I99: 1 | J99: =IF(COUNTIF('N PMRg 2019'!B:B,B99)=0,"-",COUNTIF('N PMRg 2019'!B:B,B99)) -> - | K99: =IF(ISERROR(VLOOKUP(B99,'N PMRg 2019'!B:G,6,0)),"-",VLOOKUP(B99,'N PMRg 2019'!B:G,6,0)) -> - | L99: =IF(COUNTIF('N PMČRj 2019'!B:B,B99)=0,"-",COUNTIF('N PMČRj 2019'!B:B,B99)) -> - | M99: =IF(ISERROR(VLOOKUP(B99,'N PMČRj 2019'!B:G,6,0)),"-",VLOOKUP(B99,'N PMČRj 2019'!B:G,6,0)) -> -
A100: 71 | B100: Karel Knotek | C100: =VLOOKUP(B100,Pilot!A:C,3,0) -> Soběslav | D100: =VLOOKUP(B100,Pilot!A:B,2,0) -> 1961 | E100: =VLOOKUP(B100,Pilot!A:E,5,0) -> M | F100: =VLOOKUP(B100,Pilot!A:F,6,0) ->  | G100: 71 | I100: 1 | J100: =IF(COUNTIF('N PMRg 2019'!B:B,B100)=0,"-",COUNTIF('N PMRg 2019'!B:B,B100)) -> - | K100: =IF(ISERROR(VLOOKUP(B100,'N PMRg 2019'!B:G,6,0)),"-",VLOOKUP(B100,'N PMRg 2019'!B:G,6,0)) -> - | L100: =IF(COUNTIF('N PMČRj 2019'!B:B,B100)=0,"-",COUNTIF('N PMČRj 2019'!B:B,B100)) -> - | M100: =IF(ISERROR(VLOOKUP(B100,'N PMČRj 2019'!B:G,6,0)),"-",VLOOKUP(B100,'N PMČRj 2019'!B:G,6,0)) -> -
A101: 72 | B101: Martin Kriz | C101: =VLOOKUP(B101,Pilot!A:C,3,0) -> Přibyslav | D101: =VLOOKUP(B101,Pilot!A:B,2,0) -> 1968 | E101: =VLOOKUP(B101,Pilot!A:E,5,0) -> M | F101: =VLOOKUP(B101,Pilot!A:F,6,0) ->  | G101: 72 | I101: 1 | J101: =IF(COUNTIF('N PMRg 2019'!B:B,B101)=0,"-",COUNTIF('N PMRg 2019'!B:B,B101)) -> - | K101: =IF(ISERROR(VLOOKUP(B101,'N PMRg 2019'!B:G,6,0)),"-",VLOOKUP(B101,'N PMRg 2019'!B:G,6,0)) -> - | L101: =IF(COUNTIF('N PMČRj 2019'!B:B,B101)=0,"-",COUNTIF('N PMČRj 2019'!B:B,B101)) -> - | M101: =IF(ISERROR(VLOOKUP(B101,'N PMČRj 2019'!B:G,6,0)),"-",VLOOKUP(B101,'N PMČRj 2019'!B:G,6,0)) -> -
A102: 73 | B102: Slavomir Piskaty 58 | C102: =VLOOKUP(B102,Pilot!A:C,3,0) -> Kunovice | D102: =VLOOKUP(B102,Pilot!A:B,2,0) -> 1958 | E102: =VLOOKUP(B102,Pilot!A:E,5,0) -> M | F102: =VLOOKUP(B102,Pilot!A:F,6,0) ->  | G102: 73 | I102: 1 | J102: =IF(COUNTIF('N PMRg 2019'!B:B,B102)=0,"-",COUNTIF('N PMRg 2019'!B:B,B102)) -> - | K102: =IF(ISERROR(VLOOKUP(B102,'N PMRg 2019'!B:G,6,0)),"-",VLOOKUP(B102,'N PMRg 2019'!B:G,6,0)) -> - | L102: =IF(COUNTIF('N PMČRj 2019'!B:B,B102)=0,"-",COUNTIF('N PMČRj 2019'!B:B,B102)) -> - | M102: =IF(ISERROR(VLOOKUP(B102,'N PMČRj 2019'!B:G,6,0)),"-",VLOOKUP(B102,'N PMČRj 2019'!B:G,6,0)) -> -
A103: 74 | B103: Martin Cicvarek | C103: =VLOOKUP(B103,Pilot!A:C,3,0) -> Liberec | D103: =VLOOKUP(B103,Pilot!A:B,2,0) -> 1966 | E103: =VLOOKUP(B103,Pilot!A:E,5,0) -> M | F103: =VLOOKUP(B103,Pilot!A:F,6,0) ->  | G103: 74 | I103: 1 | J103: =IF(COUNTIF('N PMRg 2019'!B:B,B103)=0,"-",COUNTIF('N PMRg 2019'!B:B,B103)) -> - | K103: =IF(ISERROR(VLOOKUP(B103,'N PMRg 2019'!B:G,6,0)),"-",VLOOKUP(B103,'N PMRg 2019'!B:G,6,0)) -> - | L103: =IF(COUNTIF('N PMČRj 2019'!B:B,B103)=0,"-",COUNTIF('N PMČRj 2019'!B:B,B103)) -> - | M103: =IF(ISERROR(VLOOKUP(B103,'N PMČRj 2019'!B:G,6,0)),"-",VLOOKUP(B103,'N PMČRj 2019'!B:G,6,0)) -> -
A104: 75 | B104: Pavel Liska | C104: =VLOOKUP(B104,Pilot!A:C,3,0) -> Roudnice | D104: =VLOOKUP(B104,Pilot!A:B,2,0) -> 1965 | E104: =VLOOKUP(B104,Pilot!A:E,5,0) -> M | F104: =VLOOKUP(B104,Pilot!A:F,6,0) ->  | G104: =A104 -> 75 | I104: 1 | J104: =IF(COUNTIF('N PMRg 2019'!B:B,B104)=0,"-",COUNTIF('N PMRg 2019'!B:B,B104)) -> - | K104: =IF(ISERROR(VLOOKUP(B104,'N PMRg 2019'!B:G,6,0)),"-",VLOOKUP(B104,'N PMRg 2019'!B:G,6,0)) -> - | L104: =IF(COUNTIF('N PMČRj 2019'!B:B,B104)=0,"-",COUNTIF('N PMČRj 2019'!B:B,B104)) -> - | M104: =IF(ISERROR(VLOOKUP(B104,'N PMČRj 2019'!B:G,6,0)),"-",VLOOKUP(B104,'N PMČRj 2019'!B:G,6,0)) -> -
A105: 76 | B105: Tereza Koubkova | C105: =VLOOKUP(B105,Pilot!A:C,3,0) -> Letňany | D105: =VLOOKUP(B105,Pilot!A:B,2,0) -> 1999 | E105: =VLOOKUP(B105,Pilot!A:E,5,0) -> F | F105: =VLOOKUP(B105,Pilot!A:F,6,0) -> Junior v roce 2019 | G105: 76 | I105: 1 | J105: =IF(COUNTIF('N PMRg 2019'!B:B,B105)=0,"-",COUNTIF('N PMRg 2019'!B:B,B105)) -> - | K105: =IF(ISERROR(VLOOKUP(B105,'N PMRg 2019'!B:G,6,0)),"-",VLOOKUP(B105,'N PMRg 2019'!B:G,6,0)) -> - | L105: =IF(COUNTIF('N PMČRj 2019'!B:B,B105)=0,"-",COUNTIF('N PMČRj 2019'!B:B,B105)) -> - | M105: =IF(ISERROR(VLOOKUP(B105,'N PMČRj 2019'!B:G,6,0)),"-",VLOOKUP(B105,'N PMČRj 2019'!B:G,6,0)) -> -
A106: 77 | B106: Karel Policky | C106: =VLOOKUP(B106,Pilot!A:C,3,0) -> Kolín | D106: =VLOOKUP(B106,Pilot!A:B,2,0) -> 1950 | E106: =VLOOKUP(B106,Pilot!A:E,5,0) -> M | F106: =VLOOKUP(B106,Pilot!A:F,6,0) ->  | G106: 77 | I106: 1 | J106: =IF(COUNTIF('N PMRg 2019'!B:B,B106)=0,"-",COUNTIF('N PMRg 2019'!B:B,B106)) -> - | K106: =IF(ISERROR(VLOOKUP(B106,'N PMRg 2019'!B:G,6,0)),"-",VLOOKUP(B106,'N PMRg 2019'!B:G,6,0)) -> - | L106: =IF(COUNTIF('N PMČRj 2019'!B:B,B106)=0,"-",COUNTIF('N PMČRj 2019'!B:B,B106)) -> - | M106: =IF(ISERROR(VLOOKUP(B106,'N PMČRj 2019'!B:G,6,0)),"-",VLOOKUP(B106,'N PMČRj 2019'!B:G,6,0)) -> -
A107: 78 | B107: Petr Frycek | C107: =VLOOKUP(B107,Pilot!A:C,3,0) -> Most | D107: =VLOOKUP(B107,Pilot!A:B,2,0) -> 1960 | E107: =VLOOKUP(B107,Pilot!A:E,5,0) -> M | F107: =VLOOKUP(B107,Pilot!A:F,6,0) ->  | G107: 78 | I107: 1 | J107: =IF(COUNTIF('N PMRg 2019'!B:B,B107)=0,"-",COUNTIF('N PMRg 2019'!B:B,B107)) -> - | K107: =IF(ISERROR(VLOOKUP(B107,'N PMRg 2019'!B:G,6,0)),"-",VLOOKUP(B107,'N PMRg 2019'!B:G,6,0)) -> - | L107: =IF(COUNTIF('N PMČRj 2019'!B:B,B107)=0,"-",COUNTIF('N PMČRj 2019'!B:B,B107)) -> - | M107: =IF(ISERROR(VLOOKUP(B107,'N PMČRj 2019'!B:G,6,0)),"-",VLOOKUP(B107,'N PMČRj 2019'!B:G,6,0)) -> -
A108: 79 | B108: Ondrej Dvorak 98 | C108: =VLOOKUP(B108,Pilot!A:C,3,0) -> Mladá Boleslav | D108: =VLOOKUP(B108,Pilot!A:B,2,0) -> 1998 | E108: =VLOOKUP(B108,Pilot!A:E,5,0) -> M | F108: =VLOOKUP(B108,Pilot!A:F,6,0) -> Junior v roce 2019 | G108: 79 | I108: 1 | J108: =IF(COUNTIF('N PMRg 2019'!B:B,B108)=0,"-",COUNTIF('N PMRg 2019'!B:B,B108)) -> - | K108: =IF(ISERROR(VLOOKUP(B108,'N PMRg 2019'!B:G,6,0)),"-",VLOOKUP(B108,'N PMRg 2019'!B:G,6,0)) -> - | L108: =IF(COUNTIF('N PMČRj 2019'!B:B,B108)=0,"-",COUNTIF('N PMČRj 2019'!B:B,B108)) -> - | M108: =IF(ISERROR(VLOOKUP(B108,'N PMČRj 2019'!B:G,6,0)),"-",VLOOKUP(B108,'N PMČRj 2019'!B:G,6,0)) -> -
A109: 80 | B109: Pavel Sulc | C109: =VLOOKUP(B109,Pilot!A:C,3,0) -> Hodkovice | D109: =VLOOKUP(B109,Pilot!A:B,2,0) -> 1976 | E109: =VLOOKUP(B109,Pilot!A:E,5,0) -> M | F109: =VLOOKUP(B109,Pilot!A:F,6,0) ->  | G109: 80 | I109: 1 | J109: =IF(COUNTIF('N PMRg 2019'!B:B,B109)=0,"-",COUNTIF('N PMRg 2019'!B:B,B109)) -> - | K109: =IF(ISERROR(VLOOKUP(B109,'N PMRg 2019'!B:G,6,0)),"-",VLOOKUP(B109,'N PMRg 2019'!B:G,6,0)) -> - | L109: =IF(COUNTIF('N PMČRj 2019'!B:B,B109)=0,"-",COUNTIF('N PMČRj 2019'!B:B,B109)) -> - | M109: =IF(ISERROR(VLOOKUP(B109,'N PMČRj 2019'!B:G,6,0)),"-",VLOOKUP(B109,'N PMČRj 2019'!B:G,6,0)) -> -
A110: N1 | B110: Milada Moudra | C110: =VLOOKUP(B110,Pilot!A:C,3,0) -> Hodkovice | D110: =VLOOKUP(B110,Pilot!A:B,2,0) -> 1991 | E110: =VLOOKUP(B110,Pilot!A:E,5,0) -> F | F110: =VLOOKUP(B110,Pilot!A:F,6,0) ->  | G110: =A110 -> N1 | I110: 1 | J110: =IF(COUNTIF('N PMRg 2019'!B:B,B110)=0,"-",COUNTIF('N PMRg 2019'!B:B,B110)) -> 1 | K110: =IF(ISERROR(VLOOKUP(B110,'N PMRg 2019'!B:G,6,0)),"-",VLOOKUP(B110,'N PMRg 2019'!B:G,6,0)) -> 18 | L110: =IF(COUNTIF('N PMČRj 2019'!B:B,B110)=0,"-",COUNTIF('N PMČRj 2019'!B:B,B110)) -> - | M110: =IF(ISERROR(VLOOKUP(B110,'N PMČRj 2019'!B:G,6,0)),"-",VLOOKUP(B110,'N PMČRj 2019'!B:G,6,0)) -> -
A111: N2 | B111: Antonin Kutalek | C111: =VLOOKUP(B111,Pilot!A:C,3,0) -> Zábřeh | D111: =VLOOKUP(B111,Pilot!A:B,2,0) -> 1943 | E111: =VLOOKUP(B111,Pilot!A:E,5,0) -> M | F111: =VLOOKUP(B111,Pilot!A:F,6,0) ->  | G111: N2 | I111: 1 | J111: =IF(COUNTIF('N PMRg 2019'!B:B,B111)=0,"-",COUNTIF('N PMRg 2019'!B:B,B111)) -> 1 | K111: =IF(ISERROR(VLOOKUP(B111,'N PMRg 2019'!B:G,6,0)),"-",VLOOKUP(B111,'N PMRg 2019'!B:G,6,0)) -> 19 | L111: =IF(COUNTIF('N PMČRj 2019'!B:B,B111)=0,"-",COUNTIF('N PMČRj 2019'!B:B,B111)) -> - | M111: =IF(ISERROR(VLOOKUP(B111,'N PMČRj 2019'!B:G,6,0)),"-",VLOOKUP(B111,'N PMČRj 2019'!B:G,6,0)) -> -
A112: N3 | B112: Leos Strnadek | C112: =VLOOKUP(B112,Pilot!A:C,3,0) -> Hodkovice | D112: =VLOOKUP(B112,Pilot!A:B,2,0) -> 1983 | E112: =VLOOKUP(B112,Pilot!A:E,5,0) -> M | F112: =VLOOKUP(B112,Pilot!A:F,6,0) ->  | G112: N3 | I112: 1 | J112: =IF(COUNTIF('N PMRg 2019'!B:B,B112)=0,"-",COUNTIF('N PMRg 2019'!B:B,B112)) -> 1 | K112: =IF(ISERROR(VLOOKUP(B112,'N PMRg 2019'!B:G,6,0)),"-",VLOOKUP(B112,'N PMRg 2019'!B:G,6,0)) -> 8 | L112: =IF(COUNTIF('N PMČRj 2019'!B:B,B112)=0,"-",COUNTIF('N PMČRj 2019'!B:B,B112)) -> - | M112: =IF(ISERROR(VLOOKUP(B112,'N PMČRj 2019'!B:G,6,0)),"-",VLOOKUP(B112,'N PMČRj 2019'!B:G,6,0)) -> -
A113: N4 | B113: Olga Mokosova | C113: =VLOOKUP(B113,Pilot!A:C,3,0) -> Jihlava | D113: =VLOOKUP(B113,Pilot!A:B,2,0) -> 1970 | E113: =VLOOKUP(B113,Pilot!A:E,5,0) -> F | F113: =VLOOKUP(B113,Pilot!A:F,6,0) ->  | G113: N4 | I113: 1 | J113: =IF(COUNTIF('N PMRg 2019'!B:B,B113)=0,"-",COUNTIF('N PMRg 2019'!B:B,B113)) -> 1 | K113: =IF(ISERROR(VLOOKUP(B113,'N PMRg 2019'!B:G,6,0)),"-",VLOOKUP(B113,'N PMRg 2019'!B:G,6,0)) -> 20 | L113: =IF(COUNTIF('N PMČRj 2019'!B:B,B113)=0,"-",COUNTIF('N PMČRj 2019'!B:B,B113)) -> - | M113: =IF(ISERROR(VLOOKUP(B113,'N PMČRj 2019'!B:G,6,0)),"-",VLOOKUP(B113,'N PMČRj 2019'!B:G,6,0)) -> -
A114: N5 | B114: Petr Lonsky | C114: =VLOOKUP(B114,Pilot!A:C,3,0) -> Toužim | D114: =VLOOKUP(B114,Pilot!A:B,2,0) -> 1965 | E114: =VLOOKUP(B114,Pilot!A:E,5,0) -> M | F114: =VLOOKUP(B114,Pilot!A:F,6,0) ->  | G114: N5 | I114: 1 | J114: =IF(COUNTIF('N PMRg 2019'!B:B,B114)=0,"-",COUNTIF('N PMRg 2019'!B:B,B114)) -> 1 | K114: =IF(ISERROR(VLOOKUP(B114,'N PMRg 2019'!B:G,6,0)),"-",VLOOKUP(B114,'N PMRg 2019'!B:G,6,0)) -> 21 | L114: =IF(COUNTIF('N PMČRj 2019'!B:B,B114)=0,"-",COUNTIF('N PMČRj 2019'!B:B,B114)) -> - | M114: =IF(ISERROR(VLOOKUP(B114,'N PMČRj 2019'!B:G,6,0)),"-",VLOOKUP(B114,'N PMČRj 2019'!B:G,6,0)) -> -
A115: N6 | B115: - | C115: =VLOOKUP(B115,Pilot!A:C,3,0) ->  | D115: =VLOOKUP(B115,Pilot!A:B,2,0) ->  | E115: =VLOOKUP(B115,Pilot!A:E,5,0) ->  | F115: =VLOOKUP(B115,Pilot!A:F,6,0) ->  | G115: N6 | I115: 10 | J115: =IF(COUNTIF('N PMRg 2019'!B:B,B115)=0,"-",COUNTIF('N PMRg 2019'!B:B,B115)) -> 14 | K115: =IF(ISERROR(VLOOKUP(B115,'N PMRg 2019'!B:G,6,0)),"-",VLOOKUP(B115,'N PMRg 2019'!B:G,6,0)) -> - | L115: =IF(COUNTIF('N PMČRj 2019'!B:B,B115)=0,"-",COUNTIF('N PMČRj 2019'!B:B,B115)) -> 10 | M115: =IF(ISERROR(VLOOKUP(B115,'N PMČRj 2019'!B:G,6,0)),"-",VLOOKUP(B115,'N PMČRj 2019'!B:G,6,0)) -> -
A116: N7 | B116: - | C116: =VLOOKUP(B116,Pilot!A:C,3,0) ->  | D116: =VLOOKUP(B116,Pilot!A:B,2,0) ->  | E116: =VLOOKUP(B116,Pilot!A:E,5,0) ->  | F116: =VLOOKUP(B116,Pilot!A:F,6,0) ->  | G116: N7 | I116: 10 | J116: =IF(COUNTIF('N PMRg 2019'!B:B,B116)=0,"-",COUNTIF('N PMRg 2019'!B:B,B116)) -> 14 | K116: =IF(ISERROR(VLOOKUP(B116,'N PMRg 2019'!B:G,6,0)),"-",VLOOKUP(B116,'N PMRg 2019'!B:G,6,0)) -> - | L116: =IF(COUNTIF('N PMČRj 2019'!B:B,B116)=0,"-",COUNTIF('N PMČRj 2019'!B:B,B116)) -> 10 | M116: =IF(ISERROR(VLOOKUP(B116,'N PMČRj 2019'!B:G,6,0)),"-",VLOOKUP(B116,'N PMČRj 2019'!B:G,6,0)) -> -
A117: N8 | B117: - | C117: =VLOOKUP(B117,Pilot!A:C,3,0) ->  | D117: =VLOOKUP(B117,Pilot!A:B,2,0) ->  | E117: =VLOOKUP(B117,Pilot!A:E,5,0) ->  | F117: =VLOOKUP(B117,Pilot!A:F,6,0) ->  | G117: N8 | I117: 10 | J117: =IF(COUNTIF('N PMRg 2019'!B:B,B117)=0,"-",COUNTIF('N PMRg 2019'!B:B,B117)) -> 14 | K117: =IF(ISERROR(VLOOKUP(B117,'N PMRg 2019'!B:G,6,0)),"-",VLOOKUP(B117,'N PMRg 2019'!B:G,6,0)) -> - | L117: =IF(COUNTIF('N PMČRj 2019'!B:B,B117)=0,"-",COUNTIF('N PMČRj 2019'!B:B,B117)) -> 10 | M117: =IF(ISERROR(VLOOKUP(B117,'N PMČRj 2019'!B:G,6,0)),"-",VLOOKUP(B117,'N PMČRj 2019'!B:G,6,0)) -> -
A118: N9 | B118: - | C118: =VLOOKUP(B118,Pilot!A:C,3,0) ->  | D118: =VLOOKUP(B118,Pilot!A:B,2,0) ->  | E118: =VLOOKUP(B118,Pilot!A:E,5,0) ->  | F118: =VLOOKUP(B118,Pilot!A:F,6,0) ->  | G118: N9 | I118: 10 | J118: =IF(COUNTIF('N PMRg 2019'!B:B,B118)=0,"-",COUNTIF('N PMRg 2019'!B:B,B118)) -> 14 | K118: =IF(ISERROR(VLOOKUP(B118,'N PMRg 2019'!B:G,6,0)),"-",VLOOKUP(B118,'N PMRg 2019'!B:G,6,0)) -> - | L118: =IF(COUNTIF('N PMČRj 2019'!B:B,B118)=0,"-",COUNTIF('N PMČRj 2019'!B:B,B118)) -> 10 | M118: =IF(ISERROR(VLOOKUP(B118,'N PMČRj 2019'!B:G,6,0)),"-",VLOOKUP(B118,'N PMČRj 2019'!B:G,6,0)) -> -
A119: N10 | B119: - | C119: =VLOOKUP(B119,Pilot!A:C,3,0) ->  | D119: =VLOOKUP(B119,Pilot!A:B,2,0) ->  | E119: =VLOOKUP(B119,Pilot!A:E,5,0) ->  | F119: =VLOOKUP(B119,Pilot!A:F,6,0) ->  | G119: N10 | I119: 10 | J119: =IF(COUNTIF('N PMRg 2019'!B:B,B119)=0,"-",COUNTIF('N PMRg 2019'!B:B,B119)) -> 14 | K119: =IF(ISERROR(VLOOKUP(B119,'N PMRg 2019'!B:G,6,0)),"-",VLOOKUP(B119,'N PMRg 2019'!B:G,6,0)) -> - | L119: =IF(COUNTIF('N PMČRj 2019'!B:B,B119)=0,"-",COUNTIF('N PMČRj 2019'!B:B,B119)) -> 10 | M119: =IF(ISERROR(VLOOKUP(B119,'N PMČRj 2019'!B:G,6,0)),"-",VLOOKUP(B119,'N PMČRj 2019'!B:G,6,0)) -> -
A120: 6.6.7. | B120: Nominace zahraničních účastníků
B121: PMČR se mohou zúčastnit zahraniční účastníci pouze v případě, že nebude omezen počet řádně nominovaných soutěžících z ČR a soutěžící splňuje podmínky odstavce 6.1. a 6.6.1. SŘ.
B122: V případě pořádání společného PMČR s plachtařským mistrovstvím některého ze suverénních států může PK stanovit zvláštní pravidla pro nominaci.
A123: 6.6.8. | B123: Volná nominace
B124: Volnou nominaci je možné využít pouze v tom případě, že pilot na PMČR nepostupuje podle žádného z bodů odstavce 6.6.6.
B125: Umožňuje-li to kapacita pořádajícího letiště, mohou se z členů AeČR mimo řádně nominovaných do soutěže přihlásit také piloti/pilotky, kteří se:
A126: 6.6.8.1. | B126: v posledních 3 letech před rokem konání soutěže zúčastnili MS, ME, WAG nebo Světové Grand Prix jako velitel kluzáku,
A127: 6.6.8.2. | B127: umístili v aktuálním Všeobecném Žebříku do 100. místa,
A128: 6.6.8.3. | B128: Při větším počtu přihlášek, než je kapacita letiště Pořadatele, rozhoduje o přijetí do soutěže pořadí soutěžícího v aktuálním Všeobecném Žebříku s podmínkou zaplacení vkladu v termínu stanoveném Pořadatelem.
A131: Schváleno Plachtařskou komisí AeČR dne 4.11.2018 ve Vysokém Mýtě

Sheet N PMRg 2019
B1: Nominace na PMRg 2019 | H1: Kontrola: | I1: Počet | J1: Počet | K1: Nominace | L1: Počet | M1: Nominace | N1: M: | O1: F: | P1: M+F:
A2: No | B2: Jméno | C2: Aeroklub | D2: Rok narození | E2: M/F | F2: Junior | G2: No | I2: PMRg | J2: PMČR | K2: PMČR | L2: PMČRj | M2: PMČRj | N2: =COUNTIF(E:E,"M") -> 17 | O2: =COUNTIF(E:E,"F") -> 4 | P2: =N2+O2 -> 21 | Q2: S náhradníky
A3: 6.8.5. | B3: Nominace na PMRg (dle SŘ ZM8) | M3: Celkem řádně nominováno: | N3: =N2-COUNTIF(E76:E91,"M") -> 17 | O3: =O2-COUNTIF(E88:E91,"F") -> 4 | P3: =N3+O3 -> 21 | Q3: Bez náhradníků
B4: Na PMRg nominuje PK minimálně 60 pilotů/pilotek a příslušný počet náhradníků pro stanovená nominační kritéria.
B5: Na PMRg jsou nominováni:
A6: 6.8.5.1. | B6: všichni soutěžící z posledního platného PMČR, kteří nepostoupili na PMČR v roce konání PMRg (bez náhradníků)
B7: PMČR 2018 - Tábor - Klub
A8: 1 | B8: Zdenek Balcarek | C8: =VLOOKUP(B8,Pilot!A:C,3,0) -> Kroměříž | D8: =VLOOKUP(B8,Pilot!A:C,2,0) -> 1967 | E8: =VLOOKUP(B8,Pilot!A:E,5,0) -> M | F8: =VLOOKUP(B8,Pilot!A:F,6,0) ->  | G8: =A8 -> 1 | I8: =COUNTIF(B:B,B8) -> 1 | J8: =IF(COUNTIF('N PMČR 2019'!B:B,B8)=0,"-",COUNTIF('N PMČR 2019'!B:B,B8)) -> - | K8: =IF(ISERROR(VLOOKUP(B8,'N PMČR 2019'!B:G,6,0)),"-",VLOOKUP(B8,'N PMČR 2019'!B:G,6,0)) -> - | L8: =IF(COUNTIF('N PMČRj 2019'!B:B,B8)=0,"-",COUNTIF('N PMČRj 2019'!B:B,B8)) -> - | M8: =IF(ISERROR(VLOOKUP(B8,'N PMČRj 2019'!B:G,6,0)),"-",VLOOKUP(B8,'N PMČRj 2019'!B:G,6,0)) -> -
A9: =A8+1 -> 2 | B9: Jan Kotan | C9: =VLOOKUP(B9,Pilot!A:C,3,0) -> Letňany | D9: =VLOOKUP(B9,Pilot!A:C,2,0) -> 1982 | E9: =VLOOKUP(B9,Pilot!A:E,5,0) -> M | F9: =VLOOKUP(B9,Pilot!A:F,6,0) ->  | G9: 2 | I9: 1 | J9: =IF(COUNTIF('N PMČR 2019'!B:B,B9)=0,"-",COUNTIF('N PMČR 2019'!B:B,B9)) -> - | K9: =IF(ISERROR(VLOOKUP(B9,'N PMČR 2019'!B:G,6,0)),"-",VLOOKUP(B9,'N PMČR 2019'!B:G,6,0)) -> - | L9: =IF(COUNTIF('N PMČRj 2019'!B:B,B9)=0,"-",COUNTIF('N PMČRj 2019'!B:B,B9)) -> - | M9: =IF(ISERROR(VLOOKUP(B9,'N PMČRj 2019'!B:G,6,0)),"-",VLOOKUP(B9,'N PMČRj 2019'!B:G,6,0)) -> -
A10: 3 | B10: Anna Hajkova | C10: =VLOOKUP(B10,Pilot!A:C,3,0) -> Mladá Boleslav | D10: =VLOOKUP(B10,Pilot!A:C,2,0) -> 1989 | E10: =VLOOKUP(B10,Pilot!A:E,5,0) -> F | F10: =VLOOKUP(B10,Pilot!A:F,6,0) ->  | G10: 3 | I10: 1 | J10: =IF(COUNTIF('N PMČR 2019'!B:B,B10)=0,"-",COUNTIF('N PMČR 2019'!B:B,B10)) -> - | K10: =IF(ISERROR(VLOOKUP(B10,'N PMČR 2019'!B:G,6,0)),"-",VLOOKUP(B10,'N PMČR 2019'!B:G,6,0)) -> - | L10: =IF(COUNTIF('N PMČRj 2019'!B:B,B10)=0,"-",COUNTIF('N PMČRj 2019'!B:B,B10)) -> - | M10: =IF(ISERROR(VLOOKUP(B10,'N PMČRj 2019'!B:G,6,0)),"-",VLOOKUP(B10,'N PMČRj 2019'!B:G,6,0)) -> -
A11: 4 | B11: Jiri Fousek | C11: =VLOOKUP(B11,Pilot!A:C,3,0) -> Raná | D11: =VLOOKUP(B11,Pilot!A:C,2,0) -> 1990 | E11: =VLOOKUP(B11,Pilot!A:E,5,0) -> M | F11: =VLOOKUP(B11,Pilot!A:F,6,0) ->  | G11: 4 | I11: 1 | J11: =IF(COUNTIF('N PMČR 2019'!B:B,B11)=0,"-",COUNTIF('N PMČR 2019'!B:B,B11)) -> - | K11: =IF(ISERROR(VLOOKUP(B11,'N PMČR 2019'!B:G,6,0)),"-",VLOOKUP(B11,'N PMČR 2019'!B:G,6,0)) -> - | L11: =IF(COUNTIF('N PMČRj 2019'!B:B,B11)=0,"-",COUNTIF('N PMČRj 2019'!B:B,B11)) -> - | M11: =IF(ISERROR(VLOOKUP(B11,'N PMČRj 2019'!B:G,6,0)),"-",VLOOKUP(B11,'N PMČRj 2019'!B:G,6,0)) -> -
A12: 5 | B12: Petr Stepanek | C12: =VLOOKUP(B12,Pilot!A:C,3,0) -> Moravská Třebová | D12: =VLOOKUP(B12,Pilot!A:C,2,0) -> 1989 | E12: =VLOOKUP(B12,Pilot!A:E,5,0) -> M | F12: =VLOOKUP(B12,Pilot!A:F,6,0) ->  | G12: 5 | I12: 1 | J12: =IF(COUNTIF('N PMČR 2019'!B:B,B12)=0,"-",COUNTIF('N PMČR 2019'!B:B,B12)) -> - | K12: =IF(ISERROR(VLOOKUP(B12,'N PMČR 2019'!B:G,6,0)),"-",VLOOKUP(B12,'N PMČR 2019'!B:G,6,0)) -> - | L12: =IF(COUNTIF('N PMČRj 2019'!B:B,B12)=0,"-",COUNTIF('N PMČRj 2019'!B:B,B12)) -> - | M12: =IF(ISERROR(VLOOKUP(B12,'N PMČRj 2019'!B:G,6,0)),"-",VLOOKUP(B12,'N PMČRj 2019'!B:G,6,0)) -> -
A13: 6 | B13: Frantisek Filandr | C13: =VLOOKUP(B13,Pilot!A:C,3,0) -> Most | D13: =VLOOKUP(B13,Pilot!A:C,2,0) -> 1956 | E13: =VLOOKUP(B13,Pilot!A:E,5,0) -> M | F13: =VLOOKUP(B13,Pilot!A:F,6,0) ->  | G13: 6 | I13: 1 | J13: =IF(COUNTIF('N PMČR 2019'!B:B,B13)=0,"-",COUNTIF('N PMČR 2019'!B:B,B13)) -> - | K13: =IF(ISERROR(VLOOKUP(B13,'N PMČR 2019'!B:G,6,0)),"-",VLOOKUP(B13,'N PMČR 2019'!B:G,6,0)) -> - | L13: =IF(COUNTIF('N PMČRj 2019'!B:B,B13)=0,"-",COUNTIF('N PMČRj 2019'!B:B,B13)) -> - | M13: =IF(ISERROR(VLOOKUP(B13,'N PMČRj 2019'!B:G,6,0)),"-",VLOOKUP(B13,'N PMČRj 2019'!B:G,6,0)) -> -
A14: 7 | B14: Lumir Motyka | C14: =VLOOKUP(B14,Pilot!A:C,3,0) -> Frýdlant | D14: =VLOOKUP(B14,Pilot!A:C,2,0) -> 1955 | E14: =VLOOKUP(B14,Pilot!A:E,5,0) -> M | F14: =VLOOKUP(B14,Pilot!A:F,6,0) ->  | G14: =A14 -> 7 | I14: 1 | J14: =IF(COUNTIF('N PMČR 2019'!B:B,B14)=0,"-",COUNTIF('N PMČR 2019'!B:B,B14)) -> - | K14: =IF(ISERROR(VLOOKUP(B14,'N PMČR 2019'!B:G,6,0)),"-",VLOOKUP(B14,'N PMČR 2019'!B:G,6,0)) -> - | L14: =IF(COUNTIF('N PMČRj 2019'!B:B,B14)=0,"-",COUNTIF('N PMČRj 2019'!B:B,B14)) -> - | M14: =IF(ISERROR(VLOOKUP(B14,'N PMČRj 2019'!B:G,6,0)),"-",VLOOKUP(B14,'N PMČRj 2019'!B:G,6,0)) -> -
A15: 8 | B15: Leos Strnadek | C15: =VLOOKUP(B15,Pilot!A:C,3,0) -> Hodkovice | D15: =VLOOKUP(B15,Pilot!A:C,2,0) -> 1983 | E15: =VLOOKUP(B15,Pilot!A:E,5,0) -> M | F15: =VLOOKUP(B15,Pilot!A:F,6,0) ->  | G15: =A15 -> 8 | I15: 1 | J15: =IF(COUNTIF('N PMČR 2019'!B:B,B15)=0,"-",COUNTIF('N PMČR 2019'!B:B,B15)) -> 1 | K15: =IF(ISERROR(VLOOKUP(B15,'N PMČR 2019'!B:G,6,0)),"-",VLOOKUP(B15,'N PMČR 2019'!B:G,6,0)) -> N3 | L15: =IF(COUNTIF('N PMČRj 2019'!B:B,B15)=0,"-",COUNTIF('N PMČRj 2019'!B:B,B15)) -> - | M15: =IF(ISERROR(VLOOKUP(B15,'N PMČRj 2019'!B:G,6,0)),"-",VLOOKUP(B15,'N PMČRj 2019'!B:G,6,0)) -> -
A16: 9 | B16: Pavel Brodsky | C16: =VLOOKUP(B16,Pilot!A:C,3,0) -> Hořice | D16: =VLOOKUP(B16,Pilot!A:C,2,0) -> 1992 | E16: =VLOOKUP(B16,Pilot!A:E,5,0) -> M | F16: =VLOOKUP(B16,Pilot!A:F,6,0) ->  | G16: 9 | I16: 1 | J16: =IF(COUNTIF('N PMČR 2019'!B:B,B16)=0,"-",COUNTIF('N PMČR 2019'!B:B,B16)) -> - | K16: =IF(ISERROR(VLOOKUP(B16,'N PMČR 2019'!B:G,6,0)),"-",VLOOKUP(B16,'N PMČR 2019'!B:G,6,0)) -> - | L16: =IF(COUNTIF('N PMČRj 2019'!B:B,B16)=0,"-",COUNTIF('N PMČRj 2019'!B:B,B16)) -> - | M16: =IF(ISERROR(VLOOKUP(B16,'N PMČRj 2019'!B:G,6,0)),"-",VLOOKUP(B16,'N PMČRj 2019'!B:G,6,0)) -> -
B17: PMČR 2018 - Tábor - Kombi 15m
A18: =MAX(A8:A17)+1 -> 10 | B18: Jan Boruvka | C18: =VLOOKUP(B18,Pilot!A:C,3,0) -> Jičín | D18: =VLOOKUP(B18,Pilot!A:C,2,0) -> 1984 | E18: =VLOOKUP(B18,Pilot!A:E,5,0) -> M | F18: =VLOOKUP(B18,Pilot!A:F,6,0) ->  | G18: =A18 -> 10 | I18: =COUNTIF(B:B,B18) -> 1 | J18: =IF(COUNTIF('N PMČR 2019'!B:B,B18)=0,"-",COUNTIF('N PMČR 2019'!B:B,B18)) -> - | K18: =IF(ISERROR(VLOOKUP(B18,'N PMČR 2019'!B:G,6,0)),"-",VLOOKUP(B18,'N PMČR 2019'!B:G,6,0)) -> - | L18: =IF(COUNTIF('N PMČRj 2019'!B:B,B18)=0,"-",COUNTIF('N PMČRj 2019'!B:B,B18)) -> - | M18: =IF(ISERROR(VLOOKUP(B18,'N PMČRj 2019'!B:G,6,0)),"-",VLOOKUP(B18,'N PMČRj 2019'!B:G,6,0)) -> -
A19: =A18+1 -> 11 | B19: Jiri Stepanek | C19: =VLOOKUP(B19,Pilot!A:C,3,0) -> Moravská Třebová | D19: =VLOOKUP(B19,Pilot!A:C,2,0) -> 1956 | E19: =VLOOKUP(B19,Pilot!A:E,5,0) -> M | F19: =VLOOKUP(B19,Pilot!A:F,6,0) ->  | G19: =A19 -> 11 | I19: =COUNTIF(B:B,B19) -> 1 | J19: =IF(COUNTIF('N PMČR 2019'!B:B,B19)=0,"-",COUNTIF('N PMČR 2019'!B:B,B19)) -> - | K19: =IF(ISERROR(VLOOKUP(B19,'N PMČR 2019'!B:G,6,0)),"-",VLOOKUP(B19,'N PMČR 2019'!B:G,6,0)) -> - | L19: =IF(COUNTIF('N PMČRj 2019'!B:B,B19)=0,"-",COUNTIF('N PMČRj 2019'!B:B,B19)) -> - | M19: =IF(ISERROR(VLOOKUP(B19,'N PMČRj 2019'!B:G,6,0)),"-",VLOOKUP(B19,'N PMČRj 2019'!B:G,6,0)) -> -
A20: =A19+1 -> 12 | B20: Lukas Capek | C20: =VLOOKUP(B20,Pilot!A:C,3,0) -> Letňany | D20: =VLOOKUP(B20,Pilot!A:C,2,0) -> 1992 | E20: =VLOOKUP(B20,Pilot!A:E,5,0) -> M | F20: =VLOOKUP(B20,Pilot!A:F,6,0) ->  | G20: =A20 -> 12 | I20: =COUNTIF(B:B,B20) -> 1 | J20: =IF(COUNTIF('N PMČR 2019'!B:B,B20)=0,"-",COUNTIF('N PMČR 2019'!B:B,B20)) -> - | K20: =IF(ISERROR(VLOOKUP(B20,'N PMČR 2019'!B:G,6,0)),"-",VLOOKUP(B20,'N PMČR 2019'!B:G,6,0)) -> - | L20: =IF(COUNTIF('N PMČRj 2019'!B:B,B20)=0,"-",COUNTIF('N PMČRj 2019'!B:B,B20)) -> - | M20: =IF(ISERROR(VLOOKUP(B20,'N PMČRj 2019'!B:G,6,0)),"-",VLOOKUP(B20,'N PMČRj 2019'!B:G,6,0)) -> -
B21: PMČR 2018 - Tíbor - Kombi Open
A22: =MAX(A18:A21)+1 -> 13 | B22: Martin Pekar | C22: =VLOOKUP(B22,Pilot!A:C,3,0) -> Šumperk | D22: =VLOOKUP(B22,Pilot!A:C,2,0) -> 1973 | E22: =VLOOKUP(B22,Pilot!A:E,5,0) -> M | F22: =VLOOKUP(B22,Pilot!A:F,6,0) ->  | G22: =A22 -> 13 | I22: =COUNTIF(B:B,B22) -> 1 | J22: =IF(COUNTIF('N PMČR 2019'!B:B,B22)=0,"-",COUNTIF('N PMČR 2019'!B:B,B22)) -> - | K22: =IF(ISERROR(VLOOKUP(B22,'N PMČR 2019'!B:G,6,0)),"-",VLOOKUP(B22,'N PMČR 2019'!B:G,6,0)) -> - | L22: =IF(COUNTIF('N PMČRj 2019'!B:B,B22)=0,"-",COUNTIF('N PMČRj 2019'!B:B,B22)) -> - | M22: =IF(ISERROR(VLOOKUP(B22,'N PMČRj 2019'!B:G,6,0)),"-",VLOOKUP(B22,'N PMČRj 2019'!B:G,6,0)) -> -
A23: =A22+1 -> 14 | B23: Jiri Steiger | C23: =VLOOKUP(B23,Pilot!A:C,3,0) -> Olomouc | D23: =VLOOKUP(B23,Pilot!A:C,2,0) -> 1969 | E23: =VLOOKUP(B23,Pilot!A:E,5,0) -> M | F23: =VLOOKUP(B23,Pilot!A:F,6,0) ->  | G23: =A23 -> 14 | I23: =COUNTIF(B:B,B23) -> 1 | J23: =IF(COUNTIF('N PMČR 2019'!B:B,B23)=0,"-",COUNTIF('N PMČR 2019'!B:B,B23)) -> - | K23: =IF(ISERROR(VLOOKUP(B23,'N PMČR 2019'!B:G,6,0)),"-",VLOOKUP(B23,'N PMČR 2019'!B:G,6,0)) -> - | L23: =IF(COUNTIF('N PMČRj 2019'!B:B,B23)=0,"-",COUNTIF('N PMČRj 2019'!B:B,B23)) -> - | M23: =IF(ISERROR(VLOOKUP(B23,'N PMČRj 2019'!B:G,6,0)),"-",VLOOKUP(B23,'N PMČRj 2019'!B:G,6,0)) -> -
A24: =A23+1 -> 15 | B24: Eva Cerna | C24: =VLOOKUP(B24,Pilot!A:C,3,0) -> Příbram | D24: =VLOOKUP(B24,Pilot!A:C,2,0) -> 1964 | E24: =VLOOKUP(B24,Pilot!A:E,5,0) -> F | F24: =VLOOKUP(B24,Pilot!A:F,6,0) ->  | G24: =A24 -> 15 | I24: =COUNTIF(B:B,B24) -> 1 | J24: =IF(COUNTIF('N PMČR 2019'!B:B,B24)=0,"-",COUNTIF('N PMČR 2019'!B:B,B24)) -> - | K24: =IF(ISERROR(VLOOKUP(B24,'N PMČR 2019'!B:G,6,0)),"-",VLOOKUP(B24,'N PMČR 2019'!B:G,6,0)) -> - | L24: =IF(COUNTIF('N PMČRj 2019'!B:B,B24)=0,"-",COUNTIF('N PMČRj 2019'!B:B,B24)) -> - | M24: =IF(ISERROR(VLOOKUP(B24,'N PMČRj 2019'!B:G,6,0)),"-",VLOOKUP(B24,'N PMČRj 2019'!B:G,6,0)) -> -
A25: =A24+1 -> 16 | B25: Ondrej Dupal | C25: =VLOOKUP(B25,Pilot!A:C,3,0) -> GAC Benešov | D25: =VLOOKUP(B25,Pilot!A:C,2,0) -> 1966 | E25: =VLOOKUP(B25,Pilot!A:E,5,0) -> M | F25: =VLOOKUP(B25,Pilot!A:F,6,0) ->  | G25: =A25 -> 16 | I25: =COUNTIF(B:B,B25) -> 1 | J25: =IF(COUNTIF('N PMČR 2019'!B:B,B25)=0,"-",COUNTIF('N PMČR 2019'!B:B,B25)) -> - | K25: =IF(ISERROR(VLOOKUP(B25,'N PMČR 2019'!B:G,6,0)),"-",VLOOKUP(B25,'N PMČR 2019'!B:G,6,0)) -> - | L25: =IF(COUNTIF('N PMČRj 2019'!B:B,B25)=0,"-",COUNTIF('N PMČRj 2019'!B:B,B25)) -> - | M25: =IF(ISERROR(VLOOKUP(B25,'N PMČRj 2019'!B:G,6,0)),"-",VLOOKUP(B25,'N PMČRj 2019'!B:G,6,0)) -> -
A26: =A25+1 -> 17 | B26: Vladimir Spilka | C26: =VLOOKUP(B26,Pilot!A:C,3,0) -> Hranice | D26: =VLOOKUP(B26,Pilot!A:C,2,0) -> 1940 | E26: =VLOOKUP(B26,Pilot!A:E,5,0) -> M | F26: =VLOOKUP(B26,Pilot!A:F,6,0) ->  | G26: =A26 -> 17 | I26: =COUNTIF(B:B,B26) -> 1 | J26: =IF(COUNTIF('N PMČR 2019'!B:B,B26)=0,"-",COUNTIF('N PMČR 2019'!B:B,B26)) -> - | K26: =IF(ISERROR(VLOOKUP(B26,'N PMČR 2019'!B:G,6,0)),"-",VLOOKUP(B26,'N PMČR 2019'!B:G,6,0)) -> - | L26: =IF(COUNTIF('N PMČRj 2019'!B:B,B26)=0,"-",COUNTIF('N PMČRj 2019'!B:B,B26)) -> - | M26: =IF(ISERROR(VLOOKUP(B26,'N PMČRj 2019'!B:G,6,0)),"-",VLOOKUP(B26,'N PMČRj 2019'!B:G,6,0)) -> -
A27: 6.8.5.2. | B27: prvních 10 soutěžících z posledního platného PMRg, kteří nepostoupili na PMČR v roce konání PMRg, v pořadí podle korigovaných bodů ze všech tříd (bez náhradníků)
B28: V případě neplatnosti některé ze soutěžních tříd posledního PMRg budou pro výpočet korigovaných bodů použity výsledky z posledního platného PMRg v dané třídě.
B29: PMRg 2018 - Hodkovice - Korigované body
A30: =MAX(A22:A26)+1 -> 18 | B30: Milada Moudra | D30: =VLOOKUP(B30,Pilot!A:C,2,0) -> 1991 | E30: =VLOOKUP(B30,Pilot!A:E,5,0) -> F | F30: =VLOOKUP(B30,Pilot!A:F,6,0) ->  | G30: =A30 -> 18 | I30: =COUNTIF(B:B,B30) -> 1 | J30: =IF(COUNTIF('N PMČR 2019'!B:B,B30)=0,"-",COUNTIF('N PMČR 2019'!B:B,B30)) -> 1 | K30: =IF(ISERROR(VLOOKUP(B30,'N PMČR 2019'!B:G,6,0)),"-",VLOOKUP(B30,'N PMČR 2019'!B:G,6,0)) -> N1 | L30: =IF(COUNTIF('N PMČRj 2019'!B:B,B30)=0,"-",COUNTIF('N PMČRj 2019'!B:B,B30)) -> - | M30: =IF(ISERROR(VLOOKUP(B30,'N PMČRj 2019'!B:G,6,0)),"-",VLOOKUP(B30,'N PMČRj 2019'!B:G,6,0)) -> -
A31: =A30+1 -> 19 | B31: Antonin Kutalek | D31: =VLOOKUP(B31,Pilot!A:C,2,0) -> 1943 | E31: =VLOOKUP(B31,Pilot!A:E,5,0) -> M | F31: =VLOOKUP(B31,Pilot!A:F,6,0) ->  | G31: =A31 -> 19 | I31: 1 | J31: =IF(COUNTIF('N PMČR 2019'!B:B,B31)=0,"-",COUNTIF('N PMČR 2019'!B:B,B31)) -> 1 | K31: =IF(ISERROR(VLOOKUP(B31,'N PMČR 2019'!B:G,6,0)),"-",VLOOKUP(B31,'N PMČR 2019'!B:G,6,0)) -> N2 | L31: =IF(COUNTIF('N PMČRj 2019'!B:B,B31)=0,"-",COUNTIF('N PMČRj 2019'!B:B,B31)) -> - | M31: =IF(ISERROR(VLOOKUP(B31,'N PMČRj 2019'!B:G,6,0)),"-",VLOOKUP(B31,'N PMČRj 2019'!B:G,6,0)) -> -
A32: =A31+1 -> 20 | B32: Olga Mokosova | D32: =VLOOKUP(B32,Pilot!A:C,2,0) -> 1970 | E32: =VLOOKUP(B32,Pilot!A:E,5,0) -> F | F32: =VLOOKUP(B32,Pilot!A:F,6,0) ->  | G32: 20 | I32: 1 | J32: =IF(COUNTIF('N PMČR 2019'!B:B,B32)=0,"-",COUNTIF('N PMČR 2019'!B:B,B32)) -> 1 | K32: =IF(ISERROR(VLOOKUP(B32,'N PMČR 2019'!B:G,6,0)),"-",VLOOKUP(B32,'N PMČR 2019'!B:G,6,0)) -> N4 | L32: =IF(COUNTIF('N PMČRj 2019'!B:B,B32)=0,"-",COUNTIF('N PMČRj 2019'!B:B,B32)) -> - | M32: =IF(ISERROR(VLOOKUP(B32,'N PMČRj 2019'!B:G,6,0)),"-",VLOOKUP(B32,'N PMČRj 2019'!B:G,6,0)) -> -
A33: 21 | B33: Petr Lonsky | D33: =VLOOKUP(B33,Pilot!A:C,2,0) -> 1965 | E33: =VLOOKUP(B33,Pilot!A:E,5,0) -> M | F33: =VLOOKUP(B33,Pilot!A:F,6,0) ->  | G33: 21 | I33: 1 | J33: =IF(COUNTIF('N PMČR 2019'!B:B,B33)=0,"-",COUNTIF('N PMČR 2019'!B:B,B33)) -> 1 | K33: =IF(ISERROR(VLOOKUP(B33,'N PMČR 2019'!B:G,6,0)),"-",VLOOKUP(B33,'N PMČR 2019'!B:G,6,0)) -> N5 | L33: =IF(COUNTIF('N PMČRj 2019'!B:B,B33)=0,"-",COUNTIF('N PMČRj 2019'!B:B,B33)) -> - | M33: =IF(ISERROR(VLOOKUP(B33,'N PMČRj 2019'!B:G,6,0)),"-",VLOOKUP(B33,'N PMČRj 2019'!B:G,6,0)) -> -
A34: - | B34: - | D34: =VLOOKUP(B34,Pilot!A:C,2,0) ->  | E34: =VLOOKUP(B34,Pilot!A:E,5,0) ->  | F34: =VLOOKUP(B34,Pilot!A:F,6,0) ->  | G34: - | I34: 14 | J34: =IF(COUNTIF('N PMČR 2019'!B:B,B34)=0,"-",COUNTIF('N PMČR 2019'!B:B,B34)) -> 10 | K34: =IF(ISERROR(VLOOKUP(B34,'N PMČR 2019'!B:G,6,0)),"-",VLOOKUP(B34,'N PMČR 2019'!B:G,6,0)) -> - | L34: =IF(COUNTIF('N PMČRj 2019'!B:B,B34)=0,"-",COUNTIF('N PMČRj 2019'!B:B,B34)) -> 10 | M34: =IF(ISERROR(VLOOKUP(B34,'N PMČRj 2019'!B:G,6,0)),"-",VLOOKUP(B34,'N PMČRj 2019'!B:G,6,0)) -> -
A35: - | B35: - | D35: =VLOOKUP(B35,Pilot!A:C,2,0) ->  | E35: =VLOOKUP(B35,Pilot!A:E,5,0) ->  | F35: =VLOOKUP(B35,Pilot!A:F,6,0) ->  | G35: - | I35: 14 | J35: =IF(COUNTIF('N PMČR 2019'!B:B,B35)=0,"-",COUNTIF('N PMČR 2019'!B:B,B35)) -> 10 | K35: =IF(ISERROR(VLOOKUP(B35,'N PMČR 2019'!B:G,6,0)),"-",VLOOKUP(B35,'N PMČR 2019'!B:G,6,0)) -> - | L35: =IF(COUNTIF('N PMČRj 2019'!B:B,B35)=0,"-",COUNTIF('N PMČRj 2019'!B:B,B35)) -> 10 | M35: =IF(ISERROR(VLOOKUP(B35,'N PMČRj 2019'!B:G,6,0)),"-",VLOOKUP(B35,'N PMČRj 2019'!B:G,6,0)) -> -
A36: - | B36: - | D36: =VLOOKUP(B36,Pilot!A:C,2,0) ->  | E36: =VLOOKUP(B36,Pilot!A:E,5,0) ->  | F36: =VLOOKUP(B36,Pilot!A:F,6,0) ->  | G36: - | I36: 14 | J36: =IF(COUNTIF('N PMČR 2019'!B:B,B36)=0,"-",COUNTIF('N PMČR 2019'!B:B,B36)) -> 10 | K36: =IF(ISERROR(VLOOKUP(B36,'N PMČR 2019'!B:G,6,0)),"-",VLOOKUP(B36,'N PMČR 2019'!B:G,6,0)) -> - | L36: =IF(COUNTIF('N PMČRj 2019'!B:B,B36)=0,"-",COUNTIF('N PMČRj 2019'!B:B,B36)) -> 10 | M36: =IF(ISERROR(VLOOKUP(B36,'N PMČRj 2019'!B:G,6,0)),"-",VLOOKUP(B36,'N PMČRj 2019'!B:G,6,0)) -> -
A37: - | B37: - | D37: =VLOOKUP(B37,Pilot!A:C,2,0) ->  | E37: =VLOOKUP(B37,Pilot!A:E,5,0) ->  | F37: =VLOOKUP(B37,Pilot!A:F,6,0) ->  | G37: - | I37: 14 | J37: =IF(COUNTIF('N PMČR 2019'!B:B,B37)=0,"-",COUNTIF('N PMČR 2019'!B:B,B37)) -> 10 | K37: =IF(ISERROR(VLOOKUP(B37,'N PMČR 2019'!B:G,6,0)),"-",VLOOKUP(B37,'N PMČR 2019'!B:G,6,0)) -> - | L37: =IF(COUNTIF('N PMČRj 2019'!B:B,B37)=0,"-",COUNTIF('N PMČRj 2019'!B:B,B37)) -> 10 | M37: =IF(ISERROR(VLOOKUP(B37,'N PMČRj 2019'!B:G,6,0)),"-",VLOOKUP(B37,'N PMČRj 2019'!B:G,6,0)) -> -
A38: - | B38: - | D38: =VLOOKUP(B38,Pilot!A:C,2,0) ->  | E38: =VLOOKUP(B38,Pilot!A:E,5,0) ->  | F38: =VLOOKUP(B38,Pilot!A:F,6,0) ->  | G38: - | I38: 14 | J38: =IF(COUNTIF('N PMČR 2019'!B:B,B38)=0,"-",COUNTIF('N PMČR 2019'!B:B,B38)) -> 10 | K38: =IF(ISERROR(VLOOKUP(B38,'N PMČR 2019'!B:G,6,0)),"-",VLOOKUP(B38,'N PMČR 2019'!B:G,6,0)) -> - | L38: =IF(COUNTIF('N PMČRj 2019'!B:B,B38)=0,"-",COUNTIF('N PMČRj 2019'!B:B,B38)) -> 10 | M38: =IF(ISERROR(VLOOKUP(B38,'N PMČRj 2019'!B:G,6,0)),"-",VLOOKUP(B38,'N PMČRj 2019'!B:G,6,0)) -> -
A39: - | B39: - | D39: =VLOOKUP(B39,Pilot!A:C,2,0) ->  | E39: =VLOOKUP(B39,Pilot!A:E,5,0) ->  | F39: =VLOOKUP(B39,Pilot!A:F,6,0) ->  | G39: =A39 -> - | I39: 14 | J39: =IF(COUNTIF('N PMČR 2019'!B:B,B39)=0,"-",COUNTIF('N PMČR 2019'!B:B,B39)) -> 10 | K39: =IF(ISERROR(VLOOKUP(B39,'N PMČR 2019'!B:G,6,0)),"-",VLOOKUP(B39,'N PMČR 2019'!B:G,6,0)) -> - | L39: =IF(COUNTIF('N PMČRj 2019'!B:B,B39)=0,"-",COUNTIF('N PMČRj 2019'!B:B,B39)) -> 10 | M39: =IF(ISERROR(VLOOKUP(B39,'N PMČRj 2019'!B:G,6,0)),"-",VLOOKUP(B39,'N PMČRj 2019'!B:G,6,0)) -> -
A40: - | B40: - | D40: =VLOOKUP(B40,Pilot!A:C,2,0) ->  | E40: =VLOOKUP(B40,Pilot!A:E,5,0) ->  | F40: =VLOOKUP(B40,Pilot!A:F,6,0) ->  | G40: =A40 -> - | I40: 14 | J40: =IF(COUNTIF('N PMČR 2019'!B:B,B40)=0,"-",COUNTIF('N PMČR 2019'!B:B,B40)) -> 10 | K40: =IF(ISERROR(VLOOKUP(B40,'N PMČR 2019'!B:G,6,0)),"-",VLOOKUP(B40,'N PMČR 2019'!B:G,6,0)) -> - | L40: =IF(COUNTIF('N PMČRj 2019'!B:B,B40)=0,"-",COUNTIF('N PMČRj 2019'!B:B,B40)) -> 10 | M40: =IF(ISERROR(VLOOKUP(B40,'N PMČRj 2019'!B:G,6,0)),"-",VLOOKUP(B40,'N PMČRj 2019'!B:G,6,0)) -> -
A41: - | B41: - | D41: =VLOOKUP(B41,Pilot!A:C,2,0) ->  | E41: =VLOOKUP(B41,Pilot!A:E,5,0) ->  | F41: =VLOOKUP(B41,Pilot!A:F,6,0) ->  | G41: =A41 -> - | I41: 14 | J41: =IF(COUNTIF('N PMČR 2019'!B:B,B41)=0,"-",COUNTIF('N PMČR 2019'!B:B,B41)) -> 10 | K41: =IF(ISERROR(VLOOKUP(B41,'N PMČR 2019'!B:G,6,0)),"-",VLOOKUP(B41,'N PMČR 2019'!B:G,6,0)) -> - | L41: =IF(COUNTIF('N PMČRj 2019'!B:B,B41)=0,"-",COUNTIF('N PMČRj 2019'!B:B,B41)) -> 10 | M41: =IF(ISERROR(VLOOKUP(B41,'N PMČRj 2019'!B:G,6,0)),"-",VLOOKUP(B41,'N PMČRj 2019'!B:G,6,0)) -> -
A42: - | B42: - | D42: =VLOOKUP(B42,Pilot!A:C,2,0) ->  | E42: =VLOOKUP(B42,Pilot!A:E,5,0) ->  | F42: =VLOOKUP(B42,Pilot!A:F,6,0) ->  | G42: =A42 -> - | I42: 14 | J42: =IF(COUNTIF('N PMČR 2019'!B:B,B42)=0,"-",COUNTIF('N PMČR 2019'!B:B,B42)) -> 10 | K42: =IF(ISERROR(VLOOKUP(B42,'N PMČR 2019'!B:G,6,0)),"-",VLOOKUP(B42,'N PMČR 2019'!B:G,6,0)) -> - | L42: =IF(COUNTIF('N PMČRj 2019'!B:B,B42)=0,"-",COUNTIF('N PMČRj 2019'!B:B,B42)) -> 10 | M42: =IF(ISERROR(VLOOKUP(B42,'N PMČRj 2019'!B:G,6,0)),"-",VLOOKUP(B42,'N PMČRj 2019'!B:G,6,0)) -> -
A43: 6.8.5.3. | B43: soutěžící z regionů Čechy 1, Čechy 2 a Morava v pořadí podle celkového umístění v CPS-INT předcházejícího roku konání PMRg do naplnění celkového počtu minimálně 60 nominovaných (+ 10 náhradníků)
A44: =MAX(A30:A42)+1 -> 22 | C44: =VLOOKUP(B44,Pilot!A:C,3,0) ->  | D44: =VLOOKUP(B44,Pilot!A:C,2,0) ->  | E44: =VLOOKUP(B44,Pilot!A:E,5,0) ->  | F44: =VLOOKUP(B44,Pilot!A:F,6,0) ->  | G44: =A44 -> 22 | I44: =COUNTIF(B:B,B44) -> 0 | J44: =IF(COUNTIF('N PMČR 2019'!B:B,B44)=0,"-",COUNTIF('N PMČR 2019'!B:B,B44)) -> - | K44: =IF(ISERROR(VLOOKUP(B44,'N PMČR 2019'!B:G,6,0)),"-",VLOOKUP(B44,'N PMČR 2019'!B:G,6,0)) -> - | L44: =IF(COUNTIF('N PMČRj 2019'!B:B,B44)=0,"-",COUNTIF('N PMČRj 2019'!B:B,B44)) -> - | M44: =IF(ISERROR(VLOOKUP(B44,'N PMČRj 2019'!B:G,6,0)),"-",VLOOKUP(B44,'N PMČRj 2019'!B:G,6,0)) -> -
A45: =A44+1 -> 23 | C45: =VLOOKUP(B45,Pilot!A:C,3,0) ->  | D45: =VLOOKUP(B45,Pilot!A:C,2,0) ->  | E45: =VLOOKUP(B45,Pilot!A:E,5,0) ->  | F45: =VLOOKUP(B45,Pilot!A:F,6,0) ->  | G45: 23 | I45: 0 | J45: =IF(COUNTIF('N PMČR 2019'!B:B,B45)=0,"-",COUNTIF('N PMČR 2019'!B:B,B45)) -> - | K45: =IF(ISERROR(VLOOKUP(B45,'N PMČR 2019'!B:G,6,0)),"-",VLOOKUP(B45,'N PMČR 2019'!B:G,6,0)) -> - | L45: =IF(COUNTIF('N PMČRj 2019'!B:B,B45)=0,"-",COUNTIF('N PMČRj 2019'!B:B,B45)) -> - | M45: =IF(ISERROR(VLOOKUP(B45,'N PMČRj 2019'!B:G,6,0)),"-",VLOOKUP(B45,'N PMČRj 2019'!B:G,6,0)) -> -
A46: =A45+1 -> 24 | C46: =VLOOKUP(B46,Pilot!A:C,3,0) ->  | D46: =VLOOKUP(B46,Pilot!A:C,2,0) ->  | E46: =VLOOKUP(B46,Pilot!A:E,5,0) ->  | F46: =VLOOKUP(B46,Pilot!A:F,6,0) ->  | G46: 24 | I46: 0 | J46: =IF(COUNTIF('N PMČR 2019'!B:B,B46)=0,"-",COUNTIF('N PMČR 2019'!B:B,B46)) -> - | K46: =IF(ISERROR(VLOOKUP(B46,'N PMČR 2019'!B:G,6,0)),"-",VLOOKUP(B46,'N PMČR 2019'!B:G,6,0)) -> - | L46: =IF(COUNTIF('N PMČRj 2019'!B:B,B46)=0,"-",COUNTIF('N PMČRj 2019'!B:B,B46)) -> - | M46: =IF(ISERROR(VLOOKUP(B46,'N PMČRj 2019'!B:G,6,0)),"-",VLOOKUP(B46,'N PMČRj 2019'!B:G,6,0)) -> -
A47: 25 | C47: =VLOOKUP(B47,Pilot!A:C,3,0) ->  | D47: =VLOOKUP(B47,Pilot!A:C,2,0) ->  | E47: =VLOOKUP(B47,Pilot!A:E,5,0) ->  | F47: =VLOOKUP(B47,Pilot!A:F,6,0) ->  | G47: 25 | I47: 0 | J47: =IF(COUNTIF('N PMČR 2019'!B:B,B47)=0,"-",COUNTIF('N PMČR 2019'!B:B,B47)) -> - | K47: =IF(ISERROR(VLOOKUP(B47,'N PMČR 2019'!B:G,6,0)),"-",VLOOKUP(B47,'N PMČR 2019'!B:G,6,0)) -> - | L47: =IF(COUNTIF('N PMČRj 2019'!B:B,B47)=0,"-",COUNTIF('N PMČRj 2019'!B:B,B47)) -> - | M47: =IF(ISERROR(VLOOKUP(B47,'N PMČRj 2019'!B:G,6,0)),"-",VLOOKUP(B47,'N PMČRj 2019'!B:G,6,0)) -> -
A48: 26 | C48: =VLOOKUP(B48,Pilot!A:C,3,0) ->  | D48: =VLOOKUP(B48,Pilot!A:C,2,0) ->  | E48: =VLOOKUP(B48,Pilot!A:E,5,0) ->  | F48: =VLOOKUP(B48,Pilot!A:F,6,0) ->  | G48: 26 | I48: 0 | J48: =IF(COUNTIF('N PMČR 2019'!B:B,B48)=0,"-",COUNTIF('N PMČR 2019'!B:B,B48)) -> - | K48: =IF(ISERROR(VLOOKUP(B48,'N PMČR 2019'!B:G,6,0)),"-",VLOOKUP(B48,'N PMČR 2019'!B:G,6,0)) -> - | L48: =IF(COUNTIF('N PMČRj 2019'!B:B,B48)=0,"-",COUNTIF('N PMČRj 2019'!B:B,B48)) -> - | M48: =IF(ISERROR(VLOOKUP(B48,'N PMČRj 2019'!B:G,6,0)),"-",VLOOKUP(B48,'N PMČRj 2019'!B:G,6,0)) -> -
A49: 27 | C49: =VLOOKUP(B49,Pilot!A:C,3,0) ->  | D49: =VLOOKUP(B49,Pilot!A:C,2,0) ->  | E49: =VLOOKUP(B49,Pilot!A:E,5,0) ->  | F49: =VLOOKUP(B49,Pilot!A:F,6,0) ->  | G49: 27 | I49: 0 | J49: =IF(COUNTIF('N PMČR 2019'!B:B,B49)=0,"-",COUNTIF('N PMČR 2019'!B:B,B49)) -> - | K49: =IF(ISERROR(VLOOKUP(B49,'N PMČR 2019'!B:G,6,0)),"-",VLOOKUP(B49,'N PMČR 2019'!B:G,6,0)) -> - | L49: =IF(COUNTIF('N PMČRj 2019'!B:B,B49)=0,"-",COUNTIF('N PMČRj 2019'!B:B,B49)) -> - | M49: =IF(ISERROR(VLOOKUP(B49,'N PMČRj 2019'!B:G,6,0)),"-",VLOOKUP(B49,'N PMČRj 2019'!B:G,6,0)) -> -
A50: 28 | C50: =VLOOKUP(B50,Pilot!A:C,3,0) ->  | D50: =VLOOKUP(B50,Pilot!A:C,2,0) ->  | E50: =VLOOKUP(B50,Pilot!A:E,5,0) ->  | F50: =VLOOKUP(B50,Pilot!A:F,6,0) ->  | G50: 28 | I50: 0 | J50: =IF(COUNTIF('N PMČR 2019'!B:B,B50)=0,"-",COUNTIF('N PMČR 2019'!B:B,B50)) -> - | K50: =IF(ISERROR(VLOOKUP(B50,'N PMČR 2019'!B:G,6,0)),"-",VLOOKUP(B50,'N PMČR 2019'!B:G,6,0)) -> - | L50: =IF(COUNTIF('N PMČRj 2019'!B:B,B50)=0,"-",COUNTIF('N PMČRj 2019'!B:B,B50)) -> - | M50: =IF(ISERROR(VLOOKUP(B50,'N PMČRj 2019'!B:G,6,0)),"-",VLOOKUP(B50,'N PMČRj 2019'!B:G,6,0)) -> -
A51: 29 | C51: =VLOOKUP(B51,Pilot!A:C,3,0) ->  | D51: =VLOOKUP(B51,Pilot!A:C,2,0) ->  | E51: =VLOOKUP(B51,Pilot!A:E,5,0) ->  | F51: =VLOOKUP(B51,Pilot!A:F,6,0) ->  | G51: 29 | I51: 0 | J51: =IF(COUNTIF('N PMČR 2019'!B:B,B51)=0,"-",COUNTIF('N PMČR 2019'!B:B,B51)) -> - | K51: =IF(ISERROR(VLOOKUP(B51,'N PMČR 2019'!B:G,6,0)),"-",VLOOKUP(B51,'N PMČR 2019'!B:G,6,0)) -> - | L51: =IF(COUNTIF('N PMČRj 2019'!B:B,B51)=0,"-",COUNTIF('N PMČRj 2019'!B:B,B51)) -> - | M51: =IF(ISERROR(VLOOKUP(B51,'N PMČRj 2019'!B:G,6,0)),"-",VLOOKUP(B51,'N PMČRj 2019'!B:G,6,0)) -> -
A52: 30 | C52: =VLOOKUP(B52,Pilot!A:C,3,0) ->  | D52: =VLOOKUP(B52,Pilot!A:C,2,0) ->  | E52: =VLOOKUP(B52,Pilot!A:E,5,0) ->  | F52: =VLOOKUP(B52,Pilot!A:F,6,0) ->  | G52: 30 | I52: 0 | J52: =IF(COUNTIF('N PMČR 2019'!B:B,B52)=0,"-",COUNTIF('N PMČR 2019'!B:B,B52)) -> - | K52: =IF(ISERROR(VLOOKUP(B52,'N PMČR 2019'!B:G,6,0)),"-",VLOOKUP(B52,'N PMČR 2019'!B:G,6,0)) -> - | L52: =IF(COUNTIF('N PMČRj 2019'!B:B,B52)=0,"-",COUNTIF('N PMČRj 2019'!B:B,B52)) -> - | M52: =IF(ISERROR(VLOOKUP(B52,'N PMČRj 2019'!B:G,6,0)),"-",VLOOKUP(B52,'N PMČRj 2019'!B:G,6,0)) -> -
A53: 31 | C53: =VLOOKUP(B53,Pilot!A:C,3,0) ->  | D53: =VLOOKUP(B53,Pilot!A:C,2,0) ->  | E53: =VLOOKUP(B53,Pilot!A:E,5,0) ->  | F53: =VLOOKUP(B53,Pilot!A:F,6,0) ->  | G53: 31 | I53: 0 | J53: =IF(COUNTIF('N PMČR 2019'!B:B,B53)=0,"-",COUNTIF('N PMČR 2019'!B:B,B53)) -> - | K53: =IF(ISERROR(VLOOKUP(B53,'N PMČR 2019'!B:G,6,0)),"-",VLOOKUP(B53,'N PMČR 2019'!B:G,6,0)) -> - | L53: =IF(COUNTIF('N PMČRj 2019'!B:B,B53)=0,"-",COUNTIF('N PMČRj 2019'!B:B,B53)) -> - | M53: =IF(ISERROR(VLOOKUP(B53,'N PMČRj 2019'!B:G,6,0)),"-",VLOOKUP(B53,'N PMČRj 2019'!B:G,6,0)) -> -
A54: 32 | C54: =VLOOKUP(B54,Pilot!A:C,3,0) ->  | D54: =VLOOKUP(B54,Pilot!A:C,2,0) ->  | E54: =VLOOKUP(B54,Pilot!A:E,5,0) ->  | F54: =VLOOKUP(B54,Pilot!A:F,6,0) ->  | G54: 32 | I54: 0 | J54: =IF(COUNTIF('N PMČR 2019'!B:B,B54)=0,"-",COUNTIF('N PMČR 2019'!B:B,B54)) -> - | K54: =IF(ISERROR(VLOOKUP(B54,'N PMČR 2019'!B:G,6,0)),"-",VLOOKUP(B54,'N PMČR 2019'!B:G,6,0)) -> - | L54: =IF(COUNTIF('N PMČRj 2019'!B:B,B54)=0,"-",COUNTIF('N PMČRj 2019'!B:B,B54)) -> - | M54: =IF(ISERROR(VLOOKUP(B54,'N PMČRj 2019'!B:G,6,0)),"-",VLOOKUP(B54,'N PMČRj 2019'!B:G,6,0)) -> -
A55: 33 | C55: =VLOOKUP(B55,Pilot!A:C,3,0) ->  | D55: =VLOOKUP(B55,Pilot!A:C,2,0) ->  | E55: =VLOOKUP(B55,Pilot!A:E,5,0) ->  | F55: =VLOOKUP(B55,Pilot!A:F,6,0) ->  | G55: 33 | I55: 0 | J55: =IF(COUNTIF('N PMČR 2019'!B:B,B55)=0,"-",COUNTIF('N PMČR 2019'!B:B,B55)) -> - | K55: =IF(ISERROR(VLOOKUP(B55,'N PMČR 2019'!B:G,6,0)),"-",VLOOKUP(B55,'N PMČR 2019'!B:G,6,0)) -> - | L55: =IF(COUNTIF('N PMČRj 2019'!B:B,B55)=0,"-",COUNTIF('N PMČRj 2019'!B:B,B55)) -> - | M55: =IF(ISERROR(VLOOKUP(B55,'N PMČRj 2019'!B:G,6,0)),"-",VLOOKUP(B55,'N PMČRj 2019'!B:G,6,0)) -> -
A56: 34 | C56: =VLOOKUP(B56,Pilot!A:C,3,0) ->  | D56: =VLOOKUP(B56,Pilot!A:C,2,0) ->  | E56: =VLOOKUP(B56,Pilot!A:E,5,0) ->  | F56: =VLOOKUP(B56,Pilot!A:F,6,0) ->  | G56: 34 | I56: 0 | J56: =IF(COUNTIF('N PMČR 2019'!B:B,B56)=0,"-",COUNTIF('N PMČR 2019'!B:B,B56)) -> - | K56: =IF(ISERROR(VLOOKUP(B56,'N PMČR 2019'!B:G,6,0)),"-",VLOOKUP(B56,'N PMČR 2019'!B:G,6,0)) -> - | L56: =IF(COUNTIF('N PMČRj 2019'!B:B,B56)=0,"-",COUNTIF('N PMČRj 2019'!B:B,B56)) -> - | M56: =IF(ISERROR(VLOOKUP(B56,'N PMČRj 2019'!B:G,6,0)),"-",VLOOKUP(B56,'N PMČRj 2019'!B:G,6,0)) -> -
A57: 35 | C57: =VLOOKUP(B57,Pilot!A:C,3,0) ->  | D57: =VLOOKUP(B57,Pilot!A:C,2,0) ->  | E57: =VLOOKUP(B57,Pilot!A:E,5,0) ->  | F57: =VLOOKUP(B57,Pilot!A:F,6,0) ->  | G57: 35 | I57: 0 | J57: =IF(COUNTIF('N PMČR 2019'!B:B,B57)=0,"-",COUNTIF('N PMČR 2019'!B:B,B57)) -> - | K57: =IF(ISERROR(VLOOKUP(B57,'N PMČR 2019'!B:G,6,0)),"-",VLOOKUP(B57,'N PMČR 2019'!B:G,6,0)) -> - | L57: =IF(COUNTIF('N PMČRj 2019'!B:B,B57)=0,"-",COUNTIF('N PMČRj 2019'!B:B,B57)) -> - | M57: =IF(ISERROR(VLOOKUP(B57,'N PMČRj 2019'!B:G,6,0)),"-",VLOOKUP(B57,'N PMČRj 2019'!B:G,6,0)) -> -
